Workbook

Sheet Inputs and Summary
A1: PLAINS AND EASTERN ALTERNATIVES ANALYSIS
A3: General Inputs | E3: Source
A4: Inflation | B4: 0.025
A5: Corporate Tax Rate | B5: 0.35
A7: Debt (%) | B7: 0.5
A8: Equity (%) | B8: =1-B7 -> 0.5
A9: Debt Cost | B9: 0.055
A10: Cost of Equity | B10: 0.12
A12: WACC | B12: =+B7*B9*(1-B5)+B8*B10 -> 0.077875
A14: Dollar Value (year) | B14: 2011
A15: Capacity Value ($k/MW-yr) | B15: 95.659 | E15: Annual revenue requirement for combustion turbines in $2011/MW-yr
A16: Regional Cost Adjustments | B16: TN is in SERC Central (SRCE) | E16: EIA assumptions:
B17: OK is in SPP South (SPSO) | E17: http://www.eia.gov/forecasts/aeo/assumptions/pdf/electricity.pdf. Figure 6.
A19: Variable Inputs
A20: PTC Value ($/MWh) | B20: 23
A21: Carbon dioxide cost (Projection Case) 1 - None, 2 - Med, 3 - High | B21: 2
A22: Natural Gas Price (% of EIA forecast) | B22: 100
A23: OK Wind Capacity Factor (%) | B23: 53
A24: TN Wind Capacity Factor (%) | B24: 30
E26: Annual Savings vs. ($mm)
A27: Outputs | B27: LCOE ($/MWh) | C27: Annual MWh | D27: Annual Cost ($mm) | E27: =A28 -> Plains and Eastern Project | F27: =A29 -> Tennessee Wind | G27: =A30 -> Combined Cycle Gas | H27: =A31 -> Nuclear | I27: Utility-scale Solar
A28: Plains and Eastern Project | B28: ='Oklahoma Wind + P&E'!B82 -> 34.09792759 | C28: ='Oklahoma Wind + P&E'!E12 -> 2427524.55 | D28: =+B28*C28/10^6 -> 82.77355633 | E28: =+$D$28-D28 -> 0 | F28: =+$D$29-D28 -> 59.52995221 | G28: =+$D$30-D28 -> 91.0059647 | H28: =+$D$31-D28 -> 113.6622638 | I28: =$D$32-D28 -> 197.0204026
A29: Tennessee Wind | B29: ='Tennessee Wind'!B99 -> 58.62083188 | C29: ='Tennessee Wind'!D28 -> 2427524.55 | D29: =+B29*C29/10^6 -> 142.3035085 | E29: =+$D$28-D29 -> -59.52995221 | F29: =+$D$29-D29 -> 0 | G29: =+$D$30-D29 -> 31.47601249 | H29: =+$D$31-D29 -> 54.13231157 | I29: =$D$32-D29 -> 137.4904504
A30: Combined Cycle Gas | B30: ='Combined Cycle Gas'!B113 -> 71.58713226 | C30: ='Combined Cycle Gas'!C44 -> 2427524.55 | D30: =+B30*C30/10^6 -> 173.779521 | E30: =+$D$28-D30 -> -91.0059647 | F30: =+$D$29-D30 -> -31.47601249 | G30: =+$D$30-D30 -> 0 | H30: =+$D$31-D30 -> 22.65629907 | I30: 106.0144379
A31: Nuclear | B31: =Nuclear!B110 -> 80.92021978 | C31: =Nuclear!D41 -> 2427524.55 | D31: =+B31*C31/10^6 -> 196.4358201 | E31: =+$D$28-D31 -> -113.6622638 | F31: =+$D$29-D31 -> -54.13231157 | G31: =+$D$30-D31 -> -22.65629907 | H31: =+$D$31-D31 -> 0 | I31: 83.35813884
A32: Utility-scale Solar | B32: ='Utility-scale Solar'!B103 -> 115.2589616 | C32: ='Utility-scale Solar'!C33 -> 2427524.55 | D32: =+B32*C32/10^6 -> 279.7939589 | E32: =+$D$28-D32 -> -197.0204026 | F32: =+$D$29-D32 -> -137.4904504 | G32: =+$D$30-D32 -> -106.0144379 | H32: =+$D$31-D32 -> -83.35813884 | I32: 0
A34: Note: LCOE is net of capacity value

Sheet Scenarios
A1: Scenarios
A3: Variable Inputs | B3: Low | C3: Med | D3: High
A4: PTC Value ($/MWh) | B4: 0 | D4: 23 | F4: (Only affects wind PTC)
A5: Carbon Dioxide Costs (Scenario) | B5: 1 | C5: 2 | D5: 3
A6: Natural Gas Price (% of EIA forecast) | B6: 80 | C6: 100 | D6: 120
A7: OK Wind Capacity Factor (%) | B7: 50 | C7: 53 | D7: 56
A8: TN Wind Capacity Factor (%) | B8: 25 | C8: 30 | D8: 35
A11: Scenario: | B11: PL , CL , GL , OL , TL | E11: Annual Savings vs. ($mm)
A12: Outputs | B12: LCOE ($/MWh) | C12: Annual MWh | D12: Annual Cost ($mm) | E12: Plains and Eastern Project | F12: Tennessee Wind | G12: Combined Cycle Gas | H12: Nuclear | I12: Utility-scale Solar
A13: Plains and Eastern Project | B13: 66.06659354 | C13: 2290117.5 | D13: 151.300262 | E13: 0 | F13: 78.9762257 | G13: -47.27969343 | H13: 34.01654937 | I13: 112.656303
A14: Tennessee Wind | B14: 100.5522589 | C14: 2290117.5 | D14: 230.2764877 | E14: -78.9762257 | F14: 0 | G14: -126.2559191 | H14: -44.95967633 | I14: 33.68007729
A15: Combined Cycle Gas | B15: 45.42149851 | C15: 2290117.5 | D15: 104.0205686 | E15: 47.27969343 | F15: 126.2559191 | G15: 0 | H15: 81.2962428 | I15: 159.9359964
A16: Nuclear | B16: 80.92021978 | C16: 2290117.5 | D16: 185.3168114 | E16: -34.01654937 | F16: 44.95967633 | G16: -81.2962428 | H16: 0 | I16: 78.63975362
A17: Utility-scale Solar | B17: 115.2589616 | C17: 2290117.5 | D17: 263.956565 | E17: -112.656303 | F17: -33.68007729 | G17: -159.9359964 | H17: -78.63975362 | I17: 0
A19: Scenario: | B19: PL , CL , GL , OL , TM | E19: Annual Savings vs. ($mm)
A20: Outputs | B20: LCOE ($/MWh) | C20: Annual MWh | D20: Annual Cost ($mm) | E20: Plains and Eastern Project | F20: Tennessee Wind | G20: Combined Cycle Gas | H20: Nuclear | I20: Utility-scale Solar
A21: Plains and Eastern Project | B21: 66.06659354 | C21: 2290117.5 | D21: 151.300262 | E21: 0 | F21: 40.80510838 | G21: -47.27969343 | H21: 34.01654937 | I21: 112.656303
A22: Tennessee Wind | B22: 83.88450393 | C22: 2290117.5 | D22: 192.1053704 | E22: -40.80510838 | F22: 0 | G22: -88.08480181 | H22: -6.788559008 | I22: 71.85119461
A23: Combined Cycle Gas | B23: 45.42149851 | C23: 2290117.5 | D23: 104.0205686 | E23: 47.27969343 | F23: 88.08480181 | G23: 0 | H23: 81.2962428 | I23: 159.9359964
A24: Nuclear | B24: 80.92021978 | C24: 2290117.5 | D24: 185.3168114 | E24: -34.01654937 | F24: 6.788559008 | G24: -81.2962428 | H24: 0 | I24: 78.63975362
A25: Utility-scale Solar | B25: 115.2589616 | C25: 2290117.5 | D25: 263.956565 | E25: -112.656303 | F25: -71.85119461 | G25: -159.9359964 | H25: -78.63975362 | I25: 0
A27: Scenario: | B27: PL , CL , GL , OL , TH | E27: Annual Savings vs. ($mm)
A28: Outputs | B28: LCOE ($/MWh) | C28: Annual MWh | D28: Annual Cost ($mm) | E28: Plains and Eastern Project | F28: Tennessee Wind | G28: Combined Cycle Gas | H28: Nuclear | I28: Utility-scale Solar
A29: Plains and Eastern Project | B29: 66.06659354 | C29: 2290117.5 | D29: 151.300262 | E29: 0 | F29: 13.54002458 | G29: -47.27969343 | H29: 34.01654937 | I29: 112.656303
A30: Tennessee Wind | B30: 71.97896467 | C30: 2290117.5 | D30: 164.8402866 | E30: -13.54002458 | F30: 0 | G30: -60.81971801 | H30: 20.47652479 | I30: 99.11627841
A31: Combined Cycle Gas | B31: 45.42149851 | C31: 2290117.5 | D31: 104.0205686 | E31: 47.27969343 | F31: 60.81971801 | G31: 0 | H31: 81.2962428 | I31: 159.9359964
A32: Nuclear | B32: 80.92021978 | C32: 2290117.5 | D32: 185.3168114 | E32: -34.01654937 | F32: -20.47652479 | G32: -81.2962428 | H32: 0 | I32: 78.63975362
A33: Utility-scale Solar | B33: 115.2589616 | C33: 2290117.5 | D33: 263.956565 | E33: -112.656303 | F33: -99.11627841 | G33: -159.9359964 | H33: -78.63975362 | I33: 0
A35: Scenario: | B35: PL , CL , GL , OM , TL | E35: Annual Savings vs. ($mm)
A36: Outputs | B36: LCOE ($/MWh) | C36: Annual MWh | D36: Annual Cost ($mm) | E36: Plains and Eastern Project | F36: Tennessee Wind | G36: Combined Cycle Gas | H36: Nuclear | I36: Utility-scale Solar
A37: Plains and Eastern Project | B37: 63.03577052 | C37: 2427524.55 | D37: 153.0208805 | E37: 0 | F37: 92.53519939 | G37: -43.34017975 | H37: 43.41493962 | I37: 126.7730785
A38: Tennessee Wind | B38: 101.1549316 | C38: 2427524.55 | D38: 245.5560799 | E38: -92.53519939 | F38: 0 | G38: -135.8753791 | H38: -49.12025976 | I38: 34.23787908
A39: Combined Cycle Gas | B39: 45.18211802 | C39: 2427524.55 | D39: 109.6807007 | E39: 43.34017975 | F39: 135.8753791 | G39: 0 | H39: 86.75511937 | I39: 170.1132582
A40: Nuclear | B40: 80.92021978 | C40: 2427524.55 | D40: 196.4358201 | E40: -43.41493962 | F40: 49.12025976 | G40: -86.75511937 | H40: 0 | I40: 83.35813884
A41: Utility-scale Solar | B41: 115.2589616 | C41: 2427524.55 | D41: 279.7939589 | E41: -126.7730785 | F41: -34.23787908 | G41: -170.1132582 | H41: -83.35813884 | I41: 0
A43: Scenario: | B43: PL , CL , GL , OM , TM | E43: Annual Savings vs. ($mm)
A44: Outputs | B44: LCOE ($/MWh) | C44: Annual MWh | D44: Annual Cost ($mm) | E44: Plains and Eastern Project | F44: Tennessee Wind | G44: Combined Cycle Gas | H44: Nuclear | I44: Utility-scale Solar
A45: Plains and Eastern Project | B45: 63.03577052 | C45: 2427524.55 | D45: 153.0208805 | E45: 0 | F45: 52.07381503 | G45: -43.34017975 | H45: 43.41493962 | I45: 126.7730785
A46: Tennessee Wind | B46: 84.48717666 | C46: 2427524.55 | D46: 205.0946955 | E46: -52.07381503 | F46: 0 | G46: -95.41399477 | H46: -8.658875402 | I46: 74.69926344
A47: Combined Cycle Gas | B47: 45.18211802 | C47: 2427524.55 | D47: 109.6807007 | E47: 43.34017975 | F47: 95.41399477 | G47: 0 | H47: 86.75511937 | I47: 170.1132582
A48: Nuclear | B48: 80.92021978 | C48: 2427524.55 | D48: 196.4358201 | E48: -43.41493962 | F48: 8.658875402 | G48: -86.75511937 | H48: 0 | I48: 83.35813884
A49: Utility-scale Solar | B49: 115.2589616 | C49: 2427524.55 | D49: 279.7939589 | E49: -126.7730785 | F49: -74.69926344 | G49: -170.1132582 | H49: -83.35813884 | I49: 0
A51: Scenario: | B51: PL , CL , GL , OM , TH | E51: Annual Savings vs. ($mm)
A52: Outputs | B52: LCOE ($/MWh) | C52: Annual MWh | D52: Annual Cost ($mm) | E52: Plains and Eastern Project | F52: Tennessee Wind | G52: Combined Cycle Gas | H52: Nuclear | I52: Utility-scale Solar
A53: Plains and Eastern Project | B53: 63.03577052 | C53: 2427524.55 | D53: 153.0208805 | E53: 0 | F53: 23.1728262 | G53: -43.34017975 | H53: 43.41493962 | I53: 126.7730785
A54: Tennessee Wind | B54: 72.5816374 | C54: 2427524.55 | D54: 176.1937067 | E54: -23.1728262 | F54: 0 | G54: -66.51300595 | H54: 20.24211343 | I54: 103.6002523
A55: Combined Cycle Gas | B55: 45.18211802 | C55: 2427524.55 | D55: 109.6807007 | E55: 43.34017975 | F55: 66.51300595 | G55: 0 | H55: 86.75511937 | I55: 170.1132582
A56: Nuclear | B56: 80.92021978 | C56: 2427524.55 | D56: 196.4358201 | E56: -43.41493962 | F56: -20.24211343 | G56: -86.75511937 | H56: 0 | I56: 83.35813884
A57: Utility-scale Solar | B57: 115.2589616 | C57: 2427524.55 | D57: 279.7939589 | E57: -126.7730785 | F57: -103.6002523 | G57: -170.1132582 | H57: -83.35813884 | I57: 0
A59: Scenario: | B59: PL , CL , GL , OH , TL | E59: Annual Savings vs. ($mm)
A60: Outputs | B60: LCOE ($/MWh) | C60: Annual MWh | D60: Annual Cost ($mm) | E60: Plains and Eastern Project | F60: Tennessee Wind | G60: Combined Cycle Gas | H60: Nuclear | I60: Utility-scale Solar
A61: Plains and Eastern Project | B61: 60.32967854 | C61: 2564931.6 | D61: 154.7414989 | E61: 0 | F61: 106.0941731 | G61: -38.85245663 | H61: 52.81332987 | I61: 140.8898539
A62: Tennessee Wind | B62: 101.6930323 | C62: 2564931.6 | D62: 260.835672 | E62: -106.0941731 | F62: 0 | G62: -144.9466297 | H62: -53.2808432 | I62: 34.79568086
A63: Combined Cycle Gas | B63: 45.18211802 | C63: 2564931.6 | D63: 115.8890423 | E63: 38.85245663 | F63: 144.9466297 | G63: 0 | H63: 91.66578651 | I63: 179.7423106
A64: Nuclear | B64: 80.92021978 | C64: 2564931.6 | D64: 207.5548288 | E64: -52.81332987 | F64: 53.2808432 | G64: -91.66578651 | H64: 0 | I64: 88.07652406
A65: Utility-scale Solar | B65: 115.2589616 | C65: 2564931.6 | D65: 295.6313528 | E65: -140.8898539 | F65: -34.79568086 | G65: -179.7423106 | H65: -88.07652406 | I65: 0
A67: Scenario: | B67: PL , CL , GL , OH , TM | E67: Annual Savings vs. ($mm)
A68: Outputs | B68: LCOE ($/MWh) | C68: Annual MWh | D68: Annual Cost ($mm) | E68: Plains and Eastern Project | F68: Tennessee Wind | G68: Combined Cycle Gas | H68: Nuclear | I68: Utility-scale Solar
A69: Plains and Eastern Project | B69: 60.32967854 | C69: 2564931.6 | D69: 154.7414989 | E69: 0 | F69: 63.34252167 | G69: -38.85245663 | H69: 52.81332987 | I69: 140.8898539
A70: Tennessee Wind | B70: 85.02527731 | C70: 2564931.6 | D70: 218.0840206 | E70: -63.34252167 | F70: 0 | G70: -102.1949783 | H70: -10.5291918 | I70: 77.54733226
A71: Combined Cycle Gas | B71: 45.18211802 | C71: 2564931.6 | D71: 115.8890423 | E71: 38.85245663 | F71: 102.1949783 | G71: 0 | H71: 91.66578651 | I71: 179.7423106
A72: Nuclear | B72: 80.92021978 | C72: 2564931.6 | D72: 207.5548288 | E72: -52.81332987 | F72: 10.5291918 | G72: -91.66578651 | H72: 0 | I72: 88.07652406
A73: Utility-scale Solar | B73: 115.2589616 | C73: 2564931.6 | D73: 295.6313528 | E73: -140.8898539 | F73: -77.54733226 | G73: -179.7423106 | H73: -88.07652406 | I73: 0
A75: Scenario: | B75: PL , CL , GL , OH , TH | E75: Annual Savings vs. ($mm)
A76: Outputs | B76: LCOE ($/MWh) | C76: Annual MWh | D76: Annual Cost ($mm) | E76: Plains and Eastern Project | F76: Tennessee Wind | G76: Combined Cycle Gas | H76: Nuclear | I76: Utility-scale Solar
A77: Plains and Eastern Project | B77: 60.32967854 | C77: 2564931.6 | D77: 154.7414989 | E77: 0 | F77: 32.80562781 | G77: -38.85245663 | H77: 52.81332987 | I77: 140.8898539
A78: Tennessee Wind | B78: 73.11973805 | C78: 2564931.6 | D78: 187.5471267 | E78: -32.80562781 | F78: 0 | G78: -71.65808445 | H78: 20.00770206 | I78: 108.0842261
A79: Combined Cycle Gas | B79: 45.18211802 | C79: 2564931.6 | D79: 115.8890423 | E79: 38.85245663 | F79: 71.65808445 | G79: 0 | H79: 91.66578651 | I79: 179.7423106
A80: Nuclear | B80: 80.92021978 | C80: 2564931.6 | D80: 207.5548288 | E80: -52.81332987 | F80: -20.00770206 | G80: -91.66578651 | H80: 0 | I80: 88.07652406
A81: Utility-scale Solar | B81: 115.2589616 | C81: 2564931.6 | D81: 295.6313528 | E81: -140.8898539 | F81: -108.0842261 | G81: -179.7423106 | H81: -88.07652406 | I81: 0
A83: Scenario: | B83: PL , CL , GM , OL , TL | E83: Annual Savings vs. ($mm)
A84: Outputs | B84: LCOE ($/MWh) | C84: Annual MWh | D84: Annual Cost ($mm) | E84: Plains and Eastern Project | F84: Tennessee Wind | G84: Combined Cycle Gas | H84: Nuclear | I84: Utility-scale Solar
A85: Plains and Eastern Project | B85: 66.06659354 | C85: 2290117.5 | D85: 151.300262 | E85: 0 | F85: 78.9762257 | G85: -24.83438661 | H85: 34.01654937 | I85: 112.656303
A86: Tennessee Wind | B86: 100.5522589 | C86: 2290117.5 | D86: 230.2764877 | E86: -78.9762257 | F86: 0 | G86: -103.8106123 | H86: -44.95967633 | I86: 33.68007729
A87: Combined Cycle Gas | B87: 55.22243965 | C87: 2290117.5 | D87: 126.4658754 | E87: 24.83438661 | F87: 103.8106123 | G87: 0 | H87: 58.85093598 | I87: 137.4906896
A88: Nuclear | B88: 80.92021978 | C88: 2290117.5 | D88: 185.3168114 | E88: -34.01654937 | F88: 44.95967633 | G88: -58.85093598 | H88: 0 | I88: 78.63975362
A89: Utility-scale Solar | B89: 115.2589616 | C89: 2290117.5 | D89: 263.956565 | E89: -112.656303 | F89: -33.68007729 | G89: -137.4906896 | H89: -78.63975362 | I89: 0
A91: Scenario: | B91: PL , CL , GM , OL , TM | E91: Annual Savings vs. ($mm)
A92: Outputs | B92: LCOE ($/MWh) | C92: Annual MWh | D92: Annual Cost ($mm) | E92: Plains and Eastern Project | F92: Tennessee Wind | G92: Combined Cycle Gas | H92: Nuclear | I92: Utility-scale Solar
A93: Plains and Eastern Project | B93: 66.06659354 | C93: 2290117.5 | D93: 151.300262 | E93: 0 | F93: 40.80510838 | G93: -24.83438661 | H93: 34.01654937 | I93: 112.656303
A94: Tennessee Wind | B94: 83.88450393 | C94: 2290117.5 | D94: 192.1053704 | E94: -40.80510838 | F94: 0 | G94: -65.63949499 | H94: -6.788559008 | I94: 71.85119461
A95: Combined Cycle Gas | B95: 55.22243965 | C95: 2290117.5 | D95: 126.4658754 | E95: 24.83438661 | F95: 65.63949499 | G95: 0 | H95: 58.85093598 | I95: 137.4906896
A96: Nuclear | B96: 80.92021978 | C96: 2290117.5 | D96: 185.3168114 | E96: -34.01654937 | F96: 6.788559008 | G96: -58.85093598 | H96: 0 | I96: 78.63975362
A97: Utility-scale Solar | B97: 115.2589616 | C97: 2290117.5 | D97: 263.956565 | E97: -112.656303 | F97: -71.85119461 | G97: -137.4906896 | H97: -78.63975362 | I97: 0
A99: Scenario: | B99: PL , CL , GM , OL , TH | E99: Annual Savings vs. ($mm)
A100: Outputs | B100: LCOE ($/MWh) | C100: Annual MWh | D100: Annual Cost ($mm) | E100: Plains and Eastern Project | F100: Tennessee Wind | G100: Combined Cycle Gas | H100: Nuclear | I100: Utility-scale Solar
A101: Plains and Eastern Project | B101: 66.06659354 | C101: 2290117.5 | D101: 151.300262 | E101: 0 | F101: 13.54002458 | G101: -24.83438661 | H101: 34.01654937 | I101: 112.656303
A102: Tennessee Wind | B102: 71.97896467 | C102: 2290117.5 | D102: 164.8402866 | E102: -13.54002458 | F102: 0 | G102: -38.37441119 | H102: 20.47652479 | I102: 99.11627841
A103: Combined Cycle Gas | B103: 55.22243965 | C103: 2290117.5 | D103: 126.4658754 | E103: 24.83438661 | F103: 38.37441119 | G103: 0 | H103: 58.85093598 | I103: 137.4906896
A104: Nuclear | B104: 80.92021978 | C104: 2290117.5 | D104: 185.3168114 | E104: -34.01654937 | F104: -20.47652479 | G104: -58.85093598 | H104: 0 | I104: 78.63975362
A105: Utility-scale Solar | B105: 115.2589616 | C105: 2290117.5 | D105: 263.956565 | E105: -112.656303 | F105: -99.11627841 | G105: -137.4906896 | H105: -78.63975362 | I105: 0
A107: Scenario: | B107: PL , CL , GM , OM , TL | E107: Annual Savings vs. ($mm)
A108: Outputs | B108: LCOE ($/MWh) | C108: Annual MWh | D108: Annual Cost ($mm) | E108: Plains and Eastern Project | F108: Tennessee Wind | G108: Combined Cycle Gas | H108: Nuclear | I108: Utility-scale Solar
A109: Plains and Eastern Project | B109: 63.03577052 | C109: 2427524.55 | D109: 153.0208805 | E109: 0 | F109: 92.53519939 | G109: -19.54815452 | H109: 43.41493962 | I109: 126.7730785
A110: Tennessee Wind | B110: 101.1549316 | C110: 2427524.55 | D110: 245.5560799 | E110: -92.53519939 | F110: 0 | G110: -112.0833539 | H110: -49.12025976 | I110: 34.23787908
A111: Combined Cycle Gas | B111: 54.98305916 | C111: 2427524.55 | D111: 133.472726 | E111: 19.54815452 | F111: 112.0833539 | G111: 0 | H111: 62.96309414 | I111: 146.321233
A112: Nuclear | B112: 80.92021978 | C112: 2427524.55 | D112: 196.4358201 | E112: -43.41493962 | F112: 49.12025976 | G112: -62.96309414 | H112: 0 | I112: 83.35813884
A113: Utility-scale Solar | B113: 115.2589616 | C113: 2427524.55 | D113: 279.7939589 | E113: -126.7730785 | F113: -34.23787908 | G113: -146.321233 | H113: -83.35813884 | I113: 0
A115: Scenario: | B115: PL , CL , GM , OM , TM | E115: Annual Savings vs. ($mm)
A116: Outputs | B116: LCOE ($/MWh) | C116: Annual MWh | D116: Annual Cost ($mm) | E116: Plains and Eastern Project | F116: Tennessee Wind | G116: Combined Cycle Gas | H116: Nuclear | I116: Utility-scale Solar
A117: Plains and Eastern Project | B117: 63.03577052 | C117: 2427524.55 | D117: 153.0208805 | E117: 0 | F117: 52.07381503 | G117: -19.54815452 | H117: 43.41493962 | I117: 126.7730785
A118: Tennessee Wind | B118: 84.48717666 | C118: 2427524.55 | D118: 205.0946955 | E118: -52.07381503 | F118: 0 | G118: -71.62196954 | H118: -8.658875402 | I118: 74.69926344
A119: Combined Cycle Gas | B119: 54.98305916 | C119: 2427524.55 | D119: 133.472726 | E119: 19.54815452 | F119: 71.62196954 | G119: 0 | H119: 62.96309414 | I119: 146.321233
A120: Nuclear | B120: 80.92021978 | C120: 2427524.55 | D120: 196.4358201 | E120: -43.41493962 | F120: 8.658875402 | G120: -62.96309414 | H120: 0 | I120: 83.35813884
A121: Utility-scale Solar | B121: 115.2589616 | C121: 2427524.55 | D121: 279.7939589 | E121: -126.7730785 | F121: -74.69926344 | G121: -146.321233 | H121: -83.35813884 | I121: 0
A123: Scenario: | B123: PL , CL , GM , OM , TH | E123: Annual Savings vs. ($mm)
A124: Outputs | B124: LCOE ($/MWh) | C124: Annual MWh | D124: Annual Cost ($mm) | E124: Plains and Eastern Project | F124: Tennessee Wind | G124: Combined Cycle Gas | H124: Nuclear | I124: Utility-scale Solar
A125: Plains and Eastern Project | B125: 63.03577052 | C125: 2427524.55 | D125: 153.0208805 | E125: 0 | F125: 23.1728262 | G125: -19.54815452 | H125: 43.41493962 | I125: 126.7730785
A126: Tennessee Wind | B126: 72.5816374 | C126: 2427524.55 | D126: 176.1937067 | E126: -23.1728262 | F126: 0 | G126: -42.72098072 | H126: 20.24211343 | I126: 103.6002523
A127: Combined Cycle Gas | B127: 54.98305916 | C127: 2427524.55 | D127: 133.472726 | E127: 19.54815452 | F127: 42.72098072 | G127: 0 | H127: 62.96309414 | I127: 146.321233
A128: Nuclear | B128: 80.92021978 | C128: 2427524.55 | D128: 196.4358201 | E128: -43.41493962 | F128: -20.24211343 | G128: -62.96309414 | H128: 0 | I128: 83.35813884
A129: Utility-scale Solar | B129: 115.2589616 | C129: 2427524.55 | D129: 279.7939589 | E129: -126.7730785 | F129: -103.6002523 | G129: -146.321233 | H129: -83.35813884 | I129: 0
A131: Scenario: | B131: PL , CL , GM , OH , TL | E131: Annual Savings vs. ($mm)
A132: Outputs | B132: LCOE ($/MWh) | C132: Annual MWh | D132: Annual Cost ($mm) | E132: Plains and Eastern Project | F132: Tennessee Wind | G132: Combined Cycle Gas | H132: Nuclear | I132: Utility-scale Solar
A133: Plains and Eastern Project | B133: 60.32967854 | C133: 2564931.6 | D133: 154.7414989 | E133: 0 | F133: 106.0941731 | G133: -13.71371299 | H133: 52.81332987 | I133: 140.8898539
A134: Tennessee Wind | B134: 101.6930323 | C134: 2564931.6 | D134: 260.835672 | E134: -106.0941731 | F134: 0 | G134: -119.8078861 | H134: -53.2808432 | I134: 34.79568086
A135: Combined Cycle Gas | B135: 54.98305916 | C135: 2564931.6 | D135: 141.0277859 | E135: 13.71371299 | F135: 119.8078861 | G135: 0 | H135: 66.52704287 | I135: 154.6035669
A136: Nuclear | B136: 80.92021978 | C136: 2564931.6 | D136: 207.5548288 | E136: -52.81332987 | F136: 53.2808432 | G136: -66.52704287 | H136: 0 | I136: 88.07652406
A137: Utility-scale Solar | B137: 115.2589616 | C137: 2564931.6 | D137: 295.6313528 | E137: -140.8898539 | F137: -34.79568086 | G137: -154.6035669 | H137: -88.07652406 | I137: 0
A139: Scenario: | B139: PL , CL , GM , OH , TM | E139: Annual Savings vs. ($mm)
A140: Outputs | B140: LCOE ($/MWh) | C140: Annual MWh | D140: Annual Cost ($mm) | E140: Plains and Eastern Project | F140: Tennessee Wind | G140: Combined Cycle Gas | H140: Nuclear | I140: Utility-scale Solar
A141: Plains and Eastern Project | B141: 60.32967854 | C141: 2564931.6 | D141: 154.7414989 | E141: 0 | F141: 63.34252167 | G141: -13.71371299 | H141: 52.81332987 | I141: 140.8898539
A142: Tennessee Wind | B142: 85.02527731 | C142: 2564931.6 | D142: 218.0840206 | E142: -63.34252167 | F142: 0 | G142: -77.05623466 | H142: -10.5291918 | I142: 77.54733226
A143: Combined Cycle Gas | B143: 54.98305916 | C143: 2564931.6 | D143: 141.0277859 | E143: 13.71371299 | F143: 77.05623466 | G143: 0 | H143: 66.52704287 | I143: 154.6035669
A144: Nuclear | B144: 80.92021978 | C144: 2564931.6 | D144: 207.5548288 | E144: -52.81332987 | F144: 10.5291918 | G144: -66.52704287 | H144: 0 | I144: 88.07652406
A145: Utility-scale Solar | B145: 115.2589616 | C145: 2564931.6 | D145: 295.6313528 | E145: -140.8898539 | F145: -77.54733226 | G145: -154.6035669 | H145: -88.07652406 | I145: 0
A147: Scenario: | B147: PL , CL , GM , OH , TH | E147: Annual Savings vs. ($mm)
A148: Outputs | B148: LCOE ($/MWh) | C148: Annual MWh | D148: Annual Cost ($mm) | E148: Plains and Eastern Project | F148: Tennessee Wind | G148: Combined Cycle Gas | H148: Nuclear | I148: Utility-scale Solar
A149: Plains and Eastern Project | B149: 60.32967854 | C149: 2564931.6 | D149: 154.7414989 | E149: 0 | F149: 32.80562781 | G149: -13.71371299 | H149: 52.81332987 | I149: 140.8898539
A150: Tennessee Wind | B150: 73.11973805 | C150: 2564931.6 | D150: 187.5471267 | E150: -32.80562781 | F150: 0 | G150: -46.51934081 | H150: 20.00770206 | I150: 108.0842261
A151: Combined Cycle Gas | B151: 54.98305916 | C151: 2564931.6 | D151: 141.0277859 | E151: 13.71371299 | F151: 46.51934081 | G151: 0 | H151: 66.52704287 | I151: 154.6035669
A152: Nuclear | B152: 80.92021978 | C152: 2564931.6 | D152: 207.5548288 | E152: -52.81332987 | F152: -20.00770206 | G152: -66.52704287 | H152: 0 | I152: 88.07652406
A153: Utility-scale Solar | B153: 115.2589616 | C153: 2564931.6 | D153: 295.6313528 | E153: -140.8898539 | F153: -108.0842261 | G153: -154.6035669 | H153: -88.07652406 | I153: 0
A155: Scenario: | B155: PL , CL , GH , OL , TL | E155: Annual Savings vs. ($mm)
A156: Outputs | B156: LCOE ($/MWh) | C156: Annual MWh | D156: Annual Cost ($mm) | E156: Plains and Eastern Project | F156: Tennessee Wind | G156: Combined Cycle Gas | H156: Nuclear | I156: Utility-scale Solar
A157: Plains and Eastern Project | B157: 66.06659354 | C157: 2290117.5 | D157: 151.300262 | E157: 0 | F157: 78.9762257 | G157: -2.389079787 | H157: 34.01654937 | I157: 112.656303
A158: Tennessee Wind | B158: 100.5522589 | C158: 2290117.5 | D158: 230.2764877 | E158: -78.9762257 | F158: 0 | G158: -81.36530549 | H158: -44.95967633 | I158: 33.68007729
A159: Combined Cycle Gas | B159: 65.02338079 | C159: 2290117.5 | D159: 148.9111823 | E159: 2.389079787 | F159: 81.36530549 | G159: 0 | H159: 36.40562916 | I159: 115.0453828
A160: Nuclear | B160: 80.92021978 | C160: 2290117.5 | D160: 185.3168114 | E160: -34.01654937 | F160: 44.95967633 | G160: -36.40562916 | H160: 0 | I160: 78.63975362
A161: Utility-scale Solar | B161: 115.2589616 | C161: 2290117.5 | D161: 263.956565 | E161: -112.656303 | F161: -33.68007729 | G161: -115.0453828 | H161: -78.63975362 | I161: 0
A163: Scenario: | B163: PL , CL , GH , OL , TM | E163: Annual Savings vs. ($mm)
A164: Outputs | B164: LCOE ($/MWh) | C164: Annual MWh | D164: Annual Cost ($mm) | E164: Plains and Eastern Project | F164: Tennessee Wind | G164: Combined Cycle Gas | H164: Nuclear | I164: Utility-scale Solar
A165: Plains and Eastern Project | B165: 66.06659354 | C165: 2290117.5 | D165: 151.300262 | E165: 0 | F165: 40.80510838 | G165: -2.389079787 | H165: 34.01654937 | I165: 112.656303
A166: Tennessee Wind | B166: 83.88450393 | C166: 2290117.5 | D166: 192.1053704 | E166: -40.80510838 | F166: 0 | G166: -43.19418817 | H166: -6.788559008 | I166: 71.85119461
A167: Combined Cycle Gas | B167: 65.02338079 | C167: 2290117.5 | D167: 148.9111823 | E167: 2.389079787 | F167: 43.19418817 | G167: 0 | H167: 36.40562916 | I167: 115.0453828
A168: Nuclear | B168: 80.92021978 | C168: 2290117.5 | D168: 185.3168114 | E168: -34.01654937 | F168: 6.788559008 | G168: -36.40562916 | H168: 0 | I168: 78.63975362
A169: Utility-scale Solar | B169: 115.2589616 | C169: 2290117.5 | D169: 263.956565 | E169: -112.656303 | F169: -71.85119461 | G169: -115.0453828 | H169: -78.63975362 | I169: 0
A171: Scenario: | B171: PL , CL , GH , OL , TH | E171: Annual Savings vs. ($mm)
A172: Outputs | B172: LCOE ($/MWh) | C172: Annual MWh | D172: Annual Cost ($mm) | E172: Plains and Eastern Project | F172: Tennessee Wind | G172: Combined Cycle Gas | H172: Nuclear | I172: Utility-scale Solar
A173: Plains and Eastern Project | B173: 66.06659354 | C173: 2290117.5 | D173: 151.300262 | E173: 0 | F173: 13.54002458 | G173: -2.389079787 | H173: 34.01654937 | I173: 112.656303
A174: Tennessee Wind | B174: 71.97896467 | C174: 2290117.5 | D174: 164.8402866 | E174: -13.54002458 | F174: 0 | G174: -15.92910437 | H174: 20.47652479 | I174: 99.11627841
A175: Combined Cycle Gas | B175: 65.02338079 | C175: 2290117.5 | D175: 148.9111823 | E175: 2.389079787 | F175: 15.92910437 | G175: 0 | H175: 36.40562916 | I175: 115.0453828
A176: Nuclear | B176: 80.92021978 | C176: 2290117.5 | D176: 185.3168114 | E176: -34.01654937 | F176: -20.47652479 | G176: -36.40562916 | H176: 0 | I176: 78.63975362
A177: Utility-scale Solar | B177: 115.2589616 | C177: 2290117.5 | D177: 263.956565 | E177: -112.656303 | F177: -99.11627841 | G177: -115.0453828 | H177: -78.63975362 | I177: 0
A179: Scenario: | B179: PL , CL , GH , OM , TL | E179: Annual Savings vs. ($mm)
A180: Outputs | B180: LCOE ($/MWh) | C180: Annual MWh | D180: Annual Cost ($mm) | E180: Plains and Eastern Project | F180: Tennessee Wind | G180: Combined Cycle Gas | H180: Nuclear | I180: Utility-scale Solar
A181: Plains and Eastern Project | B181: 63.03577052 | C181: 2427524.55 | D181: 153.0208805 | E181: 0 | F181: 92.53519939 | G181: 4.243870711 | H181: 43.41493962 | I181: 126.7730785
A182: Tennessee Wind | B182: 101.1549316 | C182: 2427524.55 | D182: 245.5560799 | E182: -92.53519939 | F182: 0 | G182: -88.29132868 | H182: -49.12025976 | I182: 34.23787908
A183: Combined Cycle Gas | B183: 64.7840003 | C183: 2427524.55 | D183: 157.2647512 | E183: -4.243870711 | F183: 88.29132868 | G183: 0 | H183: 39.17106891 | I183: 122.5292078
A184: Nuclear | B184: 80.92021978 | C184: 2427524.55 | D184: 196.4358201 | E184: -43.41493962 | F184: 49.12025976 | G184: -39.17106891 | H184: 0 | I184: 83.35813884
A185: Utility-scale Solar | B185: 115.2589616 | C185: 2427524.55 | D185: 279.7939589 | E185: -126.7730785 | F185: -34.23787908 | G185: -122.5292078 | H185: -83.35813884 | I185: 0
A187: Scenario: | B187: PL , CL , GH , OM , TM | E187: Annual Savings vs. ($mm)
A188: Outputs | B188: LCOE ($/MWh) | C188: Annual MWh | D188: Annual Cost ($mm) | E188: Plains and Eastern Project | F188: Tennessee Wind | G188: Combined Cycle Gas | H188: Nuclear | I188: Utility-scale Solar
A189: Plains and Eastern Project | B189: 63.03577052 | C189: 2427524.55 | D189: 153.0208805 | E189: 0 | F189: 52.07381503 | G189: 4.243870711 | H189: 43.41493962 | I189: 126.7730785
A190: Tennessee Wind | B190: 84.48717666 | C190: 2427524.55 | D190: 205.0946955 | E190: -52.07381503 | F190: 0 | G190: -47.82994431 | H190: -8.658875402 | I190: 74.69926344
A191: Combined Cycle Gas | B191: 64.7840003 | C191: 2427524.55 | D191: 157.2647512 | E191: -4.243870711 | F191: 47.82994431 | G191: 0 | H191: 39.17106891 | I191: 122.5292078
A192: Nuclear | B192: 80.92021978 | C192: 2427524.55 | D192: 196.4358201 | E192: -43.41493962 | F192: 8.658875402 | G192: -39.17106891 | H192: 0 | I192: 83.35813884
A193: Utility-scale Solar | B193: 115.2589616 | C193: 2427524.55 | D193: 279.7939589 | E193: -126.7730785 | F193: -74.69926344 | G193: -122.5292078 | H193: -83.35813884 | I193: 0
A195: Scenario: | B195: PL , CL , GH , OM , TH | E195: Annual Savings vs. ($mm)
A196: Outputs | B196: LCOE ($/MWh) | C196: Annual MWh | D196: Annual Cost ($mm) | E196: Plains and Eastern Project | F196: Tennessee Wind | G196: Combined Cycle Gas | H196: Nuclear | I196: Utility-scale Solar
A197: Plains and Eastern Project | B197: 63.03577052 | C197: 2427524.55 | D197: 153.0208805 | E197: 0 | F197: 23.1728262 | G197: 4.243870711 | H197: 43.41493962 | I197: 126.7730785
A198: Tennessee Wind | B198: 72.5816374 | C198: 2427524.55 | D198: 176.1937067 | E198: -23.1728262 | F198: 0 | G198: -18.92895549 | H198: 20.24211343 | I198: 103.6002523
A199: Combined Cycle Gas | B199: 64.7840003 | C199: 2427524.55 | D199: 157.2647512 | E199: -4.243870711 | F199: 18.92895549 | G199: 0 | H199: 39.17106891 | I199: 122.5292078
A200: Nuclear | B200: 80.92021978 | C200: 2427524.55 | D200: 196.4358201 | E200: -43.41493962 | F200: -20.24211343 | G200: -39.17106891 | H200: 0 | I200: 83.35813884
A201: Utility-scale Solar | B201: 115.2589616 | C201: 2427524.55 | D201: 279.7939589 | E201: -126.7730785 | F201: -103.6002523 | G201: -122.5292078 | H201: -83.35813884 | I201: 0
A203: Scenario: | B203: PL , CL , GH , OH , TL | E203: Annual Savings vs. ($mm)
A204: Outputs | B204: LCOE ($/MWh) | C204: Annual MWh | D204: Annual Cost ($mm) | E204: Plains and Eastern Project | F204: Tennessee Wind | G204: Combined Cycle Gas | H204: Nuclear | I204: Utility-scale Solar
A205: Plains and Eastern Project | B205: 60.32967854 | C205: 2564931.6 | D205: 154.7414989 | E205: 0 | F205: 106.0941731 | G205: 11.42503065 | H205: 52.81332987 | I205: 140.8898539
A206: Tennessee Wind | B206: 101.6930323 | C206: 2564931.6 | D206: 260.835672 | E206: -106.0941731 | F206: 0 | G206: -94.66914242 | H206: -53.2808432 | I206: 34.79568086
A207: Combined Cycle Gas | B207: 64.7840003 | C207: 2564931.6 | D207: 166.1665296 | E207: -11.42503065 | F207: 94.66914242 | G207: 0 | H207: 41.38829923 | I207: 129.4648233
A208: Nuclear | B208: 80.92021978 | C208: 2564931.6 | D208: 207.5548288 | E208: -52.81332987 | F208: 53.2808432 | G208: -41.38829923 | H208: 0 | I208: 88.07652406
A209: Utility-scale Solar | B209: 115.2589616 | C209: 2564931.6 | D209: 295.6313528 | E209: -140.8898539 | F209: -34.79568086 | G209: -129.4648233 | H209: -88.07652406 | I209: 0
A211: Scenario: | B211: PL , CL , GH , OH , TM | E211: Annual Savings vs. ($mm)
A212: Outputs | B212: LCOE ($/MWh) | C212: Annual MWh | D212: Annual Cost ($mm) | E212: Plains and Eastern Project | F212: Tennessee Wind | G212: Combined Cycle Gas | H212: Nuclear | I212: Utility-scale Solar
A213: Plains and Eastern Project | B213: 60.32967854 | C213: 2564931.6 | D213: 154.7414989 | E213: 0 | F213: 63.34252167 | G213: 11.42503065 | H213: 52.81332987 | I213: 140.8898539
A214: Tennessee Wind | B214: 85.02527731 | C214: 2564931.6 | D214: 218.0840206 | E214: -63.34252167 | F214: 0 | G214: -51.91749102 | H214: -10.5291918 | I214: 77.54733226
A215: Combined Cycle Gas | B215: 64.7840003 | C215: 2564931.6 | D215: 166.1665296 | E215: -11.42503065 | F215: 51.91749102 | G215: 0 | H215: 41.38829923 | I215: 129.4648233
A216: Nuclear | B216: 80.92021978 | C216: 2564931.6 | D216: 207.5548288 | E216: -52.81332987 | F216: 10.5291918 | G216: -41.38829923 | H216: 0 | I216: 88.07652406
A217: Utility-scale Solar | B217: 115.2589616 | C217: 2564931.6 | D217: 295.6313528 | E217: -140.8898539 | F217: -77.54733226 | G217: -129.4648233 | H217: -88.07652406 | I217: 0
A219: Scenario: | B219: PL , CL , GH , OH , TH | E219: Annual Savings vs. ($mm)
A220: Outputs | B220: LCOE ($/MWh) | C220: Annual MWh | D220: Annual Cost ($mm) | E220: Plains and Eastern Project | F220: Tennessee Wind | G220: Combined Cycle Gas | H220: Nuclear | I220: Utility-scale Solar
A221: Plains and Eastern Project | B221: 60.32967854 | C221: 2564931.6 | D221: 154.7414989 | E221: 0 | F221: 32.80562781 | G221: 11.42503065 | H221: 52.81332987 | I221: 140.8898539
A222: Tennessee Wind | B222: 73.11973805 | C222: 2564931.6 | D222: 187.5471267 | E222: -32.80562781 | F222: 0 | G222: -21.38059717 | H222: 20.00770206 | I222: 108.0842261
A223: Combined Cycle Gas | B223: 64.7840003 | C223: 2564931.6 | D223: 166.1665296 | E223: -11.42503065 | F223: 21.38059717 | G223: 0 | H223: 41.38829923 | I223: 129.4648233
A224: Nuclear | B224: 80.92021978 | C224: 2564931.6 | D224: 207.5548288 | E224: -52.81332987 | F224: -20.00770206 | G224: -41.38829923 | H224: 0 | I224: 88.07652406
A225: Utility-scale Solar | B225: 115.2589616 | C225: 2564931.6 | D225: 295.6313528 | E225: -140.8898539 | F225: -108.0842261 | G225: -129.4648233 | H225: -88.07652406 | I225: 0
A227: Scenario: | B227: PL , CM , GL , OL , TL | E227: Annual Savings vs. ($mm)
A228: Outputs | B228: LCOE ($/MWh) | C228: Annual MWh | D228: Annual Cost ($mm) | E228: Plains and Eastern Project | F228: Tennessee Wind | G228: Combined Cycle Gas | H228: Nuclear | I228: Utility-scale Solar
A229: Plains and Eastern Project | B229: 66.06659354 | C229: 2290117.5 | D229: 151.300262 | E229: 0 | F229: 78.9762257 | G229: -9.25441506 | H229: 34.01654937 | I229: 112.656303
A230: Tennessee Wind | B230: 100.5522589 | C230: 2290117.5 | D230: 230.2764877 | E230: -78.9762257 | F230: 0 | G230: -88.23064076 | H230: -44.95967633 | I230: 33.68007729
... 941 more rows

Sheet All Scenarios LCOE wo CapVal
A1: Scenario | B1: PTC Value | C1: Carbon Dioxide | D1: Natural Gas | E1: OK Wind CF | F1: TN Wind CF | G1: Plains & Eastern Project | H1: Tennessee Project | I1: Combined Cycle Gas | J1: Nuclear | K1: Utility-scale Solar | L1: OK Wind < ? | M1: Tennessee Wind | N1: Combined Cycle Gas | O1: Nuclear | P1: Utility-scale Solar | Q1: ALL | R1: OK Wind < | S1: TN Wind | T1: Gas | U1: Nuclear | V1: Solar | W1: ALL
A2: 1 | B2: 0 | C2: 0 | D2: 0 | E2: 0 | F2: 0 | G2: 77.97811535 | H2: 111.1994772 | I2: 61.39883541 | J2: 98.18403449 | K2: 142.5169802 | M2: =($G2<H2) -> TRUE | N2: =($G2<I2) -> FALSE | O2: =($G2<J2) -> TRUE | P2: =($G2<K2) -> TRUE | Q2: =AND(($G2<H2),($G2<I2),($G2<J2),($G2<K2)) -> FALSE | S2: =COUNTIF(M2:M163,"TRUE")/COUNTA(M2:M163) -> 1 | T2: =COUNTIF(N2:N163,"TRUE")/COUNTA(N2:N163) -> 0.9074074074 | U2: =COUNTIF(O2:O163,"TRUE")/COUNTA(O2:O163) -> 1 | V2: =COUNTIF(P2:P163,"TRUE")/COUNTA(P2:P163) -> 1 | W2: =COUNTIF(Q2:Q163,"TRUE")/COUNTA(Q2:Q163) -> 0.9074074074
A3: 2 | B3: 0 | C3: 0 | D3: 0 | E3: 0 | F3: 1 | G3: 77.97811535 | H3: 94.5317222 | I3: 61.39883541 | J3: 98.18403449 | K3: 142.5169802 | M3: =($G3<H3) -> TRUE | N3: FALSE | O3: TRUE | P3: TRUE | Q3: =AND(($G3<H3),($G3<I3),($G3<J3),($G3<K3)) -> FALSE
A4: 3 | B4: 0 | C4: 0 | D4: 0 | E4: 0 | F4: 2 | G4: 77.97811535 | H4: 82.62618294 | I4: 61.39883541 | J4: 98.18403449 | K4: 142.5169802 | M4: TRUE | N4: FALSE | O4: TRUE | P4: TRUE | Q4: FALSE
A5: 4 | B5: 0 | C5: 0 | D5: 0 | E5: 1 | F5: 0 | G5: 74.27305525 | H5: 111.1994772 | I5: 61.39883541 | J5: 98.18403449 | K5: 142.5169802 | M5: TRUE | N5: FALSE | O5: TRUE | P5: TRUE | Q5: FALSE
A6: 5 | B6: 0 | C6: 0 | D6: 0 | E6: 1 | F6: 1 | G6: 74.27305525 | H6: 94.5317222 | I6: 61.39883541 | J6: 98.18403449 | K6: 142.5169802 | M6: TRUE | N6: FALSE | O6: TRUE | P6: TRUE | Q6: FALSE | R6: for PTC=0 | S6: =COUNTIF(M2:M81,"TRUE")/COUNTA(M2:M81) -> 1 | T6: =COUNTIF(N2:N81,"TRUE")/COUNTA(N2:N81) -> 0.8125 | U6: 1 | V6: 1
A7: 6 | B7: 0 | C7: 0 | D7: 0 | E7: 1 | F7: 2 | G7: 74.27305525 | H7: 82.62618294 | I7: 61.39883541 | J7: 98.18403449 | K7: 142.5169802 | M7: TRUE | N7: FALSE | O7: TRUE | P7: TRUE | Q7: FALSE | R7: for PTC=1 | S7: =COUNTIF(M82:M163,"TRUE")/COUNTA(M82:M163) -> 1 | T7: =COUNTIF(N82:N163,"TRUE")/COUNTA(N82:N163) -> 1 | U7: 1 | V7: 1
A8: 7 | B8: 0 | C8: 0 | D8: 0 | E8: 2 | F8: 0 | G8: 70.96496587 | H8: 111.1994772 | I8: 61.39883541 | J8: 98.18403449 | K8: 142.5169802 | M8: TRUE | N8: FALSE | O8: TRUE | P8: TRUE | Q8: FALSE
A9: 8 | B9: 0 | C9: 0 | D9: 0 | E9: 2 | F9: 1 | G9: 70.96496587 | H9: 94.5317222 | I9: 61.39883541 | J9: 98.18403449 | K9: 142.5169802 | M9: TRUE | N9: FALSE | O9: TRUE | P9: TRUE | Q9: FALSE
A10: 9 | B10: 0 | C10: 0 | D10: 0 | E10: 2 | F10: 2 | G10: 70.96496587 | H10: 82.62618294 | I10: 61.39883541 | J10: 98.18403449 | K10: 142.5169802 | M10: TRUE | N10: FALSE | O10: TRUE | P10: TRUE | Q10: FALSE
A11: 10 | B11: 0 | C11: 0 | D11: 1 | E11: 0 | F11: 0 | G11: 77.97811535 | H11: 111.1994772 | I11: 71.19977655 | J11: 98.18403449 | K11: 142.5169802 | M11: TRUE | N11: FALSE | O11: TRUE | P11: TRUE | Q11: FALSE
A12: 11 | B12: 0 | C12: 0 | D12: 1 | E12: 0 | F12: 1 | G12: 77.97811535 | H12: 94.5317222 | I12: 71.19977655 | J12: 98.18403449 | K12: 142.5169802 | M12: TRUE | N12: FALSE | O12: TRUE | P12: TRUE | Q12: FALSE
A13: 12 | B13: 0 | C13: 0 | D13: 1 | E13: 0 | F13: 2 | G13: 77.97811535 | H13: 82.62618294 | I13: 71.19977655 | J13: 98.18403449 | K13: 142.5169802 | M13: TRUE | N13: FALSE | O13: TRUE | P13: TRUE | Q13: FALSE
A14: 13 | B14: 0 | C14: 0 | D14: 1 | E14: 1 | F14: 0 | G14: 74.27305525 | H14: 111.1994772 | I14: 71.19977655 | J14: 98.18403449 | K14: 142.5169802 | M14: TRUE | N14: FALSE | O14: TRUE | P14: TRUE | Q14: FALSE
A15: 14 | B15: 0 | C15: 0 | D15: 1 | E15: 1 | F15: 1 | G15: 74.27305525 | H15: 94.5317222 | I15: 71.19977655 | J15: 98.18403449 | K15: 142.5169802 | M15: TRUE | N15: FALSE | O15: TRUE | P15: TRUE | Q15: FALSE
A16: 15 | B16: 0 | C16: 0 | D16: 1 | E16: 1 | F16: 2 | G16: 74.27305525 | H16: 82.62618294 | I16: 71.19977655 | J16: 98.18403449 | K16: 142.5169802 | M16: TRUE | N16: FALSE | O16: TRUE | P16: TRUE | Q16: FALSE
A17: 16 | B17: 0 | C17: 0 | D17: 1 | E17: 2 | F17: 0 | G17: 70.96496587 | H17: 111.1994772 | I17: 71.19977655 | J17: 98.18403449 | K17: 142.5169802 | M17: TRUE | N17: TRUE | O17: TRUE | P17: TRUE | Q17: TRUE
A18: 17 | B18: 0 | C18: 0 | D18: 1 | E18: 2 | F18: 1 | G18: 70.96496587 | H18: 94.5317222 | I18: 71.19977655 | J18: 98.18403449 | K18: 142.5169802 | M18: TRUE | N18: TRUE | O18: TRUE | P18: TRUE | Q18: TRUE
A19: 18 | B19: 0 | C19: 0 | D19: 1 | E19: 2 | F19: 2 | G19: 70.96496587 | H19: 82.62618294 | I19: 71.19977655 | J19: 98.18403449 | K19: 142.5169802 | M19: TRUE | N19: TRUE | O19: TRUE | P19: TRUE | Q19: TRUE
A20: 19 | B20: 0 | C20: 0 | D20: 2 | E20: 0 | F20: 0 | G20: 77.97811535 | H20: 111.1994772 | I20: 81.00071769 | J20: 98.18403449 | K20: 142.5169802 | M20: TRUE | N20: TRUE | O20: TRUE | P20: TRUE | Q20: TRUE
A21: 20 | B21: 0 | C21: 0 | D21: 2 | E21: 0 | F21: 1 | G21: 77.97811535 | H21: 94.5317222 | I21: 81.00071769 | J21: 98.18403449 | K21: 142.5169802 | M21: TRUE | N21: TRUE | O21: TRUE | P21: TRUE | Q21: TRUE
A22: 21 | B22: 0 | C22: 0 | D22: 2 | E22: 0 | F22: 2 | G22: 77.97811535 | H22: 82.62618294 | I22: 81.00071769 | J22: 98.18403449 | K22: 142.5169802 | M22: TRUE | N22: TRUE | O22: TRUE | P22: TRUE | Q22: TRUE
A23: 22 | B23: 0 | C23: 0 | D23: 2 | E23: 1 | F23: 0 | G23: 74.27305525 | H23: 111.1994772 | I23: 81.00071769 | J23: 98.18403449 | K23: 142.5169802 | M23: TRUE | N23: TRUE | O23: TRUE | P23: TRUE | Q23: TRUE
A24: 23 | B24: 0 | C24: 0 | D24: 2 | E24: 1 | F24: 1 | G24: 74.27305525 | H24: 94.5317222 | I24: 81.00071769 | J24: 98.18403449 | K24: 142.5169802 | M24: TRUE | N24: TRUE | O24: TRUE | P24: TRUE | Q24: TRUE
A25: 24 | B25: 0 | C25: 0 | D25: 2 | E25: 1 | F25: 2 | G25: 74.27305525 | H25: 82.62618294 | I25: 81.00071769 | J25: 98.18403449 | K25: 142.5169802 | M25: TRUE | N25: TRUE | O25: TRUE | P25: TRUE | Q25: TRUE
A26: 25 | B26: 0 | C26: 0 | D26: 2 | E26: 2 | F26: 0 | G26: 70.96496587 | H26: 111.1994772 | I26: 81.00071769 | J26: 98.18403449 | K26: 142.5169802 | M26: TRUE | N26: TRUE | O26: TRUE | P26: TRUE | Q26: TRUE
A27: 26 | B27: 0 | C27: 0 | D27: 2 | E27: 2 | F27: 1 | G27: 70.96496587 | H27: 94.5317222 | I27: 81.00071769 | J27: 98.18403449 | K27: 142.5169802 | M27: TRUE | N27: TRUE | O27: TRUE | P27: TRUE | Q27: TRUE
A28: 27 | B28: 0 | C28: 0 | D28: 2 | E28: 2 | F28: 2 | G28: 70.96496587 | H28: 82.62618294 | I28: 81.00071769 | J28: 98.18403449 | K28: 142.5169802 | M28: TRUE | N28: TRUE | O28: TRUE | P28: TRUE | Q28: TRUE
A29: 28 | B29: 0 | C29: 1 | D29: 0 | E29: 0 | F29: 0 | G29: 77.97811535 | H29: 111.1994772 | I29: 78.00290851 | J29: 98.18403449 | K29: 142.5169802 | M29: TRUE | N29: TRUE | O29: TRUE | P29: TRUE | Q29: TRUE
A30: 29 | B30: 0 | C30: 1 | D30: 0 | E30: 0 | F30: 1 | G30: 77.97811535 | H30: 94.5317222 | I30: 78.00290851 | J30: 98.18403449 | K30: 142.5169802 | M30: TRUE | N30: TRUE | O30: TRUE | P30: TRUE | Q30: TRUE
A31: 30 | B31: 0 | C31: 1 | D31: 0 | E31: 0 | F31: 2 | G31: 77.97811535 | H31: 82.62618294 | I31: 78.00290851 | J31: 98.18403449 | K31: 142.5169802 | M31: TRUE | N31: TRUE | O31: TRUE | P31: TRUE | Q31: TRUE
A32: 31 | B32: 0 | C32: 1 | D32: 0 | E32: 1 | F32: 0 | G32: 74.27305525 | H32: 111.1994772 | I32: 78.00290851 | J32: 98.18403449 | K32: 142.5169802 | M32: TRUE | N32: TRUE | O32: TRUE | P32: TRUE | Q32: TRUE
A33: 32 | B33: 0 | C33: 1 | D33: 0 | E33: 1 | F33: 1 | G33: 74.27305525 | H33: 94.5317222 | I33: 78.00290851 | J33: 98.18403449 | K33: 142.5169802 | M33: TRUE | N33: TRUE | O33: TRUE | P33: TRUE | Q33: TRUE
A34: 33 | B34: 0 | C34: 1 | D34: 0 | E34: 1 | F34: 2 | G34: 74.27305525 | H34: 82.62618294 | I34: 78.00290851 | J34: 98.18403449 | K34: 142.5169802 | M34: TRUE | N34: TRUE | O34: TRUE | P34: TRUE | Q34: TRUE
A35: 34 | B35: 0 | C35: 1 | D35: 0 | E35: 2 | F35: 0 | G35: 70.96496587 | H35: 111.1994772 | I35: 78.00290851 | J35: 98.18403449 | K35: 142.5169802 | M35: =($G35<H35) -> TRUE | N35: TRUE | O35: TRUE | P35: TRUE | Q35: TRUE
A36: 35 | B36: 0 | C36: 1 | D36: 0 | E36: 2 | F36: 1 | G36: 70.96496587 | H36: 94.5317222 | I36: 78.00290851 | J36: 98.18403449 | K36: 142.5169802 | M36: TRUE | N36: TRUE | O36: TRUE | P36: TRUE | Q36: TRUE
A37: 36 | B37: 0 | C37: 1 | D37: 0 | E37: 2 | F37: 2 | G37: 70.96496587 | H37: 82.62618294 | I37: 78.00290851 | J37: 98.18403449 | K37: 142.5169802 | M37: TRUE | N37: TRUE | O37: TRUE | P37: TRUE | Q37: TRUE
A38: 37 | B38: 0 | C38: 1 | D38: 1 | E38: 0 | F38: 0 | G38: 77.97811535 | H38: 111.1994772 | I38: 87.80384965 | J38: 98.18403449 | K38: 142.5169802 | M38: TRUE | N38: TRUE | O38: TRUE | P38: TRUE | Q38: TRUE
A39: 38 | B39: 0 | C39: 1 | D39: 1 | E39: 0 | F39: 1 | G39: 77.97811535 | H39: 94.5317222 | I39: 87.80384965 | J39: 98.18403449 | K39: 142.5169802 | M39: TRUE | N39: TRUE | O39: TRUE | P39: TRUE | Q39: TRUE
A40: 39 | B40: 0 | C40: 1 | D40: 1 | E40: 0 | F40: 2 | G40: 77.97811535 | H40: 82.62618294 | I40: 87.80384965 | J40: 98.18403449 | K40: 142.5169802 | M40: TRUE | N40: TRUE | O40: TRUE | P40: TRUE | Q40: TRUE
A41: 40 | B41: 0 | C41: 1 | D41: 1 | E41: 1 | F41: 0 | G41: 74.27305525 | H41: 111.1994772 | I41: 87.80384965 | J41: 98.18403449 | K41: 142.5169802 | M41: TRUE | N41: TRUE | O41: TRUE | P41: TRUE | Q41: TRUE
A42: 41 | B42: 0 | C42: 1 | D42: 1 | E42: 1 | F42: 1 | G42: 74.27305525 | H42: 94.5317222 | I42: 87.80384965 | J42: 98.18403449 | K42: 142.5169802 | M42: TRUE | N42: TRUE | O42: TRUE | P42: TRUE | Q42: TRUE
A43: 42 | B43: 0 | C43: 1 | D43: 1 | E43: 1 | F43: 2 | G43: 74.27305525 | H43: 82.62618294 | I43: 87.80384965 | J43: 98.18403449 | K43: 142.5169802 | M43: TRUE | N43: TRUE | O43: TRUE | P43: TRUE | Q43: TRUE
A44: 43 | B44: 0 | C44: 1 | D44: 1 | E44: 2 | F44: 0 | G44: 70.96496587 | H44: 111.1994772 | I44: 87.80384965 | J44: 98.18403449 | K44: 142.5169802 | M44: TRUE | N44: TRUE | O44: TRUE | P44: TRUE | Q44: TRUE
A45: 44 | B45: 0 | C45: 1 | D45: 1 | E45: 2 | F45: 1 | G45: 70.96496587 | H45: 94.5317222 | I45: 87.80384965 | J45: 98.18403449 | K45: 142.5169802 | M45: TRUE | N45: TRUE | O45: TRUE | P45: TRUE | Q45: TRUE
A46: 45 | B46: 0 | C46: 1 | D46: 1 | E46: 2 | F46: 2 | G46: 70.96496587 | H46: 82.62618294 | I46: 87.80384965 | J46: 98.18403449 | K46: 142.5169802 | M46: TRUE | N46: TRUE | O46: TRUE | P46: TRUE | Q46: TRUE
A47: 46 | B47: 0 | C47: 1 | D47: 2 | E47: 0 | F47: 0 | G47: 77.97811535 | H47: 111.1994772 | I47: 97.60479079 | J47: 98.18403449 | K47: 142.5169802 | M47: TRUE | N47: TRUE | O47: TRUE | P47: TRUE | Q47: TRUE
A48: 47 | B48: 0 | C48: 1 | D48: 2 | E48: 0 | F48: 1 | G48: 77.97811535 | H48: 94.5317222 | I48: 97.60479079 | J48: 98.18403449 | K48: 142.5169802 | M48: TRUE | N48: TRUE | O48: TRUE | P48: TRUE | Q48: TRUE
A49: 48 | B49: 0 | C49: 1 | D49: 2 | E49: 0 | F49: 2 | G49: 77.97811535 | H49: 82.62618294 | I49: 97.60479079 | J49: 98.18403449 | K49: 142.5169802 | M49: TRUE | N49: TRUE | O49: TRUE | P49: TRUE | Q49: TRUE
A50: 49 | B50: 0 | C50: 1 | D50: 2 | E50: 1 | F50: 0 | G50: 74.27305525 | H50: 111.1994772 | I50: 97.60479079 | J50: 98.18403449 | K50: 142.5169802 | M50: TRUE | N50: TRUE | O50: TRUE | P50: TRUE | Q50: TRUE
A51: 50 | B51: 0 | C51: 1 | D51: 2 | E51: 1 | F51: 1 | G51: 74.27305525 | H51: 94.5317222 | I51: 97.60479079 | J51: 98.18403449 | K51: 142.5169802 | M51: TRUE | N51: TRUE | O51: TRUE | P51: TRUE | Q51: TRUE
A52: 51 | B52: 0 | C52: 1 | D52: 2 | E52: 1 | F52: 2 | G52: 74.27305525 | H52: 82.62618294 | I52: 97.60479079 | J52: 98.18403449 | K52: 142.5169802 | M52: TRUE | N52: TRUE | O52: TRUE | P52: TRUE | Q52: TRUE
A53: 52 | B53: 0 | C53: 1 | D53: 2 | E53: 2 | F53: 0 | G53: 70.96496587 | H53: 111.1994772 | I53: 97.60479079 | J53: 98.18403449 | K53: 142.5169802 | M53: TRUE | N53: TRUE | O53: TRUE | P53: TRUE | Q53: TRUE
A54: 53 | B54: 0 | C54: 1 | D54: 2 | E54: 2 | F54: 1 | G54: 70.96496587 | H54: 94.5317222 | I54: 97.60479079 | J54: 98.18403449 | K54: 142.5169802 | M54: TRUE | N54: TRUE | O54: TRUE | P54: TRUE | Q54: TRUE
A55: 54 | B55: 0 | C55: 1 | D55: 2 | E55: 2 | F55: 2 | G55: 70.96496587 | H55: 82.62618294 | I55: 97.60479079 | J55: 98.18403449 | K55: 142.5169802 | M55: TRUE | N55: TRUE | O55: TRUE | P55: TRUE | Q55: TRUE
A56: 55 | B56: 0 | C56: 2 | D56: 0 | E56: 0 | F56: 0 | G56: 77.97811535 | H56: 111.1994772 | I56: 86.80728662 | J56: 98.18403449 | K56: 142.5169802 | M56: TRUE | N56: TRUE | O56: TRUE | P56: TRUE | Q56: TRUE
A57: 56 | B57: 0 | C57: 2 | D57: 0 | E57: 0 | F57: 1 | G57: 77.97811535 | H57: 94.5317222 | I57: 86.80728662 | J57: 98.18403449 | K57: 142.5169802 | M57: TRUE | N57: TRUE | O57: TRUE | P57: TRUE | Q57: TRUE
A58: 57 | B58: 0 | C58: 2 | D58: 0 | E58: 0 | F58: 2 | G58: 77.97811535 | H58: 82.62618294 | I58: 86.80728662 | J58: 98.18403449 | K58: 142.5169802 | M58: TRUE | N58: TRUE | O58: TRUE | P58: TRUE | Q58: TRUE
A59: 58 | B59: 0 | C59: 2 | D59: 0 | E59: 1 | F59: 0 | G59: 74.27305525 | H59: 111.1994772 | I59: 86.80728662 | J59: 98.18403449 | K59: 142.5169802 | M59: TRUE | N59: TRUE | O59: TRUE | P59: TRUE | Q59: TRUE
A60: 59 | B60: 0 | C60: 2 | D60: 0 | E60: 1 | F60: 1 | G60: 74.27305525 | H60: 94.5317222 | I60: 86.80728662 | J60: 98.18403449 | K60: 142.5169802 | M60: TRUE | N60: TRUE | O60: TRUE | P60: TRUE | Q60: TRUE
A61: 60 | B61: 0 | C61: 2 | D61: 0 | E61: 1 | F61: 2 | G61: 74.27305525 | H61: 82.62618294 | I61: 86.80728662 | J61: 98.18403449 | K61: 142.5169802 | M61: TRUE | N61: TRUE | O61: TRUE | P61: TRUE | Q61: TRUE
A62: 61 | B62: 0 | C62: 2 | D62: 0 | E62: 2 | F62: 0 | G62: 70.96496587 | H62: 111.1994772 | I62: 86.80728662 | J62: 98.18403449 | K62: 142.5169802 | M62: TRUE | N62: TRUE | O62: TRUE | P62: TRUE | Q62: TRUE
A63: 62 | B63: 0 | C63: 2 | D63: 0 | E63: 2 | F63: 1 | G63: 70.96496587 | H63: 94.5317222 | I63: 86.80728662 | J63: 98.18403449 | K63: 142.5169802 | M63: TRUE | N63: TRUE | O63: TRUE | P63: TRUE | Q63: TRUE
A64: 63 | B64: 0 | C64: 2 | D64: 0 | E64: 2 | F64: 2 | G64: 70.96496587 | H64: 82.62618294 | I64: 86.80728662 | J64: 98.18403449 | K64: 142.5169802 | M64: TRUE | N64: TRUE | O64: TRUE | P64: TRUE | Q64: TRUE
A65: 64 | B65: 0 | C65: 2 | D65: 1 | E65: 0 | F65: 0 | G65: 77.97811535 | H65: 111.1994772 | I65: 96.60822776 | J65: 98.18403449 | K65: 142.5169802 | M65: TRUE | N65: TRUE | O65: TRUE | P65: TRUE | Q65: TRUE
A66: 65 | B66: 0 | C66: 2 | D66: 1 | E66: 0 | F66: 1 | G66: 77.97811535 | H66: 94.5317222 | I66: 96.60822776 | J66: 98.18403449 | K66: 142.5169802 | M66: TRUE | N66: TRUE | O66: TRUE | P66: TRUE | Q66: TRUE
A67: 66 | B67: 0 | C67: 2 | D67: 1 | E67: 0 | F67: 2 | G67: 77.97811535 | H67: 82.62618294 | I67: 96.60822776 | J67: 98.18403449 | K67: 142.5169802 | M67: =($G67<H67) -> TRUE | N67: TRUE | O67: TRUE | P67: TRUE | Q67: =AND(($G67<H67),($G67<I67),($G67<J67),($G67<K67)) -> TRUE
A68: 67 | B68: 0 | C68: 2 | D68: 1 | E68: 1 | F68: 0 | G68: 74.27305525 | H68: 111.1994772 | I68: 96.60822776 | J68: 98.18403449 | K68: 142.5169802 | M68: TRUE | N68: TRUE | O68: TRUE | P68: TRUE | Q68: TRUE
A69: 68 | B69: 0 | C69: 2 | D69: 1 | E69: 1 | F69: 1 | G69: 74.27305525 | H69: 94.5317222 | I69: 96.60822776 | J69: 98.18403449 | K69: 142.5169802 | M69: TRUE | N69: TRUE | O69: TRUE | P69: TRUE | Q69: TRUE
A70: 69 | B70: 0 | C70: 2 | D70: 1 | E70: 1 | F70: 2 | G70: 74.27305525 | H70: 82.62618294 | I70: 96.60822776 | J70: 98.18403449 | K70: 142.5169802 | M70: TRUE | N70: TRUE | O70: TRUE | P70: TRUE | Q70: TRUE
A71: 70 | B71: 0 | C71: 2 | D71: 1 | E71: 2 | F71: 0 | G71: 70.96496587 | H71: 111.1994772 | I71: 96.60822776 | J71: 98.18403449 | K71: 142.5169802 | M71: TRUE | N71: TRUE | O71: TRUE | P71: TRUE | Q71: TRUE
A72: 71 | B72: 0 | C72: 2 | D72: 1 | E72: 2 | F72: 1 | G72: 70.96496587 | H72: 94.5317222 | I72: 96.60822776 | J72: 98.18403449 | K72: 142.5169802 | M72: TRUE | N72: TRUE | O72: TRUE | P72: TRUE | Q72: TRUE
A73: 72 | B73: 0 | C73: 2 | D73: 1 | E73: 2 | F73: 2 | G73: 70.96496587 | H73: 82.62618294 | I73: 96.60822776 | J73: 98.18403449 | K73: 142.5169802 | M73: TRUE | N73: TRUE | O73: TRUE | P73: TRUE | Q73: TRUE
A74: 73 | B74: 0 | C74: 2 | D74: 2 | E74: 0 | F74: 0 | G74: 77.97811535 | H74: 111.1994772 | I74: 106.4091689 | J74: 98.18403449 | K74: 142.5169802 | M74: TRUE | N74: TRUE | O74: TRUE | P74: TRUE | Q74: TRUE
A75: 74 | B75: 0 | C75: 2 | D75: 2 | E75: 0 | F75: 1 | G75: 77.97811535 | H75: 94.5317222 | I75: 106.4091689 | J75: 98.18403449 | K75: 142.5169802 | M75: TRUE | N75: TRUE | O75: TRUE | P75: TRUE | Q75: TRUE
A76: 75 | B76: 0 | C76: 2 | D76: 2 | E76: 0 | F76: 2 | G76: 77.97811535 | H76: 82.62618294 | I76: 106.4091689 | J76: 98.18403449 | K76: 142.5169802 | M76: TRUE | N76: TRUE | O76: TRUE | P76: TRUE | Q76: TRUE
A77: 76 | B77: 0 | C77: 2 | D77: 2 | E77: 1 | F77: 0 | G77: 74.27305525 | H77: 111.1994772 | I77: 106.4091689 | J77: 98.18403449 | K77: 142.5169802 | M77: TRUE | N77: TRUE | O77: TRUE | P77: TRUE | Q77: TRUE
A78: 77 | B78: 0 | C78: 2 | D78: 2 | E78: 1 | F78: 1 | G78: 74.27305525 | H78: 94.5317222 | I78: 106.4091689 | J78: 98.18403449 | K78: 142.5169802 | M78: TRUE | N78: TRUE | O78: TRUE | P78: TRUE | Q78: TRUE
A79: 78 | B79: 0 | C79: 2 | D79: 2 | E79: 1 | F79: 2 | G79: 74.27305525 | H79: 82.62618294 | I79: 106.4091689 | J79: 98.18403449 | K79: 142.5169802 | M79: TRUE | N79: TRUE | O79: TRUE | P79: TRUE | Q79: TRUE
A80: 79 | B80: 0 | C80: 2 | D80: 2 | E80: 2 | F80: 0 | G80: 70.96496587 | H80: 111.1994772 | I80: 106.4091689 | J80: 98.18403449 | K80: 142.5169802 | M80: TRUE | N80: TRUE | O80: TRUE | P80: TRUE | Q80: TRUE
A81: 80 | B81: 0 | C81: 2 | D81: 2 | E81: 2 | F81: 1 | G81: 70.96496587 | H81: 94.5317222 | I81: 106.4091689 | J81: 98.18403449 | K81: 142.5169802 | M81: TRUE | N81: TRUE | O81: TRUE | P81: TRUE | Q81: TRUE
A82: 81 | B82: 0 | C82: 2 | D82: 2 | E82: 2 | F82: 2 | G82: 70.96496587 | H82: 82.62618294 | I82: 106.4091689 | J82: 98.18403449 | K82: 142.5169802 | M82: TRUE | N82: TRUE | O82: TRUE | P82: TRUE | Q82: TRUE
A83: 82 | B83: 1 | C83: 0 | D83: 0 | E83: 0 | F83: 0 | G83: 49.04027242 | H83: 85.33313238 | I83: 61.39883541 | J83: 98.18403449 | K83: 142.5169802 | M83: TRUE | N83: TRUE | O83: TRUE | P83: TRUE | Q83: TRUE
A84: 83 | B84: 1 | C84: 0 | D84: 0 | E84: 0 | F84: 1 | G84: 49.04027242 | H84: 68.66537742 | I84: 61.39883541 | J84: 98.18403449 | K84: 142.5169802 | M84: TRUE | N84: TRUE | O84: TRUE | P84: TRUE | Q84: TRUE
A85: 84 | B85: 1 | C85: 0 | D85: 0 | E85: 0 | F85: 2 | G85: 49.04027242 | H85: 56.75983816 | I85: 61.39883541 | J85: 98.18403449 | K85: 142.5169802 | M85: TRUE | N85: TRUE | O85: TRUE | P85: TRUE | Q85: TRUE
A86: 85 | B86: 1 | C86: 0 | D86: 0 | E86: 1 | F86: 0 | G86: 45.33521232 | H86: 85.33313238 | I86: 61.39883541 | J86: 98.18403449 | K86: 142.5169802 | M86: TRUE | N86: TRUE | O86: TRUE | P86: TRUE | Q86: TRUE
A87: 86 | B87: 1 | C87: 0 | D87: 0 | E87: 1 | F87: 1 | G87: 45.33521232 | H87: 68.66537742 | I87: 61.39883541 | J87: 98.18403449 | K87: 142.5169802 | M87: TRUE | N87: TRUE | O87: TRUE | P87: TRUE | Q87: TRUE
A88: 87 | B88: 1 | C88: 0 | D88: 0 | E88: 1 | F88: 2 | G88: 45.33521232 | H88: 56.75983816 | I88: 61.39883541 | J88: 98.18403449 | K88: 142.5169802 | M88: TRUE | N88: TRUE | O88: TRUE | P88: TRUE | Q88: TRUE
A89: 88 | B89: 1 | C89: 0 | D89: 0 | E89: 2 | F89: 0 | G89: 42.02712294 | H89: 85.33313238 | I89: 61.39883541 | J89: 98.18403449 | K89: 142.5169802 | M89: TRUE | N89: TRUE | O89: TRUE | P89: TRUE | Q89: TRUE
A90: 89 | B90: 1 | C90: 0 | D90: 0 | E90: 2 | F90: 1 | G90: 42.02712294 | H90: 68.66537742 | I90: 61.39883541 | J90: 98.18403449 | K90: 142.5169802 | M90: TRUE | N90: TRUE | O90: TRUE | P90: TRUE | Q90: TRUE
A91: 90 | B91: 1 | C91: 0 | D91: 0 | E91: 2 | F91: 2 | G91: 42.02712294 | H91: 56.75983816 | I91: 61.39883541 | J91: 98.18403449 | K91: 142.5169802 | M91: TRUE | N91: TRUE | O91: TRUE | P91: TRUE | Q91: TRUE
A92: 91 | B92: 1 | C92: 0 | D92: 1 | E92: 0 | F92: 0 | G92: 49.04027242 | H92: 85.33313238 | I92: 71.19977655 | J92: 98.18403449 | K92: 142.5169802 | M92: TRUE | N92: TRUE | O92: TRUE | P92: TRUE | Q92: TRUE
A93: 92 | B93: 1 | C93: 0 | D93: 1 | E93: 0 | F93: 1 | G93: 49.04027242 | H93: 68.66537742 | I93: 71.19977655 | J93: 98.18403449 | K93: 142.5169802 | M93: TRUE | N93: TRUE | O93: TRUE | P93: TRUE | Q93: TRUE
A94: 93 | B94: 1 | C94: 0 | D94: 1 | E94: 0 | F94: 2 | G94: 49.04027242 | H94: 56.75983816 | I94: 71.19977655 | J94: 98.18403449 | K94: 142.5169802 | M94: TRUE | N94: TRUE | O94: TRUE | P94: TRUE | Q94: TRUE
A95: 94 | B95: 1 | C95: 0 | D95: 1 | E95: 1 | F95: 0 | G95: 45.33521232 | H95: 85.33313238 | I95: 71.19977655 | J95: 98.18403449 | K95: 142.5169802 | M95: TRUE | N95: TRUE | O95: TRUE | P95: TRUE | Q95: TRUE
A96: 95 | B96: 1 | C96: 0 | D96: 1 | E96: 1 | F96: 1 | G96: 45.33521232 | H96: 68.66537742 | I96: 71.19977655 | J96: 98.18403449 | K96: 142.5169802 | M96: TRUE | N96: TRUE | O96: TRUE | P96: TRUE | Q96: TRUE
A97: 96 | B97: 1 | C97: 0 | D97: 1 | E97: 1 | F97: 2 | G97: 45.33521232 | H97: 56.75983816 | I97: 71.19977655 | J97: 98.18403449 | K97: 142.5169802 | M97: TRUE | N97: TRUE | O97: TRUE | P97: TRUE | Q97: TRUE
A98: 97 | B98: 1 | C98: 0 | D98: 1 | E98: 2 | F98: 0 | G98: 42.02712294 | H98: 85.33313238 | I98: 71.19977655 | J98: 98.18403449 | K98: 142.5169802 | M98: TRUE | N98: TRUE | O98: TRUE | P98: TRUE | Q98: TRUE
A99: 98 | B99: 1 | C99: 0 | D99: 1 | E99: 2 | F99: 1 | G99: 42.02712294 | H99: 68.66537742 | I99: 71.19977655 | J99: 98.18403449 | K99: 142.5169802 | M99: =($G99<H99) -> TRUE | N99: TRUE | O99: TRUE | P99: TRUE | Q99: TRUE
A100: 99 | B100: 1 | C100: 0 | D100: 1 | E100: 2 | F100: 2 | G100: 42.02712294 | H100: 56.75983816 | I100: 71.19977655 | J100: 98.18403449 | K100: 142.5169802 | M100: TRUE | N100: TRUE | O100: TRUE | P100: TRUE | Q100: TRUE
A101: 100 | B101: 1 | C101: 0 | D101: 2 | E101: 0 | F101: 0 | G101: 49.04027242 | H101: 85.33313238 | I101: 81.00071769 | J101: 98.18403449 | K101: 142.5169802 | M101: TRUE | N101: TRUE | O101: TRUE | P101: TRUE | Q101: TRUE
A102: 101 | B102: 1 | C102: 0 | D102: 2 | E102: 0 | F102: 1 | G102: 49.04027242 | H102: 68.66537742 | I102: 81.00071769 | J102: 98.18403449 | K102: 142.5169802 | M102: TRUE | N102: TRUE | O102: TRUE | P102: TRUE | Q102: TRUE
A103: 102 | B103: 1 | C103: 0 | D103: 2 | E103: 0 | F103: 2 | G103: 49.04027242 | H103: 56.75983816 | I103: 81.00071769 | J103: 98.18403449 | K103: 142.5169802 | M103: TRUE | N103: TRUE | O103: TRUE | P103: TRUE | Q103: TRUE
A104: 103 | B104: 1 | C104: 0 | D104: 2 | E104: 1 | F104: 0 | G104: 45.33521232 | H104: 85.33313238 | I104: 81.00071769 | J104: 98.18403449 | K104: 142.5169802 | M104: TRUE | N104: TRUE | O104: TRUE | P104: TRUE | Q104: TRUE
A105: 104 | B105: 1 | C105: 0 | D105: 2 | E105: 1 | F105: 1 | G105: 45.33521232 | H105: 68.66537742 | I105: 81.00071769 | J105: 98.18403449 | K105: 142.5169802 | M105: TRUE | N105: TRUE | O105: TRUE | P105: TRUE | Q105: TRUE
A106: 105 | B106: 1 | C106: 0 | D106: 2 | E106: 1 | F106: 2 | G106: 45.33521232 | H106: 56.75983816 | I106: 81.00071769 | J106: 98.18403449 | K106: 142.5169802 | M106: TRUE | N106: TRUE | O106: TRUE | P106: TRUE | Q106: TRUE
A107: 106 | B107: 1 | C107: 0 | D107: 2 | E107: 2 | F107: 0 | G107: 42.02712294 | H107: 85.33313238 | I107: 81.00071769 | J107: 98.18403449 | K107: 142.5169802 | M107: TRUE | N107: TRUE | O107: TRUE | P107: TRUE | Q107: TRUE
A108: 107 | B108: 1 | C108: 0 | D108: 2 | E108: 2 | F108: 1 | G108: 42.02712294 | H108: 68.66537742 | I108: 81.00071769 | J108: 98.18403449 | K108: 142.5169802 | M108: TRUE | N108: TRUE | O108: TRUE | P108: TRUE | Q108: TRUE
A109: 108 | B109: 1 | C109: 0 | D109: 2 | E109: 2 | F109: 2 | G109: 42.02712294 | H109: 56.75983816 | I109: 81.00071769 | J109: 98.18403449 | K109: 142.5169802 | M109: TRUE | N109: TRUE | O109: TRUE | P109: TRUE | Q109: TRUE
A110: 109 | B110: 1 | C110: 1 | D110: 0 | E110: 0 | F110: 0 | G110: 49.04027242 | H110: 85.33313238 | I110: 78.00290851 | J110: 98.18403449 | K110: 142.5169802 | M110: TRUE | N110: TRUE | O110: TRUE | P110: TRUE | Q110: TRUE
A111: 110 | B111: 1 | C111: 1 | D111: 0 | E111: 0 | F111: 1 | G111: 49.04027242 | H111: 68.66537742 | I111: 78.00290851 | J111: 98.18403449 | K111: 142.5169802 | M111: TRUE | N111: TRUE | O111: TRUE | P111: TRUE | Q111: TRUE
A112: 111 | B112: 1 | C112: 1 | D112: 0 | E112: 0 | F112: 2 | G112: 49.04027242 | H112: 56.75983816 | I112: 78.00290851 | J112: 98.18403449 | K112: 142.5169802 | M112: TRUE | N112: TRUE | O112: TRUE | P112: TRUE | Q112: TRUE
A113: 112 | B113: 1 | C113: 1 | D113: 0 | E113: 1 | F113: 0 | G113: 45.33521232 | H113: 85.33313238 | I113: 78.00290851 | J113: 98.18403449 | K113: 142.5169802 | M113: TRUE | N113: TRUE | O113: TRUE | P113: TRUE | Q113: TRUE
A114: 113 | B114: 1 | C114: 1 | D114: 0 | E114: 1 | F114: 1 | G114: 45.33521232 | H114: 68.66537742 | I114: 78.00290851 | J114: 98.18403449 | K114: 142.5169802 | M114: TRUE | N114: TRUE | O114: TRUE | P114: TRUE | Q114: TRUE
A115: 114 | B115: 1 | C115: 1 | D115: 0 | E115: 1 | F115: 2 | G115: 45.33521232 | H115: 56.75983816 | I115: 78.00290851 | J115: 98.18403449 | K115: 142.5169802 | M115: TRUE | N115: TRUE | O115: TRUE | P115: TRUE | Q115: TRUE
A116: 115 | B116: 1 | C116: 1 | D116: 0 | E116: 2 | F116: 0 | G116: 42.02712294 | H116: 85.33313238 | I116: 78.00290851 | J116: 98.18403449 | K116: 142.5169802 | M116: TRUE | N116: TRUE | O116: TRUE | P116: TRUE | Q116: TRUE
A117: 116 | B117: 1 | C117: 1 | D117: 0 | E117: 2 | F117: 1 | G117: 42.02712294 | H117: 68.66537742 | I117: 78.00290851 | J117: 98.18403449 | K117: 142.5169802 | M117: TRUE | N117: TRUE | O117: TRUE | P117: TRUE | Q117: TRUE
A118: 117 | B118: 1 | C118: 1 | D118: 0 | E118: 2 | F118: 2 | G118: 42.02712294 | H118: 56.75983816 | I118: 78.00290851 | J118: 98.18403449 | K118: 142.5169802 | M118: TRUE | N118: TRUE | O118: TRUE | P118: TRUE | Q118: TRUE
A119: 118 | B119: 1 | C119: 1 | D119: 1 | E119: 0 | F119: 0 | G119: 49.04027242 | H119: 85.33313238 | I119: 87.80384965 | J119: 98.18403449 | K119: 142.5169802 | M119: TRUE | N119: TRUE | O119: TRUE | P119: TRUE | Q119: TRUE
A120: 119 | B120: 1 | C120: 1 | D120: 1 | E120: 0 | F120: 1 | G120: 49.04027242 | H120: 68.66537742 | I120: 87.80384965 | J120: 98.18403449 | K120: 142.5169802 | M120: TRUE | N120: TRUE | O120: TRUE | P120: TRUE | Q120: TRUE
A121: 120 | B121: 1 | C121: 1 | D121: 1 | E121: 0 | F121: 2 | G121: 49.04027242 | H121: 56.75983816 | I121: 87.80384965 | J121: 98.18403449 | K121: 142.5169802 | M121: TRUE | N121: TRUE | O121: TRUE | P121: TRUE | Q121: TRUE
A122: 121 | B122: 1 | C122: 1 | D122: 1 | E122: 1 | F122: 0 | G122: 45.33521232 | H122: 85.33313238 | I122: 87.80384965 | J122: 98.18403449 | K122: 142.5169802 | M122: TRUE | N122: TRUE | O122: TRUE | P122: TRUE | Q122: TRUE
A123: 122 | B123: 1 | C123: 1 | D123: 1 | E123: 1 | F123: 1 | G123: 45.33521232 | H123: 68.66537742 | I123: 87.80384965 | J123: 98.18403449 | K123: 142.5169802 | M123: TRUE | N123: TRUE | O123: TRUE | P123: TRUE | Q123: TRUE
A124: 123 | B124: 1 | C124: 1 | D124: 1 | E124: 1 | F124: 2 | G124: 45.33521232 | H124: 56.75983816 | I124: 87.80384965 | J124: 98.18403449 | K124: 142.5169802 | M124: TRUE | N124: TRUE | O124: TRUE | P124: TRUE | Q124: TRUE
A125: 124 | B125: 1 | C125: 1 | D125: 1 | E125: 2 | F125: 0 | G125: 42.02712294 | H125: 85.33313238 | I125: 87.80384965 | J125: 98.18403449 | K125: 142.5169802 | M125: TRUE | N125: TRUE | O125: TRUE | P125: TRUE | Q125: TRUE
A126: 125 | B126: 1 | C126: 1 | D126: 1 | E126: 2 | F126: 1 | G126: 42.02712294 | H126: 68.66537742 | I126: 87.80384965 | J126: 98.18403449 | K126: 142.5169802 | M126: TRUE | N126: TRUE | O126: TRUE | P126: TRUE | Q126: TRUE
A127: 126 | B127: 1 | C127: 1 | D127: 1 | E127: 2 | F127: 2 | G127: 42.02712294 | H127: 56.75983816 | I127: 87.80384965 | J127: 98.18403449 | K127: 142.5169802 | M127: TRUE | N127: TRUE | O127: TRUE | P127: TRUE | Q127: TRUE
A128: 127 | B128: 1 | C128: 1 | D128: 2 | E128: 0 | F128: 0 | G128: 49.04027242 | H128: 85.33313238 | I128: 97.60479079 | J128: 98.18403449 | K128: 142.5169802 | M128: TRUE | N128: TRUE | O128: TRUE | P128: TRUE | Q128: TRUE
A129: 128 | B129: 1 | C129: 1 | D129: 2 | E129: 0 | F129: 1 | G129: 49.04027242 | H129: 68.66537742 | I129: 97.60479079 | J129: 98.18403449 | K129: 142.5169802 | M129: TRUE | N129: TRUE | O129: TRUE | P129: TRUE | Q129: TRUE
A130: 129 | B130: 1 | C130: 1 | D130: 2 | E130: 0 | F130: 2 | G130: 49.04027242 | H130: 56.75983816 | I130: 97.60479079 | J130: 98.18403449 | K130: 142.5169802 | M130: TRUE | N130: TRUE | O130: TRUE | P130: TRUE | Q130: TRUE
A131: 130 | B131: 1 | C131: 1 | D131: 2 | E131: 1 | F131: 0 | G131: 45.33521232 | H131: 85.33313238 | I131: 97.60479079 | J131: 98.18403449 | K131: 142.5169802 | M131: =($G131<H131) -> TRUE | N131: TRUE | O131: TRUE | P131: TRUE | Q131: =AND(($G131<H131),($G131<I131),($G131<J131),($G131<K131)) -> TRUE
A132: 131 | B132: 1 | C132: 1 | D132: 2 | E132: 1 | F132: 1 | G132: 45.33521232 | H132: 68.66537742 | I132: 97.60479079 | J132: 98.18403449 | K132: 142.5169802 | M132: TRUE | N132: TRUE | O132: TRUE | P132: TRUE | Q132: TRUE
A133: 132 | B133: 1 | C133: 1 | D133: 2 | E133: 1 | F133: 2 | G133: 45.33521232 | H133: 56.75983816 | I133: 97.60479079 | J133: 98.18403449 | K133: 142.5169802 | M133: TRUE | N133: TRUE | O133: TRUE | P133: TRUE | Q133: TRUE
A134: 133 | B134: 1 | C134: 1 | D134: 2 | E134: 2 | F134: 0 | G134: 42.02712294 | H134: 85.33313238 | I134: 97.60479079 | J134: 98.18403449 | K134: 142.5169802 | M134: TRUE | N134: TRUE | O134: TRUE | P134: TRUE | Q134: TRUE
A135: 134 | B135: 1 | C135: 1 | D135: 2 | E135: 2 | F135: 1 | G135: 42.02712294 | H135: 68.66537742 | I135: 97.60479079 | J135: 98.18403449 | K135: 142.5169802 | M135: TRUE | N135: TRUE | O135: TRUE | P135: TRUE | Q135: TRUE
A136: 135 | B136: 1 | C136: 1 | D136: 2 | E136: 2 | F136: 2 | G136: 42.02712294 | H136: 56.75983816 | I136: 97.60479079 | J136: 98.18403449 | K136: 142.5169802 | M136: TRUE | N136: TRUE | O136: TRUE | P136: TRUE | Q136: TRUE
A137: 136 | B137: 1 | C137: 2 | D137: 0 | E137: 0 | F137: 0 | G137: 49.04027242 | H137: 85.33313238 | I137: 86.80728662 | J137: 98.18403449 | K137: 142.5169802 | M137: TRUE | N137: TRUE | O137: TRUE | P137: TRUE | Q137: TRUE
A138: 137 | B138: 1 | C138: 2 | D138: 0 | E138: 0 | F138: 1 | G138: 49.04027242 | H138: 68.66537742 | I138: 86.80728662 | J138: 98.18403449 | K138: 142.5169802 | M138: TRUE | N138: TRUE | O138: TRUE | P138: TRUE | Q138: TRUE
A139: 138 | B139: 1 | C139: 2 | D139: 0 | E139: 0 | F139: 2 | G139: 49.04027242 | H139: 56.75983816 | I139: 86.80728662 | J139: 98.18403449 | K139: 142.5169802 | M139: TRUE | N139: TRUE | O139: TRUE | P139: TRUE | Q139: TRUE
A140: 139 | B140: 1 | C140: 2 | D140: 0 | E140: 1 | F140: 0 | G140: 45.33521232 | H140: 85.33313238 | I140: 86.80728662 | J140: 98.18403449 | K140: 142.5169802 | M140: TRUE | N140: TRUE | O140: TRUE | P140: TRUE | Q140: TRUE
A141: 140 | B141: 1 | C141: 2 | D141: 0 | E141: 1 | F141: 1 | G141: 45.33521232 | H141: 68.66537742 | I141: 86.80728662 | J141: 98.18403449 | K141: 142.5169802 | M141: TRUE | N141: TRUE | O141: TRUE | P141: TRUE | Q141: TRUE
A142: 141 | B142: 1 | C142: 2 | D142: 0 | E142: 1 | F142: 2 | G142: 45.33521232 | H142: 56.75983816 | I142: 86.80728662 | J142: 98.18403449 | K142: 142.5169802 | M142: TRUE | N142: TRUE | O142: TRUE | P142: TRUE | Q142: TRUE
A143: 142 | B143: 1 | C143: 2 | D143: 0 | E143: 2 | F143: 0 | G143: 42.02712294 | H143: 85.33313238 | I143: 86.80728662 | J143: 98.18403449 | K143: 142.5169802 | M143: TRUE | N143: TRUE | O143: TRUE | P143: TRUE | Q143: TRUE
A144: 143 | B144: 1 | C144: 2 | D144: 0 | E144: 2 | F144: 1 | G144: 42.02712294 | H144: 68.66537742 | I144: 86.80728662 | J144: 98.18403449 | K144: 142.5169802 | M144: TRUE | N144: TRUE | O144: TRUE | P144: TRUE | Q144: TRUE
A145: 144 | B145: 1 | C145: 2 | D145: 0 | E145: 2 | F145: 2 | G145: 42.02712294 | H145: 56.75983816 | I145: 86.80728662 | J145: 98.18403449 | K145: 142.5169802 | M145: TRUE | N145: TRUE | O145: TRUE | P145: TRUE | Q145: TRUE
A146: 145 | B146: 1 | C146: 2 | D146: 1 | E146: 0 | F146: 0 | G146: 49.04027242 | H146: 85.33313238 | I146: 96.60822776 | J146: 98.18403449 | K146: 142.5169802 | M146: TRUE | N146: TRUE | O146: TRUE | P146: TRUE | Q146: TRUE
A147: 146 | B147: 1 | C147: 2 | D147: 1 | E147: 0 | F147: 1 | G147: 49.04027242 | H147: 68.66537742 | I147: 96.60822776 | J147: 98.18403449 | K147: 142.5169802 | M147: TRUE | N147: TRUE | O147: TRUE | P147: TRUE | Q147: TRUE
A148: 147 | B148: 1 | C148: 2 | D148: 1 | E148: 0 | F148: 2 | G148: 49.04027242 | H148: 56.75983816 | I148: 96.60822776 | J148: 98.18403449 | K148: 142.5169802 | M148: TRUE | N148: TRUE | O148: TRUE | P148: TRUE | Q148: TRUE
A149: 148 | B149: 1 | C149: 2 | D149: 1 | E149: 1 | F149: 0 | G149: 45.33521232 | H149: 85.33313238 | I149: 96.60822776 | J149: 98.18403449 | K149: 142.5169802 | M149: TRUE | N149: TRUE | O149: TRUE | P149: TRUE | Q149: TRUE
A150: 149 | B150: 1 | C150: 2 | D150: 1 | E150: 1 | F150: 1 | G150: 45.33521232 | H150: 68.66537742 | I150: 96.60822776 | J150: 98.18403449 | K150: 142.5169802 | M150: TRUE | N150: TRUE | O150: TRUE | P150: TRUE | Q150: TRUE
A151: 150 | B151: 1 | C151: 2 | D151: 1 | E151: 1 | F151: 2 | G151: 45.33521232 | H151: 56.75983816 | I151: 96.60822776 | J151: 98.18403449 | K151: 142.5169802 | M151: TRUE | N151: TRUE | O151: TRUE | P151: TRUE | Q151: TRUE
A152: 151 | B152: 1 | C152: 2 | D152: 1 | E152: 2 | F152: 0 | G152: 42.02712294 | H152: 85.33313238 | I152: 96.60822776 | J152: 98.18403449 | K152: 142.5169802 | M152: TRUE | N152: TRUE | O152: TRUE | P152: TRUE | Q152: TRUE
A153: 152 | B153: 1 | C153: 2 | D153: 1 | E153: 2 | F153: 1 | G153: 42.02712294 | H153: 68.66537742 | I153: 96.60822776 | J153: 98.18403449 | K153: 142.5169802 | M153: TRUE | N153: TRUE | O153: TRUE | P153: TRUE | Q153: TRUE
A154: 153 | B154: 1 | C154: 2 | D154: 1 | E154: 2 | F154: 2 | G154: 42.02712294 | H154: 56.75983816 | I154: 96.60822776 | J154: 98.18403449 | K154: 142.5169802 | M154: TRUE | N154: TRUE | O154: TRUE | P154: TRUE | Q154: TRUE
A155: 154 | B155: 1 | C155: 2 | D155: 2 | E155: 0 | F155: 0 | G155: 49.04027242 | H155: 85.33313238 | I155: 106.4091689 | J155: 98.18403449 | K155: 142.5169802 | M155: TRUE | N155: TRUE | O155: TRUE | P155: TRUE | Q155: TRUE
A156: 155 | B156: 1 | C156: 2 | D156: 2 | E156: 0 | F156: 1 | G156: 49.04027242 | H156: 68.66537742 | I156: 106.4091689 | J156: 98.18403449 | K156: 142.5169802 | M156: TRUE | N156: TRUE | O156: TRUE | P156: TRUE | Q156: TRUE
A157: 156 | B157: 1 | C157: 2 | D157: 2 | E157: 0 | F157: 2 | G157: 49.04027242 | H157: 56.75983816 | I157: 106.4091689 | J157: 98.18403449 | K157: 142.5169802 | M157: TRUE | N157: TRUE | O157: TRUE | P157: TRUE | Q157: TRUE
A158: 157 | B158: 1 | C158: 2 | D158: 2 | E158: 1 | F158: 0 | G158: 45.33521232 | H158: 85.33313238 | I158: 106.4091689 | J158: 98.18403449 | K158: 142.5169802 | M158: TRUE | N158: TRUE | O158: TRUE | P158: TRUE | Q158: TRUE
A159: 158 | B159: 1 | C159: 2 | D159: 2 | E159: 1 | F159: 1 | G159: 45.33521232 | H159: 68.66537742 | I159: 106.4091689 | J159: 98.18403449 | K159: 142.5169802 | M159: TRUE | N159: TRUE | O159: TRUE | P159: TRUE | Q159: TRUE
A160: 159 | B160: 1 | C160: 2 | D160: 2 | E160: 1 | F160: 2 | G160: 45.33521232 | H160: 56.75983816 | I160: 106.4091689 | J160: 98.18403449 | K160: 142.5169802 | M160: TRUE | N160: TRUE | O160: TRUE | P160: TRUE | Q160: TRUE
A161: 160 | B161: 1 | C161: 2 | D161: 2 | E161: 2 | F161: 0 | G161: 42.02712294 | H161: 85.33313238 | I161: 106.4091689 | J161: 98.18403449 | K161: 142.5169802 | M161: TRUE | N161: TRUE | O161: TRUE | P161: TRUE | Q161: TRUE
A162: 161 | B162: 1 | C162: 2 | D162: 2 | E162: 2 | F162: 1 | G162: 42.02712294 | H162: 68.66537742 | I162: 106.4091689 | J162: 98.18403449 | K162: 142.5169802 | M162: TRUE | N162: TRUE | O162: TRUE | P162: TRUE | Q162: TRUE
A163: 162 | B163: 1 | C163: 2 | D163: 2 | E163: 2 | F163: 2 | G163: 42.02712294 | H163: 56.75983816 | I163: 106.4091689 | J163: 98.18403449 | K163: 142.5169802 | M163: TRUE | N163: TRUE | O163: TRUE | P163: TRUE | Q163: TRUE

Sheet All Scenarios LCOE Summary
A1: Scenario | B1: PTC Value | C1: Carbon Dioxide | D1: Natural Gas | E1: OK Wind CF | F1: TN Wind CF | G1: Plains & Eastern Project | H1: Tennessee Project | I1: Combined Cycle Gas | J1: Nuclear | K1: Utility-scale Solar | L1: OK Wind < ? | M1: Tennessee Wind | N1: Combined Cycle Gas | O1: Nuclear | P1: Utility-scale Solar | Q1: ALL | R1: OK Wind < | S1: TN Wind | T1: Gas | U1: Nuclear | V1: Solar | W1: ALL
A2: 1 | B2: 0 | C2: 0 | D2: 0 | E2: 0 | F2: 0 | G2: 66.06659354 | H2: 100.5522589 | I2: 45.42149851 | J2: 80.92021978 | K2: 115.2589616 | M2: =($G2<H2) -> TRUE | N2: =($G2<I2) -> FALSE | O2: =($G2<J2) -> TRUE | P2: =($G2<K2) -> TRUE | Q2: =AND(($G2<H2),($G2<I2),($G2<J2),($G2<K2)) -> FALSE | S2: =COUNTIF(M2:M163,"TRUE")/COUNTA(M2:M163) -> 1 | T2: =COUNTIF(N2:N163,"TRUE")/COUNTA(N2:N163) -> 0.8333333333 | U2: =COUNTIF(O2:O163,"TRUE")/COUNTA(O2:O163) -> 1 | V2: =COUNTIF(P2:P163,"TRUE")/COUNTA(P2:P163) -> 1 | W2: =COUNTIF(Q2:Q163,"TRUE")/COUNTA(Q2:Q163) -> 0.8333333333
A3: 2 | B3: 0 | C3: 0 | D3: 0 | E3: 0 | F3: 1 | G3: 66.06659354 | H3: 83.88450393 | I3: 45.42149851 | J3: 80.92021978 | K3: 115.2589616 | M3: =($G3<H3) -> TRUE | N3: =($G3<I3) -> FALSE | O3: =($G3<J3) -> TRUE | P3: =($G3<K3) -> TRUE | Q3: =AND(($G3<H3),($G3<I3),($G3<J3),($G3<K3)) -> FALSE
A4: 3 | B4: 0 | C4: 0 | D4: 0 | E4: 0 | F4: 2 | G4: 66.06659354 | H4: 71.97896467 | I4: 45.42149851 | J4: 80.92021978 | K4: 115.2589616 | M4: TRUE | N4: FALSE | O4: TRUE | P4: TRUE | Q4: FALSE
A5: 4 | B5: 0 | C5: 0 | D5: 0 | E5: 1 | F5: 0 | G5: 63.03577052 | H5: 101.1549316 | I5: 45.18211802 | J5: 80.92021978 | K5: 115.2589616 | M5: TRUE | N5: FALSE | O5: TRUE | P5: TRUE | Q5: FALSE
A6: 5 | B6: 0 | C6: 0 | D6: 0 | E6: 1 | F6: 1 | G6: 63.03577052 | H6: 84.48717666 | I6: 45.18211802 | J6: 80.92021978 | K6: 115.2589616 | M6: TRUE | N6: FALSE | O6: TRUE | P6: TRUE | Q6: FALSE | R6: for PTC=0 | S6: =COUNTIF(M2:M81,"TRUE")/COUNTA(M2:M81) -> 1 | T6: =COUNTIF(N2:N81,"TRUE")/COUNTA(N2:N81) -> 0.6625 | U6: 1 | V6: 1
A7: 6 | B7: 0 | C7: 0 | D7: 0 | E7: 1 | F7: 2 | G7: 63.03577052 | H7: 72.5816374 | I7: 45.18211802 | J7: 80.92021978 | K7: 115.2589616 | M7: TRUE | N7: FALSE | O7: TRUE | P7: TRUE | Q7: FALSE | R7: for PTC=1 | S7: =COUNTIF(M82:M163,"TRUE")/COUNTA(M82:M163) -> 1 | T7: =COUNTIF(N82:N163,"TRUE")/COUNTA(N82:N163) -> 1 | U7: 1 | V7: 1
A8: 7 | B8: 0 | C8: 0 | D8: 0 | E8: 2 | F8: 0 | G8: 60.32967854 | H8: 101.6930323 | I8: 45.18211802 | J8: 80.92021978 | K8: 115.2589616 | M8: TRUE | N8: FALSE | O8: TRUE | P8: TRUE | Q8: FALSE
A9: 8 | B9: 0 | C9: 0 | D9: 0 | E9: 2 | F9: 1 | G9: 60.32967854 | H9: 85.02527731 | I9: 45.18211802 | J9: 80.92021978 | K9: 115.2589616 | M9: TRUE | N9: FALSE | O9: TRUE | P9: TRUE | Q9: FALSE
A10: 9 | B10: 0 | C10: 0 | D10: 0 | E10: 2 | F10: 2 | G10: 60.32967854 | H10: 73.11973805 | I10: 45.18211802 | J10: 80.92021978 | K10: 115.2589616 | M10: TRUE | N10: FALSE | O10: TRUE | P10: TRUE | Q10: FALSE
A11: 10 | B11: 0 | C11: 0 | D11: 1 | E11: 0 | F11: 0 | G11: 66.06659354 | H11: 100.5522589 | I11: 55.22243965 | J11: 80.92021978 | K11: 115.2589616 | M11: TRUE | N11: FALSE | O11: TRUE | P11: TRUE | Q11: FALSE
A12: 11 | B12: 0 | C12: 0 | D12: 1 | E12: 0 | F12: 1 | G12: 66.06659354 | H12: 83.88450393 | I12: 55.22243965 | J12: 80.92021978 | K12: 115.2589616 | M12: TRUE | N12: FALSE | O12: TRUE | P12: TRUE | Q12: FALSE
A13: 12 | B13: 0 | C13: 0 | D13: 1 | E13: 0 | F13: 2 | G13: 66.06659354 | H13: 71.97896467 | I13: 55.22243965 | J13: 80.92021978 | K13: 115.2589616 | M13: TRUE | N13: FALSE | O13: TRUE | P13: TRUE | Q13: FALSE
A14: 13 | B14: 0 | C14: 0 | D14: 1 | E14: 1 | F14: 0 | G14: 63.03577052 | H14: 101.1549316 | I14: 54.98305916 | J14: 80.92021978 | K14: 115.2589616 | M14: TRUE | N14: FALSE | O14: TRUE | P14: TRUE | Q14: FALSE
A15: 14 | B15: 0 | C15: 0 | D15: 1 | E15: 1 | F15: 1 | G15: 63.03577052 | H15: 84.48717666 | I15: 54.98305916 | J15: 80.92021978 | K15: 115.2589616 | M15: TRUE | N15: FALSE | O15: TRUE | P15: TRUE | Q15: FALSE
A16: 15 | B16: 0 | C16: 0 | D16: 1 | E16: 1 | F16: 2 | G16: 63.03577052 | H16: 72.5816374 | I16: 54.98305916 | J16: 80.92021978 | K16: 115.2589616 | M16: TRUE | N16: FALSE | O16: TRUE | P16: TRUE | Q16: FALSE
A17: 16 | B17: 0 | C17: 0 | D17: 1 | E17: 2 | F17: 0 | G17: 60.32967854 | H17: 101.6930323 | I17: 54.98305916 | J17: 80.92021978 | K17: 115.2589616 | M17: TRUE | N17: FALSE | O17: TRUE | P17: TRUE | Q17: FALSE
A18: 17 | B18: 0 | C18: 0 | D18: 1 | E18: 2 | F18: 1 | G18: 60.32967854 | H18: 85.02527731 | I18: 54.98305916 | J18: 80.92021978 | K18: 115.2589616 | M18: TRUE | N18: FALSE | O18: TRUE | P18: TRUE | Q18: FALSE
A19: 18 | B19: 0 | C19: 0 | D19: 1 | E19: 2 | F19: 2 | G19: 60.32967854 | H19: 73.11973805 | I19: 54.98305916 | J19: 80.92021978 | K19: 115.2589616 | M19: TRUE | N19: FALSE | O19: TRUE | P19: TRUE | Q19: FALSE
A20: 19 | B20: 0 | C20: 0 | D20: 2 | E20: 0 | F20: 0 | G20: 66.06659354 | H20: 100.5522589 | I20: 65.02338079 | J20: 80.92021978 | K20: 115.2589616 | M20: TRUE | N20: FALSE | O20: TRUE | P20: TRUE | Q20: FALSE
A21: 20 | B21: 0 | C21: 0 | D21: 2 | E21: 0 | F21: 1 | G21: 66.06659354 | H21: 83.88450393 | I21: 65.02338079 | J21: 80.92021978 | K21: 115.2589616 | M21: TRUE | N21: FALSE | O21: TRUE | P21: TRUE | Q21: FALSE
A22: 21 | B22: 0 | C22: 0 | D22: 2 | E22: 0 | F22: 2 | G22: 66.06659354 | H22: 71.97896467 | I22: 65.02338079 | J22: 80.92021978 | K22: 115.2589616 | M22: TRUE | N22: FALSE | O22: TRUE | P22: TRUE | Q22: FALSE
A23: 22 | B23: 0 | C23: 0 | D23: 2 | E23: 1 | F23: 0 | G23: 63.03577052 | H23: 101.1549316 | I23: 64.7840003 | J23: 80.92021978 | K23: 115.2589616 | M23: TRUE | N23: TRUE | O23: TRUE | P23: TRUE | Q23: TRUE
A24: 23 | B24: 0 | C24: 0 | D24: 2 | E24: 1 | F24: 1 | G24: 63.03577052 | H24: 84.48717666 | I24: 64.7840003 | J24: 80.92021978 | K24: 115.2589616 | M24: TRUE | N24: TRUE | O24: TRUE | P24: TRUE | Q24: TRUE
A25: 24 | B25: 0 | C25: 0 | D25: 2 | E25: 1 | F25: 2 | G25: 63.03577052 | H25: 72.5816374 | I25: 64.7840003 | J25: 80.92021978 | K25: 115.2589616 | M25: TRUE | N25: TRUE | O25: TRUE | P25: TRUE | Q25: TRUE
A26: 25 | B26: 0 | C26: 0 | D26: 2 | E26: 2 | F26: 0 | G26: 60.32967854 | H26: 101.6930323 | I26: 64.7840003 | J26: 80.92021978 | K26: 115.2589616 | M26: TRUE | N26: TRUE | O26: TRUE | P26: TRUE | Q26: TRUE
A27: 26 | B27: 0 | C27: 0 | D27: 2 | E27: 2 | F27: 1 | G27: 60.32967854 | H27: 85.02527731 | I27: 64.7840003 | J27: 80.92021978 | K27: 115.2589616 | M27: TRUE | N27: TRUE | O27: TRUE | P27: TRUE | Q27: TRUE
A28: 27 | B28: 0 | C28: 0 | D28: 2 | E28: 2 | F28: 2 | G28: 60.32967854 | H28: 73.11973805 | I28: 64.7840003 | J28: 80.92021978 | K28: 115.2589616 | M28: TRUE | N28: TRUE | O28: TRUE | P28: TRUE | Q28: TRUE
A29: 28 | B29: 0 | C29: 1 | D29: 0 | E29: 0 | F29: 0 | G29: 66.06659354 | H29: 100.5522589 | I29: 62.02557161 | J29: 80.92021978 | K29: 115.2589616 | M29: TRUE | N29: FALSE | O29: TRUE | P29: TRUE | Q29: FALSE
A30: 29 | B30: 0 | C30: 1 | D30: 0 | E30: 0 | F30: 1 | G30: 66.06659354 | H30: 83.88450393 | I30: 62.02557161 | J30: 80.92021978 | K30: 115.2589616 | M30: TRUE | N30: FALSE | O30: TRUE | P30: TRUE | Q30: FALSE
A31: 30 | B31: 0 | C31: 1 | D31: 0 | E31: 0 | F31: 2 | G31: 66.06659354 | H31: 71.97896467 | I31: 62.02557161 | J31: 80.92021978 | K31: 115.2589616 | M31: TRUE | N31: FALSE | O31: TRUE | P31: TRUE | Q31: FALSE
A32: 31 | B32: 0 | C32: 1 | D32: 0 | E32: 1 | F32: 0 | G32: 63.03577052 | H32: 101.1549316 | I32: 61.78619112 | J32: 80.92021978 | K32: 115.2589616 | M32: TRUE | N32: FALSE | O32: TRUE | P32: TRUE | Q32: FALSE
A33: 32 | B33: 0 | C33: 1 | D33: 0 | E33: 1 | F33: 1 | G33: 63.03577052 | H33: 84.48717666 | I33: 61.78619112 | J33: 80.92021978 | K33: 115.2589616 | M33: TRUE | N33: FALSE | O33: TRUE | P33: TRUE | Q33: FALSE
A34: 33 | B34: 0 | C34: 1 | D34: 0 | E34: 1 | F34: 2 | G34: 63.03577052 | H34: 72.5816374 | I34: 61.78619112 | J34: 80.92021978 | K34: 115.2589616 | M34: TRUE | N34: FALSE | O34: TRUE | P34: TRUE | Q34: FALSE
A35: 34 | B35: 0 | C35: 1 | D35: 0 | E35: 2 | F35: 0 | G35: 60.32967854 | H35: 101.6930323 | I35: 61.78619112 | J35: 80.92021978 | K35: 115.2589616 | M35: =($G35<H35) -> TRUE | N35: =($G35<I35) -> TRUE | O35: =($G35<J35) -> TRUE | P35: TRUE | Q35: TRUE
A36: 35 | B36: 0 | C36: 1 | D36: 0 | E36: 2 | F36: 1 | G36: 60.32967854 | H36: 85.02527731 | I36: 61.78619112 | J36: 80.92021978 | K36: 115.2589616 | M36: TRUE | N36: TRUE | O36: TRUE | P36: TRUE | Q36: TRUE
A37: 36 | B37: 0 | C37: 1 | D37: 0 | E37: 2 | F37: 2 | G37: 60.32967854 | H37: 73.11973805 | I37: 61.78619112 | J37: 80.92021978 | K37: 115.2589616 | M37: TRUE | N37: TRUE | O37: TRUE | P37: TRUE | Q37: TRUE
A38: 37 | B38: 0 | C38: 1 | D38: 1 | E38: 0 | F38: 0 | G38: 66.06659354 | H38: 100.5522589 | I38: 71.82651274 | J38: 80.92021978 | K38: 115.2589616 | M38: TRUE | N38: TRUE | O38: TRUE | P38: TRUE | Q38: TRUE
A39: 38 | B39: 0 | C39: 1 | D39: 1 | E39: 0 | F39: 1 | G39: 66.06659354 | H39: 83.88450393 | I39: 71.82651274 | J39: 80.92021978 | K39: 115.2589616 | M39: TRUE | N39: TRUE | O39: TRUE | P39: TRUE | Q39: TRUE
A40: 39 | B40: 0 | C40: 1 | D40: 1 | E40: 0 | F40: 2 | G40: 66.06659354 | H40: 71.97896467 | I40: 71.82651274 | J40: 80.92021978 | K40: 115.2589616 | M40: TRUE | N40: TRUE | O40: TRUE | P40: TRUE | Q40: TRUE
A41: 40 | B41: 0 | C41: 1 | D41: 1 | E41: 1 | F41: 0 | G41: 63.03577052 | H41: 101.1549316 | I41: 71.58713226 | J41: 80.92021978 | K41: 115.2589616 | M41: TRUE | N41: TRUE | O41: TRUE | P41: TRUE | Q41: TRUE
A42: 41 | B42: 0 | C42: 1 | D42: 1 | E42: 1 | F42: 1 | G42: 63.03577052 | H42: 84.48717666 | I42: 71.58713226 | J42: 80.92021978 | K42: 115.2589616 | M42: TRUE | N42: TRUE | O42: TRUE | P42: TRUE | Q42: TRUE
A43: 42 | B43: 0 | C43: 1 | D43: 1 | E43: 1 | F43: 2 | G43: 63.03577052 | H43: 72.5816374 | I43: 71.58713226 | J43: 80.92021978 | K43: 115.2589616 | M43: TRUE | N43: TRUE | O43: TRUE | P43: TRUE | Q43: TRUE
A44: 43 | B44: 0 | C44: 1 | D44: 1 | E44: 2 | F44: 0 | G44: 60.32967854 | H44: 101.6930323 | I44: 71.58713226 | J44: 80.92021978 | K44: 115.2589616 | M44: TRUE | N44: TRUE | O44: TRUE | P44: TRUE | Q44: TRUE
A45: 44 | B45: 0 | C45: 1 | D45: 1 | E45: 2 | F45: 1 | G45: 60.32967854 | H45: 85.02527731 | I45: 71.58713226 | J45: 80.92021978 | K45: 115.2589616 | M45: TRUE | N45: TRUE | O45: TRUE | P45: TRUE | Q45: TRUE
A46: 45 | B46: 0 | C46: 1 | D46: 1 | E46: 2 | F46: 2 | G46: 60.32967854 | H46: 73.11973805 | I46: 71.58713226 | J46: 80.92021978 | K46: 115.2589616 | M46: TRUE | N46: TRUE | O46: TRUE | P46: TRUE | Q46: TRUE
A47: 46 | B47: 0 | C47: 1 | D47: 2 | E47: 0 | F47: 0 | G47: 66.06659354 | H47: 100.5522589 | I47: 81.62745388 | J47: 80.92021978 | K47: 115.2589616 | M47: TRUE | N47: TRUE | O47: TRUE | P47: TRUE | Q47: TRUE
A48: 47 | B48: 0 | C48: 1 | D48: 2 | E48: 0 | F48: 1 | G48: 66.06659354 | H48: 83.88450393 | I48: 81.62745388 | J48: 80.92021978 | K48: 115.2589616 | M48: TRUE | N48: TRUE | O48: TRUE | P48: TRUE | Q48: TRUE
A49: 48 | B49: 0 | C49: 1 | D49: 2 | E49: 0 | F49: 2 | G49: 66.06659354 | H49: 71.97896467 | I49: 81.62745388 | J49: 80.92021978 | K49: 115.2589616 | M49: TRUE | N49: TRUE | O49: TRUE | P49: TRUE | Q49: TRUE
A50: 49 | B50: 0 | C50: 1 | D50: 2 | E50: 1 | F50: 0 | G50: 63.03577052 | H50: 101.1549316 | I50: 81.3880734 | J50: 80.92021978 | K50: 115.2589616 | M50: TRUE | N50: TRUE | O50: TRUE | P50: TRUE | Q50: TRUE
A51: 50 | B51: 0 | C51: 1 | D51: 2 | E51: 1 | F51: 1 | G51: 63.03577052 | H51: 84.48717666 | I51: 81.3880734 | J51: 80.92021978 | K51: 115.2589616 | M51: TRUE | N51: TRUE | O51: TRUE | P51: TRUE | Q51: TRUE
A52: 51 | B52: 0 | C52: 1 | D52: 2 | E52: 1 | F52: 2 | G52: 63.03577052 | H52: 72.5816374 | I52: 81.3880734 | J52: 80.92021978 | K52: 115.2589616 | M52: TRUE | N52: TRUE | O52: TRUE | P52: TRUE | Q52: TRUE
A53: 52 | B53: 0 | C53: 1 | D53: 2 | E53: 2 | F53: 0 | G53: 60.32967854 | H53: 101.6930323 | I53: 81.3880734 | J53: 80.92021978 | K53: 115.2589616 | M53: TRUE | N53: TRUE | O53: TRUE | P53: TRUE | Q53: TRUE
A54: 53 | B54: 0 | C54: 1 | D54: 2 | E54: 2 | F54: 1 | G54: 60.32967854 | H54: 85.02527731 | I54: 81.3880734 | J54: 80.92021978 | K54: 115.2589616 | M54: TRUE | N54: TRUE | O54: TRUE | P54: TRUE | Q54: TRUE
A55: 54 | B55: 0 | C55: 1 | D55: 2 | E55: 2 | F55: 2 | G55: 60.32967854 | H55: 73.11973805 | I55: 81.3880734 | J55: 80.92021978 | K55: 115.2589616 | M55: TRUE | N55: TRUE | O55: TRUE | P55: TRUE | Q55: TRUE
A56: 55 | B56: 0 | C56: 2 | D56: 0 | E56: 0 | F56: 0 | G56: 66.06659354 | H56: 100.5522589 | I56: 70.82994972 | J56: 80.92021978 | K56: 115.2589616 | M56: TRUE | N56: TRUE | O56: TRUE | P56: TRUE | Q56: TRUE
A57: 56 | B57: 0 | C57: 2 | D57: 0 | E57: 0 | F57: 1 | G57: 66.06659354 | H57: 83.88450393 | I57: 70.82994972 | J57: 80.92021978 | K57: 115.2589616 | M57: TRUE | N57: TRUE | O57: TRUE | P57: TRUE | Q57: TRUE
A58: 57 | B58: 0 | C58: 2 | D58: 0 | E58: 0 | F58: 2 | G58: 66.06659354 | H58: 71.97896467 | I58: 70.82994972 | J58: 80.92021978 | K58: 115.2589616 | M58: TRUE | N58: TRUE | O58: TRUE | P58: TRUE | Q58: TRUE
A59: 58 | B59: 0 | C59: 2 | D59: 0 | E59: 1 | F59: 0 | G59: 63.03577052 | H59: 101.1549316 | I59: 70.59056923 | J59: 80.92021978 | K59: 115.2589616 | M59: TRUE | N59: TRUE | O59: TRUE | P59: TRUE | Q59: TRUE
A60: 59 | B60: 0 | C60: 2 | D60: 0 | E60: 1 | F60: 1 | G60: 63.03577052 | H60: 84.48717666 | I60: 70.59056923 | J60: 80.92021978 | K60: 115.2589616 | M60: TRUE | N60: TRUE | O60: TRUE | P60: TRUE | Q60: TRUE
A61: 60 | B61: 0 | C61: 2 | D61: 0 | E61: 1 | F61: 2 | G61: 63.03577052 | H61: 72.5816374 | I61: 70.59056923 | J61: 80.92021978 | K61: 115.2589616 | M61: TRUE | N61: TRUE | O61: TRUE | P61: TRUE | Q61: TRUE
A62: 61 | B62: 0 | C62: 2 | D62: 0 | E62: 2 | F62: 0 | G62: 60.32967854 | H62: 101.6930323 | I62: 70.59056923 | J62: 80.92021978 | K62: 115.2589616 | M62: TRUE | N62: TRUE | O62: TRUE | P62: TRUE | Q62: TRUE
A63: 62 | B63: 0 | C63: 2 | D63: 0 | E63: 2 | F63: 1 | G63: 60.32967854 | H63: 85.02527731 | I63: 70.59056923 | J63: 80.92021978 | K63: 115.2589616 | M63: TRUE | N63: TRUE | O63: TRUE | P63: TRUE | Q63: TRUE
A64: 63 | B64: 0 | C64: 2 | D64: 0 | E64: 2 | F64: 2 | G64: 60.32967854 | H64: 73.11973805 | I64: 70.59056923 | J64: 80.92021978 | K64: 115.2589616 | M64: TRUE | N64: TRUE | O64: TRUE | P64: TRUE | Q64: TRUE
A65: 64 | B65: 0 | C65: 2 | D65: 1 | E65: 0 | F65: 0 | G65: 66.06659354 | H65: 100.5522589 | I65: 80.63089086 | J65: 80.92021978 | K65: 115.2589616 | M65: TRUE | N65: TRUE | O65: TRUE | P65: TRUE | Q65: TRUE
A66: 65 | B66: 0 | C66: 2 | D66: 1 | E66: 0 | F66: 1 | G66: 66.06659354 | H66: 83.88450393 | I66: 80.63089086 | J66: 80.92021978 | K66: 115.2589616 | M66: TRUE | N66: TRUE | O66: TRUE | P66: TRUE | Q66: TRUE
A67: 66 | B67: 0 | C67: 2 | D67: 1 | E67: 0 | F67: 2 | G67: 66.06659354 | H67: 71.97896467 | I67: 80.63089086 | J67: 80.92021978 | K67: 115.2589616 | M67: =($G67<H67) -> TRUE | N67: =($G67<I67) -> TRUE | O67: =($G67<J67) -> TRUE | P67: =($G67<K67) -> TRUE | Q67: =AND(($G67<H67),($G67<I67),($G67<J67),($G67<K67)) -> TRUE
A68: 67 | B68: 0 | C68: 2 | D68: 1 | E68: 1 | F68: 0 | G68: 63.03577052 | H68: 101.1549316 | I68: 80.39151037 | J68: 80.92021978 | K68: 115.2589616 | M68: TRUE | N68: TRUE | O68: TRUE | P68: TRUE | Q68: TRUE
A69: 68 | B69: 0 | C69: 2 | D69: 1 | E69: 1 | F69: 1 | G69: 63.03577052 | H69: 84.48717666 | I69: 80.39151037 | J69: 80.92021978 | K69: 115.2589616 | M69: TRUE | N69: TRUE | O69: TRUE | P69: TRUE | Q69: TRUE
A70: 69 | B70: 0 | C70: 2 | D70: 1 | E70: 1 | F70: 2 | G70: 63.03577052 | H70: 72.5816374 | I70: 80.39151037 | J70: 80.92021978 | K70: 115.2589616 | M70: TRUE | N70: TRUE | O70: TRUE | P70: TRUE | Q70: TRUE
A71: 70 | B71: 0 | C71: 2 | D71: 1 | E71: 2 | F71: 0 | G71: 60.32967854 | H71: 101.6930323 | I71: 80.39151037 | J71: 80.92021978 | K71: 115.2589616 | M71: TRUE | N71: TRUE | O71: TRUE | P71: TRUE | Q71: TRUE
A72: 71 | B72: 0 | C72: 2 | D72: 1 | E72: 2 | F72: 1 | G72: 60.32967854 | H72: 85.02527731 | I72: 80.39151037 | J72: 80.92021978 | K72: 115.2589616 | M72: TRUE | N72: TRUE | O72: TRUE | P72: TRUE | Q72: TRUE
A73: 72 | B73: 0 | C73: 2 | D73: 1 | E73: 2 | F73: 2 | G73: 60.32967854 | H73: 73.11973805 | I73: 80.39151037 | J73: 80.92021978 | K73: 115.2589616 | M73: TRUE | N73: TRUE | O73: TRUE | P73: TRUE | Q73: TRUE
A74: 73 | B74: 0 | C74: 2 | D74: 2 | E74: 0 | F74: 0 | G74: 66.06659354 | H74: 100.5522589 | I74: 90.431832 | J74: 80.92021978 | K74: 115.2589616 | M74: TRUE | N74: TRUE | O74: TRUE | P74: TRUE | Q74: TRUE
A75: 74 | B75: 0 | C75: 2 | D75: 2 | E75: 0 | F75: 1 | G75: 66.06659354 | H75: 83.88450393 | I75: 90.431832 | J75: 80.92021978 | K75: 115.2589616 | M75: TRUE | N75: TRUE | O75: TRUE | P75: TRUE | Q75: TRUE
A76: 75 | B76: 0 | C76: 2 | D76: 2 | E76: 0 | F76: 2 | G76: 66.06659354 | H76: 71.97896467 | I76: 90.431832 | J76: 80.92021978 | K76: 115.2589616 | M76: TRUE | N76: TRUE | O76: TRUE | P76: TRUE | Q76: TRUE
A77: 76 | B77: 0 | C77: 2 | D77: 2 | E77: 1 | F77: 0 | G77: 63.03577052 | H77: 101.1549316 | I77: 90.19245151 | J77: 80.92021978 | K77: 115.2589616 | M77: TRUE | N77: TRUE | O77: TRUE | P77: TRUE | Q77: TRUE
A78: 77 | B78: 0 | C78: 2 | D78: 2 | E78: 1 | F78: 1 | G78: 63.03577052 | H78: 84.48717666 | I78: 90.19245151 | J78: 80.92021978 | K78: 115.2589616 | M78: TRUE | N78: TRUE | O78: TRUE | P78: TRUE | Q78: TRUE
A79: 78 | B79: 0 | C79: 2 | D79: 2 | E79: 1 | F79: 2 | G79: 63.03577052 | H79: 72.5816374 | I79: 90.19245151 | J79: 80.92021978 | K79: 115.2589616 | M79: TRUE | N79: TRUE | O79: TRUE | P79: TRUE | Q79: TRUE
A80: 79 | B80: 0 | C80: 2 | D80: 2 | E80: 2 | F80: 0 | G80: 60.32967854 | H80: 101.6930323 | I80: 90.19245151 | J80: 80.92021978 | K80: 115.2589616 | M80: TRUE | N80: TRUE | O80: TRUE | P80: TRUE | Q80: TRUE
A81: 80 | B81: 0 | C81: 2 | D81: 2 | E81: 2 | F81: 1 | G81: 60.32967854 | H81: 85.02527731 | I81: 90.19245151 | J81: 80.92021978 | K81: 115.2589616 | M81: TRUE | N81: TRUE | O81: TRUE | P81: TRUE | Q81: TRUE
A82: 81 | B82: 0 | C82: 2 | D82: 2 | E82: 2 | F82: 2 | G82: 60.32967854 | H82: 73.11973805 | I82: 90.19245151 | J82: 80.92021978 | K82: 115.2589616 | M82: TRUE | N82: TRUE | O82: TRUE | P82: TRUE | Q82: TRUE
A83: 82 | B83: 1 | C83: 0 | D83: 0 | E83: 0 | F83: 0 | G83: 37.12875061 | H83: 74.68591411 | I83: 45.42149851 | J83: 80.92021978 | K83: 115.2589616 | M83: TRUE | N83: TRUE | O83: TRUE | P83: TRUE | Q83: TRUE
A84: 83 | B84: 1 | C84: 0 | D84: 0 | E84: 0 | F84: 1 | G84: 37.12875061 | H84: 58.01815915 | I84: 45.42149851 | J84: 80.92021978 | K84: 115.2589616 | M84: TRUE | N84: TRUE | O84: TRUE | P84: TRUE | Q84: TRUE
A85: 84 | B85: 1 | C85: 0 | D85: 0 | E85: 0 | F85: 2 | G85: 37.12875061 | H85: 46.11261989 | I85: 45.42149851 | J85: 80.92021978 | K85: 115.2589616 | M85: TRUE | N85: TRUE | O85: TRUE | P85: TRUE | Q85: TRUE
A86: 85 | B86: 1 | C86: 0 | D86: 0 | E86: 1 | F86: 0 | G86: 34.09792759 | H86: 75.28858684 | I86: 45.18211802 | J86: 80.92021978 | K86: 115.2589616 | M86: TRUE | N86: TRUE | O86: TRUE | P86: TRUE | Q86: TRUE
A87: 86 | B87: 1 | C87: 0 | D87: 0 | E87: 1 | F87: 1 | G87: 34.09792759 | H87: 58.62083188 | I87: 45.18211802 | J87: 80.92021978 | K87: 115.2589616 | M87: TRUE | N87: TRUE | O87: TRUE | P87: TRUE | Q87: TRUE
A88: 87 | B88: 1 | C88: 0 | D88: 0 | E88: 1 | F88: 2 | G88: 34.09792759 | H88: 46.71529262 | I88: 45.18211802 | J88: 80.92021978 | K88: 115.2589616 | M88: TRUE | N88: TRUE | O88: TRUE | P88: TRUE | Q88: TRUE
A89: 88 | B89: 1 | C89: 0 | D89: 0 | E89: 2 | F89: 0 | G89: 31.39183561 | H89: 75.8266875 | I89: 45.18211802 | J89: 80.92021978 | K89: 115.2589616 | M89: TRUE | N89: TRUE | O89: TRUE | P89: TRUE | Q89: TRUE
A90: 89 | B90: 1 | C90: 0 | D90: 0 | E90: 2 | F90: 1 | G90: 31.39183561 | H90: 59.15893253 | I90: 45.18211802 | J90: 80.92021978 | K90: 115.2589616 | M90: TRUE | N90: TRUE | O90: TRUE | P90: TRUE | Q90: TRUE
A91: 90 | B91: 1 | C91: 0 | D91: 0 | E91: 2 | F91: 2 | G91: 31.39183561 | H91: 47.25339328 | I91: 45.18211802 | J91: 80.92021978 | K91: 115.2589616 | M91: TRUE | N91: TRUE | O91: TRUE | P91: TRUE | Q91: TRUE
A92: 91 | B92: 1 | C92: 0 | D92: 1 | E92: 0 | F92: 0 | G92: 37.12875061 | H92: 74.68591411 | I92: 55.22243965 | J92: 80.92021978 | K92: 115.2589616 | M92: TRUE | N92: TRUE | O92: TRUE | P92: TRUE | Q92: TRUE
A93: 92 | B93: 1 | C93: 0 | D93: 1 | E93: 0 | F93: 1 | G93: 37.12875061 | H93: 58.01815915 | I93: 55.22243965 | J93: 80.92021978 | K93: 115.2589616 | M93: TRUE | N93: TRUE | O93: TRUE | P93: TRUE | Q93: TRUE
A94: 93 | B94: 1 | C94: 0 | D94: 1 | E94: 0 | F94: 2 | G94: 37.12875061 | H94: 46.11261989 | I94: 55.22243965 | J94: 80.92021978 | K94: 115.2589616 | M94: TRUE | N94: TRUE | O94: TRUE | P94: TRUE | Q94: TRUE
A95: 94 | B95: 1 | C95: 0 | D95: 1 | E95: 1 | F95: 0 | G95: 34.09792759 | H95: 75.28858684 | I95: 54.98305916 | J95: 80.92021978 | K95: 115.2589616 | M95: TRUE | N95: TRUE | O95: TRUE | P95: TRUE | Q95: TRUE
A96: 95 | B96: 1 | C96: 0 | D96: 1 | E96: 1 | F96: 1 | G96: 34.09792759 | H96: 58.62083188 | I96: 54.98305916 | J96: 80.92021978 | K96: 115.2589616 | M96: TRUE | N96: TRUE | O96: TRUE | P96: TRUE | Q96: TRUE
A97: 96 | B97: 1 | C97: 0 | D97: 1 | E97: 1 | F97: 2 | G97: 34.09792759 | H97: 46.71529262 | I97: 54.98305916 | J97: 80.92021978 | K97: 115.2589616 | M97: TRUE | N97: TRUE | O97: TRUE | P97: TRUE | Q97: TRUE
A98: 97 | B98: 1 | C98: 0 | D98: 1 | E98: 2 | F98: 0 | G98: 31.39183561 | H98: 75.8266875 | I98: 54.98305916 | J98: 80.92021978 | K98: 115.2589616 | M98: TRUE | N98: TRUE | O98: TRUE | P98: TRUE | Q98: TRUE
A99: 98 | B99: 1 | C99: 0 | D99: 1 | E99: 2 | F99: 1 | G99: 31.39183561 | H99: 59.15893253 | I99: 54.98305916 | J99: 80.92021978 | K99: 115.2589616 | M99: =($G99<H99) -> TRUE | N99: =($G99<I99) -> TRUE | O99: =($G99<J99) -> TRUE | P99: TRUE | Q99: TRUE
A100: 99 | B100: 1 | C100: 0 | D100: 1 | E100: 2 | F100: 2 | G100: 31.39183561 | H100: 47.25339328 | I100: 54.98305916 | J100: 80.92021978 | K100: 115.2589616 | M100: TRUE | N100: TRUE | O100: TRUE | P100: TRUE | Q100: TRUE
A101: 100 | B101: 1 | C101: 0 | D101: 2 | E101: 0 | F101: 0 | G101: 37.12875061 | H101: 74.68591411 | I101: 65.02338079 | J101: 80.92021978 | K101: 115.2589616 | M101: TRUE | N101: TRUE | O101: TRUE | P101: TRUE | Q101: TRUE
A102: 101 | B102: 1 | C102: 0 | D102: 2 | E102: 0 | F102: 1 | G102: 37.12875061 | H102: 58.01815915 | I102: 65.02338079 | J102: 80.92021978 | K102: 115.2589616 | M102: TRUE | N102: TRUE | O102: TRUE | P102: TRUE | Q102: TRUE
A103: 102 | B103: 1 | C103: 0 | D103: 2 | E103: 0 | F103: 2 | G103: 37.12875061 | H103: 46.11261989 | I103: 65.02338079 | J103: 80.92021978 | K103: 115.2589616 | M103: TRUE | N103: TRUE | O103: TRUE | P103: TRUE | Q103: TRUE
A104: 103 | B104: 1 | C104: 0 | D104: 2 | E104: 1 | F104: 0 | G104: 34.09792759 | H104: 75.28858684 | I104: 64.7840003 | J104: 80.92021978 | K104: 115.2589616 | M104: TRUE | N104: TRUE | O104: TRUE | P104: TRUE | Q104: TRUE
A105: 104 | B105: 1 | C105: 0 | D105: 2 | E105: 1 | F105: 1 | G105: 34.09792759 | H105: 58.62083188 | I105: 64.7840003 | J105: 80.92021978 | K105: 115.2589616 | M105: TRUE | N105: TRUE | O105: TRUE | P105: TRUE | Q105: TRUE
A106: 105 | B106: 1 | C106: 0 | D106: 2 | E106: 1 | F106: 2 | G106: 34.09792759 | H106: 46.71529262 | I106: 64.7840003 | J106: 80.92021978 | K106: 115.2589616 | M106: TRUE | N106: TRUE | O106: TRUE | P106: TRUE | Q106: TRUE
A107: 106 | B107: 1 | C107: 0 | D107: 2 | E107: 2 | F107: 0 | G107: 31.39183561 | H107: 75.8266875 | I107: 64.7840003 | J107: 80.92021978 | K107: 115.2589616 | M107: TRUE | N107: TRUE | O107: TRUE | P107: TRUE | Q107: TRUE
A108: 107 | B108: 1 | C108: 0 | D108: 2 | E108: 2 | F108: 1 | G108: 31.39183561 | H108: 59.15893253 | I108: 64.7840003 | J108: 80.92021978 | K108: 115.2589616 | M108: TRUE | N108: TRUE | O108: TRUE | P108: TRUE | Q108: TRUE
A109: 108 | B109: 1 | C109: 0 | D109: 2 | E109: 2 | F109: 2 | G109: 31.39183561 | H109: 47.25339328 | I109: 64.7840003 | J109: 80.92021978 | K109: 115.2589616 | M109: TRUE | N109: TRUE | O109: TRUE | P109: TRUE | Q109: TRUE
A110: 109 | B110: 1 | C110: 1 | D110: 0 | E110: 0 | F110: 0 | G110: 37.12875061 | H110: 74.68591411 | I110: 62.02557161 | J110: 80.92021978 | K110: 115.2589616 | M110: TRUE | N110: TRUE | O110: TRUE | P110: TRUE | Q110: TRUE
A111: 110 | B111: 1 | C111: 1 | D111: 0 | E111: 0 | F111: 1 | G111: 37.12875061 | H111: 58.01815915 | I111: 62.02557161 | J111: 80.92021978 | K111: 115.2589616 | M111: TRUE | N111: TRUE | O111: TRUE | P111: TRUE | Q111: TRUE
A112: 111 | B112: 1 | C112: 1 | D112: 0 | E112: 0 | F112: 2 | G112: 37.12875061 | H112: 46.11261989 | I112: 62.02557161 | J112: 80.92021978 | K112: 115.2589616 | M112: TRUE | N112: TRUE | O112: TRUE | P112: TRUE | Q112: TRUE
A113: 112 | B113: 1 | C113: 1 | D113: 0 | E113: 1 | F113: 0 | G113: 34.09792759 | H113: 75.28858684 | I113: 61.78619112 | J113: 80.92021978 | K113: 115.2589616 | M113: TRUE | N113: TRUE | O113: TRUE | P113: TRUE | Q113: TRUE
A114: 113 | B114: 1 | C114: 1 | D114: 0 | E114: 1 | F114: 1 | G114: 34.09792759 | H114: 58.62083188 | I114: 61.78619112 | J114: 80.92021978 | K114: 115.2589616 | M114: TRUE | N114: TRUE | O114: TRUE | P114: TRUE | Q114: TRUE
A115: 114 | B115: 1 | C115: 1 | D115: 0 | E115: 1 | F115: 2 | G115: 34.09792759 | H115: 46.71529262 | I115: 61.78619112 | J115: 80.92021978 | K115: 115.2589616 | M115: TRUE | N115: TRUE | O115: TRUE | P115: TRUE | Q115: TRUE
A116: 115 | B116: 1 | C116: 1 | D116: 0 | E116: 2 | F116: 0 | G116: 31.39183561 | H116: 75.8266875 | I116: 61.78619112 | J116: 80.92021978 | K116: 115.2589616 | M116: TRUE | N116: TRUE | O116: TRUE | P116: TRUE | Q116: TRUE
A117: 116 | B117: 1 | C117: 1 | D117: 0 | E117: 2 | F117: 1 | G117: 31.39183561 | H117: 59.15893253 | I117: 61.78619112 | J117: 80.92021978 | K117: 115.2589616 | M117: TRUE | N117: TRUE | O117: TRUE | P117: TRUE | Q117: TRUE
A118: 117 | B118: 1 | C118: 1 | D118: 0 | E118: 2 | F118: 2 | G118: 31.39183561 | H118: 47.25339328 | I118: 61.78619112 | J118: 80.92021978 | K118: 115.2589616 | M118: TRUE | N118: TRUE | O118: TRUE | P118: TRUE | Q118: TRUE
A119: 118 | B119: 1 | C119: 1 | D119: 1 | E119: 0 | F119: 0 | G119: 37.12875061 | H119: 74.68591411 | I119: 71.82651274 | J119: 80.92021978 | K119: 115.2589616 | M119: TRUE | N119: TRUE | O119: TRUE | P119: TRUE | Q119: TRUE
A120: 119 | B120: 1 | C120: 1 | D120: 1 | E120: 0 | F120: 1 | G120: 37.12875061 | H120: 58.01815915 | I120: 71.82651274 | J120: 80.92021978 | K120: 115.2589616 | M120: TRUE | N120: TRUE | O120: TRUE | P120: TRUE | Q120: TRUE
A121: 120 | B121: 1 | C121: 1 | D121: 1 | E121: 0 | F121: 2 | G121: 37.12875061 | H121: 46.11261989 | I121: 71.82651274 | J121: 80.92021978 | K121: 115.2589616 | M121: TRUE | N121: TRUE | O121: TRUE | P121: TRUE | Q121: TRUE
A122: 121 | B122: 1 | C122: 1 | D122: 1 | E122: 1 | F122: 0 | G122: 34.09792759 | H122: 75.28858684 | I122: 71.58713226 | J122: 80.92021978 | K122: 115.2589616 | M122: TRUE | N122: TRUE | O122: TRUE | P122: TRUE | Q122: TRUE
A123: 122 | B123: 1 | C123: 1 | D123: 1 | E123: 1 | F123: 1 | G123: 34.09792759 | H123: 58.62083188 | I123: 71.58713226 | J123: 80.92021978 | K123: 115.2589616 | M123: TRUE | N123: TRUE | O123: TRUE | P123: TRUE | Q123: TRUE
A124: 123 | B124: 1 | C124: 1 | D124: 1 | E124: 1 | F124: 2 | G124: 34.09792759 | H124: 46.71529262 | I124: 71.58713226 | J124: 80.92021978 | K124: 115.2589616 | M124: TRUE | N124: TRUE | O124: TRUE | P124: TRUE | Q124: TRUE
A125: 124 | B125: 1 | C125: 1 | D125: 1 | E125: 2 | F125: 0 | G125: 31.39183561 | H125: 75.8266875 | I125: 71.58713226 | J125: 80.92021978 | K125: 115.2589616 | M125: TRUE | N125: TRUE | O125: TRUE | P125: TRUE | Q125: TRUE
A126: 125 | B126: 1 | C126: 1 | D126: 1 | E126: 2 | F126: 1 | G126: 31.39183561 | H126: 59.15893253 | I126: 71.58713226 | J126: 80.92021978 | K126: 115.2589616 | M126: TRUE | N126: TRUE | O126: TRUE | P126: TRUE | Q126: TRUE
A127: 126 | B127: 1 | C127: 1 | D127: 1 | E127: 2 | F127: 2 | G127: 31.39183561 | H127: 47.25339328 | I127: 71.58713226 | J127: 80.92021978 | K127: 115.2589616 | M127: TRUE | N127: TRUE | O127: TRUE | P127: TRUE | Q127: TRUE
A128: 127 | B128: 1 | C128: 1 | D128: 2 | E128: 0 | F128: 0 | G128: 37.12875061 | H128: 74.68591411 | I128: 81.62745388 | J128: 80.92021978 | K128: 115.2589616 | M128: TRUE | N128: TRUE | O128: TRUE | P128: TRUE | Q128: TRUE
A129: 128 | B129: 1 | C129: 1 | D129: 2 | E129: 0 | F129: 1 | G129: 37.12875061 | H129: 58.01815915 | I129: 81.62745388 | J129: 80.92021978 | K129: 115.2589616 | M129: TRUE | N129: TRUE | O129: TRUE | P129: TRUE | Q129: TRUE
A130: 129 | B130: 1 | C130: 1 | D130: 2 | E130: 0 | F130: 2 | G130: 37.12875061 | H130: 46.11261989 | I130: 81.62745388 | J130: 80.92021978 | K130: 115.2589616 | M130: TRUE | N130: TRUE | O130: TRUE | P130: TRUE | Q130: TRUE
A131: 130 | B131: 1 | C131: 1 | D131: 2 | E131: 1 | F131: 0 | G131: 34.09792759 | H131: 75.28858684 | I131: 81.3880734 | J131: 80.92021978 | K131: 115.2589616 | M131: =($G131<H131) -> TRUE | N131: =($G131<I131) -> TRUE | O131: =($G131<J131) -> TRUE | P131: =($G131<K131) -> TRUE | Q131: =AND(($G131<H131),($G131<I131),($G131<J131),($G131<K131)) -> TRUE
A132: 131 | B132: 1 | C132: 1 | D132: 2 | E132: 1 | F132: 1 | G132: 34.09792759 | H132: 58.62083188 | I132: 81.3880734 | J132: 80.92021978 | K132: 115.2589616 | M132: TRUE | N132: TRUE | O132: TRUE | P132: TRUE | Q132: TRUE
A133: 132 | B133: 1 | C133: 1 | D133: 2 | E133: 1 | F133: 2 | G133: 34.09792759 | H133: 46.71529262 | I133: 81.3880734 | J133: 80.92021978 | K133: 115.2589616 | M133: TRUE | N133: TRUE | O133: TRUE | P133: TRUE | Q133: TRUE
A134: 133 | B134: 1 | C134: 1 | D134: 2 | E134: 2 | F134: 0 | G134: 31.39183561 | H134: 75.8266875 | I134: 81.3880734 | J134: 80.92021978 | K134: 115.2589616 | M134: TRUE | N134: TRUE | O134: TRUE | P134: TRUE | Q134: TRUE
A135: 134 | B135: 1 | C135: 1 | D135: 2 | E135: 2 | F135: 1 | G135: 31.39183561 | H135: 59.15893253 | I135: 81.3880734 | J135: 80.92021978 | K135: 115.2589616 | M135: TRUE | N135: TRUE | O135: TRUE | P135: TRUE | Q135: TRUE
A136: 135 | B136: 1 | C136: 1 | D136: 2 | E136: 2 | F136: 2 | G136: 31.39183561 | H136: 47.25339328 | I136: 81.3880734 | J136: 80.92021978 | K136: 115.2589616 | M136: TRUE | N136: TRUE | O136: TRUE | P136: TRUE | Q136: TRUE
A137: 136 | B137: 1 | C137: 2 | D137: 0 | E137: 0 | F137: 0 | G137: 37.12875061 | H137: 74.68591411 | I137: 70.82994972 | J137: 80.92021978 | K137: 115.2589616 | M137: TRUE | N137: TRUE | O137: TRUE | P137: TRUE | Q137: TRUE
A138: 137 | B138: 1 | C138: 2 | D138: 0 | E138: 0 | F138: 1 | G138: 37.12875061 | H138: 58.01815915 | I138: 70.82994972 | J138: 80.92021978 | K138: 115.2589616 | M138: TRUE | N138: TRUE | O138: TRUE | P138: TRUE | Q138: TRUE
A139: 138 | B139: 1 | C139: 2 | D139: 0 | E139: 0 | F139: 2 | G139: 37.12875061 | H139: 46.11261989 | I139: 70.82994972 | J139: 80.92021978 | K139: 115.2589616 | M139: TRUE | N139: TRUE | O139: TRUE | P139: TRUE | Q139: TRUE
A140: 139 | B140: 1 | C140: 2 | D140: 0 | E140: 1 | F140: 0 | G140: 34.09792759 | H140: 75.28858684 | I140: 70.59056923 | J140: 80.92021978 | K140: 115.2589616 | M140: TRUE | N140: TRUE | O140: TRUE | P140: TRUE | Q140: TRUE
A141: 140 | B141: 1 | C141: 2 | D141: 0 | E141: 1 | F141: 1 | G141: 34.09792759 | H141: 58.62083188 | I141: 70.59056923 | J141: 80.92021978 | K141: 115.2589616 | M141: TRUE | N141: TRUE | O141: TRUE | P141: TRUE | Q141: TRUE
A142: 141 | B142: 1 | C142: 2 | D142: 0 | E142: 1 | F142: 2 | G142: 34.09792759 | H142: 46.71529262 | I142: 70.59056923 | J142: 80.92021978 | K142: 115.2589616 | M142: TRUE | N142: TRUE | O142: TRUE | P142: TRUE | Q142: TRUE
A143: 142 | B143: 1 | C143: 2 | D143: 0 | E143: 2 | F143: 0 | G143: 31.39183561 | H143: 75.8266875 | I143: 70.59056923 | J143: 80.92021978 | K143: 115.2589616 | M143: TRUE | N143: TRUE | O143: TRUE | P143: TRUE | Q143: TRUE
A144: 143 | B144: 1 | C144: 2 | D144: 0 | E144: 2 | F144: 1 | G144: 31.39183561 | H144: 59.15893253 | I144: 70.59056923 | J144: 80.92021978 | K144: 115.2589616 | M144: TRUE | N144: TRUE | O144: TRUE | P144: TRUE | Q144: TRUE
A145: 144 | B145: 1 | C145: 2 | D145: 0 | E145: 2 | F145: 2 | G145: 31.39183561 | H145: 47.25339328 | I145: 70.59056923 | J145: 80.92021978 | K145: 115.2589616 | M145: TRUE | N145: TRUE | O145: TRUE | P145: TRUE | Q145: TRUE
A146: 145 | B146: 1 | C146: 2 | D146: 1 | E146: 0 | F146: 0 | G146: 37.12875061 | H146: 74.68591411 | I146: 80.63089086 | J146: 80.92021978 | K146: 115.2589616 | M146: TRUE | N146: TRUE | O146: TRUE | P146: TRUE | Q146: TRUE
A147: 146 | B147: 1 | C147: 2 | D147: 1 | E147: 0 | F147: 1 | G147: 37.12875061 | H147: 58.01815915 | I147: 80.63089086 | J147: 80.92021978 | K147: 115.2589616 | M147: TRUE | N147: TRUE | O147: TRUE | P147: TRUE | Q147: TRUE
A148: 147 | B148: 1 | C148: 2 | D148: 1 | E148: 0 | F148: 2 | G148: 37.12875061 | H148: 46.11261989 | I148: 80.63089086 | J148: 80.92021978 | K148: 115.2589616 | M148: TRUE | N148: TRUE | O148: TRUE | P148: TRUE | Q148: TRUE
A149: 148 | B149: 1 | C149: 2 | D149: 1 | E149: 1 | F149: 0 | G149: 34.09792759 | H149: 75.28858684 | I149: 80.39151037 | J149: 80.92021978 | K149: 115.2589616 | M149: TRUE | N149: TRUE | O149: TRUE | P149: TRUE | Q149: TRUE
A150: 149 | B150: 1 | C150: 2 | D150: 1 | E150: 1 | F150: 1 | G150: 34.09792759 | H150: 58.62083188 | I150: 80.39151037 | J150: 80.92021978 | K150: 115.2589616 | M150: TRUE | N150: TRUE | O150: TRUE | P150: TRUE | Q150: TRUE
A151: 150 | B151: 1 | C151: 2 | D151: 1 | E151: 1 | F151: 2 | G151: 34.09792759 | H151: 46.71529262 | I151: 80.39151037 | J151: 80.92021978 | K151: 115.2589616 | M151: TRUE | N151: TRUE | O151: TRUE | P151: TRUE | Q151: TRUE
A152: 151 | B152: 1 | C152: 2 | D152: 1 | E152: 2 | F152: 0 | G152: 31.39183561 | H152: 75.8266875 | I152: 80.39151037 | J152: 80.92021978 | K152: 115.2589616 | M152: TRUE | N152: TRUE | O152: TRUE | P152: TRUE | Q152: TRUE
A153: 152 | B153: 1 | C153: 2 | D153: 1 | E153: 2 | F153: 1 | G153: 31.39183561 | H153: 59.15893253 | I153: 80.39151037 | J153: 80.92021978 | K153: 115.2589616 | M153: TRUE | N153: TRUE | O153: TRUE | P153: TRUE | Q153: TRUE
A154: 153 | B154: 1 | C154: 2 | D154: 1 | E154: 2 | F154: 2 | G154: 31.39183561 | H154: 47.25339328 | I154: 80.39151037 | J154: 80.92021978 | K154: 115.2589616 | M154: TRUE | N154: TRUE | O154: TRUE | P154: TRUE | Q154: TRUE
A155: 154 | B155: 1 | C155: 2 | D155: 2 | E155: 0 | F155: 0 | G155: 37.12875061 | H155: 74.68591411 | I155: 90.431832 | J155: 80.92021978 | K155: 115.2589616 | M155: TRUE | N155: TRUE | O155: TRUE | P155: TRUE | Q155: TRUE
A156: 155 | B156: 1 | C156: 2 | D156: 2 | E156: 0 | F156: 1 | G156: 37.12875061 | H156: 58.01815915 | I156: 90.431832 | J156: 80.92021978 | K156: 115.2589616 | M156: TRUE | N156: TRUE | O156: TRUE | P156: TRUE | Q156: TRUE
A157: 156 | B157: 1 | C157: 2 | D157: 2 | E157: 0 | F157: 2 | G157: 37.12875061 | H157: 46.11261989 | I157: 90.431832 | J157: 80.92021978 | K157: 115.2589616 | M157: TRUE | N157: TRUE | O157: TRUE | P157: TRUE | Q157: TRUE
A158: 157 | B158: 1 | C158: 2 | D158: 2 | E158: 1 | F158: 0 | G158: 34.09792759 | H158: 75.28858684 | I158: 90.19245151 | J158: 80.92021978 | K158: 115.2589616 | M158: TRUE | N158: TRUE | O158: TRUE | P158: TRUE | Q158: TRUE
A159: 158 | B159: 1 | C159: 2 | D159: 2 | E159: 1 | F159: 1 | G159: 34.09792759 | H159: 58.62083188 | I159: 90.19245151 | J159: 80.92021978 | K159: 115.2589616 | M159: TRUE | N159: TRUE | O159: TRUE | P159: TRUE | Q159: TRUE
A160: 159 | B160: 1 | C160: 2 | D160: 2 | E160: 1 | F160: 2 | G160: 34.09792759 | H160: 46.71529262 | I160: 90.19245151 | J160: 80.92021978 | K160: 115.2589616 | M160: TRUE | N160: TRUE | O160: TRUE | P160: TRUE | Q160: TRUE
A161: 160 | B161: 1 | C161: 2 | D161: 2 | E161: 2 | F161: 0 | G161: 31.39183561 | H161: 75.8266875 | I161: 90.19245151 | J161: 80.92021978 | K161: 115.2589616 | M161: TRUE | N161: TRUE | O161: TRUE | P161: TRUE | Q161: TRUE
A162: 161 | B162: 1 | C162: 2 | D162: 2 | E162: 2 | F162: 1 | G162: 31.39183561 | H162: 59.15893253 | I162: 90.19245151 | J162: 80.92021978 | K162: 115.2589616 | M162: TRUE | N162: TRUE | O162: TRUE | P162: TRUE | Q162: TRUE
A163: 162 | B163: 1 | C163: 2 | D163: 2 | E163: 2 | F163: 2 | G163: 31.39183561 | H163: 47.25339328 | I163: 90.19245151 | J163: 80.92021978 | K163: 115.2589616 | M163: TRUE | N163: TRUE | O163: TRUE | P163: TRUE | Q163: TRUE

Sheet LCOE Summary
A1: LCOE Summary
A2: When isTennessee Wind + Plains & Eastern cheapest?
A3: (Reference Case)
A4: All cases | B4: Fixed PTC Value | C4: Fixed Carbon Cost | D4: Fixed Gas Price | E4: Fixed OK Wind CF | F4: Fixed TN Wind CF | H4: Low=0, Med=1, High=2
A5: =SUM(A40:A201)/162 -> 0.8333333333 | B5: =SUM(B40:B120)/81 -> 0.6666666667 | C5: =SUM(C40:C93)/54 -> 0.6111111111 | D5: =SUM(D40:D93)/54 -> 0.7222222222 | E5: =SUM(E40:E93)/54 -> 0.7777777778 | F5: =SUM(F40:F93)/54 -> 0.8333333333 | H5: 0
B6: =SUM(B121:B201)/81 -> 1 | C6: =SUM(C94:C147)/54 -> 0.8888888889 | D6: =SUM(D94:D147)/54 -> 0.8333333333 | E6: =SUM(E94:E147)/54 -> 0.8333333333 | F6: =SUM(F94:F147)/54 -> 0.8333333333 | H6: 1
C7: =SUM(C148:C201)/54 -> 1 | D7: =SUM(D148:D201)/54 -> 0.9444444444 | E7: =SUM(E148:E201)/54 -> 0.8888888889 | F7: =SUM(F148:F201)/54 -> 0.8333333333 | H7: 2
A11: Outputs | B11: LCOE w/ Capacity Value = 0 | C11: LCOE | D11: LCOE w/o Capacity Value | E11: LCOE w/ Capacity Value | F11: Difference with LCOE
A12: Plains & Eastern Project | B12: ='All Scenarios LCOE wo CapVal'!$G$42 -> 74.27305525 | C12: ='All Scenarios LCOE Summary'!$G$42 -> 63.03577052 | D12: ='All Scenarios LCOE wo CapVal'!$G$123 -> 45.33521232 | E12: ='All Scenarios LCOE Summary'!$G$123 -> 34.09792759 | F12: =B12-C12 -> 11.23728473 | G12: =D12-E12 -> 11.23728473
A13: Tennessee Wind Project | B13: ='All Scenarios LCOE wo CapVal'!$H$42 -> 94.5317222 | C13: ='All Scenarios LCOE Summary'!$H$42 -> 84.48717666 | D13: ='All Scenarios LCOE wo CapVal'!$H$123 -> 68.66537742 | E13: ='All Scenarios LCOE Summary'!$H$123 -> 58.62083188 | F13: =B13-C13 -> 10.04454554 | G13: =D13-E13 -> 10.04454554
A14: Combined Cycle Gas | B14: ='All Scenarios LCOE wo CapVal'!$I$42 -> 87.80384965 | C14: ='All Scenarios LCOE Summary'!$I$42 -> 71.58713226 | D14: ='All Scenarios LCOE wo CapVal'!$I$123 -> 87.80384965 | E14: ='All Scenarios LCOE Summary'!$I$123 -> 71.58713226 | F14: =B14-C14 -> 16.21671739 | G14: =D14-E14 -> 16.21671739
A15: Nuclear | B15: ='All Scenarios LCOE wo CapVal'!$J$42 -> 98.18403449 | C15: ='All Scenarios LCOE Summary'!$J$42 -> 80.92021978 | D15: ='All Scenarios LCOE wo CapVal'!$J$123 -> 98.18403449 | E15: ='All Scenarios LCOE Summary'!$J$123 -> 80.92021978 | F15: =B15-C15 -> 17.26381472 | G15: =D15-E15 -> 17.26381472
A16: Utility-scale Solar (includes ITC) | B16: ='All Scenarios LCOE wo CapVal'!$K$42 -> 142.5169802 | C16: ='All Scenarios LCOE Summary'!$K$42 -> 115.2589616 | D16: ='All Scenarios LCOE wo CapVal'!$K$123 -> 142.5169802 | E16: ='All Scenarios LCOE Summary'!$K$123 -> 115.2589616 | F16: =B16-C16 -> 27.25801854 | G16: =D16-E16 -> 27.25801854
A17: Scenario
A18: Capacity Value ($k/MW-yr) | B18: 0 | C18: 95.659 | D18: 0 | E18: 95.659
A19: PTC Value ($/MWh) | B19: 0 | C19: 0 | D19: 23 | E19: 23
A20: Carbon dioxide cost (Projection Case) | B20: Med | C20: Med | D20: Med | E20: Med
A21: Natural Gas Price (% of EIA forcast) | B21: 1 | C21: 1 | D21: 1 | E21: 1
A22: OK Wind Capacity Factor (%) | B22: 0.53 | C22: 0.53 | D22: 0.53 | E22: 0.53
A23: TN Wind Capacity Factor (%) | B23: 0.3 | C23: 0.3 | D23: 0.3 | E23: 0.3
A38: Worksheet ==>
A39: All cases | B39: Fixed PTC Value | C39: Fixed Carbon Cost | D39: Fixed Gas Price | E39: Fixed OK Wind CF | F39: Fixed TN Wind CF
A40: =IF('All Scenarios LCOE Summary'!$G2<MIN('All Scenarios LCOE Summary'!$H2:$J2),1,0) -> 0 | B40: =IF('All Scenarios LCOE Summary'!$G2<MIN('All Scenarios LCOE Summary'!$H2:$J2),1,0) -> 0 | C40: =IF('All Scenarios LCOE Summary'!$C2=0,IF('All Scenarios LCOE Summary'!$G2<MIN('All Scenarios LCOE Summary'!$H2:$J2),1,0),"") -> 0 | D40: =IF('All Scenarios LCOE Summary'!$D2=0,IF('All Scenarios LCOE Summary'!$G2<MIN('All Scenarios LCOE Summary'!$H2:$J2),1,0),"") -> 0 | E40: =IF('All Scenarios LCOE Summary'!$E2=0,IF('All Scenarios LCOE Summary'!$G2<MIN('All Scenarios LCOE Summary'!$H2:$J2),1,0),"") -> 0 | F40: =IF('All Scenarios LCOE Summary'!$F2=0,IF('All Scenarios LCOE Summary'!$G2<MIN('All Scenarios LCOE Summary'!$H2:$J2),1,0),"") -> 0
A41: =IF('All Scenarios LCOE Summary'!G3<MIN('All Scenarios LCOE Summary'!H3:J3),1,0) -> 0 | B41: =IF('All Scenarios LCOE Summary'!$G3<MIN('All Scenarios LCOE Summary'!$H3:$J3),1,0) -> 0 | C41: =IF('All Scenarios LCOE Summary'!C3=0,IF('All Scenarios LCOE Summary'!$G3<MIN('All Scenarios LCOE Summary'!$H3:$J3),1,0),"") -> 0 | D41: =IF('All Scenarios LCOE Summary'!D3=0,IF('All Scenarios LCOE Summary'!$G3<MIN('All Scenarios LCOE Summary'!$H3:$J3),1,0),"") -> 0 | E41: =IF('All Scenarios LCOE Summary'!$E3=0,IF('All Scenarios LCOE Summary'!$G3<MIN('All Scenarios LCOE Summary'!$H3:$J3),1,0),"") -> 0 | F41: =IF('All Scenarios LCOE Summary'!$F5=0,IF('All Scenarios LCOE Summary'!$G5<MIN('All Scenarios LCOE Summary'!$H5:$J5),1,0),"") -> 0
A42: =IF('All Scenarios LCOE Summary'!G4<MIN('All Scenarios LCOE Summary'!H4:J4),1,0) -> 0 | B42: =IF('All Scenarios LCOE Summary'!$G4<MIN('All Scenarios LCOE Summary'!$H4:$J4),1,0) -> 0 | C42: =IF('All Scenarios LCOE Summary'!C4=0,IF('All Scenarios LCOE Summary'!$G4<MIN('All Scenarios LCOE Summary'!$H4:$J4),1,0),"") -> 0 | D42: =IF('All Scenarios LCOE Summary'!D4=0,IF('All Scenarios LCOE Summary'!$G4<MIN('All Scenarios LCOE Summary'!$H4:$J4),1,0),"") -> 0 | E42: =IF('All Scenarios LCOE Summary'!$E4=0,IF('All Scenarios LCOE Summary'!$G4<MIN('All Scenarios LCOE Summary'!$H4:$J4),1,0),"") -> 0 | F42: =IF('All Scenarios LCOE Summary'!$F8=0,IF('All Scenarios LCOE Summary'!$G8<MIN('All Scenarios LCOE Summary'!$H8:$J8),1,0),"") -> 0
A43: =IF('All Scenarios LCOE Summary'!G5<MIN('All Scenarios LCOE Summary'!H5:J5),1,0) -> 0 | B43: =IF('All Scenarios LCOE Summary'!$G5<MIN('All Scenarios LCOE Summary'!$H5:$J5),1,0) -> 0 | C43: =IF('All Scenarios LCOE Summary'!C5=0,IF('All Scenarios LCOE Summary'!$G5<MIN('All Scenarios LCOE Summary'!$H5:$J5),1,0),"") -> 0 | D43: =IF('All Scenarios LCOE Summary'!D5=0,IF('All Scenarios LCOE Summary'!$G5<MIN('All Scenarios LCOE Summary'!$H5:$J5),1,0),"") -> 0 | E43: =IF('All Scenarios LCOE Summary'!$E11=0,IF('All Scenarios LCOE Summary'!$G11<MIN('All Scenarios LCOE Summary'!$H11:$J11),1,0),"") -> 0 | F43: =IF('All Scenarios LCOE Summary'!$F11=0,IF('All Scenarios LCOE Summary'!$G11<MIN('All Scenarios LCOE Summary'!$H11:$J11),1,0),"") -> 0
A44: =IF('All Scenarios LCOE Summary'!G6<MIN('All Scenarios LCOE Summary'!H6:J6),1,0) -> 0 | B44: =IF('All Scenarios LCOE Summary'!$G6<MIN('All Scenarios LCOE Summary'!$H6:$J6),1,0) -> 0 | C44: =IF('All Scenarios LCOE Summary'!C6=0,IF('All Scenarios LCOE Summary'!$G6<MIN('All Scenarios LCOE Summary'!$H6:$J6),1,0),"") -> 0 | D44: =IF('All Scenarios LCOE Summary'!D6=0,IF('All Scenarios LCOE Summary'!$G6<MIN('All Scenarios LCOE Summary'!$H6:$J6),1,0),"") -> 0 | E44: =IF('All Scenarios LCOE Summary'!$E12=0,IF('All Scenarios LCOE Summary'!$G12<MIN('All Scenarios LCOE Summary'!$H12:$J12),1,0),"") -> 0 | F44: =IF('All Scenarios LCOE Summary'!$F14=0,IF('All Scenarios LCOE Summary'!$G14<MIN('All Scenarios LCOE Summary'!$H14:$J14),1,0),"") -> 0
A45: =IF('All Scenarios LCOE Summary'!G7<MIN('All Scenarios LCOE Summary'!H7:J7),1,0) -> 0 | B45: =IF('All Scenarios LCOE Summary'!$G7<MIN('All Scenarios LCOE Summary'!$H7:$J7),1,0) -> 0 | C45: =IF('All Scenarios LCOE Summary'!C7=0,IF('All Scenarios LCOE Summary'!$G7<MIN('All Scenarios LCOE Summary'!$H7:$J7),1,0),"") -> 0 | D45: =IF('All Scenarios LCOE Summary'!D7=0,IF('All Scenarios LCOE Summary'!$G7<MIN('All Scenarios LCOE Summary'!$H7:$J7),1,0),"") -> 0 | E45: =IF('All Scenarios LCOE Summary'!$E13=0,IF('All Scenarios LCOE Summary'!$G13<MIN('All Scenarios LCOE Summary'!$H13:$J13),1,0),"") -> 0 | F45: =IF('All Scenarios LCOE Summary'!$F17=0,IF('All Scenarios LCOE Summary'!$G17<MIN('All Scenarios LCOE Summary'!$H17:$J17),1,0),"") -> 0
A46: =IF('All Scenarios LCOE Summary'!G8<MIN('All Scenarios LCOE Summary'!H8:J8),1,0) -> 0 | B46: =IF('All Scenarios LCOE Summary'!$G8<MIN('All Scenarios LCOE Summary'!$H8:$J8),1,0) -> 0 | C46: =IF('All Scenarios LCOE Summary'!C8=0,IF('All Scenarios LCOE Summary'!$G8<MIN('All Scenarios LCOE Summary'!$H8:$J8),1,0),"") -> 0 | D46: =IF('All Scenarios LCOE Summary'!D8=0,IF('All Scenarios LCOE Summary'!$G8<MIN('All Scenarios LCOE Summary'!$H8:$J8),1,0),"") -> 0 | E46: =IF('All Scenarios LCOE Summary'!$E20=0,IF('All Scenarios LCOE Summary'!$G20<MIN('All Scenarios LCOE Summary'!$H20:$J20),1,0),"") -> 0 | F46: =IF('All Scenarios LCOE Summary'!$F20=0,IF('All Scenarios LCOE Summary'!$G20<MIN('All Scenarios LCOE Summary'!$H20:$J20),1,0),"") -> 0
A47: =IF('All Scenarios LCOE Summary'!G9<MIN('All Scenarios LCOE Summary'!H9:J9),1,0) -> 0 | B47: =IF('All Scenarios LCOE Summary'!$G9<MIN('All Scenarios LCOE Summary'!$H9:$J9),1,0) -> 0 | C47: =IF('All Scenarios LCOE Summary'!C9=0,IF('All Scenarios LCOE Summary'!$G9<MIN('All Scenarios LCOE Summary'!$H9:$J9),1,0),"") -> 0 | D47: =IF('All Scenarios LCOE Summary'!D9=0,IF('All Scenarios LCOE Summary'!$G9<MIN('All Scenarios LCOE Summary'!$H9:$J9),1,0),"") -> 0 | E47: =IF('All Scenarios LCOE Summary'!$E21=0,IF('All Scenarios LCOE Summary'!$G21<MIN('All Scenarios LCOE Summary'!$H21:$J21),1,0),"") -> 0 | F47: =IF('All Scenarios LCOE Summary'!$F23=0,IF('All Scenarios LCOE Summary'!$G23<MIN('All Scenarios LCOE Summary'!$H23:$J23),1,0),"") -> 1
A48: =IF('All Scenarios LCOE Summary'!G10<MIN('All Scenarios LCOE Summary'!H10:J10),1,0) -> 0 | B48: =IF('All Scenarios LCOE Summary'!$G10<MIN('All Scenarios LCOE Summary'!$H10:$J10),1,0) -> 0 | C48: =IF('All Scenarios LCOE Summary'!C10=0,IF('All Scenarios LCOE Summary'!$G10<MIN('All Scenarios LCOE Summary'!$H10:$J10),1,0),"") -> 0 | D48: =IF('All Scenarios LCOE Summary'!D10=0,IF('All Scenarios LCOE Summary'!$G10<MIN('All Scenarios LCOE Summary'!$H10:$J10),1,0),"") -> 0 | E48: =IF('All Scenarios LCOE Summary'!$E22=0,IF('All Scenarios LCOE Summary'!$G22<MIN('All Scenarios LCOE Summary'!$H22:$J22),1,0),"") -> 0 | F48: =IF('All Scenarios LCOE Summary'!$F26=0,IF('All Scenarios LCOE Summary'!$G26<MIN('All Scenarios LCOE Summary'!$H26:$J26),1,0),"") -> 1
A49: =IF('All Scenarios LCOE Summary'!G11<MIN('All Scenarios LCOE Summary'!H11:J11),1,0) -> 0 | B49: =IF('All Scenarios LCOE Summary'!$G11<MIN('All Scenarios LCOE Summary'!$H11:$J11),1,0) -> 0 | C49: =IF('All Scenarios LCOE Summary'!C11=0,IF('All Scenarios LCOE Summary'!$G11<MIN('All Scenarios LCOE Summary'!$H11:$J11),1,0),"") -> 0 | D49: =IF('All Scenarios LCOE Summary'!D29=0,IF('All Scenarios LCOE Summary'!$G29<MIN('All Scenarios LCOE Summary'!$H29:$J29),1,0),"") -> 0 | E49: =IF('All Scenarios LCOE Summary'!$E29=0,IF('All Scenarios LCOE Summary'!$G29<MIN('All Scenarios LCOE Summary'!$H29:$J29),1,0),"") -> 0 | F49: =IF('All Scenarios LCOE Summary'!$F29=0,IF('All Scenarios LCOE Summary'!$G29<MIN('All Scenarios LCOE Summary'!$H29:$J29),1,0),"") -> 0
A50: =IF('All Scenarios LCOE Summary'!G12<MIN('All Scenarios LCOE Summary'!H12:J12),1,0) -> 0 | B50: =IF('All Scenarios LCOE Summary'!$G12<MIN('All Scenarios LCOE Summary'!$H12:$J12),1,0) -> 0 | C50: =IF('All Scenarios LCOE Summary'!C12=0,IF('All Scenarios LCOE Summary'!$G12<MIN('All Scenarios LCOE Summary'!$H12:$J12),1,0),"") -> 0 | D50: =IF('All Scenarios LCOE Summary'!D30=0,IF('All Scenarios LCOE Summary'!$G30<MIN('All Scenarios LCOE Summary'!$H30:$J30),1,0),"") -> 0 | E50: =IF('All Scenarios LCOE Summary'!$E30=0,IF('All Scenarios LCOE Summary'!$G30<MIN('All Scenarios LCOE Summary'!$H30:$J30),1,0),"") -> 0 | F50: =IF('All Scenarios LCOE Summary'!$F32=0,IF('All Scenarios LCOE Summary'!$G32<MIN('All Scenarios LCOE Summary'!$H32:$J32),1,0),"") -> 0
A51: =IF('All Scenarios LCOE Summary'!G13<MIN('All Scenarios LCOE Summary'!H13:J13),1,0) -> 0 | B51: =IF('All Scenarios LCOE Summary'!$G13<MIN('All Scenarios LCOE Summary'!$H13:$J13),1,0) -> 0 | C51: =IF('All Scenarios LCOE Summary'!C13=0,IF('All Scenarios LCOE Summary'!$G13<MIN('All Scenarios LCOE Summary'!$H13:$J13),1,0),"") -> 0 | D51: =IF('All Scenarios LCOE Summary'!D31=0,IF('All Scenarios LCOE Summary'!$G31<MIN('All Scenarios LCOE Summary'!$H31:$J31),1,0),"") -> 0 | E51: =IF('All Scenarios LCOE Summary'!$E31=0,IF('All Scenarios LCOE Summary'!$G31<MIN('All Scenarios LCOE Summary'!$H31:$J31),1,0),"") -> 0 | F51: =IF('All Scenarios LCOE Summary'!$F35=0,IF('All Scenarios LCOE Summary'!$G35<MIN('All Scenarios LCOE Summary'!$H35:$J35),1,0),"") -> 1
A52: =IF('All Scenarios LCOE Summary'!G14<MIN('All Scenarios LCOE Summary'!H14:J14),1,0) -> 0 | B52: =IF('All Scenarios LCOE Summary'!$G14<MIN('All Scenarios LCOE Summary'!$H14:$J14),1,0) -> 0 | C52: =IF('All Scenarios LCOE Summary'!C14=0,IF('All Scenarios LCOE Summary'!$G14<MIN('All Scenarios LCOE Summary'!$H14:$J14),1,0),"") -> 0 | D52: =IF('All Scenarios LCOE Summary'!D32=0,IF('All Scenarios LCOE Summary'!$G32<MIN('All Scenarios LCOE Summary'!$H32:$J32),1,0),"") -> 0 | E52: =IF('All Scenarios LCOE Summary'!$E38=0,IF('All Scenarios LCOE Summary'!$G38<MIN('All Scenarios LCOE Summary'!$H38:$J38),1,0),"") -> 1 | F52: =IF('All Scenarios LCOE Summary'!$F38=0,IF('All Scenarios LCOE Summary'!$G38<MIN('All Scenarios LCOE Summary'!$H38:$J38),1,0),"") -> 1
A53: =IF('All Scenarios LCOE Summary'!G15<MIN('All Scenarios LCOE Summary'!H15:J15),1,0) -> 0 | B53: =IF('All Scenarios LCOE Summary'!$G15<MIN('All Scenarios LCOE Summary'!$H15:$J15),1,0) -> 0 | C53: =IF('All Scenarios LCOE Summary'!C15=0,IF('All Scenarios LCOE Summary'!$G15<MIN('All Scenarios LCOE Summary'!$H15:$J15),1,0),"") -> 0 | D53: =IF('All Scenarios LCOE Summary'!D33=0,IF('All Scenarios LCOE Summary'!$G33<MIN('All Scenarios LCOE Summary'!$H33:$J33),1,0),"") -> 0 | E53: =IF('All Scenarios LCOE Summary'!$E39=0,IF('All Scenarios LCOE Summary'!$G39<MIN('All Scenarios LCOE Summary'!$H39:$J39),1,0),"") -> 1 | F53: =IF('All Scenarios LCOE Summary'!$F41=0,IF('All Scenarios LCOE Summary'!$G41<MIN('All Scenarios LCOE Summary'!$H41:$J41),1,0),"") -> 1
A54: =IF('All Scenarios LCOE Summary'!G16<MIN('All Scenarios LCOE Summary'!H16:J16),1,0) -> 0 | B54: =IF('All Scenarios LCOE Summary'!$G16<MIN('All Scenarios LCOE Summary'!$H16:$J16),1,0) -> 0 | C54: =IF('All Scenarios LCOE Summary'!C16=0,IF('All Scenarios LCOE Summary'!$G16<MIN('All Scenarios LCOE Summary'!$H16:$J16),1,0),"") -> 0 | D54: =IF('All Scenarios LCOE Summary'!D34=0,IF('All Scenarios LCOE Summary'!$G34<MIN('All Scenarios LCOE Summary'!$H34:$J34),1,0),"") -> 0 | E54: =IF('All Scenarios LCOE Summary'!$E40=0,IF('All Scenarios LCOE Summary'!$G40<MIN('All Scenarios LCOE Summary'!$H40:$J40),1,0),"") -> 1 | F54: =IF('All Scenarios LCOE Summary'!$F44=0,IF('All Scenarios LCOE Summary'!$G44<MIN('All Scenarios LCOE Summary'!$H44:$J44),1,0),"") -> 1
A55: =IF('All Scenarios LCOE Summary'!G17<MIN('All Scenarios LCOE Summary'!H17:J17),1,0) -> 0 | B55: =IF('All Scenarios LCOE Summary'!$G17<MIN('All Scenarios LCOE Summary'!$H17:$J17),1,0) -> 0 | C55: =IF('All Scenarios LCOE Summary'!C17=0,IF('All Scenarios LCOE Summary'!$G17<MIN('All Scenarios LCOE Summary'!$H17:$J17),1,0),"") -> 0 | D55: =IF('All Scenarios LCOE Summary'!D35=0,IF('All Scenarios LCOE Summary'!$G35<MIN('All Scenarios LCOE Summary'!$H35:$J35),1,0),"") -> 1 | E55: =IF('All Scenarios LCOE Summary'!$E47=0,IF('All Scenarios LCOE Summary'!$G47<MIN('All Scenarios LCOE Summary'!$H47:$J47),1,0),"") -> 1 | F55: =IF('All Scenarios LCOE Summary'!$F47=0,IF('All Scenarios LCOE Summary'!$G47<MIN('All Scenarios LCOE Summary'!$H47:$J47),1,0),"") -> 1
A56: =IF('All Scenarios LCOE Summary'!G18<MIN('All Scenarios LCOE Summary'!H18:J18),1,0) -> 0 | B56: =IF('All Scenarios LCOE Summary'!$G18<MIN('All Scenarios LCOE Summary'!$H18:$J18),1,0) -> 0 | C56: =IF('All Scenarios LCOE Summary'!C18=0,IF('All Scenarios LCOE Summary'!$G18<MIN('All Scenarios LCOE Summary'!$H18:$J18),1,0),"") -> 0 | D56: =IF('All Scenarios LCOE Summary'!D36=0,IF('All Scenarios LCOE Summary'!$G36<MIN('All Scenarios LCOE Summary'!$H36:$J36),1,0),"") -> 1 | E56: =IF('All Scenarios LCOE Summary'!$E48=0,IF('All Scenarios LCOE Summary'!$G48<MIN('All Scenarios LCOE Summary'!$H48:$J48),1,0),"") -> 1 | F56: =IF('All Scenarios LCOE Summary'!$F50=0,IF('All Scenarios LCOE Summary'!$G50<MIN('All Scenarios LCOE Summary'!$H50:$J50),1,0),"") -> 1
A57: =IF('All Scenarios LCOE Summary'!G19<MIN('All Scenarios LCOE Summary'!H19:J19),1,0) -> 0 | B57: =IF('All Scenarios LCOE Summary'!$G19<MIN('All Scenarios LCOE Summary'!$H19:$J19),1,0) -> 0 | C57: =IF('All Scenarios LCOE Summary'!C19=0,IF('All Scenarios LCOE Summary'!$G19<MIN('All Scenarios LCOE Summary'!$H19:$J19),1,0),"") -> 0 | D57: =IF('All Scenarios LCOE Summary'!D37=0,IF('All Scenarios LCOE Summary'!$G37<MIN('All Scenarios LCOE Summary'!$H37:$J37),1,0),"") -> 1 | E57: =IF('All Scenarios LCOE Summary'!$E49=0,IF('All Scenarios LCOE Summary'!$G49<MIN('All Scenarios LCOE Summary'!$H49:$J49),1,0),"") -> 1 | F57: =IF('All Scenarios LCOE Summary'!$F53=0,IF('All Scenarios LCOE Summary'!$G53<MIN('All Scenarios LCOE Summary'!$H53:$J53),1,0),"") -> 1
A58: =IF('All Scenarios LCOE Summary'!G20<MIN('All Scenarios LCOE Summary'!H20:J20),1,0) -> 0 | B58: =IF('All Scenarios LCOE Summary'!$G20<MIN('All Scenarios LCOE Summary'!$H20:$J20),1,0) -> 0 | C58: =IF('All Scenarios LCOE Summary'!C20=0,IF('All Scenarios LCOE Summary'!$G20<MIN('All Scenarios LCOE Summary'!$H20:$J20),1,0),"") -> 0 | D58: =IF('All Scenarios LCOE Summary'!D56=0,IF('All Scenarios LCOE Summary'!$G56<MIN('All Scenarios LCOE Summary'!$H56:$J56),1,0),"") -> 1 | E58: =IF('All Scenarios LCOE Summary'!$E56=0,IF('All Scenarios LCOE Summary'!$G56<MIN('All Scenarios LCOE Summary'!$H56:$J56),1,0),"") -> 1 | F58: =IF('All Scenarios LCOE Summary'!$F56=0,IF('All Scenarios LCOE Summary'!$G56<MIN('All Scenarios LCOE Summary'!$H56:$J56),1,0),"") -> 1
A59: =IF('All Scenarios LCOE Summary'!G21<MIN('All Scenarios LCOE Summary'!H21:J21),1,0) -> 0 | B59: =IF('All Scenarios LCOE Summary'!$G21<MIN('All Scenarios LCOE Summary'!$H21:$J21),1,0) -> 0 | C59: =IF('All Scenarios LCOE Summary'!C21=0,IF('All Scenarios LCOE Summary'!$G21<MIN('All Scenarios LCOE Summary'!$H21:$J21),1,0),"") -> 0 | D59: =IF('All Scenarios LCOE Summary'!D57=0,IF('All Scenarios LCOE Summary'!$G57<MIN('All Scenarios LCOE Summary'!$H57:$J57),1,0),"") -> 1 | E59: =IF('All Scenarios LCOE Summary'!$E57=0,IF('All Scenarios LCOE Summary'!$G57<MIN('All Scenarios LCOE Summary'!$H57:$J57),1,0),"") -> 1 | F59: =IF('All Scenarios LCOE Summary'!$F59=0,IF('All Scenarios LCOE Summary'!$G59<MIN('All Scenarios LCOE Summary'!$H59:$J59),1,0),"") -> 1
A60: =IF('All Scenarios LCOE Summary'!G22<MIN('All Scenarios LCOE Summary'!H22:J22),1,0) -> 0 | B60: =IF('All Scenarios LCOE Summary'!$G22<MIN('All Scenarios LCOE Summary'!$H22:$J22),1,0) -> 0 | C60: =IF('All Scenarios LCOE Summary'!C22=0,IF('All Scenarios LCOE Summary'!$G22<MIN('All Scenarios LCOE Summary'!$H22:$J22),1,0),"") -> 0 | D60: =IF('All Scenarios LCOE Summary'!D58=0,IF('All Scenarios LCOE Summary'!$G58<MIN('All Scenarios LCOE Summary'!$H58:$J58),1,0),"") -> 1 | E60: =IF('All Scenarios LCOE Summary'!$E58=0,IF('All Scenarios LCOE Summary'!$G58<MIN('All Scenarios LCOE Summary'!$H58:$J58),1,0),"") -> 1 | F60: =IF('All Scenarios LCOE Summary'!$F62=0,IF('All Scenarios LCOE Summary'!$G62<MIN('All Scenarios LCOE Summary'!$H62:$J62),1,0),"") -> 1
A61: =IF('All Scenarios LCOE Summary'!G23<MIN('All Scenarios LCOE Summary'!H23:J23),1,0) -> 1 | B61: =IF('All Scenarios LCOE Summary'!$G23<MIN('All Scenarios LCOE Summary'!$H23:$J23),1,0) -> 1 | C61: =IF('All Scenarios LCOE Summary'!C23=0,IF('All Scenarios LCOE Summary'!$G23<MIN('All Scenarios LCOE Summary'!$H23:$J23),1,0),"") -> 1 | D61: =IF('All Scenarios LCOE Summary'!D59=0,IF('All Scenarios LCOE Summary'!$G59<MIN('All Scenarios LCOE Summary'!$H59:$J59),1,0),"") -> 1 | E61: =IF('All Scenarios LCOE Summary'!$E65=0,IF('All Scenarios LCOE Summary'!$G65<MIN('All Scenarios LCOE Summary'!$H65:$J65),1,0),"") -> 1 | F61: =IF('All Scenarios LCOE Summary'!$F65=0,IF('All Scenarios LCOE Summary'!$G65<MIN('All Scenarios LCOE Summary'!$H65:$J65),1,0),"") -> 1
A62: =IF('All Scenarios LCOE Summary'!G24<MIN('All Scenarios LCOE Summary'!H24:J24),1,0) -> 1 | B62: =IF('All Scenarios LCOE Summary'!$G24<MIN('All Scenarios LCOE Summary'!$H24:$J24),1,0) -> 1 | C62: =IF('All Scenarios LCOE Summary'!C24=0,IF('All Scenarios LCOE Summary'!$G24<MIN('All Scenarios LCOE Summary'!$H24:$J24),1,0),"") -> 1 | D62: =IF('All Scenarios LCOE Summary'!D60=0,IF('All Scenarios LCOE Summary'!$G60<MIN('All Scenarios LCOE Summary'!$H60:$J60),1,0),"") -> 1 | E62: =IF('All Scenarios LCOE Summary'!$E66=0,IF('All Scenarios LCOE Summary'!$G66<MIN('All Scenarios LCOE Summary'!$H66:$J66),1,0),"") -> 1 | F62: =IF('All Scenarios LCOE Summary'!$F68=0,IF('All Scenarios LCOE Summary'!$G68<MIN('All Scenarios LCOE Summary'!$H68:$J68),1,0),"") -> 1
A63: =IF('All Scenarios LCOE Summary'!G25<MIN('All Scenarios LCOE Summary'!H25:J25),1,0) -> 1 | B63: =IF('All Scenarios LCOE Summary'!$G25<MIN('All Scenarios LCOE Summary'!$H25:$J25),1,0) -> 1 | C63: =IF('All Scenarios LCOE Summary'!C25=0,IF('All Scenarios LCOE Summary'!$G25<MIN('All Scenarios LCOE Summary'!$H25:$J25),1,0),"") -> 1 | D63: =IF('All Scenarios LCOE Summary'!D61=0,IF('All Scenarios LCOE Summary'!$G61<MIN('All Scenarios LCOE Summary'!$H61:$J61),1,0),"") -> 1 | E63: =IF('All Scenarios LCOE Summary'!$E67=0,IF('All Scenarios LCOE Summary'!$G67<MIN('All Scenarios LCOE Summary'!$H67:$J67),1,0),"") -> 1 | F63: =IF('All Scenarios LCOE Summary'!$F71=0,IF('All Scenarios LCOE Summary'!$G71<MIN('All Scenarios LCOE Summary'!$H71:$J71),1,0),"") -> 1
A64: =IF('All Scenarios LCOE Summary'!G26<MIN('All Scenarios LCOE Summary'!H26:J26),1,0) -> 1 | B64: =IF('All Scenarios LCOE Summary'!$G26<MIN('All Scenarios LCOE Summary'!$H26:$J26),1,0) -> 1 | C64: =IF('All Scenarios LCOE Summary'!C26=0,IF('All Scenarios LCOE Summary'!$G26<MIN('All Scenarios LCOE Summary'!$H26:$J26),1,0),"") -> 1 | D64: =IF('All Scenarios LCOE Summary'!D62=0,IF('All Scenarios LCOE Summary'!$G62<MIN('All Scenarios LCOE Summary'!$H62:$J62),1,0),"") -> 1 | E64: =IF('All Scenarios LCOE Summary'!$E74=0,IF('All Scenarios LCOE Summary'!$G74<MIN('All Scenarios LCOE Summary'!$H74:$J74),1,0),"") -> 1 | F64: =IF('All Scenarios LCOE Summary'!$F74=0,IF('All Scenarios LCOE Summary'!$G74<MIN('All Scenarios LCOE Summary'!$H74:$J74),1,0),"") -> 1
A65: =IF('All Scenarios LCOE Summary'!G27<MIN('All Scenarios LCOE Summary'!H27:J27),1,0) -> 1 | B65: =IF('All Scenarios LCOE Summary'!$G27<MIN('All Scenarios LCOE Summary'!$H27:$J27),1,0) -> 1 | C65: =IF('All Scenarios LCOE Summary'!C27=0,IF('All Scenarios LCOE Summary'!$G27<MIN('All Scenarios LCOE Summary'!$H27:$J27),1,0),"") -> 1 | D65: =IF('All Scenarios LCOE Summary'!D63=0,IF('All Scenarios LCOE Summary'!$G63<MIN('All Scenarios LCOE Summary'!$H63:$J63),1,0),"") -> 1 | E65: =IF('All Scenarios LCOE Summary'!$E75=0,IF('All Scenarios LCOE Summary'!$G75<MIN('All Scenarios LCOE Summary'!$H75:$J75),1,0),"") -> 1 | F65: =IF('All Scenarios LCOE Summary'!$F77=0,IF('All Scenarios LCOE Summary'!$G77<MIN('All Scenarios LCOE Summary'!$H77:$J77),1,0),"") -> 1
A66: =IF('All Scenarios LCOE Summary'!G28<MIN('All Scenarios LCOE Summary'!H28:J28),1,0) -> 1 | B66: =IF('All Scenarios LCOE Summary'!$G28<MIN('All Scenarios LCOE Summary'!$H28:$J28),1,0) -> 1 | C66: =IF('All Scenarios LCOE Summary'!C28=0,IF('All Scenarios LCOE Summary'!$G28<MIN('All Scenarios LCOE Summary'!$H28:$J28),1,0),"") -> 1 | D66: =IF('All Scenarios LCOE Summary'!D64=0,IF('All Scenarios LCOE Summary'!$G64<MIN('All Scenarios LCOE Summary'!$H64:$J64),1,0),"") -> 1 | E66: =IF('All Scenarios LCOE Summary'!$E76=0,IF('All Scenarios LCOE Summary'!$G76<MIN('All Scenarios LCOE Summary'!$H76:$J76),1,0),"") -> 1 | F66: =IF('All Scenarios LCOE Summary'!$F80=0,IF('All Scenarios LCOE Summary'!$G80<MIN('All Scenarios LCOE Summary'!$H80:$J80),1,0),"") -> 1
A67: =IF('All Scenarios LCOE Summary'!G29<MIN('All Scenarios LCOE Summary'!H29:J29),1,0) -> 0 | B67: =IF('All Scenarios LCOE Summary'!$G29<MIN('All Scenarios LCOE Summary'!$H29:$J29),1,0) -> 0 | C67: =IF('All Scenarios LCOE Summary'!C83=0,IF('All Scenarios LCOE Summary'!$G83<MIN('All Scenarios LCOE Summary'!$H83:$J83),1,0),"") -> 1 | D67: =IF('All Scenarios LCOE Summary'!D83=0,IF('All Scenarios LCOE Summary'!$G83<MIN('All Scenarios LCOE Summary'!$H83:$J83),1,0),"") -> 1 | E67: =IF('All Scenarios LCOE Summary'!$E83=0,IF('All Scenarios LCOE Summary'!$G83<MIN('All Scenarios LCOE Summary'!$H83:$J83),1,0),"") -> 1 | F67: =IF('All Scenarios LCOE Summary'!$F83=0,IF('All Scenarios LCOE Summary'!$G83<MIN('All Scenarios LCOE Summary'!$H83:$J83),1,0),"") -> 1
A68: =IF('All Scenarios LCOE Summary'!G30<MIN('All Scenarios LCOE Summary'!H30:J30),1,0) -> 0 | B68: =IF('All Scenarios LCOE Summary'!$G30<MIN('All Scenarios LCOE Summary'!$H30:$J30),1,0) -> 0 | C68: =IF('All Scenarios LCOE Summary'!C84=0,IF('All Scenarios LCOE Summary'!$G84<MIN('All Scenarios LCOE Summary'!$H84:$J84),1,0),"") -> 1 | D68: =IF('All Scenarios LCOE Summary'!D84=0,IF('All Scenarios LCOE Summary'!$G84<MIN('All Scenarios LCOE Summary'!$H84:$J84),1,0),"") -> 1 | E68: =IF('All Scenarios LCOE Summary'!$E84=0,IF('All Scenarios LCOE Summary'!$G84<MIN('All Scenarios LCOE Summary'!$H84:$J84),1,0),"") -> 1 | F68: =IF('All Scenarios LCOE Summary'!$F86=0,IF('All Scenarios LCOE Summary'!$G86<MIN('All Scenarios LCOE Summary'!$H86:$J86),1,0),"") -> 1
A69: =IF('All Scenarios LCOE Summary'!G31<MIN('All Scenarios LCOE Summary'!H31:J31),1,0) -> 0 | B69: =IF('All Scenarios LCOE Summary'!$G31<MIN('All Scenarios LCOE Summary'!$H31:$J31),1,0) -> 0 | C69: =IF('All Scenarios LCOE Summary'!C85=0,IF('All Scenarios LCOE Summary'!$G85<MIN('All Scenarios LCOE Summary'!$H85:$J85),1,0),"") -> 1 | D69: =IF('All Scenarios LCOE Summary'!D85=0,IF('All Scenarios LCOE Summary'!$G85<MIN('All Scenarios LCOE Summary'!$H85:$J85),1,0),"") -> 1 | E69: =IF('All Scenarios LCOE Summary'!$E85=0,IF('All Scenarios LCOE Summary'!$G85<MIN('All Scenarios LCOE Summary'!$H85:$J85),1,0),"") -> 1 | F69: =IF('All Scenarios LCOE Summary'!$F89=0,IF('All Scenarios LCOE Summary'!$G89<MIN('All Scenarios LCOE Summary'!$H89:$J89),1,0),"") -> 1
A70: =IF('All Scenarios LCOE Summary'!G32<MIN('All Scenarios LCOE Summary'!H32:J32),1,0) -> 0 | B70: =IF('All Scenarios LCOE Summary'!$G32<MIN('All Scenarios LCOE Summary'!$H32:$J32),1,0) -> 0 | C70: =IF('All Scenarios LCOE Summary'!C86=0,IF('All Scenarios LCOE Summary'!$G86<MIN('All Scenarios LCOE Summary'!$H86:$J86),1,0),"") -> 1 | D70: =IF('All Scenarios LCOE Summary'!D86=0,IF('All Scenarios LCOE Summary'!$G86<MIN('All Scenarios LCOE Summary'!$H86:$J86),1,0),"") -> 1 | E70: =IF('All Scenarios LCOE Summary'!$E92=0,IF('All Scenarios LCOE Summary'!$G92<MIN('All Scenarios LCOE Summary'!$H92:$J92),1,0),"") -> 1 | F70: =IF('All Scenarios LCOE Summary'!$F92=0,IF('All Scenarios LCOE Summary'!$G92<MIN('All Scenarios LCOE Summary'!$H92:$J92),1,0),"") -> 1
A71: =IF('All Scenarios LCOE Summary'!G33<MIN('All Scenarios LCOE Summary'!H33:J33),1,0) -> 0 | B71: =IF('All Scenarios LCOE Summary'!$G33<MIN('All Scenarios LCOE Summary'!$H33:$J33),1,0) -> 0 | C71: =IF('All Scenarios LCOE Summary'!C87=0,IF('All Scenarios LCOE Summary'!$G87<MIN('All Scenarios LCOE Summary'!$H87:$J87),1,0),"") -> 1 | D71: =IF('All Scenarios LCOE Summary'!D87=0,IF('All Scenarios LCOE Summary'!$G87<MIN('All Scenarios LCOE Summary'!$H87:$J87),1,0),"") -> 1 | E71: =IF('All Scenarios LCOE Summary'!$E93=0,IF('All Scenarios LCOE Summary'!$G93<MIN('All Scenarios LCOE Summary'!$H93:$J93),1,0),"") -> 1 | F71: =IF('All Scenarios LCOE Summary'!$F95=0,IF('All Scenarios LCOE Summary'!$G95<MIN('All Scenarios LCOE Summary'!$H95:$J95),1,0),"") -> 1
A72: =IF('All Scenarios LCOE Summary'!G34<MIN('All Scenarios LCOE Summary'!H34:J34),1,0) -> 0 | B72: =IF('All Scenarios LCOE Summary'!$G34<MIN('All Scenarios LCOE Summary'!$H34:$J34),1,0) -> 0 | C72: =IF('All Scenarios LCOE Summary'!C88=0,IF('All Scenarios LCOE Summary'!$G88<MIN('All Scenarios LCOE Summary'!$H88:$J88),1,0),"") -> 1 | D72: =IF('All Scenarios LCOE Summary'!D88=0,IF('All Scenarios LCOE Summary'!$G88<MIN('All Scenarios LCOE Summary'!$H88:$J88),1,0),"") -> 1 | E72: =IF('All Scenarios LCOE Summary'!$E94=0,IF('All Scenarios LCOE Summary'!$G94<MIN('All Scenarios LCOE Summary'!$H94:$J94),1,0),"") -> 1 | F72: =IF('All Scenarios LCOE Summary'!$F98=0,IF('All Scenarios LCOE Summary'!$G98<MIN('All Scenarios LCOE Summary'!$H98:$J98),1,0),"") -> 1
A73: =IF('All Scenarios LCOE Summary'!G35<MIN('All Scenarios LCOE Summary'!H35:J35),1,0) -> 1 | B73: =IF('All Scenarios LCOE Summary'!$G35<MIN('All Scenarios LCOE Summary'!$H35:$J35),1,0) -> 1 | C73: =IF('All Scenarios LCOE Summary'!C89=0,IF('All Scenarios LCOE Summary'!$G89<MIN('All Scenarios LCOE Summary'!$H89:$J89),1,0),"") -> 1 | D73: =IF('All Scenarios LCOE Summary'!D89=0,IF('All Scenarios LCOE Summary'!$G89<MIN('All Scenarios LCOE Summary'!$H89:$J89),1,0),"") -> 1 | E73: =IF('All Scenarios LCOE Summary'!$E101=0,IF('All Scenarios LCOE Summary'!$G101<MIN('All Scenarios LCOE Summary'!$H101:$J101),1,0),"") -> 1 | F73: =IF('All Scenarios LCOE Summary'!$F101=0,IF('All Scenarios LCOE Summary'!$G101<MIN('All Scenarios LCOE Summary'!$H101:$J101),1,0),"") -> 1
A74: =IF('All Scenarios LCOE Summary'!G36<MIN('All Scenarios LCOE Summary'!H36:J36),1,0) -> 1 | B74: =IF('All Scenarios LCOE Summary'!$G36<MIN('All Scenarios LCOE Summary'!$H36:$J36),1,0) -> 1 | C74: =IF('All Scenarios LCOE Summary'!C90=0,IF('All Scenarios LCOE Summary'!$G90<MIN('All Scenarios LCOE Summary'!$H90:$J90),1,0),"") -> 1 | D74: =IF('All Scenarios LCOE Summary'!D90=0,IF('All Scenarios LCOE Summary'!$G90<MIN('All Scenarios LCOE Summary'!$H90:$J90),1,0),"") -> 1 | E74: =IF('All Scenarios LCOE Summary'!$E102=0,IF('All Scenarios LCOE Summary'!$G102<MIN('All Scenarios LCOE Summary'!$H102:$J102),1,0),"") -> 1 | F74: =IF('All Scenarios LCOE Summary'!$F104=0,IF('All Scenarios LCOE Summary'!$G104<MIN('All Scenarios LCOE Summary'!$H104:$J104),1,0),"") -> 1
A75: =IF('All Scenarios LCOE Summary'!G37<MIN('All Scenarios LCOE Summary'!H37:J37),1,0) -> 1 | B75: =IF('All Scenarios LCOE Summary'!$G37<MIN('All Scenarios LCOE Summary'!$H37:$J37),1,0) -> 1 | C75: =IF('All Scenarios LCOE Summary'!C91=0,IF('All Scenarios LCOE Summary'!$G91<MIN('All Scenarios LCOE Summary'!$H91:$J91),1,0),"") -> 1 | D75: =IF('All Scenarios LCOE Summary'!D91=0,IF('All Scenarios LCOE Summary'!$G91<MIN('All Scenarios LCOE Summary'!$H91:$J91),1,0),"") -> 1 | E75: =IF('All Scenarios LCOE Summary'!$E103=0,IF('All Scenarios LCOE Summary'!$G103<MIN('All Scenarios LCOE Summary'!$H103:$J103),1,0),"") -> 1 | F75: =IF('All Scenarios LCOE Summary'!$F107=0,IF('All Scenarios LCOE Summary'!$G107<MIN('All Scenarios LCOE Summary'!$H107:$J107),1,0),"") -> 1
A76: =IF('All Scenarios LCOE Summary'!G38<MIN('All Scenarios LCOE Summary'!H38:J38),1,0) -> 1 | B76: =IF('All Scenarios LCOE Summary'!$G38<MIN('All Scenarios LCOE Summary'!$H38:$J38),1,0) -> 1 | C76: =IF('All Scenarios LCOE Summary'!C92=0,IF('All Scenarios LCOE Summary'!$G92<MIN('All Scenarios LCOE Summary'!$H92:$J92),1,0),"") -> 1 | D76: =IF('All Scenarios LCOE Summary'!D110=0,IF('All Scenarios LCOE Summary'!$G110<MIN('All Scenarios LCOE Summary'!$H110:$J110),1,0),"") -> 1 | E76: =IF('All Scenarios LCOE Summary'!$E110=0,IF('All Scenarios LCOE Summary'!$G110<MIN('All Scenarios LCOE Summary'!$H110:$J110),1,0),"") -> 1 | F76: =IF('All Scenarios LCOE Summary'!$F110=0,IF('All Scenarios LCOE Summary'!$G110<MIN('All Scenarios LCOE Summary'!$H110:$J110),1,0),"") -> 1
A77: =IF('All Scenarios LCOE Summary'!G39<MIN('All Scenarios LCOE Summary'!H39:J39),1,0) -> 1 | B77: =IF('All Scenarios LCOE Summary'!$G39<MIN('All Scenarios LCOE Summary'!$H39:$J39),1,0) -> 1 | C77: =IF('All Scenarios LCOE Summary'!C93=0,IF('All Scenarios LCOE Summary'!$G93<MIN('All Scenarios LCOE Summary'!$H93:$J93),1,0),"") -> 1 | D77: =IF('All Scenarios LCOE Summary'!D111=0,IF('All Scenarios LCOE Summary'!$G111<MIN('All Scenarios LCOE Summary'!$H111:$J111),1,0),"") -> 1 | E77: =IF('All Scenarios LCOE Summary'!$E111=0,IF('All Scenarios LCOE Summary'!$G111<MIN('All Scenarios LCOE Summary'!$H111:$J111),1,0),"") -> 1 | F77: =IF('All Scenarios LCOE Summary'!$F113=0,IF('All Scenarios LCOE Summary'!$G113<MIN('All Scenarios LCOE Summary'!$H113:$J113),1,0),"") -> 1
A78: =IF('All Scenarios LCOE Summary'!G40<MIN('All Scenarios LCOE Summary'!H40:J40),1,0) -> 1 | B78: =IF('All Scenarios LCOE Summary'!$G40<MIN('All Scenarios LCOE Summary'!$H40:$J40),1,0) -> 1 | C78: =IF('All Scenarios LCOE Summary'!C94=0,IF('All Scenarios LCOE Summary'!$G94<MIN('All Scenarios LCOE Summary'!$H94:$J94),1,0),"") -> 1 | D78: =IF('All Scenarios LCOE Summary'!D112=0,IF('All Scenarios LCOE Summary'!$G112<MIN('All Scenarios LCOE Summary'!$H112:$J112),1,0),"") -> 1 | E78: =IF('All Scenarios LCOE Summary'!$E112=0,IF('All Scenarios LCOE Summary'!$G112<MIN('All Scenarios LCOE Summary'!$H112:$J112),1,0),"") -> 1 | F78: =IF('All Scenarios LCOE Summary'!$F116=0,IF('All Scenarios LCOE Summary'!$G116<MIN('All Scenarios LCOE Summary'!$H116:$J116),1,0),"") -> 1
A79: =IF('All Scenarios LCOE Summary'!G41<MIN('All Scenarios LCOE Summary'!H41:J41),1,0) -> 1 | B79: =IF('All Scenarios LCOE Summary'!$G41<MIN('All Scenarios LCOE Summary'!$H41:$J41),1,0) -> 1 | C79: =IF('All Scenarios LCOE Summary'!C95=0,IF('All Scenarios LCOE Summary'!$G95<MIN('All Scenarios LCOE Summary'!$H95:$J95),1,0),"") -> 1 | D79: =IF('All Scenarios LCOE Summary'!D113=0,IF('All Scenarios LCOE Summary'!$G113<MIN('All Scenarios LCOE Summary'!$H113:$J113),1,0),"") -> 1 | E79: =IF('All Scenarios LCOE Summary'!$E119=0,IF('All Scenarios LCOE Summary'!$G119<MIN('All Scenarios LCOE Summary'!$H119:$J119),1,0),"") -> 1 | F79: =IF('All Scenarios LCOE Summary'!$F119=0,IF('All Scenarios LCOE Summary'!$G119<MIN('All Scenarios LCOE Summary'!$H119:$J119),1,0),"") -> 1
A80: =IF('All Scenarios LCOE Summary'!G42<MIN('All Scenarios LCOE Summary'!H42:J42),1,0) -> 1 | B80: =IF('All Scenarios LCOE Summary'!$G42<MIN('All Scenarios LCOE Summary'!$H42:$J42),1,0) -> 1 | C80: =IF('All Scenarios LCOE Summary'!C96=0,IF('All Scenarios LCOE Summary'!$G96<MIN('All Scenarios LCOE Summary'!$H96:$J96),1,0),"") -> 1 | D80: =IF('All Scenarios LCOE Summary'!D114=0,IF('All Scenarios LCOE Summary'!$G114<MIN('All Scenarios LCOE Summary'!$H114:$J114),1,0),"") -> 1 | E80: =IF('All Scenarios LCOE Summary'!$E120=0,IF('All Scenarios LCOE Summary'!$G120<MIN('All Scenarios LCOE Summary'!$H120:$J120),1,0),"") -> 1 | F80: =IF('All Scenarios LCOE Summary'!$F122=0,IF('All Scenarios LCOE Summary'!$G122<MIN('All Scenarios LCOE Summary'!$H122:$J122),1,0),"") -> 1
A81: =IF('All Scenarios LCOE Summary'!G43<MIN('All Scenarios LCOE Summary'!H43:J43),1,0) -> 1 | B81: =IF('All Scenarios LCOE Summary'!$G43<MIN('All Scenarios LCOE Summary'!$H43:$J43),1,0) -> 1 | C81: =IF('All Scenarios LCOE Summary'!C97=0,IF('All Scenarios LCOE Summary'!$G97<MIN('All Scenarios LCOE Summary'!$H97:$J97),1,0),"") -> 1 | D81: =IF('All Scenarios LCOE Summary'!D115=0,IF('All Scenarios LCOE Summary'!$G115<MIN('All Scenarios LCOE Summary'!$H115:$J115),1,0),"") -> 1 | E81: =IF('All Scenarios LCOE Summary'!$E121=0,IF('All Scenarios LCOE Summary'!$G121<MIN('All Scenarios LCOE Summary'!$H121:$J121),1,0),"") -> 1 | F81: =IF('All Scenarios LCOE Summary'!$F125=0,IF('All Scenarios LCOE Summary'!$G125<MIN('All Scenarios LCOE Summary'!$H125:$J125),1,0),"") -> 1
A82: =IF('All Scenarios LCOE Summary'!G44<MIN('All Scenarios LCOE Summary'!H44:J44),1,0) -> 1 | B82: =IF('All Scenarios LCOE Summary'!$G44<MIN('All Scenarios LCOE Summary'!$H44:$J44),1,0) -> 1 | C82: =IF('All Scenarios LCOE Summary'!C98=0,IF('All Scenarios LCOE Summary'!$G98<MIN('All Scenarios LCOE Summary'!$H98:$J98),1,0),"") -> 1 | D82: =IF('All Scenarios LCOE Summary'!D116=0,IF('All Scenarios LCOE Summary'!$G116<MIN('All Scenarios LCOE Summary'!$H116:$J116),1,0),"") -> 1 | E82: =IF('All Scenarios LCOE Summary'!$E128=0,IF('All Scenarios LCOE Summary'!$G128<MIN('All Scenarios LCOE Summary'!$H128:$J128),1,0),"") -> 1 | F82: =IF('All Scenarios LCOE Summary'!$F128=0,IF('All Scenarios LCOE Summary'!$G128<MIN('All Scenarios LCOE Summary'!$H128:$J128),1,0),"") -> 1
A83: =IF('All Scenarios LCOE Summary'!G45<MIN('All Scenarios LCOE Summary'!H45:J45),1,0) -> 1 | B83: =IF('All Scenarios LCOE Summary'!$G45<MIN('All Scenarios LCOE Summary'!$H45:$J45),1,0) -> 1 | C83: =IF('All Scenarios LCOE Summary'!C99=0,IF('All Scenarios LCOE Summary'!$G99<MIN('All Scenarios LCOE Summary'!$H99:$J99),1,0),"") -> 1 | D83: =IF('All Scenarios LCOE Summary'!D117=0,IF('All Scenarios LCOE Summary'!$G117<MIN('All Scenarios LCOE Summary'!$H117:$J117),1,0),"") -> 1 | E83: =IF('All Scenarios LCOE Summary'!$E129=0,IF('All Scenarios LCOE Summary'!$G129<MIN('All Scenarios LCOE Summary'!$H129:$J129),1,0),"") -> 1 | F83: =IF('All Scenarios LCOE Summary'!$F131=0,IF('All Scenarios LCOE Summary'!$G131<MIN('All Scenarios LCOE Summary'!$H131:$J131),1,0),"") -> 1
A84: =IF('All Scenarios LCOE Summary'!G46<MIN('All Scenarios LCOE Summary'!H46:J46),1,0) -> 1 | B84: =IF('All Scenarios LCOE Summary'!$G46<MIN('All Scenarios LCOE Summary'!$H46:$J46),1,0) -> 1 | C84: =IF('All Scenarios LCOE Summary'!C100=0,IF('All Scenarios LCOE Summary'!$G100<MIN('All Scenarios LCOE Summary'!$H100:$J100),1,0),"") -> 1 | D84: =IF('All Scenarios LCOE Summary'!D118=0,IF('All Scenarios LCOE Summary'!$G118<MIN('All Scenarios LCOE Summary'!$H118:$J118),1,0),"") -> 1 | E84: =IF('All Scenarios LCOE Summary'!$E130=0,IF('All Scenarios LCOE Summary'!$G130<MIN('All Scenarios LCOE Summary'!$H130:$J130),1,0),"") -> 1 | F84: =IF('All Scenarios LCOE Summary'!$F134=0,IF('All Scenarios LCOE Summary'!$G134<MIN('All Scenarios LCOE Summary'!$H134:$J134),1,0),"") -> 1
A85: =IF('All Scenarios LCOE Summary'!G47<MIN('All Scenarios LCOE Summary'!H47:J47),1,0) -> 1 | B85: =IF('All Scenarios LCOE Summary'!$G47<MIN('All Scenarios LCOE Summary'!$H47:$J47),1,0) -> 1 | C85: =IF('All Scenarios LCOE Summary'!C101=0,IF('All Scenarios LCOE Summary'!$G101<MIN('All Scenarios LCOE Summary'!$H101:$J101),1,0),"") -> 1 | D85: =IF('All Scenarios LCOE Summary'!D137=0,IF('All Scenarios LCOE Summary'!$G137<MIN('All Scenarios LCOE Summary'!$H137:$J137),1,0),"") -> 1 | E85: =IF('All Scenarios LCOE Summary'!$E137=0,IF('All Scenarios LCOE Summary'!$G137<MIN('All Scenarios LCOE Summary'!$H137:$J137),1,0),"") -> 1 | F85: =IF('All Scenarios LCOE Summary'!$F137=0,IF('All Scenarios LCOE Summary'!$G137<MIN('All Scenarios LCOE Summary'!$H137:$J137),1,0),"") -> 1
A86: =IF('All Scenarios LCOE Summary'!G48<MIN('All Scenarios LCOE Summary'!H48:J48),1,0) -> 1 | B86: =IF('All Scenarios LCOE Summary'!$G48<MIN('All Scenarios LCOE Summary'!$H48:$J48),1,0) -> 1 | C86: =IF('All Scenarios LCOE Summary'!C102=0,IF('All Scenarios LCOE Summary'!$G102<MIN('All Scenarios LCOE Summary'!$H102:$J102),1,0),"") -> 1 | D86: =IF('All Scenarios LCOE Summary'!D138=0,IF('All Scenarios LCOE Summary'!$G138<MIN('All Scenarios LCOE Summary'!$H138:$J138),1,0),"") -> 1 | E86: =IF('All Scenarios LCOE Summary'!$E138=0,IF('All Scenarios LCOE Summary'!$G138<MIN('All Scenarios LCOE Summary'!$H138:$J138),1,0),"") -> 1 | F86: =IF('All Scenarios LCOE Summary'!$F140=0,IF('All Scenarios LCOE Summary'!$G140<MIN('All Scenarios LCOE Summary'!$H140:$J140),1,0),"") -> 1
A87: =IF('All Scenarios LCOE Summary'!G49<MIN('All Scenarios LCOE Summary'!H49:J49),1,0) -> 1 | B87: =IF('All Scenarios LCOE Summary'!$G49<MIN('All Scenarios LCOE Summary'!$H49:$J49),1,0) -> 1 | C87: =IF('All Scenarios LCOE Summary'!C103=0,IF('All Scenarios LCOE Summary'!$G103<MIN('All Scenarios LCOE Summary'!$H103:$J103),1,0),"") -> 1 | D87: =IF('All Scenarios LCOE Summary'!D139=0,IF('All Scenarios LCOE Summary'!$G139<MIN('All Scenarios LCOE Summary'!$H139:$J139),1,0),"") -> 1 | E87: =IF('All Scenarios LCOE Summary'!$E139=0,IF('All Scenarios LCOE Summary'!$G139<MIN('All Scenarios LCOE Summary'!$H139:$J139),1,0),"") -> 1 | F87: =IF('All Scenarios LCOE Summary'!$F143=0,IF('All Scenarios LCOE Summary'!$G143<MIN('All Scenarios LCOE Summary'!$H143:$J143),1,0),"") -> 1
A88: =IF('All Scenarios LCOE Summary'!G50<MIN('All Scenarios LCOE Summary'!H50:J50),1,0) -> 1 | B88: =IF('All Scenarios LCOE Summary'!$G50<MIN('All Scenarios LCOE Summary'!$H50:$J50),1,0) -> 1 | C88: =IF('All Scenarios LCOE Summary'!C104=0,IF('All Scenarios LCOE Summary'!$G104<MIN('All Scenarios LCOE Summary'!$H104:$J104),1,0),"") -> 1 | D88: =IF('All Scenarios LCOE Summary'!D140=0,IF('All Scenarios LCOE Summary'!$G140<MIN('All Scenarios LCOE Summary'!$H140:$J140),1,0),"") -> 1 | E88: =IF('All Scenarios LCOE Summary'!$E146=0,IF('All Scenarios LCOE Summary'!$G146<MIN('All Scenarios LCOE Summary'!$H146:$J146),1,0),"") -> 1 | F88: =IF('All Scenarios LCOE Summary'!$F146=0,IF('All Scenarios LCOE Summary'!$G146<MIN('All Scenarios LCOE Summary'!$H146:$J146),1,0),"") -> 1
A89: =IF('All Scenarios LCOE Summary'!G51<MIN('All Scenarios LCOE Summary'!H51:J51),1,0) -> 1 | B89: =IF('All Scenarios LCOE Summary'!$G51<MIN('All Scenarios LCOE Summary'!$H51:$J51),1,0) -> 1 | C89: =IF('All Scenarios LCOE Summary'!C105=0,IF('All Scenarios LCOE Summary'!$G105<MIN('All Scenarios LCOE Summary'!$H105:$J105),1,0),"") -> 1 | D89: =IF('All Scenarios LCOE Summary'!D141=0,IF('All Scenarios LCOE Summary'!$G141<MIN('All Scenarios LCOE Summary'!$H141:$J141),1,0),"") -> 1 | E89: =IF('All Scenarios LCOE Summary'!$E147=0,IF('All Scenarios LCOE Summary'!$G147<MIN('All Scenarios LCOE Summary'!$H147:$J147),1,0),"") -> 1 | F89: =IF('All Scenarios LCOE Summary'!$F149=0,IF('All Scenarios LCOE Summary'!$G149<MIN('All Scenarios LCOE Summary'!$H149:$J149),1,0),"") -> 1
A90: =IF('All Scenarios LCOE Summary'!G52<MIN('All Scenarios LCOE Summary'!H52:J52),1,0) -> 1 | B90: =IF('All Scenarios LCOE Summary'!$G52<MIN('All Scenarios LCOE Summary'!$H52:$J52),1,0) -> 1 | C90: =IF('All Scenarios LCOE Summary'!C106=0,IF('All Scenarios LCOE Summary'!$G106<MIN('All Scenarios LCOE Summary'!$H106:$J106),1,0),"") -> 1 | D90: =IF('All Scenarios LCOE Summary'!D142=0,IF('All Scenarios LCOE Summary'!$G142<MIN('All Scenarios LCOE Summary'!$H142:$J142),1,0),"") -> 1 | E90: =IF('All Scenarios LCOE Summary'!$E148=0,IF('All Scenarios LCOE Summary'!$G148<MIN('All Scenarios LCOE Summary'!$H148:$J148),1,0),"") -> 1 | F90: =IF('All Scenarios LCOE Summary'!$F152=0,IF('All Scenarios LCOE Summary'!$G152<MIN('All Scenarios LCOE Summary'!$H152:$J152),1,0),"") -> 1
A91: =IF('All Scenarios LCOE Summary'!G53<MIN('All Scenarios LCOE Summary'!H53:J53),1,0) -> 1 | B91: =IF('All Scenarios LCOE Summary'!$G53<MIN('All Scenarios LCOE Summary'!$H53:$J53),1,0) -> 1 | C91: =IF('All Scenarios LCOE Summary'!C107=0,IF('All Scenarios LCOE Summary'!$G107<MIN('All Scenarios LCOE Summary'!$H107:$J107),1,0),"") -> 1 | D91: =IF('All Scenarios LCOE Summary'!D143=0,IF('All Scenarios LCOE Summary'!$G143<MIN('All Scenarios LCOE Summary'!$H143:$J143),1,0),"") -> 1 | E91: =IF('All Scenarios LCOE Summary'!$E155=0,IF('All Scenarios LCOE Summary'!$G155<MIN('All Scenarios LCOE Summary'!$H155:$J155),1,0),"") -> 1 | F91: =IF('All Scenarios LCOE Summary'!$F155=0,IF('All Scenarios LCOE Summary'!$G155<MIN('All Scenarios LCOE Summary'!$H155:$J155),1,0),"") -> 1
A92: =IF('All Scenarios LCOE Summary'!G54<MIN('All Scenarios LCOE Summary'!H54:J54),1,0) -> 1 | B92: =IF('All Scenarios LCOE Summary'!$G54<MIN('All Scenarios LCOE Summary'!$H54:$J54),1,0) -> 1 | C92: =IF('All Scenarios LCOE Summary'!C108=0,IF('All Scenarios LCOE Summary'!$G108<MIN('All Scenarios LCOE Summary'!$H108:$J108),1,0),"") -> 1 | D92: =IF('All Scenarios LCOE Summary'!D144=0,IF('All Scenarios LCOE Summary'!$G144<MIN('All Scenarios LCOE Summary'!$H144:$J144),1,0),"") -> 1 | E92: =IF('All Scenarios LCOE Summary'!$E156=0,IF('All Scenarios LCOE Summary'!$G156<MIN('All Scenarios LCOE Summary'!$H156:$J156),1,0),"") -> 1 | F92: =IF('All Scenarios LCOE Summary'!$F158=0,IF('All Scenarios LCOE Summary'!$G158<MIN('All Scenarios LCOE Summary'!$H158:$J158),1,0),"") -> 1
A93: =IF('All Scenarios LCOE Summary'!G55<MIN('All Scenarios LCOE Summary'!H55:J55),1,0) -> 1 | B93: =IF('All Scenarios LCOE Summary'!$G55<MIN('All Scenarios LCOE Summary'!$H55:$J55),1,0) -> 1 | C93: =IF('All Scenarios LCOE Summary'!C109=0,IF('All Scenarios LCOE Summary'!$G109<MIN('All Scenarios LCOE Summary'!$H109:$J109),1,0),"") -> 1 | D93: =IF('All Scenarios LCOE Summary'!D145=0,IF('All Scenarios LCOE Summary'!$G145<MIN('All Scenarios LCOE Summary'!$H145:$J145),1,0),"") -> 1 | E93: =IF('All Scenarios LCOE Summary'!$E157=0,IF('All Scenarios LCOE Summary'!$G157<MIN('All Scenarios LCOE Summary'!$H157:$J157),1,0),"") -> 1 | F93: =IF('All Scenarios LCOE Summary'!$F161=0,IF('All Scenarios LCOE Summary'!$G161<MIN('All Scenarios LCOE Summary'!$H161:$J161),1,0),"") -> 1
A94: =IF('All Scenarios LCOE Summary'!G56<MIN('All Scenarios LCOE Summary'!H56:J56),1,0) -> 1 | B94: =IF('All Scenarios LCOE Summary'!$G56<MIN('All Scenarios LCOE Summary'!$H56:$J56),1,0) -> 1 | C94: =IF('All Scenarios LCOE Summary'!C29=1,IF('All Scenarios LCOE Summary'!$G29<MIN('All Scenarios LCOE Summary'!$H29:$J29),1,0),"") -> 0 | D94: =IF('All Scenarios LCOE Summary'!D11=1,IF('All Scenarios LCOE Summary'!$G11<MIN('All Scenarios LCOE Summary'!$H11:$J11),1,0),"") -> 0 | E94: =IF('All Scenarios LCOE Summary'!$E5=1,IF('All Scenarios LCOE Summary'!$G5<MIN('All Scenarios LCOE Summary'!$H5:$J5),1,0),"") -> 0 | F94: =IF('All Scenarios LCOE Summary'!$F3=1,IF('All Scenarios LCOE Summary'!$G3<MIN('All Scenarios LCOE Summary'!$H3:$J3),1,0),"") -> 0
A95: =IF('All Scenarios LCOE Summary'!G57<MIN('All Scenarios LCOE Summary'!H57:J57),1,0) -> 1 | B95: =IF('All Scenarios LCOE Summary'!$G57<MIN('All Scenarios LCOE Summary'!$H57:$J57),1,0) -> 1 | C95: =IF('All Scenarios LCOE Summary'!C30=1,IF('All Scenarios LCOE Summary'!$G30<MIN('All Scenarios LCOE Summary'!$H30:$J30),1,0),"") -> 0 | D95: =IF('All Scenarios LCOE Summary'!D12=1,IF('All Scenarios LCOE Summary'!$G12<MIN('All Scenarios LCOE Summary'!$H12:$J12),1,0),"") -> 0 | E95: =IF('All Scenarios LCOE Summary'!$E6=1,IF('All Scenarios LCOE Summary'!$G6<MIN('All Scenarios LCOE Summary'!$H6:$J6),1,0),"") -> 0 | F95: =IF('All Scenarios LCOE Summary'!$F6=1,IF('All Scenarios LCOE Summary'!$G6<MIN('All Scenarios LCOE Summary'!$H6:$J6),1,0),"") -> 0
A96: =IF('All Scenarios LCOE Summary'!G58<MIN('All Scenarios LCOE Summary'!H58:J58),1,0) -> 1 | B96: =IF('All Scenarios LCOE Summary'!$G58<MIN('All Scenarios LCOE Summary'!$H58:$J58),1,0) -> 1 | C96: =IF('All Scenarios LCOE Summary'!C31=1,IF('All Scenarios LCOE Summary'!$G31<MIN('All Scenarios LCOE Summary'!$H31:$J31),1,0),"") -> 0 | D96: =IF('All Scenarios LCOE Summary'!D13=1,IF('All Scenarios LCOE Summary'!$G13<MIN('All Scenarios LCOE Summary'!$H13:$J13),1,0),"") -> 0 | E96: =IF('All Scenarios LCOE Summary'!$E7=1,IF('All Scenarios LCOE Summary'!$G7<MIN('All Scenarios LCOE Summary'!$H7:$J7),1,0),"") -> 0 | F96: =IF('All Scenarios LCOE Summary'!$F9=1,IF('All Scenarios LCOE Summary'!$G9<MIN('All Scenarios LCOE Summary'!$H9:$J9),1,0),"") -> 0
A97: =IF('All Scenarios LCOE Summary'!G59<MIN('All Scenarios LCOE Summary'!H59:J59),1,0) -> 1 | B97: =IF('All Scenarios LCOE Summary'!$G59<MIN('All Scenarios LCOE Summary'!$H59:$J59),1,0) -> 1 | C97: =IF('All Scenarios LCOE Summary'!C32=1,IF('All Scenarios LCOE Summary'!$G32<MIN('All Scenarios LCOE Summary'!$H32:$J32),1,0),"") -> 0 | D97: =IF('All Scenarios LCOE Summary'!D14=1,IF('All Scenarios LCOE Summary'!$G14<MIN('All Scenarios LCOE Summary'!$H14:$J14),1,0),"") -> 0 | E97: =IF('All Scenarios LCOE Summary'!$E14=1,IF('All Scenarios LCOE Summary'!$G14<MIN('All Scenarios LCOE Summary'!$H14:$J14),1,0),"") -> 0 | F97: =IF('All Scenarios LCOE Summary'!$F12=1,IF('All Scenarios LCOE Summary'!$G12<MIN('All Scenarios LCOE Summary'!$H12:$J12),1,0),"") -> 0
A98: =IF('All Scenarios LCOE Summary'!G60<MIN('All Scenarios LCOE Summary'!H60:J60),1,0) -> 1 | B98: =IF('All Scenarios LCOE Summary'!$G60<MIN('All Scenarios LCOE Summary'!$H60:$J60),1,0) -> 1 | C98: =IF('All Scenarios LCOE Summary'!C33=1,IF('All Scenarios LCOE Summary'!$G33<MIN('All Scenarios LCOE Summary'!$H33:$J33),1,0),"") -> 0 | D98: =IF('All Scenarios LCOE Summary'!D15=1,IF('All Scenarios LCOE Summary'!$G15<MIN('All Scenarios LCOE Summary'!$H15:$J15),1,0),"") -> 0 | E98: =IF('All Scenarios LCOE Summary'!$E15=1,IF('All Scenarios LCOE Summary'!$G15<MIN('All Scenarios LCOE Summary'!$H15:$J15),1,0),"") -> 0 | F98: =IF('All Scenarios LCOE Summary'!$F15=1,IF('All Scenarios LCOE Summary'!$G15<MIN('All Scenarios LCOE Summary'!$H15:$J15),1,0),"") -> 0
A99: =IF('All Scenarios LCOE Summary'!G61<MIN('All Scenarios LCOE Summary'!H61:J61),1,0) -> 1 | B99: =IF('All Scenarios LCOE Summary'!$G61<MIN('All Scenarios LCOE Summary'!$H61:$J61),1,0) -> 1 | C99: =IF('All Scenarios LCOE Summary'!C34=1,IF('All Scenarios LCOE Summary'!$G34<MIN('All Scenarios LCOE Summary'!$H34:$J34),1,0),"") -> 0 | D99: =IF('All Scenarios LCOE Summary'!D16=1,IF('All Scenarios LCOE Summary'!$G16<MIN('All Scenarios LCOE Summary'!$H16:$J16),1,0),"") -> 0 | E99: =IF('All Scenarios LCOE Summary'!$E16=1,IF('All Scenarios LCOE Summary'!$G16<MIN('All Scenarios LCOE Summary'!$H16:$J16),1,0),"") -> 0 | F99: =IF('All Scenarios LCOE Summary'!$F18=1,IF('All Scenarios LCOE Summary'!$G18<MIN('All Scenarios LCOE Summary'!$H18:$J18),1,0),"") -> 0
A100: =IF('All Scenarios LCOE Summary'!G62<MIN('All Scenarios LCOE Summary'!H62:J62),1,0) -> 1 | B100: =IF('All Scenarios LCOE Summary'!$G62<MIN('All Scenarios LCOE Summary'!$H62:$J62),1,0) -> 1 | C100: =IF('All Scenarios LCOE Summary'!C35=1,IF('All Scenarios LCOE Summary'!$G35<MIN('All Scenarios LCOE Summary'!$H35:$J35),1,0),"") -> 1 | D100: =IF('All Scenarios LCOE Summary'!D17=1,IF('All Scenarios LCOE Summary'!$G17<MIN('All Scenarios LCOE Summary'!$H17:$J17),1,0),"") -> 0 | E100: =IF('All Scenarios LCOE Summary'!$E23=1,IF('All Scenarios LCOE Summary'!$G23<MIN('All Scenarios LCOE Summary'!$H23:$J23),1,0),"") -> 1 | F100: =IF('All Scenarios LCOE Summary'!$F21=1,IF('All Scenarios LCOE Summary'!$G21<MIN('All Scenarios LCOE Summary'!$H21:$J21),1,0),"") -> 0
A101: =IF('All Scenarios LCOE Summary'!G63<MIN('All Scenarios LCOE Summary'!H63:J63),1,0) -> 1 | B101: =IF('All Scenarios LCOE Summary'!$G63<MIN('All Scenarios LCOE Summary'!$H63:$J63),1,0) -> 1 | C101: =IF('All Scenarios LCOE Summary'!C36=1,IF('All Scenarios LCOE Summary'!$G36<MIN('All Scenarios LCOE Summary'!$H36:$J36),1,0),"") -> 1 | D101: =IF('All Scenarios LCOE Summary'!D18=1,IF('All Scenarios LCOE Summary'!$G18<MIN('All Scenarios LCOE Summary'!$H18:$J18),1,0),"") -> 0 | E101: =IF('All Scenarios LCOE Summary'!$E24=1,IF('All Scenarios LCOE Summary'!$G24<MIN('All Scenarios LCOE Summary'!$H24:$J24),1,0),"") -> 1 | F101: =IF('All Scenarios LCOE Summary'!$F24=1,IF('All Scenarios LCOE Summary'!$G24<MIN('All Scenarios LCOE Summary'!$H24:$J24),1,0),"") -> 1
A102: =IF('All Scenarios LCOE Summary'!G64<MIN('All Scenarios LCOE Summary'!H64:J64),1,0) -> 1 | B102: =IF('All Scenarios LCOE Summary'!$G64<MIN('All Scenarios LCOE Summary'!$H64:$J64),1,0) -> 1 | C102: =IF('All Scenarios LCOE Summary'!C37=1,IF('All Scenarios LCOE Summary'!$G37<MIN('All Scenarios LCOE Summary'!$H37:$J37),1,0),"") -> 1 | D102: =IF('All Scenarios LCOE Summary'!D19=1,IF('All Scenarios LCOE Summary'!$G19<MIN('All Scenarios LCOE Summary'!$H19:$J19),1,0),"") -> 0 | E102: =IF('All Scenarios LCOE Summary'!$E25=1,IF('All Scenarios LCOE Summary'!$G25<MIN('All Scenarios LCOE Summary'!$H25:$J25),1,0),"") -> 1 | F102: =IF('All Scenarios LCOE Summary'!$F27=1,IF('All Scenarios LCOE Summary'!$G27<MIN('All Scenarios LCOE Summary'!$H27:$J27),1,0),"") -> 1
A103: =IF('All Scenarios LCOE Summary'!G65<MIN('All Scenarios LCOE Summary'!H65:J65),1,0) -> 1 | B103: =IF('All Scenarios LCOE Summary'!$G65<MIN('All Scenarios LCOE Summary'!$H65:$J65),1,0) -> 1 | C103: =IF('All Scenarios LCOE Summary'!C38=1,IF('All Scenarios LCOE Summary'!$G38<MIN('All Scenarios LCOE Summary'!$H38:$J38),1,0),"") -> 1 | D103: =IF('All Scenarios LCOE Summary'!D38=1,IF('All Scenarios LCOE Summary'!$G38<MIN('All Scenarios LCOE Summary'!$H38:$J38),1,0),"") -> 1 | E103: =IF('All Scenarios LCOE Summary'!$E32=1,IF('All Scenarios LCOE Summary'!$G32<MIN('All Scenarios LCOE Summary'!$H32:$J32),1,0),"") -> 0 | F103: =IF('All Scenarios LCOE Summary'!$F30=1,IF('All Scenarios LCOE Summary'!$G30<MIN('All Scenarios LCOE Summary'!$H30:$J30),1,0),"") -> 0
A104: =IF('All Scenarios LCOE Summary'!G66<MIN('All Scenarios LCOE Summary'!H66:J66),1,0) -> 1 | B104: =IF('All Scenarios LCOE Summary'!$G66<MIN('All Scenarios LCOE Summary'!$H66:$J66),1,0) -> 1 | C104: =IF('All Scenarios LCOE Summary'!C39=1,IF('All Scenarios LCOE Summary'!$G39<MIN('All Scenarios LCOE Summary'!$H39:$J39),1,0),"") -> 1 | D104: =IF('All Scenarios LCOE Summary'!D39=1,IF('All Scenarios LCOE Summary'!$G39<MIN('All Scenarios LCOE Summary'!$H39:$J39),1,0),"") -> 1 | E104: =IF('All Scenarios LCOE Summary'!$E33=1,IF('All Scenarios LCOE Summary'!$G33<MIN('All Scenarios LCOE Summary'!$H33:$J33),1,0),"") -> 0 | F104: =IF('All Scenarios LCOE Summary'!$F33=1,IF('All Scenarios LCOE Summary'!$G33<MIN('All Scenarios LCOE Summary'!$H33:$J33),1,0),"") -> 0
A105: =IF('All Scenarios LCOE Summary'!G67<MIN('All Scenarios LCOE Summary'!H67:J67),1,0) -> 1 | B105: =IF('All Scenarios LCOE Summary'!$G67<MIN('All Scenarios LCOE Summary'!$H67:$J67),1,0) -> 1 | C105: =IF('All Scenarios LCOE Summary'!C40=1,IF('All Scenarios LCOE Summary'!$G40<MIN('All Scenarios LCOE Summary'!$H40:$J40),1,0),"") -> 1 | D105: =IF('All Scenarios LCOE Summary'!D40=1,IF('All Scenarios LCOE Summary'!$G40<MIN('All Scenarios LCOE Summary'!$H40:$J40),1,0),"") -> 1 | E105: =IF('All Scenarios LCOE Summary'!$E34=1,IF('All Scenarios LCOE Summary'!$G34<MIN('All Scenarios LCOE Summary'!$H34:$J34),1,0),"") -> 0 | F105: =IF('All Scenarios LCOE Summary'!$F36=1,IF('All Scenarios LCOE Summary'!$G36<MIN('All Scenarios LCOE Summary'!$H36:$J36),1,0),"") -> 1
A106: =IF('All Scenarios LCOE Summary'!G68<MIN('All Scenarios LCOE Summary'!H68:J68),1,0) -> 1 | B106: =IF('All Scenarios LCOE Summary'!$G68<MIN('All Scenarios LCOE Summary'!$H68:$J68),1,0) -> 1 | C106: =IF('All Scenarios LCOE Summary'!C41=1,IF('All Scenarios LCOE Summary'!$G41<MIN('All Scenarios LCOE Summary'!$H41:$J41),1,0),"") -> 1 | D106: =IF('All Scenarios LCOE Summary'!D41=1,IF('All Scenarios LCOE Summary'!$G41<MIN('All Scenarios LCOE Summary'!$H41:$J41),1,0),"") -> 1 | E106: =IF('All Scenarios LCOE Summary'!$E41=1,IF('All Scenarios LCOE Summary'!$G41<MIN('All Scenarios LCOE Summary'!$H41:$J41),1,0),"") -> 1 | F106: =IF('All Scenarios LCOE Summary'!$F39=1,IF('All Scenarios LCOE Summary'!$G39<MIN('All Scenarios LCOE Summary'!$H39:$J39),1,0),"") -> 1
A107: =IF('All Scenarios LCOE Summary'!G69<MIN('All Scenarios LCOE Summary'!H69:J69),1,0) -> 1 | B107: =IF('All Scenarios LCOE Summary'!$G69<MIN('All Scenarios LCOE Summary'!$H69:$J69),1,0) -> 1 | C107: =IF('All Scenarios LCOE Summary'!C42=1,IF('All Scenarios LCOE Summary'!$G42<MIN('All Scenarios LCOE Summary'!$H42:$J42),1,0),"") -> 1 | D107: =IF('All Scenarios LCOE Summary'!D42=1,IF('All Scenarios LCOE Summary'!$G42<MIN('All Scenarios LCOE Summary'!$H42:$J42),1,0),"") -> 1 | E107: =IF('All Scenarios LCOE Summary'!$E42=1,IF('All Scenarios LCOE Summary'!$G42<MIN('All Scenarios LCOE Summary'!$H42:$J42),1,0),"") -> 1 | F107: =IF('All Scenarios LCOE Summary'!$F42=1,IF('All Scenarios LCOE Summary'!$G42<MIN('All Scenarios LCOE Summary'!$H42:$J42),1,0),"") -> 1
A108: =IF('All Scenarios LCOE Summary'!G70<MIN('All Scenarios LCOE Summary'!H70:J70),1,0) -> 1 | B108: =IF('All Scenarios LCOE Summary'!$G70<MIN('All Scenarios LCOE Summary'!$H70:$J70),1,0) -> 1 | C108: =IF('All Scenarios LCOE Summary'!C43=1,IF('All Scenarios LCOE Summary'!$G43<MIN('All Scenarios LCOE Summary'!$H43:$J43),1,0),"") -> 1 | D108: =IF('All Scenarios LCOE Summary'!D43=1,IF('All Scenarios LCOE Summary'!$G43<MIN('All Scenarios LCOE Summary'!$H43:$J43),1,0),"") -> 1 | E108: =IF('All Scenarios LCOE Summary'!$E43=1,IF('All Scenarios LCOE Summary'!$G43<MIN('All Scenarios LCOE Summary'!$H43:$J43),1,0),"") -> 1 | F108: =IF('All Scenarios LCOE Summary'!$F45=1,IF('All Scenarios LCOE Summary'!$G45<MIN('All Scenarios LCOE Summary'!$H45:$J45),1,0),"") -> 1
A109: =IF('All Scenarios LCOE Summary'!G71<MIN('All Scenarios LCOE Summary'!H71:J71),1,0) -> 1 | B109: =IF('All Scenarios LCOE Summary'!$G71<MIN('All Scenarios LCOE Summary'!$H71:$J71),1,0) -> 1 | C109: =IF('All Scenarios LCOE Summary'!C44=1,IF('All Scenarios LCOE Summary'!$G44<MIN('All Scenarios LCOE Summary'!$H44:$J44),1,0),"") -> 1 | D109: =IF('All Scenarios LCOE Summary'!D44=1,IF('All Scenarios LCOE Summary'!$G44<MIN('All Scenarios LCOE Summary'!$H44:$J44),1,0),"") -> 1 | E109: =IF('All Scenarios LCOE Summary'!$E50=1,IF('All Scenarios LCOE Summary'!$G50<MIN('All Scenarios LCOE Summary'!$H50:$J50),1,0),"") -> 1 | F109: =IF('All Scenarios LCOE Summary'!$F48=1,IF('All Scenarios LCOE Summary'!$G48<MIN('All Scenarios LCOE Summary'!$H48:$J48),1,0),"") -> 1
A110: =IF('All Scenarios LCOE Summary'!G72<MIN('All Scenarios LCOE Summary'!H72:J72),1,0) -> 1 | B110: =IF('All Scenarios LCOE Summary'!$G72<MIN('All Scenarios LCOE Summary'!$H72:$J72),1,0) -> 1 | C110: =IF('All Scenarios LCOE Summary'!C45=1,IF('All Scenarios LCOE Summary'!$G45<MIN('All Scenarios LCOE Summary'!$H45:$J45),1,0),"") -> 1 | D110: =IF('All Scenarios LCOE Summary'!D45=1,IF('All Scenarios LCOE Summary'!$G45<MIN('All Scenarios LCOE Summary'!$H45:$J45),1,0),"") -> 1 | E110: =IF('All Scenarios LCOE Summary'!$E51=1,IF('All Scenarios LCOE Summary'!$G51<MIN('All Scenarios LCOE Summary'!$H51:$J51),1,0),"") -> 1 | F110: =IF('All Scenarios LCOE Summary'!$F51=1,IF('All Scenarios LCOE Summary'!$G51<MIN('All Scenarios LCOE Summary'!$H51:$J51),1,0),"") -> 1
A111: =IF('All Scenarios LCOE Summary'!G73<MIN('All Scenarios LCOE Summary'!H73:J73),1,0) -> 1 | B111: =IF('All Scenarios LCOE Summary'!$G73<MIN('All Scenarios LCOE Summary'!$H73:$J73),1,0) -> 1 | C111: =IF('All Scenarios LCOE Summary'!C46=1,IF('All Scenarios LCOE Summary'!$G46<MIN('All Scenarios LCOE Summary'!$H46:$J46),1,0),"") -> 1 | D111: =IF('All Scenarios LCOE Summary'!D46=1,IF('All Scenarios LCOE Summary'!$G46<MIN('All Scenarios LCOE Summary'!$H46:$J46),1,0),"") -> 1 | E111: =IF('All Scenarios LCOE Summary'!$E52=1,IF('All Scenarios LCOE Summary'!$G52<MIN('All Scenarios LCOE Summary'!$H52:$J52),1,0),"") -> 1 | F111: =IF('All Scenarios LCOE Summary'!$F54=1,IF('All Scenarios LCOE Summary'!$G54<MIN('All Scenarios LCOE Summary'!$H54:$J54),1,0),"") -> 1
A112: =IF('All Scenarios LCOE Summary'!G74<MIN('All Scenarios LCOE Summary'!H74:J74),1,0) -> 1 | B112: =IF('All Scenarios LCOE Summary'!$G74<MIN('All Scenarios LCOE Summary'!$H74:$J74),1,0) -> 1 | C112: =IF('All Scenarios LCOE Summary'!C47=1,IF('All Scenarios LCOE Summary'!$G47<MIN('All Scenarios LCOE Summary'!$H47:$J47),1,0),"") -> 1 | D112: =IF('All Scenarios LCOE Summary'!D65=1,IF('All Scenarios LCOE Summary'!$G65<MIN('All Scenarios LCOE Summary'!$H65:$J65),1,0),"") -> 1 | E112: =IF('All Scenarios LCOE Summary'!$E59=1,IF('All Scenarios LCOE Summary'!$G59<MIN('All Scenarios LCOE Summary'!$H59:$J59),1,0),"") -> 1 | F112: =IF('All Scenarios LCOE Summary'!$F57=1,IF('All Scenarios LCOE Summary'!$G57<MIN('All Scenarios LCOE Summary'!$H57:$J57),1,0),"") -> 1
A113: =IF('All Scenarios LCOE Summary'!G75<MIN('All Scenarios LCOE Summary'!H75:J75),1,0) -> 1 | B113: =IF('All Scenarios LCOE Summary'!$G75<MIN('All Scenarios LCOE Summary'!$H75:$J75),1,0) -> 1 | C113: =IF('All Scenarios LCOE Summary'!C48=1,IF('All Scenarios LCOE Summary'!$G48<MIN('All Scenarios LCOE Summary'!$H48:$J48),1,0),"") -> 1 | D113: =IF('All Scenarios LCOE Summary'!D66=1,IF('All Scenarios LCOE Summary'!$G66<MIN('All Scenarios LCOE Summary'!$H66:$J66),1,0),"") -> 1 | E113: =IF('All Scenarios LCOE Summary'!$E60=1,IF('All Scenarios LCOE Summary'!$G60<MIN('All Scenarios LCOE Summary'!$H60:$J60),1,0),"") -> 1 | F113: =IF('All Scenarios LCOE Summary'!$F60=1,IF('All Scenarios LCOE Summary'!$G60<MIN('All Scenarios LCOE Summary'!$H60:$J60),1,0),"") -> 1
A114: =IF('All Scenarios LCOE Summary'!G76<MIN('All Scenarios LCOE Summary'!H76:J76),1,0) -> 1 | B114: =IF('All Scenarios LCOE Summary'!$G76<MIN('All Scenarios LCOE Summary'!$H76:$J76),1,0) -> 1 | C114: =IF('All Scenarios LCOE Summary'!C49=1,IF('All Scenarios LCOE Summary'!$G49<MIN('All Scenarios LCOE Summary'!$H49:$J49),1,0),"") -> 1 | D114: =IF('All Scenarios LCOE Summary'!D67=1,IF('All Scenarios LCOE Summary'!$G67<MIN('All Scenarios LCOE Summary'!$H67:$J67),1,0),"") -> 1 | E114: =IF('All Scenarios LCOE Summary'!$E61=1,IF('All Scenarios LCOE Summary'!$G61<MIN('All Scenarios LCOE Summary'!$H61:$J61),1,0),"") -> 1 | F114: =IF('All Scenarios LCOE Summary'!$F63=1,IF('All Scenarios LCOE Summary'!$G63<MIN('All Scenarios LCOE Summary'!$H63:$J63),1,0),"") -> 1
A115: =IF('All Scenarios LCOE Summary'!G77<MIN('All Scenarios LCOE Summary'!H77:J77),1,0) -> 1 | B115: =IF('All Scenarios LCOE Summary'!$G77<MIN('All Scenarios LCOE Summary'!$H77:$J77),1,0) -> 1 | C115: =IF('All Scenarios LCOE Summary'!C50=1,IF('All Scenarios LCOE Summary'!$G50<MIN('All Scenarios LCOE Summary'!$H50:$J50),1,0),"") -> 1 | D115: =IF('All Scenarios LCOE Summary'!D68=1,IF('All Scenarios LCOE Summary'!$G68<MIN('All Scenarios LCOE Summary'!$H68:$J68),1,0),"") -> 1 | E115: =IF('All Scenarios LCOE Summary'!$E68=1,IF('All Scenarios LCOE Summary'!$G68<MIN('All Scenarios LCOE Summary'!$H68:$J68),1,0),"") -> 1 | F115: =IF('All Scenarios LCOE Summary'!$F66=1,IF('All Scenarios LCOE Summary'!$G66<MIN('All Scenarios LCOE Summary'!$H66:$J66),1,0),"") -> 1
A116: =IF('All Scenarios LCOE Summary'!G78<MIN('All Scenarios LCOE Summary'!H78:J78),1,0) -> 1 | B116: =IF('All Scenarios LCOE Summary'!$G78<MIN('All Scenarios LCOE Summary'!$H78:$J78),1,0) -> 1 | C116: =IF('All Scenarios LCOE Summary'!C51=1,IF('All Scenarios LCOE Summary'!$G51<MIN('All Scenarios LCOE Summary'!$H51:$J51),1,0),"") -> 1 | D116: =IF('All Scenarios LCOE Summary'!D69=1,IF('All Scenarios LCOE Summary'!$G69<MIN('All Scenarios LCOE Summary'!$H69:$J69),1,0),"") -> 1 | E116: =IF('All Scenarios LCOE Summary'!$E69=1,IF('All Scenarios LCOE Summary'!$G69<MIN('All Scenarios LCOE Summary'!$H69:$J69),1,0),"") -> 1 | F116: =IF('All Scenarios LCOE Summary'!$F69=1,IF('All Scenarios LCOE Summary'!$G69<MIN('All Scenarios LCOE Summary'!$H69:$J69),1,0),"") -> 1
A117: =IF('All Scenarios LCOE Summary'!G79<MIN('All Scenarios LCOE Summary'!H79:J79),1,0) -> 1 | B117: =IF('All Scenarios LCOE Summary'!$G79<MIN('All Scenarios LCOE Summary'!$H79:$J79),1,0) -> 1 | C117: =IF('All Scenarios LCOE Summary'!C52=1,IF('All Scenarios LCOE Summary'!$G52<MIN('All Scenarios LCOE Summary'!$H52:$J52),1,0),"") -> 1 | D117: =IF('All Scenarios LCOE Summary'!D70=1,IF('All Scenarios LCOE Summary'!$G70<MIN('All Scenarios LCOE Summary'!$H70:$J70),1,0),"") -> 1 | E117: =IF('All Scenarios LCOE Summary'!$E70=1,IF('All Scenarios LCOE Summary'!$G70<MIN('All Scenarios LCOE Summary'!$H70:$J70),1,0),"") -> 1 | F117: =IF('All Scenarios LCOE Summary'!$F72=1,IF('All Scenarios LCOE Summary'!$G72<MIN('All Scenarios LCOE Summary'!$H72:$J72),1,0),"") -> 1
A118: =IF('All Scenarios LCOE Summary'!G80<MIN('All Scenarios LCOE Summary'!H80:J80),1,0) -> 1 | B118: =IF('All Scenarios LCOE Summary'!$G80<MIN('All Scenarios LCOE Summary'!$H80:$J80),1,0) -> 1 | C118: =IF('All Scenarios LCOE Summary'!C53=1,IF('All Scenarios LCOE Summary'!$G53<MIN('All Scenarios LCOE Summary'!$H53:$J53),1,0),"") -> 1 | D118: =IF('All Scenarios LCOE Summary'!D71=1,IF('All Scenarios LCOE Summary'!$G71<MIN('All Scenarios LCOE Summary'!$H71:$J71),1,0),"") -> 1 | E118: =IF('All Scenarios LCOE Summary'!$E77=1,IF('All Scenarios LCOE Summary'!$G77<MIN('All Scenarios LCOE Summary'!$H77:$J77),1,0),"") -> 1 | F118: =IF('All Scenarios LCOE Summary'!$F75=1,IF('All Scenarios LCOE Summary'!$G75<MIN('All Scenarios LCOE Summary'!$H75:$J75),1,0),"") -> 1
A119: =IF('All Scenarios LCOE Summary'!G81<MIN('All Scenarios LCOE Summary'!H81:J81),1,0) -> 1 | B119: =IF('All Scenarios LCOE Summary'!$G81<MIN('All Scenarios LCOE Summary'!$H81:$J81),1,0) -> 1 | C119: =IF('All Scenarios LCOE Summary'!C54=1,IF('All Scenarios LCOE Summary'!$G54<MIN('All Scenarios LCOE Summary'!$H54:$J54),1,0),"") -> 1 | D119: =IF('All Scenarios LCOE Summary'!D72=1,IF('All Scenarios LCOE Summary'!$G72<MIN('All Scenarios LCOE Summary'!$H72:$J72),1,0),"") -> 1 | E119: =IF('All Scenarios LCOE Summary'!$E78=1,IF('All Scenarios LCOE Summary'!$G78<MIN('All Scenarios LCOE Summary'!$H78:$J78),1,0),"") -> 1 | F119: =IF('All Scenarios LCOE Summary'!$F78=1,IF('All Scenarios LCOE Summary'!$G78<MIN('All Scenarios LCOE Summary'!$H78:$J78),1,0),"") -> 1
A120: =IF('All Scenarios LCOE Summary'!G82<MIN('All Scenarios LCOE Summary'!H82:J82),1,0) -> 1 | B120: =IF('All Scenarios LCOE Summary'!$G82<MIN('All Scenarios LCOE Summary'!$H82:$J82),1,0) -> 1 | C120: =IF('All Scenarios LCOE Summary'!C55=1,IF('All Scenarios LCOE Summary'!$G55<MIN('All Scenarios LCOE Summary'!$H55:$J55),1,0),"") -> 1 | D120: =IF('All Scenarios LCOE Summary'!D73=1,IF('All Scenarios LCOE Summary'!$G73<MIN('All Scenarios LCOE Summary'!$H73:$J73),1,0),"") -> 1 | E120: =IF('All Scenarios LCOE Summary'!$E79=1,IF('All Scenarios LCOE Summary'!$G79<MIN('All Scenarios LCOE Summary'!$H79:$J79),1,0),"") -> 1 | F120: =IF('All Scenarios LCOE Summary'!$F81=1,IF('All Scenarios LCOE Summary'!$G81<MIN('All Scenarios LCOE Summary'!$H81:$J81),1,0),"") -> 1
A121: =IF('All Scenarios LCOE Summary'!G83<MIN('All Scenarios LCOE Summary'!H83:J83),1,0) -> 1 | B121: =IF('All Scenarios LCOE Summary'!$G83<MIN('All Scenarios LCOE Summary'!$H83:$J83),1,0) -> 1 | C121: =IF('All Scenarios LCOE Summary'!C110=1,IF('All Scenarios LCOE Summary'!$G110<MIN('All Scenarios LCOE Summary'!$H110:$J110),1,0),"") -> 1 | D121: =IF('All Scenarios LCOE Summary'!D92=1,IF('All Scenarios LCOE Summary'!$G92<MIN('All Scenarios LCOE Summary'!$H92:$J92),1,0),"") -> 1 | E121: =IF('All Scenarios LCOE Summary'!$E86=1,IF('All Scenarios LCOE Summary'!$G86<MIN('All Scenarios LCOE Summary'!$H86:$J86),1,0),"") -> 1 | F121: =IF('All Scenarios LCOE Summary'!$F84=1,IF('All Scenarios LCOE Summary'!$G84<MIN('All Scenarios LCOE Summary'!$H84:$J84),1,0),"") -> 1
A122: =IF('All Scenarios LCOE Summary'!G84<MIN('All Scenarios LCOE Summary'!H84:J84),1,0) -> 1 | B122: =IF('All Scenarios LCOE Summary'!$G84<MIN('All Scenarios LCOE Summary'!$H84:$J84),1,0) -> 1 | C122: =IF('All Scenarios LCOE Summary'!C111=1,IF('All Scenarios LCOE Summary'!$G111<MIN('All Scenarios LCOE Summary'!$H111:$J111),1,0),"") -> 1 | D122: =IF('All Scenarios LCOE Summary'!D93=1,IF('All Scenarios LCOE Summary'!$G93<MIN('All Scenarios LCOE Summary'!$H93:$J93),1,0),"") -> 1 | E122: =IF('All Scenarios LCOE Summary'!$E87=1,IF('All Scenarios LCOE Summary'!$G87<MIN('All Scenarios LCOE Summary'!$H87:$J87),1,0),"") -> 1 | F122: =IF('All Scenarios LCOE Summary'!$F87=1,IF('All Scenarios LCOE Summary'!$G87<MIN('All Scenarios LCOE Summary'!$H87:$J87),1,0),"") -> 1
A123: =IF('All Scenarios LCOE Summary'!G85<MIN('All Scenarios LCOE Summary'!H85:J85),1,0) -> 1 | B123: =IF('All Scenarios LCOE Summary'!$G85<MIN('All Scenarios LCOE Summary'!$H85:$J85),1,0) -> 1 | C123: =IF('All Scenarios LCOE Summary'!C112=1,IF('All Scenarios LCOE Summary'!$G112<MIN('All Scenarios LCOE Summary'!$H112:$J112),1,0),"") -> 1 | D123: =IF('All Scenarios LCOE Summary'!D94=1,IF('All Scenarios LCOE Summary'!$G94<MIN('All Scenarios LCOE Summary'!$H94:$J94),1,0),"") -> 1 | E123: =IF('All Scenarios LCOE Summary'!$E88=1,IF('All Scenarios LCOE Summary'!$G88<MIN('All Scenarios LCOE Summary'!$H88:$J88),1,0),"") -> 1 | F123: =IF('All Scenarios LCOE Summary'!$F90=1,IF('All Scenarios LCOE Summary'!$G90<MIN('All Scenarios LCOE Summary'!$H90:$J90),1,0),"") -> 1
A124: =IF('All Scenarios LCOE Summary'!G86<MIN('All Scenarios LCOE Summary'!H86:J86),1,0) -> 1 | B124: =IF('All Scenarios LCOE Summary'!$G86<MIN('All Scenarios LCOE Summary'!$H86:$J86),1,0) -> 1 | C124: =IF('All Scenarios LCOE Summary'!C113=1,IF('All Scenarios LCOE Summary'!$G113<MIN('All Scenarios LCOE Summary'!$H113:$J113),1,0),"") -> 1 | D124: =IF('All Scenarios LCOE Summary'!D95=1,IF('All Scenarios LCOE Summary'!$G95<MIN('All Scenarios LCOE Summary'!$H95:$J95),1,0),"") -> 1 | E124: =IF('All Scenarios LCOE Summary'!$E95=1,IF('All Scenarios LCOE Summary'!$G95<MIN('All Scenarios LCOE Summary'!$H95:$J95),1,0),"") -> 1 | F124: =IF('All Scenarios LCOE Summary'!$F93=1,IF('All Scenarios LCOE Summary'!$G93<MIN('All Scenarios LCOE Summary'!$H93:$J93),1,0),"") -> 1
A125: =IF('All Scenarios LCOE Summary'!G87<MIN('All Scenarios LCOE Summary'!H87:J87),1,0) -> 1 | B125: =IF('All Scenarios LCOE Summary'!$G87<MIN('All Scenarios LCOE Summary'!$H87:$J87),1,0) -> 1 | C125: =IF('All Scenarios LCOE Summary'!C114=1,IF('All Scenarios LCOE Summary'!$G114<MIN('All Scenarios LCOE Summary'!$H114:$J114),1,0),"") -> 1 | D125: =IF('All Scenarios LCOE Summary'!D96=1,IF('All Scenarios LCOE Summary'!$G96<MIN('All Scenarios LCOE Summary'!$H96:$J96),1,0),"") -> 1 | E125: =IF('All Scenarios LCOE Summary'!$E96=1,IF('All Scenarios LCOE Summary'!$G96<MIN('All Scenarios LCOE Summary'!$H96:$J96),1,0),"") -> 1 | F125: =IF('All Scenarios LCOE Summary'!$F96=1,IF('All Scenarios LCOE Summary'!$G96<MIN('All Scenarios LCOE Summary'!$H96:$J96),1,0),"") -> 1
A126: =IF('All Scenarios LCOE Summary'!G88<MIN('All Scenarios LCOE Summary'!H88:J88),1,0) -> 1 | B126: =IF('All Scenarios LCOE Summary'!$G88<MIN('All Scenarios LCOE Summary'!$H88:$J88),1,0) -> 1 | C126: =IF('All Scenarios LCOE Summary'!C115=1,IF('All Scenarios LCOE Summary'!$G115<MIN('All Scenarios LCOE Summary'!$H115:$J115),1,0),"") -> 1 | D126: =IF('All Scenarios LCOE Summary'!D97=1,IF('All Scenarios LCOE Summary'!$G97<MIN('All Scenarios LCOE Summary'!$H97:$J97),1,0),"") -> 1 | E126: =IF('All Scenarios LCOE Summary'!$E97=1,IF('All Scenarios LCOE Summary'!$G97<MIN('All Scenarios LCOE Summary'!$H97:$J97),1,0),"") -> 1 | F126: =IF('All Scenarios LCOE Summary'!$F99=1,IF('All Scenarios LCOE Summary'!$G99<MIN('All Scenarios LCOE Summary'!$H99:$J99),1,0),"") -> 1
A127: =IF('All Scenarios LCOE Summary'!G89<MIN('All Scenarios LCOE Summary'!H89:J89),1,0) -> 1 | B127: =IF('All Scenarios LCOE Summary'!$G89<MIN('All Scenarios LCOE Summary'!$H89:$J89),1,0) -> 1 | C127: =IF('All Scenarios LCOE Summary'!C116=1,IF('All Scenarios LCOE Summary'!$G116<MIN('All Scenarios LCOE Summary'!$H116:$J116),1,0),"") -> 1 | D127: =IF('All Scenarios LCOE Summary'!D98=1,IF('All Scenarios LCOE Summary'!$G98<MIN('All Scenarios LCOE Summary'!$H98:$J98),1,0),"") -> 1 | E127: =IF('All Scenarios LCOE Summary'!$E104=1,IF('All Scenarios LCOE Summary'!$G104<MIN('All Scenarios LCOE Summary'!$H104:$J104),1,0),"") -> 1 | F127: =IF('All Scenarios LCOE Summary'!$F102=1,IF('All Scenarios LCOE Summary'!$G102<MIN('All Scenarios LCOE Summary'!$H102:$J102),1,0),"") -> 1
A128: =IF('All Scenarios LCOE Summary'!G90<MIN('All Scenarios LCOE Summary'!H90:J90),1,0) -> 1 | B128: =IF('All Scenarios LCOE Summary'!$G90<MIN('All Scenarios LCOE Summary'!$H90:$J90),1,0) -> 1 | C128: =IF('All Scenarios LCOE Summary'!C117=1,IF('All Scenarios LCOE Summary'!$G117<MIN('All Scenarios LCOE Summary'!$H117:$J117),1,0),"") -> 1 | D128: =IF('All Scenarios LCOE Summary'!D99=1,IF('All Scenarios LCOE Summary'!$G99<MIN('All Scenarios LCOE Summary'!$H99:$J99),1,0),"") -> 1 | E128: =IF('All Scenarios LCOE Summary'!$E105=1,IF('All Scenarios LCOE Summary'!$G105<MIN('All Scenarios LCOE Summary'!$H105:$J105),1,0),"") -> 1 | F128: =IF('All Scenarios LCOE Summary'!$F105=1,IF('All Scenarios LCOE Summary'!$G105<MIN('All Scenarios LCOE Summary'!$H105:$J105),1,0),"") -> 1
A129: =IF('All Scenarios LCOE Summary'!G91<MIN('All Scenarios LCOE Summary'!H91:J91),1,0) -> 1 | B129: =IF('All Scenarios LCOE Summary'!$G91<MIN('All Scenarios LCOE Summary'!$H91:$J91),1,0) -> 1 | C129: =IF('All Scenarios LCOE Summary'!C118=1,IF('All Scenarios LCOE Summary'!$G118<MIN('All Scenarios LCOE Summary'!$H118:$J118),1,0),"") -> 1 | D129: =IF('All Scenarios LCOE Summary'!D100=1,IF('All Scenarios LCOE Summary'!$G100<MIN('All Scenarios LCOE Summary'!$H100:$J100),1,0),"") -> 1 | E129: =IF('All Scenarios LCOE Summary'!$E106=1,IF('All Scenarios LCOE Summary'!$G106<MIN('All Scenarios LCOE Summary'!$H106:$J106),1,0),"") -> 1 | F129: =IF('All Scenarios LCOE Summary'!$F108=1,IF('All Scenarios LCOE Summary'!$G108<MIN('All Scenarios LCOE Summary'!$H108:$J108),1,0),"") -> 1
A130: =IF('All Scenarios LCOE Summary'!G92<MIN('All Scenarios LCOE Summary'!H92:J92),1,0) -> 1 | B130: =IF('All Scenarios LCOE Summary'!$G92<MIN('All Scenarios LCOE Summary'!$H92:$J92),1,0) -> 1 | C130: =IF('All Scenarios LCOE Summary'!C119=1,IF('All Scenarios LCOE Summary'!$G119<MIN('All Scenarios LCOE Summary'!$H119:$J119),1,0),"") -> 1 | D130: =IF('All Scenarios LCOE Summary'!D119=1,IF('All Scenarios LCOE Summary'!$G119<MIN('All Scenarios LCOE Summary'!$H119:$J119),1,0),"") -> 1 | E130: =IF('All Scenarios LCOE Summary'!$E113=1,IF('All Scenarios LCOE Summary'!$G113<MIN('All Scenarios LCOE Summary'!$H113:$J113),1,0),"") -> 1 | F130: =IF('All Scenarios LCOE Summary'!$F111=1,IF('All Scenarios LCOE Summary'!$G111<MIN('All Scenarios LCOE Summary'!$H111:$J111),1,0),"") -> 1
A131: =IF('All Scenarios LCOE Summary'!G93<MIN('All Scenarios LCOE Summary'!H93:J93),1,0) -> 1 | B131: =IF('All Scenarios LCOE Summary'!$G93<MIN('All Scenarios LCOE Summary'!$H93:$J93),1,0) -> 1 | C131: =IF('All Scenarios LCOE Summary'!C120=1,IF('All Scenarios LCOE Summary'!$G120<MIN('All Scenarios LCOE Summary'!$H120:$J120),1,0),"") -> 1 | D131: =IF('All Scenarios LCOE Summary'!D120=1,IF('All Scenarios LCOE Summary'!$G120<MIN('All Scenarios LCOE Summary'!$H120:$J120),1,0),"") -> 1 | E131: =IF('All Scenarios LCOE Summary'!$E114=1,IF('All Scenarios LCOE Summary'!$G114<MIN('All Scenarios LCOE Summary'!$H114:$J114),1,0),"") -> 1 | F131: =IF('All Scenarios LCOE Summary'!$F114=1,IF('All Scenarios LCOE Summary'!$G114<MIN('All Scenarios LCOE Summary'!$H114:$J114),1,0),"") -> 1
A132: =IF('All Scenarios LCOE Summary'!G94<MIN('All Scenarios LCOE Summary'!H94:J94),1,0) -> 1 | B132: =IF('All Scenarios LCOE Summary'!$G94<MIN('All Scenarios LCOE Summary'!$H94:$J94),1,0) -> 1 | C132: =IF('All Scenarios LCOE Summary'!C121=1,IF('All Scenarios LCOE Summary'!$G121<MIN('All Scenarios LCOE Summary'!$H121:$J121),1,0),"") -> 1 | D132: =IF('All Scenarios LCOE Summary'!D121=1,IF('All Scenarios LCOE Summary'!$G121<MIN('All Scenarios LCOE Summary'!$H121:$J121),1,0),"") -> 1 | E132: =IF('All Scenarios LCOE Summary'!$E115=1,IF('All Scenarios LCOE Summary'!$G115<MIN('All Scenarios LCOE Summary'!$H115:$J115),1,0),"") -> 1 | F132: =IF('All Scenarios LCOE Summary'!$F117=1,IF('All Scenarios LCOE Summary'!$G117<MIN('All Scenarios LCOE Summary'!$H117:$J117),1,0),"") -> 1
A133: =IF('All Scenarios LCOE Summary'!G95<MIN('All Scenarios LCOE Summary'!H95:J95),1,0) -> 1 | B133: =IF('All Scenarios LCOE Summary'!$G95<MIN('All Scenarios LCOE Summary'!$H95:$J95),1,0) -> 1 | C133: =IF('All Scenarios LCOE Summary'!C122=1,IF('All Scenarios LCOE Summary'!$G122<MIN('All Scenarios LCOE Summary'!$H122:$J122),1,0),"") -> 1 | D133: =IF('All Scenarios LCOE Summary'!D122=1,IF('All Scenarios LCOE Summary'!$G122<MIN('All Scenarios LCOE Summary'!$H122:$J122),1,0),"") -> 1 | E133: =IF('All Scenarios LCOE Summary'!$E122=1,IF('All Scenarios LCOE Summary'!$G122<MIN('All Scenarios LCOE Summary'!$H122:$J122),1,0),"") -> 1 | F133: =IF('All Scenarios LCOE Summary'!$F120=1,IF('All Scenarios LCOE Summary'!$G120<MIN('All Scenarios LCOE Summary'!$H120:$J120),1,0),"") -> 1
A134: =IF('All Scenarios LCOE Summary'!G96<MIN('All Scenarios LCOE Summary'!H96:J96),1,0) -> 1 | B134: =IF('All Scenarios LCOE Summary'!$G96<MIN('All Scenarios LCOE Summary'!$H96:$J96),1,0) -> 1 | C134: =IF('All Scenarios LCOE Summary'!C123=1,IF('All Scenarios LCOE Summary'!$G123<MIN('All Scenarios LCOE Summary'!$H123:$J123),1,0),"") -> 1 | D134: =IF('All Scenarios LCOE Summary'!D123=1,IF('All Scenarios LCOE Summary'!$G123<MIN('All Scenarios LCOE Summary'!$H123:$J123),1,0),"") -> 1 | E134: =IF('All Scenarios LCOE Summary'!$E123=1,IF('All Scenarios LCOE Summary'!$G123<MIN('All Scenarios LCOE Summary'!$H123:$J123),1,0),"") -> 1 | F134: =IF('All Scenarios LCOE Summary'!$F123=1,IF('All Scenarios LCOE Summary'!$G123<MIN('All Scenarios LCOE Summary'!$H123:$J123),1,0),"") -> 1
A135: =IF('All Scenarios LCOE Summary'!G97<MIN('All Scenarios LCOE Summary'!H97:J97),1,0) -> 1 | B135: =IF('All Scenarios LCOE Summary'!$G97<MIN('All Scenarios LCOE Summary'!$H97:$J97),1,0) -> 1 | C135: =IF('All Scenarios LCOE Summary'!C124=1,IF('All Scenarios LCOE Summary'!$G124<MIN('All Scenarios LCOE Summary'!$H124:$J124),1,0),"") -> 1 | D135: =IF('All Scenarios LCOE Summary'!D124=1,IF('All Scenarios LCOE Summary'!$G124<MIN('All Scenarios LCOE Summary'!$H124:$J124),1,0),"") -> 1 | E135: =IF('All Scenarios LCOE Summary'!$E124=1,IF('All Scenarios LCOE Summary'!$G124<MIN('All Scenarios LCOE Summary'!$H124:$J124),1,0),"") -> 1 | F135: =IF('All Scenarios LCOE Summary'!$F126=1,IF('All Scenarios LCOE Summary'!$G126<MIN('All Scenarios LCOE Summary'!$H126:$J126),1,0),"") -> 1
A136: =IF('All Scenarios LCOE Summary'!G98<MIN('All Scenarios LCOE Summary'!H98:J98),1,0) -> 1 | B136: =IF('All Scenarios LCOE Summary'!$G98<MIN('All Scenarios LCOE Summary'!$H98:$J98),1,0) -> 1 | C136: =IF('All Scenarios LCOE Summary'!C125=1,IF('All Scenarios LCOE Summary'!$G125<MIN('All Scenarios LCOE Summary'!$H125:$J125),1,0),"") -> 1 | D136: =IF('All Scenarios LCOE Summary'!D125=1,IF('All Scenarios LCOE Summary'!$G125<MIN('All Scenarios LCOE Summary'!$H125:$J125),1,0),"") -> 1 | E136: =IF('All Scenarios LCOE Summary'!$E131=1,IF('All Scenarios LCOE Summary'!$G131<MIN('All Scenarios LCOE Summary'!$H131:$J131),1,0),"") -> 1 | F136: =IF('All Scenarios LCOE Summary'!$F129=1,IF('All Scenarios LCOE Summary'!$G129<MIN('All Scenarios LCOE Summary'!$H129:$J129),1,0),"") -> 1
A137: =IF('All Scenarios LCOE Summary'!G99<MIN('All Scenarios LCOE Summary'!H99:J99),1,0) -> 1 | B137: =IF('All Scenarios LCOE Summary'!$G99<MIN('All Scenarios LCOE Summary'!$H99:$J99),1,0) -> 1 | C137: =IF('All Scenarios LCOE Summary'!C126=1,IF('All Scenarios LCOE Summary'!$G126<MIN('All Scenarios LCOE Summary'!$H126:$J126),1,0),"") -> 1 | D137: =IF('All Scenarios LCOE Summary'!D126=1,IF('All Scenarios LCOE Summary'!$G126<MIN('All Scenarios LCOE Summary'!$H126:$J126),1,0),"") -> 1 | E137: =IF('All Scenarios LCOE Summary'!$E132=1,IF('All Scenarios LCOE Summary'!$G132<MIN('All Scenarios LCOE Summary'!$H132:$J132),1,0),"") -> 1 | F137: =IF('All Scenarios LCOE Summary'!$F132=1,IF('All Scenarios LCOE Summary'!$G132<MIN('All Scenarios LCOE Summary'!$H132:$J132),1,0),"") -> 1
A138: =IF('All Scenarios LCOE Summary'!G100<MIN('All Scenarios LCOE Summary'!H100:J100),1,0) -> 1 | B138: =IF('All Scenarios LCOE Summary'!$G100<MIN('All Scenarios LCOE Summary'!$H100:$J100),1,0) -> 1 | C138: =IF('All Scenarios LCOE Summary'!C127=1,IF('All Scenarios LCOE Summary'!$G127<MIN('All Scenarios LCOE Summary'!$H127:$J127),1,0),"") -> 1 | D138: =IF('All Scenarios LCOE Summary'!D127=1,IF('All Scenarios LCOE Summary'!$G127<MIN('All Scenarios LCOE Summary'!$H127:$J127),1,0),"") -> 1 | E138: =IF('All Scenarios LCOE Summary'!$E133=1,IF('All Scenarios LCOE Summary'!$G133<MIN('All Scenarios LCOE Summary'!$H133:$J133),1,0),"") -> 1 | F138: =IF('All Scenarios LCOE Summary'!$F135=1,IF('All Scenarios LCOE Summary'!$G135<MIN('All Scenarios LCOE Summary'!$H135:$J135),1,0),"") -> 1
A139: =IF('All Scenarios LCOE Summary'!G101<MIN('All Scenarios LCOE Summary'!H101:J101),1,0) -> 1 | B139: =IF('All Scenarios LCOE Summary'!$G101<MIN('All Scenarios LCOE Summary'!$H101:$J101),1,0) -> 1 | C139: =IF('All Scenarios LCOE Summary'!C128=1,IF('All Scenarios LCOE Summary'!$G128<MIN('All Scenarios LCOE Summary'!$H128:$J128),1,0),"") -> 1 | D139: =IF('All Scenarios LCOE Summary'!D146=1,IF('All Scenarios LCOE Summary'!$G146<MIN('All Scenarios LCOE Summary'!$H146:$J146),1,0),"") -> 1 | E139: =IF('All Scenarios LCOE Summary'!$E140=1,IF('All Scenarios LCOE Summary'!$G140<MIN('All Scenarios LCOE Summary'!$H140:$J140),1,0),"") -> 1 | F139: =IF('All Scenarios LCOE Summary'!$F138=1,IF('All Scenarios LCOE Summary'!$G138<MIN('All Scenarios LCOE Summary'!$H138:$J138),1,0),"") -> 1
A140: =IF('All Scenarios LCOE Summary'!G102<MIN('All Scenarios LCOE Summary'!H102:J102),1,0) -> 1 | B140: =IF('All Scenarios LCOE Summary'!$G102<MIN('All Scenarios LCOE Summary'!$H102:$J102),1,0) -> 1 | C140: =IF('All Scenarios LCOE Summary'!C129=1,IF('All Scenarios LCOE Summary'!$G129<MIN('All Scenarios LCOE Summary'!$H129:$J129),1,0),"") -> 1 | D140: =IF('All Scenarios LCOE Summary'!D147=1,IF('All Scenarios LCOE Summary'!$G147<MIN('All Scenarios LCOE Summary'!$H147:$J147),1,0),"") -> 1 | E140: =IF('All Scenarios LCOE Summary'!$E141=1,IF('All Scenarios LCOE Summary'!$G141<MIN('All Scenarios LCOE Summary'!$H141:$J141),1,0),"") -> 1 | F140: =IF('All Scenarios LCOE Summary'!$F141=1,IF('All Scenarios LCOE Summary'!$G141<MIN('All Scenarios LCOE Summary'!$H141:$J141),1,0),"") -> 1
A141: =IF('All Scenarios LCOE Summary'!G103<MIN('All Scenarios LCOE Summary'!H103:J103),1,0) -> 1 | B141: =IF('All Scenarios LCOE Summary'!$G103<MIN('All Scenarios LCOE Summary'!$H103:$J103),1,0) -> 1 | C141: =IF('All Scenarios LCOE Summary'!C130=1,IF('All Scenarios LCOE Summary'!$G130<MIN('All Scenarios LCOE Summary'!$H130:$J130),1,0),"") -> 1 | D141: =IF('All Scenarios LCOE Summary'!D148=1,IF('All Scenarios LCOE Summary'!$G148<MIN('All Scenarios LCOE Summary'!$H148:$J148),1,0),"") -> 1 | E141: =IF('All Scenarios LCOE Summary'!$E142=1,IF('All Scenarios LCOE Summary'!$G142<MIN('All Scenarios LCOE Summary'!$H142:$J142),1,0),"") -> 1 | F141: =IF('All Scenarios LCOE Summary'!$F144=1,IF('All Scenarios LCOE Summary'!$G144<MIN('All Scenarios LCOE Summary'!$H144:$J144),1,0),"") -> 1
A142: =IF('All Scenarios LCOE Summary'!G104<MIN('All Scenarios LCOE Summary'!H104:J104),1,0) -> 1 | B142: =IF('All Scenarios LCOE Summary'!$G104<MIN('All Scenarios LCOE Summary'!$H104:$J104),1,0) -> 1 | C142: =IF('All Scenarios LCOE Summary'!C131=1,IF('All Scenarios LCOE Summary'!$G131<MIN('All Scenarios LCOE Summary'!$H131:$J131),1,0),"") -> 1 | D142: =IF('All Scenarios LCOE Summary'!D149=1,IF('All Scenarios LCOE Summary'!$G149<MIN('All Scenarios LCOE Summary'!$H149:$J149),1,0),"") -> 1 | E142: =IF('All Scenarios LCOE Summary'!$E149=1,IF('All Scenarios LCOE Summary'!$G149<MIN('All Scenarios LCOE Summary'!$H149:$J149),1,0),"") -> 1 | F142: =IF('All Scenarios LCOE Summary'!$F147=1,IF('All Scenarios LCOE Summary'!$G147<MIN('All Scenarios LCOE Summary'!$H147:$J147),1,0),"") -> 1
A143: =IF('All Scenarios LCOE Summary'!G105<MIN('All Scenarios LCOE Summary'!H105:J105),1,0) -> 1 | B143: =IF('All Scenarios LCOE Summary'!$G105<MIN('All Scenarios LCOE Summary'!$H105:$J105),1,0) -> 1 | C143: =IF('All Scenarios LCOE Summary'!C132=1,IF('All Scenarios LCOE Summary'!$G132<MIN('All Scenarios LCOE Summary'!$H132:$J132),1,0),"") -> 1 | D143: =IF('All Scenarios LCOE Summary'!D150=1,IF('All Scenarios LCOE Summary'!$G150<MIN('All Scenarios LCOE Summary'!$H150:$J150),1,0),"") -> 1 | E143: =IF('All Scenarios LCOE Summary'!$E150=1,IF('All Scenarios LCOE Summary'!$G150<MIN('All Scenarios LCOE Summary'!$H150:$J150),1,0),"") -> 1 | F143: =IF('All Scenarios LCOE Summary'!$F150=1,IF('All Scenarios LCOE Summary'!$G150<MIN('All Scenarios LCOE Summary'!$H150:$J150),1,0),"") -> 1
A144: =IF('All Scenarios LCOE Summary'!G106<MIN('All Scenarios LCOE Summary'!H106:J106),1,0) -> 1 | B144: =IF('All Scenarios LCOE Summary'!$G106<MIN('All Scenarios LCOE Summary'!$H106:$J106),1,0) -> 1 | C144: =IF('All Scenarios LCOE Summary'!C133=1,IF('All Scenarios LCOE Summary'!$G133<MIN('All Scenarios LCOE Summary'!$H133:$J133),1,0),"") -> 1 | D144: =IF('All Scenarios LCOE Summary'!D151=1,IF('All Scenarios LCOE Summary'!$G151<MIN('All Scenarios LCOE Summary'!$H151:$J151),1,0),"") -> 1 | E144: =IF('All Scenarios LCOE Summary'!$E151=1,IF('All Scenarios LCOE Summary'!$G151<MIN('All Scenarios LCOE Summary'!$H151:$J151),1,0),"") -> 1 | F144: =IF('All Scenarios LCOE Summary'!$F153=1,IF('All Scenarios LCOE Summary'!$G153<MIN('All Scenarios LCOE Summary'!$H153:$J153),1,0),"") -> 1
A145: =IF('All Scenarios LCOE Summary'!G107<MIN('All Scenarios LCOE Summary'!H107:J107),1,0) -> 1 | B145: =IF('All Scenarios LCOE Summary'!$G107<MIN('All Scenarios LCOE Summary'!$H107:$J107),1,0) -> 1 | C145: =IF('All Scenarios LCOE Summary'!C134=1,IF('All Scenarios LCOE Summary'!$G134<MIN('All Scenarios LCOE Summary'!$H134:$J134),1,0),"") -> 1 | D145: =IF('All Scenarios LCOE Summary'!D152=1,IF('All Scenarios LCOE Summary'!$G152<MIN('All Scenarios LCOE Summary'!$H152:$J152),1,0),"") -> 1 | E145: =IF('All Scenarios LCOE Summary'!$E158=1,IF('All Scenarios LCOE Summary'!$G158<MIN('All Scenarios LCOE Summary'!$H158:$J158),1,0),"") -> 1 | F145: =IF('All Scenarios LCOE Summary'!$F156=1,IF('All Scenarios LCOE Summary'!$G156<MIN('All Scenarios LCOE Summary'!$H156:$J156),1,0),"") -> 1
A146: =IF('All Scenarios LCOE Summary'!G108<MIN('All Scenarios LCOE Summary'!H108:J108),1,0) -> 1 | B146: =IF('All Scenarios LCOE Summary'!$G108<MIN('All Scenarios LCOE Summary'!$H108:$J108),1,0) -> 1 | C146: =IF('All Scenarios LCOE Summary'!C135=1,IF('All Scenarios LCOE Summary'!$G135<MIN('All Scenarios LCOE Summary'!$H135:$J135),1,0),"") -> 1 | D146: =IF('All Scenarios LCOE Summary'!D153=1,IF('All Scenarios LCOE Summary'!$G153<MIN('All Scenarios LCOE Summary'!$H153:$J153),1,0),"") -> 1 | E146: =IF('All Scenarios LCOE Summary'!$E159=1,IF('All Scenarios LCOE Summary'!$G159<MIN('All Scenarios LCOE Summary'!$H159:$J159),1,0),"") -> 1 | F146: =IF('All Scenarios LCOE Summary'!$F159=1,IF('All Scenarios LCOE Summary'!$G159<MIN('All Scenarios LCOE Summary'!$H159:$J159),1,0),"") -> 1
A147: =IF('All Scenarios LCOE Summary'!G109<MIN('All Scenarios LCOE Summary'!H109:J109),1,0) -> 1 | B147: =IF('All Scenarios LCOE Summary'!$G109<MIN('All Scenarios LCOE Summary'!$H109:$J109),1,0) -> 1 | C147: =IF('All Scenarios LCOE Summary'!C136=1,IF('All Scenarios LCOE Summary'!$G136<MIN('All Scenarios LCOE Summary'!$H136:$J136),1,0),"") -> 1 | D147: =IF('All Scenarios LCOE Summary'!D154=1,IF('All Scenarios LCOE Summary'!$G154<MIN('All Scenarios LCOE Summary'!$H154:$J154),1,0),"") -> 1 | E147: =IF('All Scenarios LCOE Summary'!$E160=1,IF('All Scenarios LCOE Summary'!$G160<MIN('All Scenarios LCOE Summary'!$H160:$J160),1,0),"") -> 1 | F147: =IF('All Scenarios LCOE Summary'!$F162=1,IF('All Scenarios LCOE Summary'!$G162<MIN('All Scenarios LCOE Summary'!$H162:$J162),1,0),"") -> 1
A148: =IF('All Scenarios LCOE Summary'!G110<MIN('All Scenarios LCOE Summary'!H110:J110),1,0) -> 1 | B148: =IF('All Scenarios LCOE Summary'!$G110<MIN('All Scenarios LCOE Summary'!$H110:$J110),1,0) -> 1 | C148: =IF('All Scenarios LCOE Summary'!C56=2,IF('All Scenarios LCOE Summary'!$G56<MIN('All Scenarios LCOE Summary'!$H56:$J56),1,0),"") -> 1 | D148: =IF('All Scenarios LCOE Summary'!$D20=2,IF('All Scenarios LCOE Summary'!$G20<MIN('All Scenarios LCOE Summary'!$H20:$J20),1,0),"") -> 0 | E148: =IF('All Scenarios LCOE Summary'!$E8=2,IF('All Scenarios LCOE Summary'!$G8<MIN('All Scenarios LCOE Summary'!$H8:$J8),1,0),"") -> 0 | F148: =IF('All Scenarios LCOE Summary'!$F4=2,IF('All Scenarios LCOE Summary'!$G4<MIN('All Scenarios LCOE Summary'!$H4:$J4),1,0),"") -> 0
A149: =IF('All Scenarios LCOE Summary'!G111<MIN('All Scenarios LCOE Summary'!H111:J111),1,0) -> 1 | B149: =IF('All Scenarios LCOE Summary'!$G111<MIN('All Scenarios LCOE Summary'!$H111:$J111),1,0) -> 1 | C149: =IF('All Scenarios LCOE Summary'!C57=2,IF('All Scenarios LCOE Summary'!$G57<MIN('All Scenarios LCOE Summary'!$H57:$J57),1,0),"") -> 1 | D149: =IF('All Scenarios LCOE Summary'!$D21=2,IF('All Scenarios LCOE Summary'!$G21<MIN('All Scenarios LCOE Summary'!$H21:$J21),1,0),"") -> 0 | E149: =IF('All Scenarios LCOE Summary'!$E9=2,IF('All Scenarios LCOE Summary'!$G9<MIN('All Scenarios LCOE Summary'!$H9:$J9),1,0),"") -> 0 | F149: =IF('All Scenarios LCOE Summary'!$F7=2,IF('All Scenarios LCOE Summary'!$G7<MIN('All Scenarios LCOE Summary'!$H7:$J7),1,0),"") -> 0
A150: =IF('All Scenarios LCOE Summary'!G112<MIN('All Scenarios LCOE Summary'!H112:J112),1,0) -> 1 | B150: =IF('All Scenarios LCOE Summary'!$G112<MIN('All Scenarios LCOE Summary'!$H112:$J112),1,0) -> 1 | C150: =IF('All Scenarios LCOE Summary'!C58=2,IF('All Scenarios LCOE Summary'!$G58<MIN('All Scenarios LCOE Summary'!$H58:$J58),1,0),"") -> 1 | D150: =IF('All Scenarios LCOE Summary'!$D22=2,IF('All Scenarios LCOE Summary'!$G22<MIN('All Scenarios LCOE Summary'!$H22:$J22),1,0),"") -> 0 | E150: =IF('All Scenarios LCOE Summary'!$E10=2,IF('All Scenarios LCOE Summary'!$G10<MIN('All Scenarios LCOE Summary'!$H10:$J10),1,0),"") -> 0 | F150: =IF('All Scenarios LCOE Summary'!$F10=2,IF('All Scenarios LCOE Summary'!$G10<MIN('All Scenarios LCOE Summary'!$H10:$J10),1,0),"") -> 0
A151: =IF('All Scenarios LCOE Summary'!G113<MIN('All Scenarios LCOE Summary'!H113:J113),1,0) -> 1 | B151: =IF('All Scenarios LCOE Summary'!$G113<MIN('All Scenarios LCOE Summary'!$H113:$J113),1,0) -> 1 | C151: =IF('All Scenarios LCOE Summary'!C59=2,IF('All Scenarios LCOE Summary'!$G59<MIN('All Scenarios LCOE Summary'!$H59:$J59),1,0),"") -> 1 | D151: =IF('All Scenarios LCOE Summary'!$D23=2,IF('All Scenarios LCOE Summary'!$G23<MIN('All Scenarios LCOE Summary'!$H23:$J23),1,0),"") -> 1 | E151: =IF('All Scenarios LCOE Summary'!$E17=2,IF('All Scenarios LCOE Summary'!$G17<MIN('All Scenarios LCOE Summary'!$H17:$J17),1,0),"") -> 0 | F151: =IF('All Scenarios LCOE Summary'!$F13=2,IF('All Scenarios LCOE Summary'!$G13<MIN('All Scenarios LCOE Summary'!$H13:$J13),1,0),"") -> 0
A152: =IF('All Scenarios LCOE Summary'!G114<MIN('All Scenarios LCOE Summary'!H114:J114),1,0) -> 1 | B152: =IF('All Scenarios LCOE Summary'!$G114<MIN('All Scenarios LCOE Summary'!$H114:$J114),1,0) -> 1 | C152: =IF('All Scenarios LCOE Summary'!C60=2,IF('All Scenarios LCOE Summary'!$G60<MIN('All Scenarios LCOE Summary'!$H60:$J60),1,0),"") -> 1 | D152: =IF('All Scenarios LCOE Summary'!$D24=2,IF('All Scenarios LCOE Summary'!$G24<MIN('All Scenarios LCOE Summary'!$H24:$J24),1,0),"") -> 1 | E152: =IF('All Scenarios LCOE Summary'!$E18=2,IF('All Scenarios LCOE Summary'!$G18<MIN('All Scenarios LCOE Summary'!$H18:$J18),1,0),"") -> 0 | F152: =IF('All Scenarios LCOE Summary'!$F16=2,IF('All Scenarios LCOE Summary'!$G16<MIN('All Scenarios LCOE Summary'!$H16:$J16),1,0),"") -> 0
A153: =IF('All Scenarios LCOE Summary'!G115<MIN('All Scenarios LCOE Summary'!H115:J115),1,0) -> 1 | B153: =IF('All Scenarios LCOE Summary'!$G115<MIN('All Scenarios LCOE Summary'!$H115:$J115),1,0) -> 1 | C153: =IF('All Scenarios LCOE Summary'!C61=2,IF('All Scenarios LCOE Summary'!$G61<MIN('All Scenarios LCOE Summary'!$H61:$J61),1,0),"") -> 1 | D153: =IF('All Scenarios LCOE Summary'!$D25=2,IF('All Scenarios LCOE Summary'!$G25<MIN('All Scenarios LCOE Summary'!$H25:$J25),1,0),"") -> 1 | E153: =IF('All Scenarios LCOE Summary'!$E19=2,IF('All Scenarios LCOE Summary'!$G19<MIN('All Scenarios LCOE Summary'!$H19:$J19),1,0),"") -> 0 | F153: =IF('All Scenarios LCOE Summary'!$F19=2,IF('All Scenarios LCOE Summary'!$G19<MIN('All Scenarios LCOE Summary'!$H19:$J19),1,0),"") -> 0
A154: =IF('All Scenarios LCOE Summary'!G116<MIN('All Scenarios LCOE Summary'!H116:J116),1,0) -> 1 | B154: =IF('All Scenarios LCOE Summary'!$G116<MIN('All Scenarios LCOE Summary'!$H116:$J116),1,0) -> 1 | C154: =IF('All Scenarios LCOE Summary'!C62=2,IF('All Scenarios LCOE Summary'!$G62<MIN('All Scenarios LCOE Summary'!$H62:$J62),1,0),"") -> 1 | D154: =IF('All Scenarios LCOE Summary'!$D26=2,IF('All Scenarios LCOE Summary'!$G26<MIN('All Scenarios LCOE Summary'!$H26:$J26),1,0),"") -> 1 | E154: =IF('All Scenarios LCOE Summary'!$E26=2,IF('All Scenarios LCOE Summary'!$G26<MIN('All Scenarios LCOE Summary'!$H26:$J26),1,0),"") -> 1 | F154: =IF('All Scenarios LCOE Summary'!$F22=2,IF('All Scenarios LCOE Summary'!$G22<MIN('All Scenarios LCOE Summary'!$H22:$J22),1,0),"") -> 0
A155: =IF('All Scenarios LCOE Summary'!G117<MIN('All Scenarios LCOE Summary'!H117:J117),1,0) -> 1 | B155: =IF('All Scenarios LCOE Summary'!$G117<MIN('All Scenarios LCOE Summary'!$H117:$J117),1,0) -> 1 | C155: =IF('All Scenarios LCOE Summary'!C63=2,IF('All Scenarios LCOE Summary'!$G63<MIN('All Scenarios LCOE Summary'!$H63:$J63),1,0),"") -> 1 | D155: =IF('All Scenarios LCOE Summary'!$D27=2,IF('All Scenarios LCOE Summary'!$G27<MIN('All Scenarios LCOE Summary'!$H27:$J27),1,0),"") -> 1 | E155: =IF('All Scenarios LCOE Summary'!$E27=2,IF('All Scenarios LCOE Summary'!$G27<MIN('All Scenarios LCOE Summary'!$H27:$J27),1,0),"") -> 1 | F155: =IF('All Scenarios LCOE Summary'!$F25=2,IF('All Scenarios LCOE Summary'!$G25<MIN('All Scenarios LCOE Summary'!$H25:$J25),1,0),"") -> 1
A156: =IF('All Scenarios LCOE Summary'!G118<MIN('All Scenarios LCOE Summary'!H118:J118),1,0) -> 1 | B156: =IF('All Scenarios LCOE Summary'!$G118<MIN('All Scenarios LCOE Summary'!$H118:$J118),1,0) -> 1 | C156: =IF('All Scenarios LCOE Summary'!C64=2,IF('All Scenarios LCOE Summary'!$G64<MIN('All Scenarios LCOE Summary'!$H64:$J64),1,0),"") -> 1 | D156: =IF('All Scenarios LCOE Summary'!$D28=2,IF('All Scenarios LCOE Summary'!$G28<MIN('All Scenarios LCOE Summary'!$H28:$J28),1,0),"") -> 1 | E156: =IF('All Scenarios LCOE Summary'!$E28=2,IF('All Scenarios LCOE Summary'!$G28<MIN('All Scenarios LCOE Summary'!$H28:$J28),1,0),"") -> 1 | F156: =IF('All Scenarios LCOE Summary'!$F28=2,IF('All Scenarios LCOE Summary'!$G28<MIN('All Scenarios LCOE Summary'!$H28:$J28),1,0),"") -> 1
A157: =IF('All Scenarios LCOE Summary'!G119<MIN('All Scenarios LCOE Summary'!H119:J119),1,0) -> 1 | B157: =IF('All Scenarios LCOE Summary'!$G119<MIN('All Scenarios LCOE Summary'!$H119:$J119),1,0) -> 1 | C157: =IF('All Scenarios LCOE Summary'!C65=2,IF('All Scenarios LCOE Summary'!$G65<MIN('All Scenarios LCOE Summary'!$H65:$J65),1,0),"") -> 1 | D157: =IF('All Scenarios LCOE Summary'!$D47=2,IF('All Scenarios LCOE Summary'!$G47<MIN('All Scenarios LCOE Summary'!$H47:$J47),1,0),"") -> 1 | E157: =IF('All Scenarios LCOE Summary'!$E35=2,IF('All Scenarios LCOE Summary'!$G35<MIN('All Scenarios LCOE Summary'!$H35:$J35),1,0),"") -> 1 | F157: =IF('All Scenarios LCOE Summary'!$F31=2,IF('All Scenarios LCOE Summary'!$G31<MIN('All Scenarios LCOE Summary'!$H31:$J31),1,0),"") -> 0
A158: =IF('All Scenarios LCOE Summary'!G120<MIN('All Scenarios LCOE Summary'!H120:J120),1,0) -> 1 | B158: =IF('All Scenarios LCOE Summary'!$G120<MIN('All Scenarios LCOE Summary'!$H120:$J120),1,0) -> 1 | C158: =IF('All Scenarios LCOE Summary'!C66=2,IF('All Scenarios LCOE Summary'!$G66<MIN('All Scenarios LCOE Summary'!$H66:$J66),1,0),"") -> 1 | D158: =IF('All Scenarios LCOE Summary'!$D48=2,IF('All Scenarios LCOE Summary'!$G48<MIN('All Scenarios LCOE Summary'!$H48:$J48),1,0),"") -> 1 | E158: =IF('All Scenarios LCOE Summary'!$E36=2,IF('All Scenarios LCOE Summary'!$G36<MIN('All Scenarios LCOE Summary'!$H36:$J36),1,0),"") -> 1 | F158: =IF('All Scenarios LCOE Summary'!$F34=2,IF('All Scenarios LCOE Summary'!$G34<MIN('All Scenarios LCOE Summary'!$H34:$J34),1,0),"") -> 0
A159: =IF('All Scenarios LCOE Summary'!G121<MIN('All Scenarios LCOE Summary'!H121:J121),1,0) -> 1 | B159: =IF('All Scenarios LCOE Summary'!$G121<MIN('All Scenarios LCOE Summary'!$H121:$J121),1,0) -> 1 | C159: =IF('All Scenarios LCOE Summary'!C67=2,IF('All Scenarios LCOE Summary'!$G67<MIN('All Scenarios LCOE Summary'!$H67:$J67),1,0),"") -> 1 | D159: =IF('All Scenarios LCOE Summary'!$D49=2,IF('All Scenarios LCOE Summary'!$G49<MIN('All Scenarios LCOE Summary'!$H49:$J49),1,0),"") -> 1 | E159: =IF('All Scenarios LCOE Summary'!$E37=2,IF('All Scenarios LCOE Summary'!$G37<MIN('All Scenarios LCOE Summary'!$H37:$J37),1,0),"") -> 1 | F159: =IF('All Scenarios LCOE Summary'!$F37=2,IF('All Scenarios LCOE Summary'!$G37<MIN('All Scenarios LCOE Summary'!$H37:$J37),1,0),"") -> 1
A160: =IF('All Scenarios LCOE Summary'!G122<MIN('All Scenarios LCOE Summary'!H122:J122),1,0) -> 1 | B160: =IF('All Scenarios LCOE Summary'!$G122<MIN('All Scenarios LCOE Summary'!$H122:$J122),1,0) -> 1 | C160: =IF('All Scenarios LCOE Summary'!C68=2,IF('All Scenarios LCOE Summary'!$G68<MIN('All Scenarios LCOE Summary'!$H68:$J68),1,0),"") -> 1 | D160: =IF('All Scenarios LCOE Summary'!$D50=2,IF('All Scenarios LCOE Summary'!$G50<MIN('All Scenarios LCOE Summary'!$H50:$J50),1,0),"") -> 1 | E160: =IF('All Scenarios LCOE Summary'!$E44=2,IF('All Scenarios LCOE Summary'!$G44<MIN('All Scenarios LCOE Summary'!$H44:$J44),1,0),"") -> 1 | F160: =IF('All Scenarios LCOE Summary'!$F40=2,IF('All Scenarios LCOE Summary'!$G40<MIN('All Scenarios LCOE Summary'!$H40:$J40),1,0),"") -> 1
A161: =IF('All Scenarios LCOE Summary'!G123<MIN('All Scenarios LCOE Summary'!H123:J123),1,0) -> 1 | B161: =IF('All Scenarios LCOE Summary'!$G123<MIN('All Scenarios LCOE Summary'!$H123:$J123),1,0) -> 1 | C161: =IF('All Scenarios LCOE Summary'!C69=2,IF('All Scenarios LCOE Summary'!$G69<MIN('All Scenarios LCOE Summary'!$H69:$J69),1,0),"") -> 1 | D161: =IF('All Scenarios LCOE Summary'!$D51=2,IF('All Scenarios LCOE Summary'!$G51<MIN('All Scenarios LCOE Summary'!$H51:$J51),1,0),"") -> 1 | E161: =IF('All Scenarios LCOE Summary'!$E45=2,IF('All Scenarios LCOE Summary'!$G45<MIN('All Scenarios LCOE Summary'!$H45:$J45),1,0),"") -> 1 | F161: =IF('All Scenarios LCOE Summary'!$F43=2,IF('All Scenarios LCOE Summary'!$G43<MIN('All Scenarios LCOE Summary'!$H43:$J43),1,0),"") -> 1
A162: =IF('All Scenarios LCOE Summary'!G124<MIN('All Scenarios LCOE Summary'!H124:J124),1,0) -> 1 | B162: =IF('All Scenarios LCOE Summary'!$G124<MIN('All Scenarios LCOE Summary'!$H124:$J124),1,0) -> 1 | C162: =IF('All Scenarios LCOE Summary'!C70=2,IF('All Scenarios LCOE Summary'!$G70<MIN('All Scenarios LCOE Summary'!$H70:$J70),1,0),"") -> 1 | D162: =IF('All Scenarios LCOE Summary'!$D52=2,IF('All Scenarios LCOE Summary'!$G52<MIN('All Scenarios LCOE Summary'!$H52:$J52),1,0),"") -> 1 | E162: =IF('All Scenarios LCOE Summary'!$E46=2,IF('All Scenarios LCOE Summary'!$G46<MIN('All Scenarios LCOE Summary'!$H46:$J46),1,0),"") -> 1 | F162: =IF('All Scenarios LCOE Summary'!$F46=2,IF('All Scenarios LCOE Summary'!$G46<MIN('All Scenarios LCOE Summary'!$H46:$J46),1,0),"") -> 1
A163: =IF('All Scenarios LCOE Summary'!G125<MIN('All Scenarios LCOE Summary'!H125:J125),1,0) -> 1 | B163: =IF('All Scenarios LCOE Summary'!$G125<MIN('All Scenarios LCOE Summary'!$H125:$J125),1,0) -> 1 | C163: =IF('All Scenarios LCOE Summary'!C71=2,IF('All Scenarios LCOE Summary'!$G71<MIN('All Scenarios LCOE Summary'!$H71:$J71),1,0),"") -> 1 | D163: =IF('All Scenarios LCOE Summary'!$D53=2,IF('All Scenarios LCOE Summary'!$G53<MIN('All Scenarios LCOE Summary'!$H53:$J53),1,0),"") -> 1 | E163: =IF('All Scenarios LCOE Summary'!$E53=2,IF('All Scenarios LCOE Summary'!$G53<MIN('All Scenarios LCOE Summary'!$H53:$J53),1,0),"") -> 1 | F163: =IF('All Scenarios LCOE Summary'!$F49=2,IF('All Scenarios LCOE Summary'!$G49<MIN('All Scenarios LCOE Summary'!$H49:$J49),1,0),"") -> 1
A164: =IF('All Scenarios LCOE Summary'!G126<MIN('All Scenarios LCOE Summary'!H126:J126),1,0) -> 1 | B164: =IF('All Scenarios LCOE Summary'!$G126<MIN('All Scenarios LCOE Summary'!$H126:$J126),1,0) -> 1 | C164: =IF('All Scenarios LCOE Summary'!C72=2,IF('All Scenarios LCOE Summary'!$G72<MIN('All Scenarios LCOE Summary'!$H72:$J72),1,0),"") -> 1 | D164: =IF('All Scenarios LCOE Summary'!$D54=2,IF('All Scenarios LCOE Summary'!$G54<MIN('All Scenarios LCOE Summary'!$H54:$J54),1,0),"") -> 1 | E164: =IF('All Scenarios LCOE Summary'!$E54=2,IF('All Scenarios LCOE Summary'!$G54<MIN('All Scenarios LCOE Summary'!$H54:$J54),1,0),"") -> 1 | F164: =IF('All Scenarios LCOE Summary'!$F52=2,IF('All Scenarios LCOE Summary'!$G52<MIN('All Scenarios LCOE Summary'!$H52:$J52),1,0),"") -> 1
A165: =IF('All Scenarios LCOE Summary'!G127<MIN('All Scenarios LCOE Summary'!H127:J127),1,0) -> 1 | B165: =IF('All Scenarios LCOE Summary'!$G127<MIN('All Scenarios LCOE Summary'!$H127:$J127),1,0) -> 1 | C165: =IF('All Scenarios LCOE Summary'!C73=2,IF('All Scenarios LCOE Summary'!$G73<MIN('All Scenarios LCOE Summary'!$H73:$J73),1,0),"") -> 1 | D165: =IF('All Scenarios LCOE Summary'!$D55=2,IF('All Scenarios LCOE Summary'!$G55<MIN('All Scenarios LCOE Summary'!$H55:$J55),1,0),"") -> 1 | E165: =IF('All Scenarios LCOE Summary'!$E55=2,IF('All Scenarios LCOE Summary'!$G55<MIN('All Scenarios LCOE Summary'!$H55:$J55),1,0),"") -> 1 | F165: =IF('All Scenarios LCOE Summary'!$F55=2,IF('All Scenarios LCOE Summary'!$G55<MIN('All Scenarios LCOE Summary'!$H55:$J55),1,0),"") -> 1
A166: =IF('All Scenarios LCOE Summary'!G128<MIN('All Scenarios LCOE Summary'!H128:J128),1,0) -> 1 | B166: =IF('All Scenarios LCOE Summary'!$G128<MIN('All Scenarios LCOE Summary'!$H128:$J128),1,0) -> 1 | C166: =IF('All Scenarios LCOE Summary'!C74=2,IF('All Scenarios LCOE Summary'!$G74<MIN('All Scenarios LCOE Summary'!$H74:$J74),1,0),"") -> 1 | D166: =IF('All Scenarios LCOE Summary'!$D74=2,IF('All Scenarios LCOE Summary'!$G74<MIN('All Scenarios LCOE Summary'!$H74:$J74),1,0),"") -> 1 | E166: =IF('All Scenarios LCOE Summary'!$E62=2,IF('All Scenarios LCOE Summary'!$G62<MIN('All Scenarios LCOE Summary'!$H62:$J62),1,0),"") -> 1 | F166: =IF('All Scenarios LCOE Summary'!$F58=2,IF('All Scenarios LCOE Summary'!$G58<MIN('All Scenarios LCOE Summary'!$H58:$J58),1,0),"") -> 1
A167: =IF('All Scenarios LCOE Summary'!G129<MIN('All Scenarios LCOE Summary'!H129:J129),1,0) -> 1 | B167: =IF('All Scenarios LCOE Summary'!$G129<MIN('All Scenarios LCOE Summary'!$H129:$J129),1,0) -> 1 | C167: =IF('All Scenarios LCOE Summary'!C75=2,IF('All Scenarios LCOE Summary'!$G75<MIN('All Scenarios LCOE Summary'!$H75:$J75),1,0),"") -> 1 | D167: =IF('All Scenarios LCOE Summary'!$D75=2,IF('All Scenarios LCOE Summary'!$G75<MIN('All Scenarios LCOE Summary'!$H75:$J75),1,0),"") -> 1 | E167: =IF('All Scenarios LCOE Summary'!$E63=2,IF('All Scenarios LCOE Summary'!$G63<MIN('All Scenarios LCOE Summary'!$H63:$J63),1,0),"") -> 1 | F167: =IF('All Scenarios LCOE Summary'!$F61=2,IF('All Scenarios LCOE Summary'!$G61<MIN('All Scenarios LCOE Summary'!$H61:$J61),1,0),"") -> 1
A168: =IF('All Scenarios LCOE Summary'!G130<MIN('All Scenarios LCOE Summary'!H130:J130),1,0) -> 1 | B168: =IF('All Scenarios LCOE Summary'!$G130<MIN('All Scenarios LCOE Summary'!$H130:$J130),1,0) -> 1 | C168: =IF('All Scenarios LCOE Summary'!C76=2,IF('All Scenarios LCOE Summary'!$G76<MIN('All Scenarios LCOE Summary'!$H76:$J76),1,0),"") -> 1 | D168: =IF('All Scenarios LCOE Summary'!$D76=2,IF('All Scenarios LCOE Summary'!$G76<MIN('All Scenarios LCOE Summary'!$H76:$J76),1,0),"") -> 1 | E168: =IF('All Scenarios LCOE Summary'!$E64=2,IF('All Scenarios LCOE Summary'!$G64<MIN('All Scenarios LCOE Summary'!$H64:$J64),1,0),"") -> 1 | F168: =IF('All Scenarios LCOE Summary'!$F64=2,IF('All Scenarios LCOE Summary'!$G64<MIN('All Scenarios LCOE Summary'!$H64:$J64),1,0),"") -> 1
A169: =IF('All Scenarios LCOE Summary'!G131<MIN('All Scenarios LCOE Summary'!H131:J131),1,0) -> 1 | B169: =IF('All Scenarios LCOE Summary'!$G131<MIN('All Scenarios LCOE Summary'!$H131:$J131),1,0) -> 1 | C169: =IF('All Scenarios LCOE Summary'!C77=2,IF('All Scenarios LCOE Summary'!$G77<MIN('All Scenarios LCOE Summary'!$H77:$J77),1,0),"") -> 1 | D169: =IF('All Scenarios LCOE Summary'!$D77=2,IF('All Scenarios LCOE Summary'!$G77<MIN('All Scenarios LCOE Summary'!$H77:$J77),1,0),"") -> 1 | E169: =IF('All Scenarios LCOE Summary'!$E71=2,IF('All Scenarios LCOE Summary'!$G71<MIN('All Scenarios LCOE Summary'!$H71:$J71),1,0),"") -> 1 | F169: =IF('All Scenarios LCOE Summary'!$F67=2,IF('All Scenarios LCOE Summary'!$G67<MIN('All Scenarios LCOE Summary'!$H67:$J67),1,0),"") -> 1
A170: =IF('All Scenarios LCOE Summary'!G132<MIN('All Scenarios LCOE Summary'!H132:J132),1,0) -> 1 | B170: =IF('All Scenarios LCOE Summary'!$G132<MIN('All Scenarios LCOE Summary'!$H132:$J132),1,0) -> 1 | C170: =IF('All Scenarios LCOE Summary'!C78=2,IF('All Scenarios LCOE Summary'!$G78<MIN('All Scenarios LCOE Summary'!$H78:$J78),1,0),"") -> 1 | D170: =IF('All Scenarios LCOE Summary'!$D78=2,IF('All Scenarios LCOE Summary'!$G78<MIN('All Scenarios LCOE Summary'!$H78:$J78),1,0),"") -> 1 | E170: =IF('All Scenarios LCOE Summary'!$E72=2,IF('All Scenarios LCOE Summary'!$G72<MIN('All Scenarios LCOE Summary'!$H72:$J72),1,0),"") -> 1 | F170: =IF('All Scenarios LCOE Summary'!$F70=2,IF('All Scenarios LCOE Summary'!$G70<MIN('All Scenarios LCOE Summary'!$H70:$J70),1,0),"") -> 1
A171: =IF('All Scenarios LCOE Summary'!G133<MIN('All Scenarios LCOE Summary'!H133:J133),1,0) -> 1 | B171: =IF('All Scenarios LCOE Summary'!$G133<MIN('All Scenarios LCOE Summary'!$H133:$J133),1,0) -> 1 | C171: =IF('All Scenarios LCOE Summary'!C79=2,IF('All Scenarios LCOE Summary'!$G79<MIN('All Scenarios LCOE Summary'!$H79:$J79),1,0),"") -> 1 | D171: =IF('All Scenarios LCOE Summary'!$D79=2,IF('All Scenarios LCOE Summary'!$G79<MIN('All Scenarios LCOE Summary'!$H79:$J79),1,0),"") -> 1 | E171: =IF('All Scenarios LCOE Summary'!$E73=2,IF('All Scenarios LCOE Summary'!$G73<MIN('All Scenarios LCOE Summary'!$H73:$J73),1,0),"") -> 1 | F171: =IF('All Scenarios LCOE Summary'!$F73=2,IF('All Scenarios LCOE Summary'!$G73<MIN('All Scenarios LCOE Summary'!$H73:$J73),1,0),"") -> 1
A172: =IF('All Scenarios LCOE Summary'!G134<MIN('All Scenarios LCOE Summary'!H134:J134),1,0) -> 1 | B172: =IF('All Scenarios LCOE Summary'!$G134<MIN('All Scenarios LCOE Summary'!$H134:$J134),1,0) -> 1 | C172: =IF('All Scenarios LCOE Summary'!C80=2,IF('All Scenarios LCOE Summary'!$G80<MIN('All Scenarios LCOE Summary'!$H80:$J80),1,0),"") -> 1 | D172: =IF('All Scenarios LCOE Summary'!$D80=2,IF('All Scenarios LCOE Summary'!$G80<MIN('All Scenarios LCOE Summary'!$H80:$J80),1,0),"") -> 1 | E172: =IF('All Scenarios LCOE Summary'!$E80=2,IF('All Scenarios LCOE Summary'!$G80<MIN('All Scenarios LCOE Summary'!$H80:$J80),1,0),"") -> 1 | F172: =IF('All Scenarios LCOE Summary'!$F76=2,IF('All Scenarios LCOE Summary'!$G76<MIN('All Scenarios LCOE Summary'!$H76:$J76),1,0),"") -> 1
A173: =IF('All Scenarios LCOE Summary'!G135<MIN('All Scenarios LCOE Summary'!H135:J135),1,0) -> 1 | B173: =IF('All Scenarios LCOE Summary'!$G135<MIN('All Scenarios LCOE Summary'!$H135:$J135),1,0) -> 1 | C173: =IF('All Scenarios LCOE Summary'!C81=2,IF('All Scenarios LCOE Summary'!$G81<MIN('All Scenarios LCOE Summary'!$H81:$J81),1,0),"") -> 1 | D173: =IF('All Scenarios LCOE Summary'!$D81=2,IF('All Scenarios LCOE Summary'!$G81<MIN('All Scenarios LCOE Summary'!$H81:$J81),1,0),"") -> 1 | E173: =IF('All Scenarios LCOE Summary'!$E81=2,IF('All Scenarios LCOE Summary'!$G81<MIN('All Scenarios LCOE Summary'!$H81:$J81),1,0),"") -> 1 | F173: =IF('All Scenarios LCOE Summary'!$F79=2,IF('All Scenarios LCOE Summary'!$G79<MIN('All Scenarios LCOE Summary'!$H79:$J79),1,0),"") -> 1
A174: =IF('All Scenarios LCOE Summary'!G136<MIN('All Scenarios LCOE Summary'!H136:J136),1,0) -> 1 | B174: =IF('All Scenarios LCOE Summary'!$G136<MIN('All Scenarios LCOE Summary'!$H136:$J136),1,0) -> 1 | C174: =IF('All Scenarios LCOE Summary'!C82=2,IF('All Scenarios LCOE Summary'!$G82<MIN('All Scenarios LCOE Summary'!$H82:$J82),1,0),"") -> 1 | D174: =IF('All Scenarios LCOE Summary'!$D82=2,IF('All Scenarios LCOE Summary'!$G82<MIN('All Scenarios LCOE Summary'!$H82:$J82),1,0),"") -> 1 | E174: =IF('All Scenarios LCOE Summary'!$E82=2,IF('All Scenarios LCOE Summary'!$G82<MIN('All Scenarios LCOE Summary'!$H82:$J82),1,0),"") -> 1 | F174: =IF('All Scenarios LCOE Summary'!$F82=2,IF('All Scenarios LCOE Summary'!$G82<MIN('All Scenarios LCOE Summary'!$H82:$J82),1,0),"") -> 1
A175: =IF('All Scenarios LCOE Summary'!G137<MIN('All Scenarios LCOE Summary'!H137:J137),1,0) -> 1 | B175: =IF('All Scenarios LCOE Summary'!$G137<MIN('All Scenarios LCOE Summary'!$H137:$J137),1,0) -> 1 | C175: =IF('All Scenarios LCOE Summary'!C137=2,IF('All Scenarios LCOE Summary'!$G137<MIN('All Scenarios LCOE Summary'!$H137:$J137),1,0),"") -> 1 | D175: =IF('All Scenarios LCOE Summary'!$D101=2,IF('All Scenarios LCOE Summary'!$G101<MIN('All Scenarios LCOE Summary'!$H101:$J101),1,0),"") -> 1 | E175: =IF('All Scenarios LCOE Summary'!$E89=2,IF('All Scenarios LCOE Summary'!$G89<MIN('All Scenarios LCOE Summary'!$H89:$J89),1,0),"") -> 1 | F175: =IF('All Scenarios LCOE Summary'!$F85=2,IF('All Scenarios LCOE Summary'!$G85<MIN('All Scenarios LCOE Summary'!$H85:$J85),1,0),"") -> 1
A176: =IF('All Scenarios LCOE Summary'!G138<MIN('All Scenarios LCOE Summary'!H138:J138),1,0) -> 1 | B176: =IF('All Scenarios LCOE Summary'!$G138<MIN('All Scenarios LCOE Summary'!$H138:$J138),1,0) -> 1 | C176: =IF('All Scenarios LCOE Summary'!C138=2,IF('All Scenarios LCOE Summary'!$G138<MIN('All Scenarios LCOE Summary'!$H138:$J138),1,0),"") -> 1 | D176: =IF('All Scenarios LCOE Summary'!$D102=2,IF('All Scenarios LCOE Summary'!$G102<MIN('All Scenarios LCOE Summary'!$H102:$J102),1,0),"") -> 1 | E176: =IF('All Scenarios LCOE Summary'!$E90=2,IF('All Scenarios LCOE Summary'!$G90<MIN('All Scenarios LCOE Summary'!$H90:$J90),1,0),"") -> 1 | F176: =IF('All Scenarios LCOE Summary'!$F88=2,IF('All Scenarios LCOE Summary'!$G88<MIN('All Scenarios LCOE Summary'!$H88:$J88),1,0),"") -> 1
A177: =IF('All Scenarios LCOE Summary'!G139<MIN('All Scenarios LCOE Summary'!H139:J139),1,0) -> 1 | B177: =IF('All Scenarios LCOE Summary'!$G139<MIN('All Scenarios LCOE Summary'!$H139:$J139),1,0) -> 1 | C177: =IF('All Scenarios LCOE Summary'!C139=2,IF('All Scenarios LCOE Summary'!$G139<MIN('All Scenarios LCOE Summary'!$H139:$J139),1,0),"") -> 1 | D177: =IF('All Scenarios LCOE Summary'!$D103=2,IF('All Scenarios LCOE Summary'!$G103<MIN('All Scenarios LCOE Summary'!$H103:$J103),1,0),"") -> 1 | E177: =IF('All Scenarios LCOE Summary'!$E91=2,IF('All Scenarios LCOE Summary'!$G91<MIN('All Scenarios LCOE Summary'!$H91:$J91),1,0),"") -> 1 | F177: =IF('All Scenarios LCOE Summary'!$F91=2,IF('All Scenarios LCOE Summary'!$G91<MIN('All Scenarios LCOE Summary'!$H91:$J91),1,0),"") -> 1
A178: =IF('All Scenarios LCOE Summary'!G140<MIN('All Scenarios LCOE Summary'!H140:J140),1,0) -> 1 | B178: =IF('All Scenarios LCOE Summary'!$G140<MIN('All Scenarios LCOE Summary'!$H140:$J140),1,0) -> 1 | C178: =IF('All Scenarios LCOE Summary'!C140=2,IF('All Scenarios LCOE Summary'!$G140<MIN('All Scenarios LCOE Summary'!$H140:$J140),1,0),"") -> 1 | D178: =IF('All Scenarios LCOE Summary'!$D104=2,IF('All Scenarios LCOE Summary'!$G104<MIN('All Scenarios LCOE Summary'!$H104:$J104),1,0),"") -> 1 | E178: =IF('All Scenarios LCOE Summary'!$E98=2,IF('All Scenarios LCOE Summary'!$G98<MIN('All Scenarios LCOE Summary'!$H98:$J98),1,0),"") -> 1 | F178: =IF('All Scenarios LCOE Summary'!$F94=2,IF('All Scenarios LCOE Summary'!$G94<MIN('All Scenarios LCOE Summary'!$H94:$J94),1,0),"") -> 1
A179: =IF('All Scenarios LCOE Summary'!G141<MIN('All Scenarios LCOE Summary'!H141:J141),1,0) -> 1 | B179: =IF('All Scenarios LCOE Summary'!$G141<MIN('All Scenarios LCOE Summary'!$H141:$J141),1,0) -> 1 | C179: =IF('All Scenarios LCOE Summary'!C141=2,IF('All Scenarios LCOE Summary'!$G141<MIN('All Scenarios LCOE Summary'!$H141:$J141),1,0),"") -> 1 | D179: =IF('All Scenarios LCOE Summary'!$D105=2,IF('All Scenarios LCOE Summary'!$G105<MIN('All Scenarios LCOE Summary'!$H105:$J105),1,0),"") -> 1 | E179: =IF('All Scenarios LCOE Summary'!$E99=2,IF('All Scenarios LCOE Summary'!$G99<MIN('All Scenarios LCOE Summary'!$H99:$J99),1,0),"") -> 1 | F179: =IF('All Scenarios LCOE Summary'!$F97=2,IF('All Scenarios LCOE Summary'!$G97<MIN('All Scenarios LCOE Summary'!$H97:$J97),1,0),"") -> 1
A180: =IF('All Scenarios LCOE Summary'!G142<MIN('All Scenarios LCOE Summary'!H142:J142),1,0) -> 1 | B180: =IF('All Scenarios LCOE Summary'!$G142<MIN('All Scenarios LCOE Summary'!$H142:$J142),1,0) -> 1 | C180: =IF('All Scenarios LCOE Summary'!C142=2,IF('All Scenarios LCOE Summary'!$G142<MIN('All Scenarios LCOE Summary'!$H142:$J142),1,0),"") -> 1 | D180: =IF('All Scenarios LCOE Summary'!$D106=2,IF('All Scenarios LCOE Summary'!$G106<MIN('All Scenarios LCOE Summary'!$H106:$J106),1,0),"") -> 1 | E180: =IF('All Scenarios LCOE Summary'!$E100=2,IF('All Scenarios LCOE Summary'!$G100<MIN('All Scenarios LCOE Summary'!$H100:$J100),1,0),"") -> 1 | F180: =IF('All Scenarios LCOE Summary'!$F100=2,IF('All Scenarios LCOE Summary'!$G100<MIN('All Scenarios LCOE Summary'!$H100:$J100),1,0),"") -> 1
A181: =IF('All Scenarios LCOE Summary'!G143<MIN('All Scenarios LCOE Summary'!H143:J143),1,0) -> 1 | B181: =IF('All Scenarios LCOE Summary'!$G143<MIN('All Scenarios LCOE Summary'!$H143:$J143),1,0) -> 1 | C181: =IF('All Scenarios LCOE Summary'!C143=2,IF('All Scenarios LCOE Summary'!$G143<MIN('All Scenarios LCOE Summary'!$H143:$J143),1,0),"") -> 1 | D181: =IF('All Scenarios LCOE Summary'!$D107=2,IF('All Scenarios LCOE Summary'!$G107<MIN('All Scenarios LCOE Summary'!$H107:$J107),1,0),"") -> 1 | E181: =IF('All Scenarios LCOE Summary'!$E107=2,IF('All Scenarios LCOE Summary'!$G107<MIN('All Scenarios LCOE Summary'!$H107:$J107),1,0),"") -> 1 | F181: =IF('All Scenarios LCOE Summary'!$F103=2,IF('All Scenarios LCOE Summary'!$G103<MIN('All Scenarios LCOE Summary'!$H103:$J103),1,0),"") -> 1
A182: =IF('All Scenarios LCOE Summary'!G144<MIN('All Scenarios LCOE Summary'!H144:J144),1,0) -> 1 | B182: =IF('All Scenarios LCOE Summary'!$G144<MIN('All Scenarios LCOE Summary'!$H144:$J144),1,0) -> 1 | C182: =IF('All Scenarios LCOE Summary'!C144=2,IF('All Scenarios LCOE Summary'!$G144<MIN('All Scenarios LCOE Summary'!$H144:$J144),1,0),"") -> 1 | D182: =IF('All Scenarios LCOE Summary'!$D108=2,IF('All Scenarios LCOE Summary'!$G108<MIN('All Scenarios LCOE Summary'!$H108:$J108),1,0),"") -> 1 | E182: =IF('All Scenarios LCOE Summary'!$E108=2,IF('All Scenarios LCOE Summary'!$G108<MIN('All Scenarios LCOE Summary'!$H108:$J108),1,0),"") -> 1 | F182: =IF('All Scenarios LCOE Summary'!$F106=2,IF('All Scenarios LCOE Summary'!$G106<MIN('All Scenarios LCOE Summary'!$H106:$J106),1,0),"") -> 1
A183: =IF('All Scenarios LCOE Summary'!G145<MIN('All Scenarios LCOE Summary'!H145:J145),1,0) -> 1 | B183: =IF('All Scenarios LCOE Summary'!$G145<MIN('All Scenarios LCOE Summary'!$H145:$J145),1,0) -> 1 | C183: =IF('All Scenarios LCOE Summary'!C145=2,IF('All Scenarios LCOE Summary'!$G145<MIN('All Scenarios LCOE Summary'!$H145:$J145),1,0),"") -> 1 | D183: =IF('All Scenarios LCOE Summary'!$D109=2,IF('All Scenarios LCOE Summary'!$G109<MIN('All Scenarios LCOE Summary'!$H109:$J109),1,0),"") -> 1 | E183: =IF('All Scenarios LCOE Summary'!$E109=2,IF('All Scenarios LCOE Summary'!$G109<MIN('All Scenarios LCOE Summary'!$H109:$J109),1,0),"") -> 1 | F183: =IF('All Scenarios LCOE Summary'!$F109=2,IF('All Scenarios LCOE Summary'!$G109<MIN('All Scenarios LCOE Summary'!$H109:$J109),1,0),"") -> 1
A184: =IF('All Scenarios LCOE Summary'!G146<MIN('All Scenarios LCOE Summary'!H146:J146),1,0) -> 1 | B184: =IF('All Scenarios LCOE Summary'!$G146<MIN('All Scenarios LCOE Summary'!$H146:$J146),1,0) -> 1 | C184: =IF('All Scenarios LCOE Summary'!C146=2,IF('All Scenarios LCOE Summary'!$G146<MIN('All Scenarios LCOE Summary'!$H146:$J146),1,0),"") -> 1 | D184: =IF('All Scenarios LCOE Summary'!$D128=2,IF('All Scenarios LCOE Summary'!$G128<MIN('All Scenarios LCOE Summary'!$H128:$J128),1,0),"") -> 1 | E184: =IF('All Scenarios LCOE Summary'!$E116=2,IF('All Scenarios LCOE Summary'!$G116<MIN('All Scenarios LCOE Summary'!$H116:$J116),1,0),"") -> 1 | F184: =IF('All Scenarios LCOE Summary'!$F112=2,IF('All Scenarios LCOE Summary'!$G112<MIN('All Scenarios LCOE Summary'!$H112:$J112),1,0),"") -> 1
A185: =IF('All Scenarios LCOE Summary'!G147<MIN('All Scenarios LCOE Summary'!H147:J147),1,0) -> 1 | B185: =IF('All Scenarios LCOE Summary'!$G147<MIN('All Scenarios LCOE Summary'!$H147:$J147),1,0) -> 1 | C185: =IF('All Scenarios LCOE Summary'!C147=2,IF('All Scenarios LCOE Summary'!$G147<MIN('All Scenarios LCOE Summary'!$H147:$J147),1,0),"") -> 1 | D185: =IF('All Scenarios LCOE Summary'!$D129=2,IF('All Scenarios LCOE Summary'!$G129<MIN('All Scenarios LCOE Summary'!$H129:$J129),1,0),"") -> 1 | E185: =IF('All Scenarios LCOE Summary'!$E117=2,IF('All Scenarios LCOE Summary'!$G117<MIN('All Scenarios LCOE Summary'!$H117:$J117),1,0),"") -> 1 | F185: =IF('All Scenarios LCOE Summary'!$F115=2,IF('All Scenarios LCOE Summary'!$G115<MIN('All Scenarios LCOE Summary'!$H115:$J115),1,0),"") -> 1
A186: =IF('All Scenarios LCOE Summary'!G148<MIN('All Scenarios LCOE Summary'!H148:J148),1,0) -> 1 | B186: =IF('All Scenarios LCOE Summary'!$G148<MIN('All Scenarios LCOE Summary'!$H148:$J148),1,0) -> 1 | C186: =IF('All Scenarios LCOE Summary'!C148=2,IF('All Scenarios LCOE Summary'!$G148<MIN('All Scenarios LCOE Summary'!$H148:$J148),1,0),"") -> 1 | D186: =IF('All Scenarios LCOE Summary'!$D130=2,IF('All Scenarios LCOE Summary'!$G130<MIN('All Scenarios LCOE Summary'!$H130:$J130),1,0),"") -> 1 | E186: =IF('All Scenarios LCOE Summary'!$E118=2,IF('All Scenarios LCOE Summary'!$G118<MIN('All Scenarios LCOE Summary'!$H118:$J118),1,0),"") -> 1 | F186: =IF('All Scenarios LCOE Summary'!$F118=2,IF('All Scenarios LCOE Summary'!$G118<MIN('All Scenarios LCOE Summary'!$H118:$J118),1,0),"") -> 1
A187: =IF('All Scenarios LCOE Summary'!G149<MIN('All Scenarios LCOE Summary'!H149:J149),1,0) -> 1 | B187: =IF('All Scenarios LCOE Summary'!$G149<MIN('All Scenarios LCOE Summary'!$H149:$J149),1,0) -> 1 | C187: =IF('All Scenarios LCOE Summary'!C149=2,IF('All Scenarios LCOE Summary'!$G149<MIN('All Scenarios LCOE Summary'!$H149:$J149),1,0),"") -> 1 | D187: =IF('All Scenarios LCOE Summary'!$D131=2,IF('All Scenarios LCOE Summary'!$G131<MIN('All Scenarios LCOE Summary'!$H131:$J131),1,0),"") -> 1 | E187: =IF('All Scenarios LCOE Summary'!$E125=2,IF('All Scenarios LCOE Summary'!$G125<MIN('All Scenarios LCOE Summary'!$H125:$J125),1,0),"") -> 1 | F187: =IF('All Scenarios LCOE Summary'!$F121=2,IF('All Scenarios LCOE Summary'!$G121<MIN('All Scenarios LCOE Summary'!$H121:$J121),1,0),"") -> 1
A188: =IF('All Scenarios LCOE Summary'!G150<MIN('All Scenarios LCOE Summary'!H150:J150),1,0) -> 1 | B188: =IF('All Scenarios LCOE Summary'!$G150<MIN('All Scenarios LCOE Summary'!$H150:$J150),1,0) -> 1 | C188: =IF('All Scenarios LCOE Summary'!C150=2,IF('All Scenarios LCOE Summary'!$G150<MIN('All Scenarios LCOE Summary'!$H150:$J150),1,0),"") -> 1 | D188: =IF('All Scenarios LCOE Summary'!$D132=2,IF('All Scenarios LCOE Summary'!$G132<MIN('All Scenarios LCOE Summary'!$H132:$J132),1,0),"") -> 1 | E188: =IF('All Scenarios LCOE Summary'!$E126=2,IF('All Scenarios LCOE Summary'!$G126<MIN('All Scenarios LCOE Summary'!$H126:$J126),1,0),"") -> 1 | F188: =IF('All Scenarios LCOE Summary'!$F124=2,IF('All Scenarios LCOE Summary'!$G124<MIN('All Scenarios LCOE Summary'!$H124:$J124),1,0),"") -> 1
A189: =IF('All Scenarios LCOE Summary'!G151<MIN('All Scenarios LCOE Summary'!H151:J151),1,0) -> 1 | B189: =IF('All Scenarios LCOE Summary'!$G151<MIN('All Scenarios LCOE Summary'!$H151:$J151),1,0) -> 1 | C189: =IF('All Scenarios LCOE Summary'!C151=2,IF('All Scenarios LCOE Summary'!$G151<MIN('All Scenarios LCOE Summary'!$H151:$J151),1,0),"") -> 1 | D189: =IF('All Scenarios LCOE Summary'!$D133=2,IF('All Scenarios LCOE Summary'!$G133<MIN('All Scenarios LCOE Summary'!$H133:$J133),1,0),"") -> 1 | E189: =IF('All Scenarios LCOE Summary'!$E127=2,IF('All Scenarios LCOE Summary'!$G127<MIN('All Scenarios LCOE Summary'!$H127:$J127),1,0),"") -> 1 | F189: =IF('All Scenarios LCOE Summary'!$F127=2,IF('All Scenarios LCOE Summary'!$G127<MIN('All Scenarios LCOE Summary'!$H127:$J127),1,0),"") -> 1
A190: =IF('All Scenarios LCOE Summary'!G152<MIN('All Scenarios LCOE Summary'!H152:J152),1,0) -> 1 | B190: =IF('All Scenarios LCOE Summary'!$G152<MIN('All Scenarios LCOE Summary'!$H152:$J152),1,0) -> 1 | C190: =IF('All Scenarios LCOE Summary'!C152=2,IF('All Scenarios LCOE Summary'!$G152<MIN('All Scenarios LCOE Summary'!$H152:$J152),1,0),"") -> 1 | D190: =IF('All Scenarios LCOE Summary'!$D134=2,IF('All Scenarios LCOE Summary'!$G134<MIN('All Scenarios LCOE Summary'!$H134:$J134),1,0),"") -> 1 | E190: =IF('All Scenarios LCOE Summary'!$E134=2,IF('All Scenarios LCOE Summary'!$G134<MIN('All Scenarios LCOE Summary'!$H134:$J134),1,0),"") -> 1 | F190: =IF('All Scenarios LCOE Summary'!$F130=2,IF('All Scenarios LCOE Summary'!$G130<MIN('All Scenarios LCOE Summary'!$H130:$J130),1,0),"") -> 1
A191: =IF('All Scenarios LCOE Summary'!G153<MIN('All Scenarios LCOE Summary'!H153:J153),1,0) -> 1 | B191: =IF('All Scenarios LCOE Summary'!$G153<MIN('All Scenarios LCOE Summary'!$H153:$J153),1,0) -> 1 | C191: =IF('All Scenarios LCOE Summary'!C153=2,IF('All Scenarios LCOE Summary'!$G153<MIN('All Scenarios LCOE Summary'!$H153:$J153),1,0),"") -> 1 | D191: =IF('All Scenarios LCOE Summary'!$D135=2,IF('All Scenarios LCOE Summary'!$G135<MIN('All Scenarios LCOE Summary'!$H135:$J135),1,0),"") -> 1 | E191: =IF('All Scenarios LCOE Summary'!$E135=2,IF('All Scenarios LCOE Summary'!$G135<MIN('All Scenarios LCOE Summary'!$H135:$J135),1,0),"") -> 1 | F191: =IF('All Scenarios LCOE Summary'!$F133=2,IF('All Scenarios LCOE Summary'!$G133<MIN('All Scenarios LCOE Summary'!$H133:$J133),1,0),"") -> 1
A192: =IF('All Scenarios LCOE Summary'!G154<MIN('All Scenarios LCOE Summary'!H154:J154),1,0) -> 1 | B192: =IF('All Scenarios LCOE Summary'!$G154<MIN('All Scenarios LCOE Summary'!$H154:$J154),1,0) -> 1 | C192: =IF('All Scenarios LCOE Summary'!C154=2,IF('All Scenarios LCOE Summary'!$G154<MIN('All Scenarios LCOE Summary'!$H154:$J154),1,0),"") -> 1 | D192: =IF('All Scenarios LCOE Summary'!$D136=2,IF('All Scenarios LCOE Summary'!$G136<MIN('All Scenarios LCOE Summary'!$H136:$J136),1,0),"") -> 1 | E192: =IF('All Scenarios LCOE Summary'!$E136=2,IF('All Scenarios LCOE Summary'!$G136<MIN('All Scenarios LCOE Summary'!$H136:$J136),1,0),"") -> 1 | F192: =IF('All Scenarios LCOE Summary'!$F136=2,IF('All Scenarios LCOE Summary'!$G136<MIN('All Scenarios LCOE Summary'!$H136:$J136),1,0),"") -> 1
A193: =IF('All Scenarios LCOE Summary'!G155<MIN('All Scenarios LCOE Summary'!H155:J155),1,0) -> 1 | B193: =IF('All Scenarios LCOE Summary'!$G155<MIN('All Scenarios LCOE Summary'!$H155:$J155),1,0) -> 1 | C193: =IF('All Scenarios LCOE Summary'!C155=2,IF('All Scenarios LCOE Summary'!$G155<MIN('All Scenarios LCOE Summary'!$H155:$J155),1,0),"") -> 1 | D193: =IF('All Scenarios LCOE Summary'!$D155=2,IF('All Scenarios LCOE Summary'!$G155<MIN('All Scenarios LCOE Summary'!$H155:$J155),1,0),"") -> 1 | E193: =IF('All Scenarios LCOE Summary'!$E143=2,IF('All Scenarios LCOE Summary'!$G143<MIN('All Scenarios LCOE Summary'!$H143:$J143),1,0),"") -> 1 | F193: =IF('All Scenarios LCOE Summary'!$F139=2,IF('All Scenarios LCOE Summary'!$G139<MIN('All Scenarios LCOE Summary'!$H139:$J139),1,0),"") -> 1
A194: =IF('All Scenarios LCOE Summary'!G156<MIN('All Scenarios LCOE Summary'!H156:J156),1,0) -> 1 | B194: =IF('All Scenarios LCOE Summary'!$G156<MIN('All Scenarios LCOE Summary'!$H156:$J156),1,0) -> 1 | C194: =IF('All Scenarios LCOE Summary'!C156=2,IF('All Scenarios LCOE Summary'!$G156<MIN('All Scenarios LCOE Summary'!$H156:$J156),1,0),"") -> 1 | D194: =IF('All Scenarios LCOE Summary'!$D156=2,IF('All Scenarios LCOE Summary'!$G156<MIN('All Scenarios LCOE Summary'!$H156:$J156),1,0),"") -> 1 | E194: =IF('All Scenarios LCOE Summary'!$E144=2,IF('All Scenarios LCOE Summary'!$G144<MIN('All Scenarios LCOE Summary'!$H144:$J144),1,0),"") -> 1 | F194: =IF('All Scenarios LCOE Summary'!$F142=2,IF('All Scenarios LCOE Summary'!$G142<MIN('All Scenarios LCOE Summary'!$H142:$J142),1,0),"") -> 1
A195: =IF('All Scenarios LCOE Summary'!G157<MIN('All Scenarios LCOE Summary'!H157:J157),1,0) -> 1 | B195: =IF('All Scenarios LCOE Summary'!$G157<MIN('All Scenarios LCOE Summary'!$H157:$J157),1,0) -> 1 | C195: =IF('All Scenarios LCOE Summary'!C157=2,IF('All Scenarios LCOE Summary'!$G157<MIN('All Scenarios LCOE Summary'!$H157:$J157),1,0),"") -> 1 | D195: =IF('All Scenarios LCOE Summary'!$D157=2,IF('All Scenarios LCOE Summary'!$G157<MIN('All Scenarios LCOE Summary'!$H157:$J157),1,0),"") -> 1 | E195: =IF('All Scenarios LCOE Summary'!$E145=2,IF('All Scenarios LCOE Summary'!$G145<MIN('All Scenarios LCOE Summary'!$H145:$J145),1,0),"") -> 1 | F195: =IF('All Scenarios LCOE Summary'!$F145=2,IF('All Scenarios LCOE Summary'!$G145<MIN('All Scenarios LCOE Summary'!$H145:$J145),1,0),"") -> 1
A196: =IF('All Scenarios LCOE Summary'!G158<MIN('All Scenarios LCOE Summary'!H158:J158),1,0) -> 1 | B196: =IF('All Scenarios LCOE Summary'!$G158<MIN('All Scenarios LCOE Summary'!$H158:$J158),1,0) -> 1 | C196: =IF('All Scenarios LCOE Summary'!C158=2,IF('All Scenarios LCOE Summary'!$G158<MIN('All Scenarios LCOE Summary'!$H158:$J158),1,0),"") -> 1 | D196: =IF('All Scenarios LCOE Summary'!$D158=2,IF('All Scenarios LCOE Summary'!$G158<MIN('All Scenarios LCOE Summary'!$H158:$J158),1,0),"") -> 1 | E196: =IF('All Scenarios LCOE Summary'!$E152=2,IF('All Scenarios LCOE Summary'!$G152<MIN('All Scenarios LCOE Summary'!$H152:$J152),1,0),"") -> 1 | F196: =IF('All Scenarios LCOE Summary'!$F148=2,IF('All Scenarios LCOE Summary'!$G148<MIN('All Scenarios LCOE Summary'!$H148:$J148),1,0),"") -> 1
A197: =IF('All Scenarios LCOE Summary'!G159<MIN('All Scenarios LCOE Summary'!H159:J159),1,0) -> 1 | B197: =IF('All Scenarios LCOE Summary'!$G159<MIN('All Scenarios LCOE Summary'!$H159:$J159),1,0) -> 1 | C197: =IF('All Scenarios LCOE Summary'!C159=2,IF('All Scenarios LCOE Summary'!$G159<MIN('All Scenarios LCOE Summary'!$H159:$J159),1,0),"") -> 1 | D197: =IF('All Scenarios LCOE Summary'!$D159=2,IF('All Scenarios LCOE Summary'!$G159<MIN('All Scenarios LCOE Summary'!$H159:$J159),1,0),"") -> 1 | E197: =IF('All Scenarios LCOE Summary'!$E153=2,IF('All Scenarios LCOE Summary'!$G153<MIN('All Scenarios LCOE Summary'!$H153:$J153),1,0),"") -> 1 | F197: =IF('All Scenarios LCOE Summary'!$F151=2,IF('All Scenarios LCOE Summary'!$G151<MIN('All Scenarios LCOE Summary'!$H151:$J151),1,0),"") -> 1
A198: =IF('All Scenarios LCOE Summary'!G160<MIN('All Scenarios LCOE Summary'!H160:J160),1,0) -> 1 | B198: =IF('All Scenarios LCOE Summary'!$G160<MIN('All Scenarios LCOE Summary'!$H160:$J160),1,0) -> 1 | C198: =IF('All Scenarios LCOE Summary'!C160=2,IF('All Scenarios LCOE Summary'!$G160<MIN('All Scenarios LCOE Summary'!$H160:$J160),1,0),"") -> 1 | D198: =IF('All Scenarios LCOE Summary'!$D160=2,IF('All Scenarios LCOE Summary'!$G160<MIN('All Scenarios LCOE Summary'!$H160:$J160),1,0),"") -> 1 | E198: =IF('All Scenarios LCOE Summary'!$E154=2,IF('All Scenarios LCOE Summary'!$G154<MIN('All Scenarios LCOE Summary'!$H154:$J154),1,0),"") -> 1 | F198: =IF('All Scenarios LCOE Summary'!$F154=2,IF('All Scenarios LCOE Summary'!$G154<MIN('All Scenarios LCOE Summary'!$H154:$J154),1,0),"") -> 1
A199: =IF('All Scenarios LCOE Summary'!G161<MIN('All Scenarios LCOE Summary'!H161:J161),1,0) -> 1 | B199: =IF('All Scenarios LCOE Summary'!$G161<MIN('All Scenarios LCOE Summary'!$H161:$J161),1,0) -> 1 | C199: =IF('All Scenarios LCOE Summary'!C161=2,IF('All Scenarios LCOE Summary'!$G161<MIN('All Scenarios LCOE Summary'!$H161:$J161),1,0),"") -> 1 | D199: =IF('All Scenarios LCOE Summary'!$D161=2,IF('All Scenarios LCOE Summary'!$G161<MIN('All Scenarios LCOE Summary'!$H161:$J161),1,0),"") -> 1 | E199: =IF('All Scenarios LCOE Summary'!$E161=2,IF('All Scenarios LCOE Summary'!$G161<MIN('All Scenarios LCOE Summary'!$H161:$J161),1,0),"") -> 1 | F199: =IF('All Scenarios LCOE Summary'!$F157=2,IF('All Scenarios LCOE Summary'!$G157<MIN('All Scenarios LCOE Summary'!$H157:$J157),1,0),"") -> 1
A200: =IF('All Scenarios LCOE Summary'!G162<MIN('All Scenarios LCOE Summary'!H162:J162),1,0) -> 1 | B200: =IF('All Scenarios LCOE Summary'!$G162<MIN('All Scenarios LCOE Summary'!$H162:$J162),1,0) -> 1 | C200: =IF('All Scenarios LCOE Summary'!C162=2,IF('All Scenarios LCOE Summary'!$G162<MIN('All Scenarios LCOE Summary'!$H162:$J162),1,0),"") -> 1 | D200: =IF('All Scenarios LCOE Summary'!$D162=2,IF('All Scenarios LCOE Summary'!$G162<MIN('All Scenarios LCOE Summary'!$H162:$J162),1,0),"") -> 1 | E200: =IF('All Scenarios LCOE Summary'!$E162=2,IF('All Scenarios LCOE Summary'!$G162<MIN('All Scenarios LCOE Summary'!$H162:$J162),1,0),"") -> 1 | F200: =IF('All Scenarios LCOE Summary'!$F160=2,IF('All Scenarios LCOE Summary'!$G160<MIN('All Scenarios LCOE Summary'!$H160:$J160),1,0),"") -> 1
A201: =IF('All Scenarios LCOE Summary'!G163<MIN('All Scenarios LCOE Summary'!H163:J163),1,0) -> 1 | B201: =IF('All Scenarios LCOE Summary'!$G163<MIN('All Scenarios LCOE Summary'!$H163:$J163),1,0) -> 1 | C201: =IF('All Scenarios LCOE Summary'!C163=2,IF('All Scenarios LCOE Summary'!$G163<MIN('All Scenarios LCOE Summary'!$H163:$J163),1,0),"") -> 1 | D201: =IF('All Scenarios LCOE Summary'!$D163=2,IF('All Scenarios LCOE Summary'!$G163<MIN('All Scenarios LCOE Summary'!$H163:$J163),1,0),"") -> 1 | E201: =IF('All Scenarios LCOE Summary'!$E163=2,IF('All Scenarios LCOE Summary'!$G163<MIN('All Scenarios LCOE Summary'!$H163:$J163),1,0),"") -> 1 | F201: =IF('All Scenarios LCOE Summary'!$F163=2,IF('All Scenarios LCOE Summary'!$G163<MIN('All Scenarios LCOE Summary'!$H163:$J163),1,0),"") -> 1
A202: x | B202: x | C202: x | D202: x | E202: x | F202: x

Sheet Combined Cycle Gas
A1: Combined Cycle Gas Plant
A2: Name | D2: Combined Cycle Gas
A4: Combined Cycle Gas Turbine | E4: Source
A5: Energy Target (MWh/a) | D5: ='Oklahoma Wind + P&E'!E12 -> 2427524.55
A6: Capacity Factor (Utilization Rate) | D6: 0.87 | E6: EIA: http://www.eia.gov/forecasts/aeo/er/electricity_generation.cfm
A8: Size (MW) | D8: =+D5/(8766*D6) -> 318.3045977
A9: Capital cost ($mm/MW) | D9: =1006/1000 -> 1.006 | E9: http://www.eia.gov/forecasts/aeo/assumptions/pdf/electricity.pdf. Table 8.2.
A10: Regional Cost Adjustments | D10: 0.93 | E10: http://www.eia.gov/forecasts/capitalcost/pdf/updated_capcost.pdf Table 4
A11: Inflation Factor | D11: =(1+'Inputs and Summary'!$B$4)^(A43-'Inputs and Summary'!$B$14) -> 1.188685754
A12: Capital Cost ($mm) | D12: =+D8*D9*D10*D11 -> 353.9899227
A14: Fixed O&M ($/kW) | D14: =15.1*D11 -> 17.94915488 | E14: =+E9 -> http://www.eia.gov/forecasts/aeo/assumptions/pdf/electricity.pdf. Table 8.2.
A15: Variable O&M ($/MWh) | D15: =3.21*D11 -> 3.815681269 | E15: =+E9 -> http://www.eia.gov/forecasts/aeo/assumptions/pdf/electricity.pdf. Table 8.2.
A16: Heat rate (Btu/kWh) | D16: 6333 | E16: =E9 -> http://www.eia.gov/forecasts/aeo/assumptions/pdf/electricity.pdf. Table 8.2.
A17: Carbon Intensity (tons/mmBtu) | D17: 0.053 | E17: https://www.theice.com/publicdocs/ccx/CCX_GHG_Factors.pdf
A19: Property Tax | D19: below
A20: Tax depreciation | D20: 15-year MACRS
A22: Useful Life (Years) | D22: 30
A23: Capacity Credit (%) | D23: =1-VLOOKUP(D8,C25:D31,2) -> 0.9281 | E23: Using (1 - EFOR)
A24: Equivalent Forced Outage Rate (GAS) | C24: MW | D24: EFOR | E24: GADS
C25: 0 | D25: 0.2379
C26: 101 | D26: 0.1252
C27: 201 | D27: 0.0856
C28: 301 | D28: 0.0719
C29: 401 | D29: 0.1173
C30: 601 | D30: 0.171
C31: 801 | D31: 0.0376
A32: TOD Adjustment | D32: ='TOD Calc'!$B$21 -> 1.121552609 | E32: Assuming steady output throughout the day
A34: EIA Natural Gas Price (nominal $/Mcf) | E34: EIA 2014 Outlook (assumes 5% growth 2041 onward)
A35: Carbon Price Synapse forcast (2012 $/ton) | E35: http://www.synapse-energy.com/Downloads/SynapseReport.2013-11.0.2013-Carbon-Forecast.13-098.pdf
A37: Assessment Percentage on Commercial Property in TN | D37: 0.4 | E37: https://www.comptroller.tn.gov/pa/paavt.asp
A38: Property Tax Rate | D38: 0.03196 | E38: https://www.comptroller.tn.gov/pa/LR.asp?W=13 | I38: (average of all counties)
A39: Residual Value (% of Capital Cost) | D39: 0.2
AC41: IRR | AD41: =IRR(AD43:AD95) -> 0.077875
A42: Year | B42: In-Service | C42: Generation (MWh/a) | D42: Revenue ($mm) | E42: TOD-Adjusted Revenue ($mm) | F42: Capacity Credit (MW) | G42: Capacity Price ($k/MW-yr) | H42: Capacity Revenue ($mm) | I42: Natural Gas Use (mmBtu) | J42: EIA Natural Gas Price ($/Mcf) | K42: Natural Gas Price x Factor ($/mmBtu) | L42: Carbon Price Low Projection ($/ton) | M42: Carbon Price Mid Projection ($/ton) | N42: Carbon Price High Projection ($/ton) | O42: Carbon Emissions (tons) | P42: Carbon Cost ($mm) | Q42: Fuel Expenses ($mm) | R42: Variable O&M | S42: Fixed O&M | T42: Total Asset Value ($mm) | U42: Property Tax | V42: Total Expenses | W42: EBITDA | X42: Tax Depreciation (%) | Y42: Tax Depreciation | Z42: Taxable Income | AA42: Tax Rate | AB42: Cash Taxes | AC42: Capital Costs | AD42: After-tax Cash Flow
A43: 2018 | B43: 0 | D43: =B43*$B$111/$D$32 -> 0 | E43: =+D43*$D$32 -> 0 | F43: =+B43*$D$8*$D$23 -> 0 | G43: ='Inputs and Summary'!$B$15*$D$11 -> 113.7084905 | H43: =+F43*G43/10^3 -> 0 | J43: 5.679351 | K43: =J43*'Inputs and Summary'!$B$22/100*B43/1.023 -> 0 | L43: 0 | M43: 0 | N43: 0 | P43: =-CHOOSE('Inputs and Summary'!$B$21,L43:L95,M43:M94,N43:N94)*O43/10^6 -> 0 | Q43: =-I43*K43/10^6 -> 0 | R43: =-C43*$D$15/10^6*B43 -> 0 | S43: =-$D$14*$D$8/1000*B43 -> 0 | T43: =$D$12 -> 353.9899227 | U43: =-$D$38*$D$37*$D$12*B43 -> 0 | V43: =P43+Q43+R43+S43+U43 -> 0 | W43: =+E43+H43+V43 -> 0 | Y43: =-X43*$D$12 -> 0 | Z43: =+W43+Y43 -> 0 | AA43: =+'Inputs and Summary'!$B$5 -> 0.35 | AB43: =-Z43*AA43 -> 0 | AC43: =-D12 -> -353.9899227 | AD43: =+W43+AB43+AC43 -> -353.9899227
A44: =+A43+1 -> 2019 | B44: 1 | C44: =+D6*8766*D8 -> 2427524.55 | D44: 173.779521 | E44: 194.9028752 | F44: 295.4184971 | G44: =+G43*(1+'Inputs and Summary'!$B$4) -> 116.5512028 | H44: =+F44*G44/10^3 -> 34.43138116 | I44: =C44*$D$16/10^3 -> 15373512.98 | J44: 5.901171 | K44: =J44*'Inputs and Summary'!$B$22/100*B44/1.023 -> 5.768495601 | L44: 0 | M44: 0 | N44: 0 | O44: =+I44*$D$17 -> 814796.1877 | P44: =-CHOOSE('Inputs and Summary'!$B$21,L44:L96,M44:M96,N44:N96)*O44/10^6 -> 0 | Q44: =-I44*K44/10^6 -> -88.68204197 | R44: -9.262659956 | S44: =-$D$14*$D$8/1000 -> -5.713298523 | T44: =$D$12*((1-$D$39)*(($D$22-(A44-$A$43))/$D$22)+$D$39)*B44 -> 344.5501914 | U44: =-$D$38*$D$37*T44*B44 -> -4.404729647 | V44: -108.0627301 | W44: =+E44+H44+V44 -> 121.2715262 | X44: 0.0125 | Y44: -4.424874033 | Z44: 116.8466522 | AA44: =+'Inputs and Summary'!$B$5 -> 0.35 | AB44: -40.89632828 | AD44: 80.37519797
A45: =+A44+1 -> 2020 | B45: =1*(SUM($B$41:B44)<$D$22) -> 1 | C45: =+C44*B45 -> 2427524.55 | D45: 173.779521 | E45: 194.9028752 | F45: 295.4184971 | G45: =+G44*(1+'Inputs and Summary'!$B$4) -> 119.4649828 | H45: 35.29216569 | I45: 15373512.98 | J45: 5.873793 | K45: =J45*'Inputs and Summary'!$B$22/100*B45/1.023 -> 5.741733138 | L45: 0 | M45: =15*(1+'Inputs and Summary'!$B$4)^(A45-('Inputs and Summary'!$B$14+1)) -> 18.27604346 | N45: =25*(1+'Inputs and Summary'!$B$4)^(A45-('Inputs and Summary'!$B$14+1)) -> 30.46007244 | O45: 814796.1877 | P45: =-CHOOSE('Inputs and Summary'!$B$21,L45:L97,M45:M97,N45:N97)*O45/10^6 -> -14.89125054 | Q45: =-I45*K45/10^6 -> -88.27060889 | R45: =+R44*(1+'Inputs and Summary'!$B$4)*B45 -> -9.494226455 | S45: =+S44*(1+'Inputs and Summary'!$B$4)*B45 -> -5.856130986 | T45: =$D$12*((1-$D$39)*(($D$22-(A45-$A$43))/$D$22)+$D$39)*B45 -> 335.1104601 | U45: -4.284052122 | V45: -122.796269 | W45: 107.3987719 | X45: 0.09875 | Y45: -34.95650486 | Z45: 72.44226701 | AA45: =+'Inputs and Summary'!$B$5 -> 0.35 | AB45: -25.35479345 | AD45: 82.04397842
A46: 2021 | B46: =1*(SUM($B$41:B45)<$D$22) -> 1 | C46: 2427524.55 | D46: 173.779521 | E46: 194.9028752 | F46: 295.4184971 | G46: =+G45*(1+'Inputs and Summary'!$B$4) -> 122.4516074 | H46: 36.17446983 | I46: 15373512.98 | J46: 6.167694 | K46: =J46*'Inputs and Summary'!$B$22/100*B46/1.023 -> 6.029026393 | L46: 0 | M46: =M45*(1+'Inputs and Summary'!$B$4)+2.25*(1+'Inputs and Summary'!$B$4)^(A46-('Inputs and Summary'!$B$14+1)) -> 21.54288623 | N46: =N45*(1+'Inputs and Summary'!$B$4)+3.25*(1+'Inputs and Summary'!$B$4)^(A46-('Inputs and Summary'!$B$14+1)) -> 35.2803789 | O46: 814796.1877 | P46: =-CHOOSE('Inputs and Summary'!$B$21,L46:L98,M45:M98,N45:N98)*O46/10^6 -> -17.55306157 | Q46: -92.68731548 | R46: =+R45*(1+'Inputs and Summary'!$B$4)*B46 -> -9.731582116 | S46: =+S45*(1+'Inputs and Summary'!$B$4)*B46 -> -6.002534261 | T46: 325.6707289 | U46: -4.163374598 | V46: -130.137868 | W46: 100.939477 | X46: 0.088875 | Y46: -31.46085438 | Z46: 69.47862261 | AA46: =+'Inputs and Summary'!$B$5 -> 0.35 | AB46: -24.31751791 | AD46: 76.62195908
A47: 2022 | B47: =1*(SUM($B$41:B46)<$D$22) -> 1 | C47: 2427524.55 | D47: 173.779521 | E47: 194.9028752 | F47: 295.4184971 | G47: =+G46*(1+'Inputs and Summary'!$B$4) -> 125.5128976 | H47: 37.07883158 | I47: 15373512.98 | J47: 6.333091 | K47: =J47*'Inputs and Summary'!$B$22/100*B47/1.023 -> 6.19070479 | L47: 0 | M47: =M46*(1+'Inputs and Summary'!$B$4)+2.25*(1+'Inputs and Summary'!$B$4)^(A47-('Inputs and Summary'!$B$14+1)) -> 24.96164861 | N47: =N46*(1+'Inputs and Summary'!$B$4)+3.25*(1+'Inputs and Summary'!$B$4)^(A47-('Inputs and Summary'!$B$14+1)) -> 40.32266314 | O47: 814796.1877 | P47: =-CHOOSE('Inputs and Summary'!$B$21,L47:L99,M46:M99,N46:N99)*O47/10^6 -> -20.33865613 | Q47: -95.17288041 | R47: =+R46*(1+'Inputs and Summary'!$B$4)*B47 -> -9.974871669 | S47: =+S46*(1+'Inputs and Summary'!$B$4)*B47 -> -6.152597618 | T47: 316.2309976 | U47: -4.042697073 | V47: -135.6817029 | W47: 96.30000386 | X47: 0.0799875 | Y47: -28.31476894 | Z47: 67.98523492 | AA47: =+'Inputs and Summary'!$B$5 -> 0.35 | AB47: -23.79483222 | AD47: 72.50517164
A48: 2023 | B48: =1*(SUM($B$41:B47)<$D$22) -> 1 | C48: 2427524.55 | D48: 173.779521 | E48: 194.9028752 | F48: 295.4184971 | G48: =+G47*(1+'Inputs and Summary'!$B$4) -> 128.65072 | H48: 38.00580237 | I48: 15373512.98 | J48: 6.594013 | K48: =J48*'Inputs and Summary'!$B$22/100*B48/1.023 -> 6.445760508 | L48: 0 | M48: =M47*(1+'Inputs and Summary'!$B$4)+2.25*(1+'Inputs and Summary'!$B$4)^(A48-('Inputs and Summary'!$B$14+1)) -> 28.53788481 | N48: =N47*(1+'Inputs and Summary'!$B$4)+3.25*(1+'Inputs and Summary'!$B$4)^(A48-('Inputs and Summary'!$B$14+1)) -> 45.59501136 | O48: 814796.1877 | P48: =-CHOOSE('Inputs and Summary'!$B$21,L48:L100,M47:M100,N47:N100)*O48/10^6 -> -23.25255975 | Q48: -99.09398281 | R48: =+R47*(1+'Inputs and Summary'!$B$4)*B48 -> -10.22424346 | S48: =+S47*(1+'Inputs and Summary'!$B$4)*B48 -> -6.306412558 | T48: 306.7912663 | U48: -3.922019549 | V48: -142.7992181 | W48: 90.10945943 | X48: 0.07198875 | Y48: -25.48329205 | Z48: 64.62616738 | AA48: =+'Inputs and Summary'!$B$5 -> 0.35 | AB48: -22.61915858 | AD48: 67.49030085
A49: 2024 | B49: =1*(SUM($B$41:B48)<$D$22) -> 1 | C49: 2427524.55 | D49: 173.779521 | E49: 194.9028752 | F49: 295.4184971 | G49: =+G48*(1+'Inputs and Summary'!$B$4) -> 131.866988 | H49: 38.95594743 | I49: 15373512.98 | J49: 6.958062 | K49: =J49*'Inputs and Summary'!$B$22/100*B49/1.023 -> 6.801624633 | L49: 0 | M49: =M48*(1+'Inputs and Summary'!$B$4)+2.25*(1+'Inputs and Summary'!$B$4)^(A49-('Inputs and Summary'!$B$14+1)) -> 32.27733178 | N49: =N48*(1+'Inputs and Summary'!$B$4)+3.25*(1+'Inputs and Summary'!$B$4)^(A49-('Inputs and Summary'!$B$14+1)) -> 51.10577532 | O49: 814796.1877 | P49: =-CHOOSE('Inputs and Summary'!$B$21,L49:L101,M48:M101,N48:N101)*O49/10^6 -> -26.29944688 | Q49: -104.5648646 | R49: =+R48*(1+'Inputs and Summary'!$B$4)*B49 -> -10.47984955 | S49: =+S48*(1+'Inputs and Summary'!$B$4)*B49 -> -6.464072872 | T49: 297.351535 | U49: -3.801342024 | V49: -151.6095759 | W49: 82.24924673 | X49: 0.064789875 | Y49: -22.93496284 | Z49: 59.31428389 | AA49: =+'Inputs and Summary'!$B$5 -> 0.35 | AB49: -20.75999936 | AD49: 61.48924737
A50: 2025 | B50: =1*(SUM($B$41:B49)<$D$22) -> 1 | C50: 2427524.55 | D50: 173.779521 | E50: 194.9028752 | F50: 295.4184971 | G50: =+G49*(1+'Inputs and Summary'!$B$4) -> 135.1636627 | H50: 39.92984611 | I50: 15373512.98 | J50: 7.248158 | K50: =J50*'Inputs and Summary'!$B$22/100*B50/1.023 -> 7.085198436 | L50: 0 | M50: =M49*(1+'Inputs and Summary'!$B$4)+2.25*(1+'Inputs and Summary'!$B$4)^(A50-('Inputs and Summary'!$B$14+1)) -> 36.18591493 | N50: =N49*(1+'Inputs and Summary'!$B$4)+3.25*(1+'Inputs and Summary'!$B$4)^(A50-('Inputs and Summary'!$B$14+1)) -> 56.8635806 | O50: 814796.1877 | P50: =-CHOOSE('Inputs and Summary'!$B$21,L50:L102,M49:M102,N49:N102)*O50/10^6 -> -29.48414553 | Q50: -108.9243901 | R50: =+R49*(1+'Inputs and Summary'!$B$4)*B50 -> -10.74184579 | S50: =+S49*(1+'Inputs and Summary'!$B$4)*B50 -> -6.625674694 | T50: 287.9118038 | U50: -3.680664499 | V50: -159.4567206 | W50: 75.3760007 | X50: 0.059049 | Y50: -20.90275094 | Z50: 54.47324976 | AA50: =+'Inputs and Summary'!$B$5 -> 0.35 | AB50: -19.06563741 | AD50: 56.31036329
A51: 2026 | B51: =1*(SUM($B$41:B50)<$D$22) -> 1 | C51: 2427524.55 | D51: 173.779521 | E51: 194.9028752 | F51: 295.4184971 | G51: =+G50*(1+'Inputs and Summary'!$B$4) -> 138.5427543 | H51: 40.92809227 | I51: 15373512.98 | J51: 7.445693 | K51: =J51*'Inputs and Summary'!$B$22/100*B51/1.023 -> 7.278292278 | L51: 0 | M51: =M50*(1+'Inputs and Summary'!$B$4)+2.25*(1+'Inputs and Summary'!$B$4)^(A51-('Inputs and Summary'!$B$14+1)) -> 40.2697539 | N51: =N50*(1+'Inputs and Summary'!$B$4)+3.25*(1+'Inputs and Summary'!$B$4)^(A51-('Inputs and Summary'!$B$14+1)) -> 62.87733503 | O51: 814796.1877 | P51: =-CHOOSE('Inputs and Summary'!$B$21,L51:L103,M50:M103,N50:N103)*O51/10^6 -> -32.81164195 | Q51: -111.8929208 | R51: =+R50*(1+'Inputs and Summary'!$B$4)*B51 -> -11.01039193 | S51: =+S50*(1+'Inputs and Summary'!$B$4)*B51 -> -6.791316561 | T51: 278.4720725 | U51: -3.559986975 | V51: -166.0662582 | W51: 69.76470926 | X51: 0.059049 | Y51: -20.90275094 | Z51: 48.86195832 | AA51: =+'Inputs and Summary'!$B$5 -> 0.35 | AB51: -17.10168541 | AD51: 52.66302385
A52: 2027 | B52: =1*(SUM($B$41:B51)<$D$22) -> 1 | C52: 2427524.55 | D52: 173.779521 | E52: 194.9028752 | F52: 295.4184971 | G52: =+G51*(1+'Inputs and Summary'!$B$4) -> 142.0063232 | H52: 41.95129457 | I52: 15373512.98 | J52: 7.694941 | K52: =J52*'Inputs and Summary'!$B$22/100*B52/1.023 -> 7.521936461 | L52: 0 | M52: =M51*(1+'Inputs and Summary'!$B$4)+2.25*(1+'Inputs and Summary'!$B$4)^(A52-('Inputs and Summary'!$B$14+1)) -> 44.53516862 | N52: =N51*(1+'Inputs and Summary'!$B$4)+3.25*(1+'Inputs and Summary'!$B$4)^(A52-('Inputs and Summary'!$B$14+1)) -> 69.15623745 | O52: 814796.1877 | P52: =-CHOOSE('Inputs and Summary'!$B$21,L52:L104,M51:M104,N51:N104)*O52/10^6 -> -36.28708561 | Q52: -115.6385878 | R52: =+R51*(1+'Inputs and Summary'!$B$4)*B52 -> -11.28565173 | S52: =+S51*(1+'Inputs and Summary'!$B$4)*B52 -> -6.961099475 | T52: 269.0323412 | U52: -3.43930945 | V52: -173.6117341 | W52: 63.24243571 | X52: 0.059049 | Y52: -20.90275094 | Z52: 42.33968476 | AA52: =+'Inputs and Summary'!$B$5 -> 0.35 | AB52: -14.81888967 | AD52: 48.42354604
A53: 2028 | B53: =1*(SUM($B$41:B52)<$D$22) -> 1 | C53: 2427524.55 | D53: 173.779521 | E53: 194.9028752 | F53: 295.4184971 | G53: =+G52*(1+'Inputs and Summary'!$B$4) -> 145.5564812 | H53: 43.00007694 | I53: 15373512.98 | J53: 7.993898 | K53: =J53*'Inputs and Summary'!$B$22/100*B53/1.023 -> 7.814172043 | L53: 0 | M53: =M52*(1+'Inputs and Summary'!$B$4)+2.25*(1+'Inputs and Summary'!$B$4)^(A53-('Inputs and Summary'!$B$14+1)) -> 48.98868548 | N53: =N52*(1+'Inputs and Summary'!$B$4)+3.25*(1+'Inputs and Summary'!$B$4)^(A53-('Inputs and Summary'!$B$14+1)) -> 75.70978665 | O53: 814796.1877 | P53: =-CHOOSE('Inputs and Summary'!$B$21,L53:L105,M52:M105,N52:N105)*O53/10^6 -> -39.91579417 | Q53: -120.1312753 | R53: =+R52*(1+'Inputs and Summary'!$B$4)*B53 -> -11.56779302 | S53: =+S52*(1+'Inputs and Summary'!$B$4)*B53 -> -7.135126962 | T53: 259.59261 | U53: -3.318631926 | V53: -182.0686214 | W53: 55.83433075 | X53: 0.059049 | Y53: -20.90275094 | Z53: 34.9315798 | AA53: =+'Inputs and Summary'!$B$5 -> 0.35 | AB53: -12.22605293 | AD53: 43.60827782
A54: 2029 | B54: =1*(SUM($B$41:B53)<$D$22) -> 1 | C54: 2427524.55 | D54: 173.779521 | E54: 194.9028752 | F54: 295.4184971 | G54: =+G53*(1+'Inputs and Summary'!$B$4) -> 149.1953933 | H54: 44.07507886 | I54: 15373512.98 | J54: 8.431856 | K54: =J54*'Inputs and Summary'!$B$22/100*B54/1.023 -> 8.24228348 | L54: 0 | M54: =M53*(1+'Inputs and Summary'!$B$4)+2.25*(1+'Inputs and Summary'!$B$4)^(A54-('Inputs and Summary'!$B$14+1)) -> 53.63704371 | N54: =N53*(1+'Inputs and Summary'!$B$4)+3.25*(1+'Inputs and Summary'!$B$4)^(A54-('Inputs and Summary'!$B$14+1)) -> 82.54779067 | O54: 814796.1877 | P54: =-CHOOSE('Inputs and Summary'!$B$21,L54:L106,M53:M106,N53:N106)*O54/10^6 -> -43.70325873 | Q54: -126.712852 | R54: =+R53*(1+'Inputs and Summary'!$B$4)*B54 -> -11.85698785 | S54: =+S53*(1+'Inputs and Summary'!$B$4)*B54 -> -7.313505136 | T54: 250.1528787 | U54: -3.197954401 | V54: -192.7845581 | W54: 46.19339591 | X54: 0.059049 | Y54: -20.90275094 | Z54: 25.29064496 | AA54: =+'Inputs and Summary'!$B$5 -> 0.35 | AB54: -8.851725736 | AD54: 37.34167017
A55: 2030 | B55: =1*(SUM($B$41:B54)<$D$22) -> 1 | C55: 2427524.55 | D55: 173.779521 | E55: 194.9028752 | F55: 295.4184971 | G55: =+G54*(1+'Inputs and Summary'!$B$4) -> 152.9252781 | H55: 45.17695583 | I55: 15373512.98 | J55: 8.933621 | K55: =J55*'Inputs and Summary'!$B$22/100*B55/1.023 -> 8.732767351 | L55: 0 | M55: =M54*(1+'Inputs and Summary'!$B$4)+2.25*(1+'Inputs and Summary'!$B$4)^(A55-('Inputs and Summary'!$B$14+1)) -> 58.48720191 | N55: =N54*(1+'Inputs and Summary'!$B$4)+3.25*(1+'Inputs and Summary'!$B$4)^(A55-('Inputs and Summary'!$B$14+1)) -> 89.68037627 | O55: 814796.1877 | P55: =-CHOOSE('Inputs and Summary'!$B$21,L55:L107,M54:M107,N54:N107)*O55/10^6 -> -47.65514915 | Q55: -134.2533122 | R55: =+R54*(1+'Inputs and Summary'!$B$4)*B55 -> -12.15341254 | S55: =+S54*(1+'Inputs and Summary'!$B$4)*B55 -> -7.496342764 | T55: 240.7131474 | U55: -3.077276877 | V55: -204.6354935 | W55: 35.44433751 | X55: 0.059049 | Y55: -20.90275094 | Z55: 14.54158656 | AA55: =+'Inputs and Summary'!$B$5 -> 0.35 | AB55: -5.089555296 | AD55: 30.35478221
A56: 2031 | B56: =1*(SUM($B$41:B55)<$D$22) -> 1 | C56: 2427524.55 | D56: 173.779521 | E56: 194.9028752 | F56: 295.4184971 | G56: =+G55*(1+'Inputs and Summary'!$B$4) -> 156.7484101 | H56: 46.30637973 | I56: 15373512.98 | J56: 9.284088 | K56: =J56*'Inputs and Summary'!$B$22/100*B56/1.023 -> 9.075354839 | L56: 0 | M56: =M55*(1+'Inputs and Summary'!$B$4)+2.25*(1+'Inputs and Summary'!$B$4)^(A56-('Inputs and Summary'!$B$14+1)) -> 63.54634488 | N56: =N55*(1+'Inputs and Summary'!$B$4)+3.25*(1+'Inputs and Summary'!$B$4)^(A56-('Inputs and Summary'!$B$14+1)) -> 97.11799878 | O56: 814796.1877 | P56: =-CHOOSE('Inputs and Summary'!$B$21,L56:L108,M55:M108,N55:N108)*O56/10^6 -> -51.77731955 | Q56: -139.5200854 | R56: =+R55*(1+'Inputs and Summary'!$B$4)*B56 -> -12.45724786 | S56: =+S55*(1+'Inputs and Summary'!$B$4)*B56 -> -7.683751334 | T56: 231.2734161 | U56: -2.956599352 | V56: -214.3950035 | W56: 26.81425145 | X56: 0.059049 | Y56: -20.90275094 | Z56: 5.911500509 | AA56: =+'Inputs and Summary'!$B$5 -> 0.35 | AB56: -2.069025178 | AD56: 24.74522627
A57: 2032 | B57: =1*(SUM($B$41:B56)<$D$22) -> 1 | C57: 2427524.55 | D57: 173.779521 | E57: 194.9028752 | F57: 295.4184971 | G57: =+G56*(1+'Inputs and Summary'!$B$4) -> 160.6671203 | H57: 47.46403922 | I57: 15373512.98 | J57: 9.627215 | K57: =J57*'Inputs and Summary'!$B$22/100*B57/1.023 -> 9.410767351 | L57: 0 | M57: =M56*(1+'Inputs and Summary'!$B$4)+2.25*(1+'Inputs and Summary'!$B$4)^(A57-('Inputs and Summary'!$B$14+1)) -> 68.82189049 | N57: =N56*(1+'Inputs and Summary'!$B$4)+3.25*(1+'Inputs and Summary'!$B$4)^(A57-('Inputs and Summary'!$B$14+1)) -> 104.8714522 | O57: 814796.1877 | P57: =-CHOOSE('Inputs and Summary'!$B$21,L57:L109,M56:M109,N56:N109)*O57/10^6 -> -56.075814 | Q57: -144.676554 | R57: =+R56*(1+'Inputs and Summary'!$B$4)*B57 -> -12.76867905 | S57: =+S56*(1+'Inputs and Summary'!$B$4)*B57 -> -7.875845117 | T57: 221.8336849 | U57: -2.835921827 | V57: -224.232814 | W57: 18.13410043 | X57: 0.059049 | Y57: -20.90275094 | Z57: -2.768650515 | AA57: =+'Inputs and Summary'!$B$5 -> 0.35 | AB57: 0.9690276802 | AD57: 19.10312811
A58: 2033 | B58: =1*(SUM($B$41:B57)<$D$22) -> 1 | C58: 2427524.55 | D58: 173.779521 | E58: 194.9028752 | F58: 295.4184971 | G58: =+G57*(1+'Inputs and Summary'!$B$4) -> 164.6837983 | H58: 48.6506402 | I58: 15373512.98 | J58: 10.122721 | K58: =J58*'Inputs and Summary'!$B$22/100*B58/1.023 -> 9.895132942 | L58: 0 | M58: =M57*(1+'Inputs and Summary'!$B$4)+2.25*(1+'Inputs and Summary'!$B$4)^(A58-('Inputs and Summary'!$B$14+1)) -> 74.32149692 | N58: =N57*(1+'Inputs and Summary'!$B$4)+3.25*(1+'Inputs and Summary'!$B$4)^(A58-('Inputs and Summary'!$B$14+1)) -> 112.9518795 | O58: 814796.1877 | P58: =-CHOOSE('Inputs and Summary'!$B$21,L58:L110,M57:M110,N57:N110)*O58/10^6 -> -60.55687235 | Q58: -152.1229547 | R58: =+R57*(1+'Inputs and Summary'!$B$4)*B58 -> -13.08789603 | S58: =+S57*(1+'Inputs and Summary'!$B$4)*B58 -> -8.072741245 | T58: 212.3939536 | U58: -2.715244303 | V58: -236.5557086 | W58: 6.997806775 | X58: 0.059049 | Y58: -20.90275094 | Z58: -13.90494417 | AA58: =+'Inputs and Summary'!$B$5 -> 0.35 | AB58: 4.866730459 | AD58: 11.86453723
A59: 2034 | B59: =1*(SUM($B$41:B58)<$D$22) -> 1 | C59: 2427524.55 | D59: 173.779521 | E59: 194.9028752 | F59: 295.4184971 | G59: =+G58*(1+'Inputs and Summary'!$B$4) -> 168.8008933 | H59: 49.86690621 | I59: 15373512.98 | J59: 10.57251 | K59: =J59*'Inputs and Summary'!$B$22/100*B59/1.023 -> 10.33480938 | L59: 0 | M59: =M58*(1+'Inputs and Summary'!$B$4)+2.25*(1+'Inputs and Summary'!$B$4)^(A59-('Inputs and Summary'!$B$14+1)) -> 80.05306999 | N59: =N58*(1+'Inputs and Summary'!$B$4)+3.25*(1+'Inputs and Summary'!$B$4)^(A59-('Inputs and Summary'!$B$14+1)) -> 121.3707835 | O59: 814796.1877 | P59: =-CHOOSE('Inputs and Summary'!$B$21,L59:L111,M58:M111,N58:N111)*O59/10^6 -> -65.22693624 | Q59: -158.8823262 | R59: =+R58*(1+'Inputs and Summary'!$B$4)*B59 -> -13.41509343 | S59: =+S58*(1+'Inputs and Summary'!$B$4)*B59 -> -8.274559776 | T59: 202.9542223 | U59: -2.594566778 | V59: -248.3934824 | W59: -3.623700996 | X59: 0.051667875 | Y59: -18.28990708 | Z59: -21.91360807 | AA59: =+'Inputs and Summary'!$B$5 -> 0.35 | AB59: 7.669762825 | AD59: 4.046061829
A60: 2035 | B60: =1*(SUM($B$41:B59)<$D$22) -> 1 | C60: 2427524.55 | D60: 173.779521 | E60: 194.9028752 | F60: 295.4184971 | G60: =+G59*(1+'Inputs and Summary'!$B$4) -> 173.0209156 | H60: 51.11357886 | I60: 15373512.98 | J60: 11.091785 | K60: =J60*'Inputs and Summary'!$B$22/100*B60/1.023 -> 10.84240958 | L60: 0 | M60: =M59*(1+'Inputs and Summary'!$B$4)+2.25*(1+'Inputs and Summary'!$B$4)^(A60-('Inputs and Summary'!$B$14+1)) -> 86.02477077 | N60: =N59*(1+'Inputs and Summary'!$B$4)+3.25*(1+'Inputs and Summary'!$B$4)^(A60-('Inputs and Summary'!$B$14+1)) -> 130.1400378 | O60: 814796.1877 | P60: =-CHOOSE('Inputs and Summary'!$B$21,L60:L112,M59:M112,N59:N112)*O60/10^6 -> -70.09265527 | Q60: -166.6859244 | R60: =+R59*(1+'Inputs and Summary'!$B$4)*B60 -> -13.75047077 | S60: =+S59*(1+'Inputs and Summary'!$B$4)*B60 -> -8.48142377 | T60: 193.5144911 | U60: -2.473889254 | V60: -261.4843634 | W60: -15.46790937 | Y60: 0 | Z60: -15.46790937 | AA60: =+'Inputs and Summary'!$B$5 -> 0.35 | AB60: 5.41376828 | AD60: -10.05414109
A61: 2036 | B61: =1*(SUM($B$41:B60)<$D$22) -> 1 | C61: 2427524.55 | D61: 173.779521 | E61: 194.9028752 | F61: 295.4184971 | G61: =+G60*(1+'Inputs and Summary'!$B$4) -> 177.3464385 | H61: 52.39141833 | I61: 15373512.98 | J61: 11.771358 | K61: =J61*'Inputs and Summary'!$B$22/100*B61/1.023 -> 11.50670381 | L61: 0 | M61: =M60*(1+'Inputs and Summary'!$B$4)+2.25*(1+'Inputs and Summary'!$B$4)^(A61-('Inputs and Summary'!$B$14+1)) -> 92.24502343 | N61: =N60*(1+'Inputs and Summary'!$B$4)+3.25*(1+'Inputs and Summary'!$B$4)^(A61-('Inputs and Summary'!$B$14+1)) -> 139.2718981 | O61: 814796.1877 | P61: =-CHOOSE('Inputs and Summary'!$B$21,L61:L113,M60:M113,N60:N113)*O61/10^6 -> -75.16089342 | Q61: -176.8984604 | R61: =+R60*(1+'Inputs and Summary'!$B$4)*B61 -> -14.09423254 | S61: =+S60*(1+'Inputs and Summary'!$B$4)*B61 -> -8.693459365 | T61: 184.0747598 | U61: -2.353211729 | V61: -277.2002574 | W61: -29.90596389 | Y61: 0 | Z61: -29.90596389 | AA61: =+'Inputs and Summary'!$B$5 -> 0.35 | AB61: 10.46708736 | AD61: -19.43887653
A62: 2037 | B62: =1*(SUM($B$41:B61)<$D$22) -> 1 | C62: 2427524.55 | D62: 173.779521 | E62: 194.9028752 | F62: 295.4184971 | G62: =+G61*(1+'Inputs and Summary'!$B$4) -> 181.7800995 | H62: 53.70120379 | I62: 15373512.98 | J62: 12.11944 | K62: =J62*'Inputs and Summary'!$B$22/100*B62/1.023 -> 11.84695992 | L62: 0 | M62: =M61*(1+'Inputs and Summary'!$B$4)+2.25*(1+'Inputs and Summary'!$B$4)^(A62-('Inputs and Summary'!$B$14+1)) -> 98.72252324 | N62: =N61*(1+'Inputs and Summary'!$B$4)+3.25*(1+'Inputs and Summary'!$B$4)^(A62-('Inputs and Summary'!$B$14+1)) -> 148.7790139 | O62: 814796.1877 | P62: =-CHOOSE('Inputs and Summary'!$B$21,L62:L114,M61:M114,N61:N114)*O62/10^6 -> -80.43873557 | Q62: -182.1293921 | R62: =+R61*(1+'Inputs and Summary'!$B$4)*B62 -> -14.44658835 | S62: =+S61*(1+'Inputs and Summary'!$B$4)*B62 -> -8.910795849 | T62: 174.6350285 | U62: -2.232534205 | V62: -288.158046 | W62: -39.55396707 | Y62: 0 | Z62: -39.55396707 | AA62: =+'Inputs and Summary'!$B$5 -> 0.35 | AB62: 13.84388848 | AD62: -25.7100786
A63: 2038 | B63: =1*(SUM($B$41:B62)<$D$22) -> 1 | C63: 2427524.55 | D63: 173.779521 | E63: 194.9028752 | F63: 295.4184971 | G63: =+G62*(1+'Inputs and Summary'!$B$4) -> 186.324602 | H63: 55.04373389 | I63: 15373512.98 | J63: 12.457963 | K63: =J63*'Inputs and Summary'!$B$22/100*B63/1.023 -> 12.17787195 | L63: 0 | M63: =M62*(1+'Inputs and Summary'!$B$4)+2.25*(1+'Inputs and Summary'!$B$4)^(A63-('Inputs and Summary'!$B$14+1)) -> 105.4662449 | N63: =N62*(1+'Inputs and Summary'!$B$4)+3.25*(1+'Inputs and Summary'!$B$4)^(A63-('Inputs and Summary'!$B$14+1)) -> 158.6744405 | O63: 814796.1877 | P63: =-CHOOSE('Inputs and Summary'!$B$21,L63:L116,M62:M116,N62:N116)*O63/10^6 -> -85.93349427 | Q63: -187.2166724 | R63: =+R62*(1+'Inputs and Summary'!$B$4)*B63 -> -14.80775306 | S63: =+S62*(1+'Inputs and Summary'!$B$4)*B63 -> -9.133565745 | T63: 165.1952972 | U63: -2.11185668 | V63: -299.2033421 | W63: -49.25673304 | Y63: 0 | Z63: -49.25673304 | AA63: =+'Inputs and Summary'!$B$5 -> 0.35 | AB63: 17.23985656 | AD63: -32.01687648
A64: 2039 | B64: =1*(SUM($B$41:B63)<$D$22) -> 1 | C64: 2427524.55 | D64: 173.779521 | E64: 194.9028752 | F64: 295.4184971 | G64: =+G63*(1+'Inputs and Summary'!$B$4) -> 190.982717 | H64: 56.41982723 | I64: 15373512.98 | J64: 13.093679 | K64: =J64*'Inputs and Summary'!$B$22/100*B64/1.023 -> 12.79929521 | L64: 0 | M64: =M63*(1+'Inputs and Summary'!$B$4)+2.25*(1+'Inputs and Summary'!$B$4)^(A64-('Inputs and Summary'!$B$14+1)) -> 112.4854511 | N64: =N63*(1+'Inputs and Summary'!$B$4)+3.25*(1+'Inputs and Summary'!$B$4)^(A64-('Inputs and Summary'!$B$14+1)) -> 168.9716516 | O64: 814796.1877 | P64: =-CHOOSE('Inputs and Summary'!$B$21,L64:L117,M63:M117,N63:N117)*O64/10^6 -> -91.65271669 | Q64: -196.770131 | R64: =+R63*(1+'Inputs and Summary'!$B$4)*B64 -> -15.17794688 | S64: =+S63*(1+'Inputs and Summary'!$B$4)*B64 -> -9.361904889 | T64: 155.755566 | U64: -1.991179155 | V64: -314.9538786 | W64: -63.63117619 | Y64: 0 | Z64: -63.63117619 | AA64: =+'Inputs and Summary'!$B$5 -> 0.35 | AB64: 22.27091167 | AD64: -41.36026452
A65: 2040 | B65: =1*(SUM($B$41:B64)<$D$22) -> 1 | C65: 2427524.55 | D65: 173.779521 | E65: 194.9028752 | F65: 295.4184971 | G65: =+G64*(1+'Inputs and Summary'!$B$4) -> 195.7572849 | H65: 57.83032291 | I65: 15373512.98 | J65: 13.824722 | K65: =J65*'Inputs and Summary'!$B$22/100*B65/1.023 -> 13.51390225 | L65: 0 | M65: =M64*(1+'Inputs and Summary'!$B$4)+2.25*(1+'Inputs and Summary'!$B$4)^(A65-('Inputs and Summary'!$B$14+1)) -> 119.7897011 | N65: =N64*(1+'Inputs and Summary'!$B$4)+3.25*(1+'Inputs and Summary'!$B$4)^(A65-('Inputs and Summary'!$B$14+1)) -> 179.6845517 | O65: 814796.1877 | P65: =-CHOOSE('Inputs and Summary'!$B$21,L65:L117,M64:M117,N64:N117)*O65/10^6 -> -97.6041918 | Q65: -207.7561516 | R65: =+R64*(1+'Inputs and Summary'!$B$4)*B65 -> -15.55739556 | S65: =+S64*(1+'Inputs and Summary'!$B$4)*B65 -> -9.595952511 | T65: 146.3158347 | U65: -1.870501631 | V65: -332.3841931 | W65: -79.65099496 | Y65: 0 | Z65: -79.65099496 | AA65: =+'Inputs and Summary'!$B$5 -> 0.35 | AB65: 27.87784824 | AD65: -51.77314672
A66: 2041 | B66: =1*(SUM($B$41:B65)<$D$22) -> 1 | C66: 2427524.55 | D66: 173.779521 | E66: 194.9028752 | F66: 295.4184971 | G66: =+G65*(1+'Inputs and Summary'!$B$4) -> 200.651217 | H66: 59.27608099 | I66: 15373512.98 | J66: =J65*1.05 -> 14.5159581 | K66: =J66*'Inputs and Summary'!$B$22/100*B66/1.023 -> 14.18959736 | L66: 0 | M66: =M65*(1+'Inputs and Summary'!$B$4)+2.25*(1+'Inputs and Summary'!$B$4)^(A66-('Inputs and Summary'!$B$14+1)) -> 127.3888603 | N66: =N65*(1+'Inputs and Summary'!$B$4)+3.25*(1+'Inputs and Summary'!$B$4)^(A66-('Inputs and Summary'!$B$14+1)) -> 190.8274895 | O66: 814796.1877 | P66: =-CHOOSE('Inputs and Summary'!$B$21,L66:L117,M65:M117,N65:N117)*O66/10^6 -> -103.7959577 | Q66: -218.1439591 | R66: =+R65*(1+'Inputs and Summary'!$B$4)*B66 -> -15.94633045 | S66: =+S65*(1+'Inputs and Summary'!$B$4)*B66 -> -9.835851324 | T66: 136.8761034 | U66: -1.749824106 | V66: -349.4719227 | W66: -95.29296656 | Y66: 0 | Z66: -95.29296656 | AA66: =+'Inputs and Summary'!$B$5 -> 0.35 | AB66: 33.3525383 | AD66: -61.94042826
A67: 2042 | B67: =1*(SUM($B$41:B66)<$D$22) -> 1 | C67: 2427524.55 | D67: 173.779521 | E67: 194.9028752 | F67: 295.4184971 | G67: =+G66*(1+'Inputs and Summary'!$B$4) -> 205.6674975 | H67: 60.75798301 | I67: 15373512.98 | J67: =J66*1.05 -> 15.24175601 | K67: =J67*'Inputs and Summary'!$B$22/100*B67/1.023 -> 14.89907723 | L67: 0 | M67: =M66*(1+'Inputs and Summary'!$B$4)+2.25*(1+'Inputs and Summary'!$B$4)^(A67-('Inputs and Summary'!$B$14+1)) -> 135.2931089 | N67: =N66*(1+'Inputs and Summary'!$B$4)+3.25*(1+'Inputs and Summary'!$B$4)^(A67-('Inputs and Summary'!$B$14+1)) -> 202.4152714 | O67: 814796.1877 | P67: =-CHOOSE('Inputs and Summary'!$B$21,L67:L122,M66:M122,N66:N122)*O67/10^6 -> -110.2363093 | Q67: -229.0511571 | R67: =+R66*(1+'Inputs and Summary'!$B$4)*B67 -> -16.34498871 | S67: =+S66*(1+'Inputs and Summary'!$B$4)*B67 -> -10.08174761 | T67: 127.4363722 | U67: -1.629146582 | V67: -367.3433493 | W67: -111.6824911 | Y67: 0 | Z67: -111.6824911 | AA67: =+'Inputs and Summary'!$B$5 -> 0.35 | AB67: 39.08887189 | AD67: -72.59361922
A68: 2043 | B68: =1*(SUM($B$41:B67)<$D$22) -> 1 | C68: 2427524.55 | D68: 173.779521 | E68: 194.9028752 | F68: 295.4184971 | G68: =+G67*(1+'Inputs and Summary'!$B$4) -> 210.8091849 | H68: 62.27693259 | I68: 15373512.98 | J68: 16.00384381 | K68: =J68*'Inputs and Summary'!$B$22/100*B68/1.023 -> 15.64403109 | L68: 0 | M68: =M67*(1+'Inputs and Summary'!$B$4)+2.25*(1+'Inputs and Summary'!$B$4)^(A68-('Inputs and Summary'!$B$14+1)) -> 143.5129518 | N68: =N67*(1+'Inputs and Summary'!$B$4)+3.25*(1+'Inputs and Summary'!$B$4)^(A68-('Inputs and Summary'!$B$14+1)) -> 214.4631752 | O68: 814796.1877 | P68: =-CHOOSE('Inputs and Summary'!$B$21,L68:L122,M67:M122,N67:N122)*O68/10^6 -> -116.933806 | Q68: -240.5037149 | R68: =+R67*(1+'Inputs and Summary'!$B$4)*B68 -> -16.75361342 | S68: =+S67*(1+'Inputs and Summary'!$B$4)*B68 -> -10.3337913 | T68: 117.9966409 | U68: -1.508469057 | V68: -386.0333947 | W68: -128.853587 | Y68: 0 | Z68: -128.853587 | AA68: =+'Inputs and Summary'!$B$5 -> 0.35 | AB68: 45.09875544 | AD68: -83.75483153
A69: 2044 | B69: =1*(SUM($B$41:B68)<$D$22) -> 1 | C69: 2427524.55 | D69: 173.779521 | E69: 194.9028752 | F69: 295.4184971 | G69: =+G68*(1+'Inputs and Summary'!$B$4) -> 216.0794145 | H69: 63.8338559 | I69: 15373512.98 | J69: 16.804036 | K69: =J69*'Inputs and Summary'!$B$22/100*B69/1.023 -> 16.42623264 | L69: 0 | M69: =M68*(1+'Inputs and Summary'!$B$4)+2.25*(1+'Inputs and Summary'!$B$4)^(A69-('Inputs and Summary'!$B$14+1)) -> 152.0592287 | N69: =N68*(1+'Inputs and Summary'!$B$4)+3.25*(1+'Inputs and Summary'!$B$4)^(A69-('Inputs and Summary'!$B$14+1)) -> 226.9869646 | O69: 814796.1877 | P69: =-CHOOSE('Inputs and Summary'!$B$21,L69:L122,M68:M122,N68:N122)*O69/10^6 -> -123.8972799 | Q69: -252.5289007 | R69: =+R68*(1+'Inputs and Summary'!$B$4)*B69 -> -17.17245376 | S69: =+S68*(1+'Inputs and Summary'!$B$4)*B69 -> -10.59213608 | T69: 108.5569096 | U69: -1.387791533 | V69: -405.5785619 | W69: -146.8418308 | Y69: 0 | Z69: -146.8418308 | AA69: =+'Inputs and Summary'!$B$5 -> 0.35 | AB69: 51.39464079 | AD69: -95.44719004
A70: 2045 | B70: =1*(SUM($B$41:B69)<$D$22) -> 1 | C70: 2427524.55 | D70: 173.779521 | E70: 194.9028752 | F70: 295.4184971 | G70: =+G69*(1+'Inputs and Summary'!$B$4) -> 221.4813999 | H70: 65.4297023 | I70: 15373512.98 | J70: 17.6442378 | K70: =J70*'Inputs and Summary'!$B$22/100*B70/1.023 -> 17.24754428 | L70: 0 | M70: =M69*(1+'Inputs and Summary'!$B$4)+2.25*(1+'Inputs and Summary'!$B$4)^(A70-('Inputs and Summary'!$B$14+1)) -> 160.9431239 | N70: =N69*(1+'Inputs and Summary'!$B$4)+3.25*(1+'Inputs and Summary'!$B$4)^(A70-('Inputs and Summary'!$B$14+1)) -> 240.002904 | O70: 814796.1877 | P70: =-CHOOSE('Inputs and Summary'!$B$21,L70:L122,M69:M122,N69:N122)*O70/10^6 -> -131.1358438 | Q70: -265.1553457 | R70: =+R69*(1+'Inputs and Summary'!$B$4)*B70 -> -17.6017651 | S70: =+S69*(1+'Inputs and Summary'!$B$4)*B70 -> -10.85693948 | T70: 99.11717835 | U70: -1.267114008 | V70: -426.0170081 | W70: -165.6844306 | Y70: 0 | Z70: -165.6844306 | AA70: =+'Inputs and Summary'!$B$5 -> 0.35 | AB70: 57.98955071 | AD70: -107.6948799
A71: 2046 | B71: =1*(SUM($B$41:B70)<$D$22) -> 1 | C71: 2427524.55 | D71: 173.779521 | E71: 194.9028752 | F71: 295.4184971 | G71: =+G70*(1+'Inputs and Summary'!$B$4) -> 227.0184349 | H71: 67.06544486 | I71: 15373512.98 | J71: 18.52644969 | K71: =J71*'Inputs and Summary'!$B$22/100*B71/1.023 -> 18.10992149 | L71: 0 | M71: =M70*(1+'Inputs and Summary'!$B$4)+2.25*(1+'Inputs and Summary'!$B$4)^(A71-('Inputs and Summary'!$B$14+1)) -> 170.1761768 | N71: =N70*(1+'Inputs and Summary'!$B$4)+3.25*(1+'Inputs and Summary'!$B$4)^(A71-('Inputs and Summary'!$B$14+1)) -> 253.5277735 | O71: 814796.1877 | P71: =-CHOOSE('Inputs and Summary'!$B$21,L71:L122,M70:M122,N70:N122)*O71/10^6 -> -138.6589001 | Q71: -278.413113 | R71: =+R70*(1+'Inputs and Summary'!$B$4)*B71 -> -18.04180923 | S71: =+S70*(1+'Inputs and Summary'!$B$4)*B71 -> -11.12836297 | T71: 89.67744708 | U71: -1.146436483 | V71: -447.3886218 | W71: -185.4203017 | Y71: 0 | Z71: -185.4203017 | AA71: =+'Inputs and Summary'!$B$5 -> 0.35 | AB71: 64.8971056 | AD71: -120.5231961
A72: 2047 | B72: =1*(SUM($B$41:B71)<$D$22) -> 1 | C72: 2427524.55 | D72: 173.779521 | E72: 194.9028752 | F72: 295.4184971 | G72: =+G71*(1+'Inputs and Summary'!$B$4) -> 232.6938958 | H72: 68.74208098 | I72: 15373512.98 | J72: 19.45277217 | K72: =J72*'Inputs and Summary'!$B$22/100*B72/1.023 -> 19.01541757 | L72: 0 | M72: =M71*(1+'Inputs and Summary'!$B$4)+2.25*(1+'Inputs and Summary'!$B$4)^(A72-('Inputs and Summary'!$B$14+1)) -> 179.7702928 | N72: =N71*(1+'Inputs and Summary'!$B$4)+3.25*(1+'Inputs and Summary'!$B$4)^(A72-('Inputs and Summary'!$B$14+1)) -> 267.5788847 | O72: 814796.1877 | P72: =-CHOOSE('Inputs and Summary'!$B$21,L72:L123,M71:M123,N71:N123)*O72/10^6 -> -146.4761493 | Q72: -292.3337687 | R72: =+R71*(1+'Inputs and Summary'!$B$4)*B72 -> -18.49285446 | S72: =+S71*(1+'Inputs and Summary'!$B$4)*B72 -> -11.40657204 | T72: 80.23771581 | U72: -1.025758959 | V72: -469.7351034 | W72: -206.0901472 | Y72: 0 | Z72: -206.0901472 | AA72: =+'Inputs and Summary'!$B$5 -> 0.35 | AB72: 72.13155153 | AD72: -133.9585957
A73: 2048 | B73: =1*(SUM($B$41:B72)<$D$22) -> 1 | C73: 2427524.55 | D73: 173.779521 | E73: 194.9028752 | F73: 295.4184971 | G73: =+G72*(1+'Inputs and Summary'!$B$4) -> 238.5112432 | H73: 70.460633 | I73: 15373512.98 | J73: 20.42541078 | K73: =J73*'Inputs and Summary'!$B$22/100*B73/1.023 -> 19.96618844 | L73: 0 | M73: =M72*(1+'Inputs and Summary'!$B$4)+2.25*(1+'Inputs and Summary'!$B$4)^(A73-('Inputs and Summary'!$B$14+1)) -> 189.7377546 | N73: =N72*(1+'Inputs and Summary'!$B$4)+3.25*(1+'Inputs and Summary'!$B$4)^(A73-('Inputs and Summary'!$B$14+1)) -> 282.1740966 | O73: 814796.1877 | P73: =-CHOOSE('Inputs and Summary'!$B$21,L73:L123,M72:M123,N72:N123)*O73/10^6 -> -154.5975991 | Q73: -306.9504571 | R73: =+R72*(1+'Inputs and Summary'!$B$4)*B73 -> -18.95517582 | S73: =+S72*(1+'Inputs and Summary'!$B$4)*B73 -> -11.69173634 | T73: 70.79798454 | U73: -0.9050814343 | V73: -493.1000498 | W73: -227.7365416 | Y73: 0 | Z73: -227.7365416 | AA73: =+'Inputs and Summary'!$B$5 -> 0.35 | AB73: 79.70778958 | AD73: -148.0287521
A74: 2049 | B74: =1*(SUM($B$41:B73)<$D$22) -> 0 | C74: 0 | D74: 0 | E74: 0 | F74: 0 | G74: =+G73*(1+'Inputs and Summary'!$B$4) -> 244.4740242 | H74: 0 | I74: 0 | J74: 21.44668132 | K74: =J74*'Inputs and Summary'!$B$22/100*B74/1.023 -> 0 | L74: 0 | M74: =M73*(1+'Inputs and Summary'!$B$4)+2.25*(1+'Inputs and Summary'!$B$4)^(A74-('Inputs and Summary'!$B$14+1)) -> 200.0912331 | N74: =N73*(1+'Inputs and Summary'!$B$4)+3.25*(1+'Inputs and Summary'!$B$4)^(A74-('Inputs and Summary'!$B$14+1)) -> 297.3318323 | O74: 0 | P74: =-CHOOSE('Inputs and Summary'!$B$21,L74:L123,M73:M123,N73:N123)*O74/10^6 -> 0 | Q74: 0 | R74: =+R73*(1+'Inputs and Summary'!$B$4)*B74 -> 0 | S74: =+S73*(1+'Inputs and Summary'!$B$4)*B74 -> 0 | T74: 0 | U74: 0 | V74: 0 | W74: 0 | Y74: 0 | Z74: 0 | AA74: =+'Inputs and Summary'!$B$5 -> 0.35 | AB74: 0 | AD74: 0
A75: 2050 | B75: =1*(SUM($B$41:B74)<$D$22) -> 0 | C75: 0 | D75: =B75*$B$111/$D$32 -> 0 | E75: =+D75*$D$32 -> 0 | F75: =+B75*$D$8*$D$23 -> 0 | G75: =+G74*(1+'Inputs and Summary'!$B$4) -> 250.5858748 | H75: 0 | I75: 0 | J75: 22.51901538 | K75: =J75*'Inputs and Summary'!$B$22/100*B75/1.023 -> 0 | L75: 0 | M75: =M74*(1+'Inputs and Summary'!$B$4)+2.25*(1+'Inputs and Summary'!$B$4)^(A75-('Inputs and Summary'!$B$14+1)) -> 210.8437993 | N75: =N74*(1+'Inputs and Summary'!$B$4)+3.25*(1+'Inputs and Summary'!$B$4)^(A75-('Inputs and Summary'!$B$14+1)) -> 313.071096 | O75: 0 | P75: =-CHOOSE('Inputs and Summary'!$B$21,L75:L123,M74:M123,N74:N123)*O75/10^6 -> 0 | Q75: 0 | R75: =+R74*(1+'Inputs and Summary'!$B$4)*B75 -> 0 | S75: =+S74*(1+'Inputs and Summary'!$B$4)*B75 -> 0 | T75: 0 | U75: 0 | V75: =P75+Q75+R75+S75+U75 -> 0 | W75: =+E75+H75+V75 -> 0 | Y75: =-X75*$D$12 -> 0 | Z75: =+W75+Y75 -> 0 | AA75: =+'Inputs and Summary'!$B$5 -> 0.35 | AB75: =-Z75*AA75 -> 0 | AD75: =+W75+AB75+AC75 -> 0
A76: 2051 | B76: =1*(SUM($B$41:B75)<$D$22) -> 0 | C76: 0 | D76: 0 | E76: 0 | F76: 0 | G76: =+G75*(1+'Inputs and Summary'!$B$4) -> 256.8505217 | H76: 0 | I76: =C76*$D$16/10^3 -> 0 | J76: 23.64496615 | K76: =J76*'Inputs and Summary'!$B$22/100*B76/1.023 -> 0 | L76: 0 | M76: =M75*(1+'Inputs and Summary'!$B$4)+2.25*(1+'Inputs and Summary'!$B$4)^(A76-('Inputs and Summary'!$B$14+1)) -> 222.0089369 | N76: =N75*(1+'Inputs and Summary'!$B$4)+3.25*(1+'Inputs and Summary'!$B$4)^(A76-('Inputs and Summary'!$B$14+1)) -> 329.4114904 | O76: =+I76*$D$17 -> 0 | P76: =-CHOOSE('Inputs and Summary'!$B$21,L76:L123,M75:M123,N75:N123)*O76/10^6 -> 0 | Q76: 0 | R76: =+R75*(1+'Inputs and Summary'!$B$4)*B76 -> 0 | S76: =+S75*(1+'Inputs and Summary'!$B$4)*B76 -> 0 | T76: =$D$12*((1-$D$39)*(($D$22-(A76-$A$43))/$D$22)+$D$39)*B76 -> 0 | U76: =-$D$38*$D$37*T76*B76 -> 0 | V76: 0 | W76: 0 | Y76: 0 | Z76: 0 | AA76: =+'Inputs and Summary'!$B$5 -> 0.35 | AB76: 0 | AD76: 0
A77: 2052 | B77: =1*(SUM($B$41:B76)<$D$22) -> 0 | C77: 0 | D77: 0 | E77: 0 | F77: 0 | G77: =+G76*(1+'Inputs and Summary'!$B$4) -> 263.2717848 | H77: 0 | I77: 0 | J77: 24.82721446 | K77: =J77*'Inputs and Summary'!$B$22/100*B77/1.023 -> 0 | L77: 0 | M77: =M76*(1+'Inputs and Summary'!$B$4)+2.25*(1+'Inputs and Summary'!$B$4)^(A77-('Inputs and Summary'!$B$14+1)) -> 233.6005539 | N77: =N76*(1+'Inputs and Summary'!$B$4)+3.25*(1+'Inputs and Summary'!$B$4)^(A77-('Inputs and Summary'!$B$14+1)) -> 346.3732352 | O77: 0 | P77: =-CHOOSE('Inputs and Summary'!$B$21,L77:L123,M76:M123,N76:N123)*O77/10^6 -> 0 | Q77: 0 | R77: =+R76*(1+'Inputs and Summary'!$B$4)*B77 -> 0 | S77: =+S76*(1+'Inputs and Summary'!$B$4)*B77 -> 0 | T77: 0 | U77: 0 | V77: 0 | W77: 0 | Y77: 0 | Z77: 0 | AA77: =+'Inputs and Summary'!$B$5 -> 0.35 | AB77: 0 | AD77: 0
A78: 2053 | B78: =1*(SUM($B$41:B77)<$D$22) -> 0 | C78: 0 | D78: 0 | E78: 0 | F78: 0 | G78: =+G77*(1+'Inputs and Summary'!$B$4) -> 269.8535794 | H78: 0 | I78: 0 | J78: 26.06857518 | K78: =J78*'Inputs and Summary'!$B$22/100*B78/1.023 -> 0 | L78: 0 | M78: =M77*(1+'Inputs and Summary'!$B$4)+2.25*(1+'Inputs and Summary'!$B$4)^(A78-('Inputs and Summary'!$B$14+1)) -> 245.6329963 | N78: =N77*(1+'Inputs and Summary'!$B$4)+3.25*(1+'Inputs and Summary'!$B$4)^(A78-('Inputs and Summary'!$B$14+1)) -> 363.9771849 | O78: 0 | P78: =-CHOOSE('Inputs and Summary'!$B$21,L78:L123,M77:M123,N77:N123)*O78/10^6 -> 0 | Q78: 0 | R78: =+R77*(1+'Inputs and Summary'!$B$4)*B78 -> 0 | S78: =+S77*(1+'Inputs and Summary'!$B$4)*B78 -> 0 | T78: 0 | U78: 0 | V78: 0 | W78: 0 | Y78: 0 | Z78: 0 | AA78: =+'Inputs and Summary'!$B$5 -> 0.35 | AB78: 0 | AD78: 0
A79: 2054 | B79: =1*(SUM($B$41:B78)<$D$22) -> 0 | C79: 0 | D79: 0 | E79: 0 | F79: 0 | G79: =+G78*(1+'Inputs and Summary'!$B$4) -> 276.5999189 | H79: 0 | I79: 0 | J79: 27.37200394 | K79: =J79*'Inputs and Summary'!$B$22/100*B79/1.023 -> 0 | L79: 0 | M79: =M78*(1+'Inputs and Summary'!$B$4)+2.25*(1+'Inputs and Summary'!$B$4)^(A79-('Inputs and Summary'!$B$14+1)) -> 258.1210604 | N79: =N78*(1+'Inputs and Summary'!$B$4)+3.25*(1+'Inputs and Summary'!$B$4)^(A79-('Inputs and Summary'!$B$14+1)) -> 382.244849 | O79: 0 | P79: =-CHOOSE('Inputs and Summary'!$B$21,L79:L123,M78:M123,N78:N123)*O79/10^6 -> 0 | Q79: 0 | R79: =+R78*(1+'Inputs and Summary'!$B$4)*B79 -> 0 | S79: =+S78*(1+'Inputs and Summary'!$B$4)*B79 -> 0 | T79: 0 | U79: 0 | V79: 0 | W79: 0 | Y79: 0 | Z79: 0 | AA79: =+'Inputs and Summary'!$B$5 -> 0.35 | AB79: 0 | AD79: 0
A80: 2055 | B80: =1*(SUM($B$41:B79)<$D$22) -> 0 | C80: 0 | D80: 0 | E80: 0 | F80: 0 | G80: =+G79*(1+'Inputs and Summary'!$B$4) -> 283.5149168 | H80: 0 | I80: 0 | J80: 28.74060414 | K80: =J80*'Inputs and Summary'!$B$22/100*B80/1.023 -> 0 | L80: 0 | M80: =M79*(1+'Inputs and Summary'!$B$4)+2.25*(1+'Inputs and Summary'!$B$4)^(A80-('Inputs and Summary'!$B$14+1)) -> 271.080007 | N80: =N79*(1+'Inputs and Summary'!$B$4)+3.25*(1+'Inputs and Summary'!$B$4)^(A80-('Inputs and Summary'!$B$14+1)) -> 401.1984104 | O80: 0 | P80: =-CHOOSE('Inputs and Summary'!$B$21,L80:L123,M79:M123,N79:N123)*O80/10^6 -> 0 | Q80: 0 | R80: =+R79*(1+'Inputs and Summary'!$B$4)*B80 -> 0 | S80: =+S79*(1+'Inputs and Summary'!$B$4)*B80 -> 0 | T80: 0 | U80: 0 | V80: 0 | W80: 0 | Y80: 0 | Z80: 0 | AA80: =+'Inputs and Summary'!$B$5 -> 0.35 | AB80: 0 | AD80: 0
A81: 2056 | B81: =1*(SUM($B$41:B80)<$D$22) -> 0 | C81: 0 | D81: 0 | E81: 0 | F81: 0 | G81: =+G80*(1+'Inputs and Summary'!$B$4) -> 290.6027898 | H81: 0 | I81: 0 | J81: 30.17763435 | K81: =J81*'Inputs and Summary'!$B$22/100*B81/1.023 -> 0 | L81: 0 | M81: =M80*(1+'Inputs and Summary'!$B$4)+2.25*(1+'Inputs and Summary'!$B$4)^(A81-('Inputs and Summary'!$B$14+1)) -> 284.5255754 | N81: =N80*(1+'Inputs and Summary'!$B$4)+3.25*(1+'Inputs and Summary'!$B$4)^(A81-('Inputs and Summary'!$B$14+1)) -> 420.8607469 | O81: 0 | P81: =-CHOOSE('Inputs and Summary'!$B$21,L81:L123,M80:M123,N80:N123)*O81/10^6 -> 0 | Q81: 0 | R81: =+R80*(1+'Inputs and Summary'!$B$4)*B81 -> 0 | S81: =+S80*(1+'Inputs and Summary'!$B$4)*B81 -> 0 | T81: 0 | U81: 0 | V81: 0 | W81: 0 | Y81: 0 | Z81: 0 | AA81: =+'Inputs and Summary'!$B$5 -> 0.35 | AB81: 0 | AD81: 0
A82: 2057 | B82: =1*(SUM($B$41:B81)<$D$22) -> 0 | C82: 0 | D82: 0 | E82: 0 | F82: 0 | G82: =+G81*(1+'Inputs and Summary'!$B$4) -> 297.8678595 | H82: 0 | I82: 0 | J82: 31.68651606 | K82: =J82*'Inputs and Summary'!$B$22/100*B82/1.023 -> 0 | L82: 0 | M82: =M81*(1+'Inputs and Summary'!$B$4)+2.25*(1+'Inputs and Summary'!$B$4)^(A82-('Inputs and Summary'!$B$14+1)) -> 298.4739972 | N82: =N81*(1+'Inputs and Summary'!$B$4)+3.25*(1+'Inputs and Summary'!$B$4)^(A82-('Inputs and Summary'!$B$14+1)) -> 441.2554513 | O82: 0 | P82: =-CHOOSE('Inputs and Summary'!$B$21,L82:L123,M81:M123,N81:N123)*O82/10^6 -> 0 | Q82: 0 | R82: =+R81*(1+'Inputs and Summary'!$B$4)*B82 -> 0 | S82: =+S81*(1+'Inputs and Summary'!$B$4)*B82 -> 0 | T82: 0 | U82: 0 | V82: 0 | W82: 0 | Y82: 0 | Z82: 0 | AA82: =+'Inputs and Summary'!$B$5 -> 0.35 | AB82: 0 | AD82: 0
A83: 2058 | B83: =1*(SUM($B$41:B82)<$D$22) -> 0 | C83: 0 | D83: 0 | E83: 0 | F83: 0 | G83: =+G82*(1+'Inputs and Summary'!$B$4) -> 305.314556 | H83: 0 | I83: 0 | J83: 33.27084187 | K83: =J83*'Inputs and Summary'!$B$22/100*B83/1.023 -> 0 | L83: 0 | M83: =M82*(1+'Inputs and Summary'!$B$4)+2.25*(1+'Inputs and Summary'!$B$4)^(A83-('Inputs and Summary'!$B$14+1)) -> 312.9420115 | N83: =N82*(1+'Inputs and Summary'!$B$4)+3.25*(1+'Inputs and Summary'!$B$4)^(A83-('Inputs and Summary'!$B$14+1)) -> 462.4068528 | O83: 0 | P83: =-CHOOSE('Inputs and Summary'!$B$21,L83:L127,M82:M127,N82:N127)*O83/10^6 -> 0 | Q83: 0 | R83: =+R82*(1+'Inputs and Summary'!$B$4)*B83 -> 0 | S83: =+S82*(1+'Inputs and Summary'!$B$4)*B83 -> 0 | T83: 0 | U83: 0 | V83: 0 | W83: 0 | Y83: 0 | Z83: 0 | AA83: =+'Inputs and Summary'!$B$5 -> 0.35 | AB83: 0 | AD83: 0
A84: 2059 | B84: =1*(SUM($B$41:B83)<$D$22) -> 0 | C84: 0 | D84: 0 | E84: 0 | F84: 0 | G84: =+G83*(1+'Inputs and Summary'!$B$4) -> 312.9474199 | H84: 0 | I84: 0 | J84: 34.93438396 | K84: =J84*'Inputs and Summary'!$B$22/100*B84/1.023 -> 0 | L84: 0 | M84: =M83*(1+'Inputs and Summary'!$B$4)+2.25*(1+'Inputs and Summary'!$B$4)^(A84-('Inputs and Summary'!$B$14+1)) -> 327.9468804 | N84: =N83*(1+'Inputs and Summary'!$B$4)+3.25*(1+'Inputs and Summary'!$B$4)^(A84-('Inputs and Summary'!$B$14+1)) -> 484.3400398 | O84: 0 | P84: =-CHOOSE('Inputs and Summary'!$B$21,L84:L128,M83:M128,N83:N128)*O84/10^6 -> 0 | Q84: 0 | R84: =+R83*(1+'Inputs and Summary'!$B$4)*B84 -> 0 | S84: =+S83*(1+'Inputs and Summary'!$B$4)*B84 -> 0 | T84: 0 | U84: 0 | V84: 0 | W84: 0 | Y84: 0 | Z84: 0 | AA84: =+'Inputs and Summary'!$B$5 -> 0.35 | AB84: 0 | AD84: 0
A85: 2060 | B85: =1*(SUM($B$41:B84)<$D$22) -> 0 | C85: 0 | D85: 0 | E85: 0 | F85: 0 | G85: =+G84*(1+'Inputs and Summary'!$B$4) -> 320.7711054 | H85: 0 | I85: 0 | J85: 36.68110316 | K85: =J85*'Inputs and Summary'!$B$22/100*B85/1.023 -> 0 | L85: 0 | M85: =M84*(1+'Inputs and Summary'!$B$4)+2.25*(1+'Inputs and Summary'!$B$4)^(A85-('Inputs and Summary'!$B$14+1)) -> 343.5064039 | N85: =N84*(1+'Inputs and Summary'!$B$4)+3.25*(1+'Inputs and Summary'!$B$4)^(A85-('Inputs and Summary'!$B$14+1)) -> 507.0808819 | O85: 0 | P85: =-CHOOSE('Inputs and Summary'!$B$21,L85:L129,M84:M129,N84:N129)*O85/10^6 -> 0 | Q85: 0 | R85: =+R84*(1+'Inputs and Summary'!$B$4)*B85 -> 0 | S85: =+S84*(1+'Inputs and Summary'!$B$4)*B85 -> 0 | T85: 0 | U85: 0 | V85: 0 | W85: 0 | Y85: 0 | Z85: 0 | AA85: =+'Inputs and Summary'!$B$5 -> 0.35 | AB85: 0 | AD85: 0
A86: 2061 | B86: =1*(SUM($B$41:B85)<$D$22) -> 0 | C86: 0 | D86: 0 | E86: 0 | F86: 0 | G86: =+G85*(1+'Inputs and Summary'!$B$4) -> 328.790383 | H86: 0 | I86: 0 | J86: 38.51515831 | K86: =J86*'Inputs and Summary'!$B$22/100*B86/1.023 -> 0 | L86: 0 | M86: =M85*(1+'Inputs and Summary'!$B$4)+2.25*(1+'Inputs and Summary'!$B$4)^(A86-('Inputs and Summary'!$B$14+1)) -> 359.6389368 | N86: =N85*(1+'Inputs and Summary'!$B$4)+3.25*(1+'Inputs and Summary'!$B$4)^(A86-('Inputs and Summary'!$B$14+1)) -> 530.6560536 | O86: 0 | P86: =-CHOOSE('Inputs and Summary'!$B$21,L86:L130,M85:M130,N85:N130)*O86/10^6 -> 0 | Q86: 0 | R86: =+R85*(1+'Inputs and Summary'!$B$4)*B86 -> 0 | S86: =+S85*(1+'Inputs and Summary'!$B$4)*B86 -> 0 | T86: 0 | U86: 0 | V86: 0 | W86: 0 | Y86: 0 | Z86: 0 | AA86: =+'Inputs and Summary'!$B$5 -> 0.35 | AB86: 0 | AD86: 0
A87: 2062 | B87: =1*(SUM($B$41:B86)<$D$22) -> 0 | C87: 0 | D87: 0 | E87: 0 | F87: 0 | G87: =+G86*(1+'Inputs and Summary'!$B$4) -> 337.0101426 | H87: 0 | I87: 0 | J87: 40.44091623 | K87: =J87*'Inputs and Summary'!$B$22/100*B87/1.023 -> 0 | L87: 0 | M87: =M86*(1+'Inputs and Summary'!$B$4)+2.25*(1+'Inputs and Summary'!$B$4)^(A87-('Inputs and Summary'!$B$14+1)) -> 376.3634048 | N87: =N86*(1+'Inputs and Summary'!$B$4)+3.25*(1+'Inputs and Summary'!$B$4)^(A87-('Inputs and Summary'!$B$14+1)) -> 555.0930582 | O87: 0 | P87: =-CHOOSE('Inputs and Summary'!$B$21,L87:L131,M86:M131,N86:N131)*O87/10^6 -> 0 | Q87: 0 | R87: =+R86*(1+'Inputs and Summary'!$B$4)*B87 -> 0 | S87: =+S86*(1+'Inputs and Summary'!$B$4)*B87 -> 0 | T87: 0 | U87: 0 | V87: 0 | W87: 0 | Y87: 0 | Z87: 0 | AA87: =+'Inputs and Summary'!$B$5 -> 0.35 | AB87: 0 | AD87: 0
A88: 2063 | B88: =1*(SUM($B$41:B87)<$D$22) -> 0 | C88: 0 | D88: 0 | E88: 0 | F88: 0 | G88: =+G87*(1+'Inputs and Summary'!$B$4) -> 345.4353962 | H88: 0 | I88: 0 | J88: 42.46296204 | K88: =J88*'Inputs and Summary'!$B$22/100*B88/1.023 -> 0 | L88: 0 | M88: =M87*(1+'Inputs and Summary'!$B$4)+2.25*(1+'Inputs and Summary'!$B$4)^(A88-('Inputs and Summary'!$B$14+1)) -> 393.6993219 | N88: =N87*(1+'Inputs and Summary'!$B$4)+3.25*(1+'Inputs and Summary'!$B$4)^(A88-('Inputs and Summary'!$B$14+1)) -> 580.4202531 | O88: 0 | P88: =-CHOOSE('Inputs and Summary'!$B$21,L88:L132,M87:M132,N87:N132)*O88/10^6 -> 0 | Q88: 0 | R88: =+R87*(1+'Inputs and Summary'!$B$4)*B88 -> 0 | S88: =+S87*(1+'Inputs and Summary'!$B$4)*B88 -> 0 | T88: 0 | U88: 0 | V88: 0 | W88: 0 | Y88: 0 | Z88: 0 | AA88: =+'Inputs and Summary'!$B$5 -> 0.35 | AB88: 0 | AD88: 0
A89: 2064 | B89: =1*(SUM($B$41:B88)<$D$22) -> 0 | C89: 0 | D89: 0 | E89: 0 | F89: 0 | G89: =+G88*(1+'Inputs and Summary'!$B$4) -> 354.0712811 | H89: 0 | I89: 0 | J89: 44.58611014 | K89: =J89*'Inputs and Summary'!$B$22/100*B89/1.023 -> 0 | L89: 0 | M89: =M88*(1+'Inputs and Summary'!$B$4)+2.25*(1+'Inputs and Summary'!$B$4)^(A89-('Inputs and Summary'!$B$14+1)) -> 411.6668077 | N89: =N88*(1+'Inputs and Summary'!$B$4)+3.25*(1+'Inputs and Summary'!$B$4)^(A89-('Inputs and Summary'!$B$14+1)) -> 606.6668746 | O89: 0 | P89: =-CHOOSE('Inputs and Summary'!$B$21,L89:L133,M88:M133,N88:N133)*O89/10^6 -> 0 | Q89: 0 | R89: =+R88*(1+'Inputs and Summary'!$B$4)*B89 -> 0 | S89: =+S88*(1+'Inputs and Summary'!$B$4)*B89 -> 0 | T89: 0 | U89: 0 | V89: 0 | W89: 0 | Y89: 0 | Z89: 0 | AA89: =+'Inputs and Summary'!$B$5 -> 0.35 | AB89: 0 | AD89: 0
A90: 2065 | B90: =1*(SUM($B$41:B89)<$D$22) -> 0 | C90: 0 | D90: 0 | E90: 0 | F90: 0 | G90: =+G89*(1+'Inputs and Summary'!$B$4) -> 362.9230631 | H90: 0 | I90: 0 | J90: 46.81541565 | K90: =J90*'Inputs and Summary'!$B$22/100*B90/1.023 -> 0 | L90: 0 | M90: =M89*(1+'Inputs and Summary'!$B$4)+2.25*(1+'Inputs and Summary'!$B$4)^(A90-('Inputs and Summary'!$B$14+1)) -> 430.2866058 | N90: =N89*(1+'Inputs and Summary'!$B$4)+3.25*(1+'Inputs and Summary'!$B$4)^(A90-('Inputs and Summary'!$B$14+1)) -> 633.8630644 | O90: 0 | P90: =-CHOOSE('Inputs and Summary'!$B$21,L90:L134,M89:M134,N89:N134)*O90/10^6 -> 0 | Q90: 0 | R90: =+R89*(1+'Inputs and Summary'!$B$4)*B90 -> 0 | S90: =+S89*(1+'Inputs and Summary'!$B$4)*B90 -> 0 | T90: 0 | U90: 0 | V90: 0 | W90: 0 | Y90: 0 | Z90: 0 | AA90: =+'Inputs and Summary'!$B$5 -> 0.35 | AB90: 0 | AD90: 0
A91: 2066 | B91: =1*(SUM($B$41:B90)<$D$22) -> 0 | C91: 0 | D91: 0 | E91: 0 | F91: 0 | G91: =+G90*(1+'Inputs and Summary'!$B$4) -> 371.9961397 | H91: 0 | I91: 0 | J91: 49.15618643 | K91: =J91*'Inputs and Summary'!$B$22/100*B91/1.023 -> 0 | L91: 0 | M91: =M90*(1+'Inputs and Summary'!$B$4)+2.25*(1+'Inputs and Summary'!$B$4)^(A91-('Inputs and Summary'!$B$14+1)) -> 449.580102 | N91: =N90*(1+'Inputs and Summary'!$B$4)+3.25*(1+'Inputs and Summary'!$B$4)^(A91-('Inputs and Summary'!$B$14+1)) -> 662.039897 | O91: 0 | P91: =-CHOOSE('Inputs and Summary'!$B$21,L91:L135,M90:M135,N90:N135)*O91/10^6 -> 0 | Q91: 0 | R91: =+R90*(1+'Inputs and Summary'!$B$4)*B91 -> 0 | S91: =+S90*(1+'Inputs and Summary'!$B$4)*B91 -> 0 | T91: 0 | U91: 0 | V91: 0 | W91: 0 | Y91: 0 | Z91: 0 | AA91: =+'Inputs and Summary'!$B$5 -> 0.35 | AB91: 0 | AD91: 0
A92: 2067 | B92: =1*(SUM($B$41:B91)<$D$22) -> 0 | C92: 0 | D92: 0 | E92: 0 | F92: 0 | G92: =+G91*(1+'Inputs and Summary'!$B$4) -> 381.2960432 | H92: 0 | I92: 0 | J92: 51.61399576 | K92: =J92*'Inputs and Summary'!$B$22/100*B92/1.023 -> 0 | L92: 0 | M92: =M91*(1+'Inputs and Summary'!$B$4)+2.25*(1+'Inputs and Summary'!$B$4)^(A92-('Inputs and Summary'!$B$14+1)) -> 469.5693439 | N92: =N91*(1+'Inputs and Summary'!$B$4)+3.25*(1+'Inputs and Summary'!$B$4)^(A92-('Inputs and Summary'!$B$14+1)) -> 691.2294068 | O92: 0 | P92: =-CHOOSE('Inputs and Summary'!$B$21,L92:L136,M91:M136,N91:N136)*O92/10^6 -> 0 | Q92: 0 | R92: =+R91*(1+'Inputs and Summary'!$B$4)*B92 -> 0 | S92: =+S91*(1+'Inputs and Summary'!$B$4)*B92 -> 0 | T92: 0 | U92: 0 | V92: 0 | W92: 0 | Y92: 0 | Z92: 0 | AA92: =+'Inputs and Summary'!$B$5 -> 0.35 | AB92: 0 | AD92: 0
A93: 2068 | B93: =1*(SUM($B$41:B92)<$D$22) -> 0 | C93: 0 | D93: 0 | E93: 0 | F93: 0 | G93: =+G92*(1+'Inputs and Summary'!$B$4) -> 390.8284442 | H93: 0 | I93: 0 | J93: 54.19469554 | K93: =J93*'Inputs and Summary'!$B$22/100*B93/1.023 -> 0 | L93: 0 | M93: =M92*(1+'Inputs and Summary'!$B$4)+2.25*(1+'Inputs and Summary'!$B$4)^(A93-('Inputs and Summary'!$B$14+1)) -> 490.2770603 | N93: =N92*(1+'Inputs and Summary'!$B$4)+3.25*(1+'Inputs and Summary'!$B$4)^(A93-('Inputs and Summary'!$B$14+1)) -> 721.4646171 | O93: 0 | P93: =-CHOOSE('Inputs and Summary'!$B$21,L93:L137,M92:M137,N92:N137)*O93/10^6 -> 0 | Q93: 0 | R93: =+R92*(1+'Inputs and Summary'!$B$4)*B93 -> 0 | S93: =+S92*(1+'Inputs and Summary'!$B$4)*B93 -> 0 | T93: 0 | U93: 0 | V93: 0 | W93: 0 | Y93: 0 | Z93: 0 | AA93: =+'Inputs and Summary'!$B$5 -> 0.35 | AB93: 0 | AD93: 0
A94: 2069 | B94: =1*(SUM($B$41:B93)<$D$22) -> 0 | C94: 0 | D94: 0 | E94: 0 | F94: 0 | G94: =+G93*(1+'Inputs and Summary'!$B$4) -> 400.5991553 | H94: 0 | I94: 0 | J94: 56.90443032 | K94: =J94*'Inputs and Summary'!$B$22/100*B94/1.023 -> 0 | L94: 0 | M94: =M93*(1+'Inputs and Summary'!$B$4)+2.25*(1+'Inputs and Summary'!$B$4)^(A94-('Inputs and Summary'!$B$14+1)) -> 511.7266817 | N94: =N93*(1+'Inputs and Summary'!$B$4)+3.25*(1+'Inputs and Summary'!$B$4)^(A94-('Inputs and Summary'!$B$14+1)) -> 752.7795696 | O94: 0 | P94: =-CHOOSE('Inputs and Summary'!$B$21,L94:L138,M93:M138,N93:N138)*O94/10^6 -> 0 | Q94: 0 | R94: =+R93*(1+'Inputs and Summary'!$B$4)*B94 -> 0 | S94: =+S93*(1+'Inputs and Summary'!$B$4)*B94 -> 0 | T94: 0 | U94: 0 | V94: 0 | W94: 0 | Y94: 0 | Z94: 0 | AA94: =+'Inputs and Summary'!$B$5 -> 0.35 | AB94: 0 | AD94: 0
A95: 2070 | B95: =1*(SUM($B$41:B94)<$D$22) -> 0 | C95: 0 | D95: 0 | E95: 0 | F95: 0 | G95: =+G94*(1+'Inputs and Summary'!$B$4) -> 410.6141342 | H95: 0 | I95: 0 | J95: 59.74965184 | K95: =J95*'Inputs and Summary'!$B$22/100*B95/1.023 -> 0 | L95: 0 | M95: =M94*(1+'Inputs and Summary'!$B$4)+2.25*(1+'Inputs and Summary'!$B$4)^(A95-('Inputs and Summary'!$B$14+1)) -> 533.942361 | N95: =N94*(1+'Inputs and Summary'!$B$4)+3.25*(1+'Inputs and Summary'!$B$4)^(A95-('Inputs and Summary'!$B$14+1)) -> 785.2093543 | O95: 0 | P95: =-CHOOSE('Inputs and Summary'!$B$21,L95:L139,M94:M139,N94:N139)*O95/10^6 -> 0 | Q95: 0 | R95: =+R94*(1+'Inputs and Summary'!$B$4)*B95 -> 0 | S95: =+S94*(1+'Inputs and Summary'!$B$4)*B95 -> 0 | T95: 0 | U95: 0 | V95: 0 | W95: 0 | Y95: 0 | Z95: 0 | AA95: =+'Inputs and Summary'!$B$5 -> 0.35 | AB95: 0 | AD95: 0
A96: x | B96: x | C96: x | D96: x | E96: x | F96: x | G96: x | H96: x | I96: x | J96: x | K96: x | L96: x | M96: x | N96: x | O96: x | P96: x | Q96: x | R96: x | S96: x | T96: x | U96: x | V96: x | W96: x | X96: x | Y96: x | Z96: x | AA96: x | AB96: x | AC96: x | AD96: x
A100: Transmission Tariff Calculation
A102: Expenses | B102: NPV
A103: Capacity Revenue | B103: =NPV('Inputs and Summary'!$B$12,'Combined Cycle Gas'!$H$43:$H$95) -> 470.5394133
A104: Total Expenses | B104: =NPV('Inputs and Summary'!$B$12,'Combined Cycle Gas'!$V$43:$V$95) -> -2143.321054
A105: Capital Costs | B105: =NPV('Inputs and Summary'!$B$12,'Combined Cycle Gas'!$AC$43:$AC$95) -> -328.4146331
A106: Tax Depreciation | B106: =-NPV('Inputs and Summary'!$B$12,'Combined Cycle Gas'!$Y$43:$Y$95)*'Inputs and Summary'!$B$5 -> 65.57469101
A107: Other Income Taxes | B107: =-(B103+B104)*'Inputs and Summary'!$B$5 -> 585.4735744
B108: =+SUM(B103:B107) -> -1350.148009
A109: Capitalization Factor | B109: =NPV('Inputs and Summary'!$B$12,'Combined Cycle Gas'!$B$43:$B$95) -> 10.65736347
A110: Annual RR (After-tax) | B110: =-B108/B109 -> 126.6868689
A111: Annual RR (Pre-tax) | B111: =+B110/(1-'Inputs and Summary'!$B$5) -> 194.9028752
A113: LCOE($/MWh) | B113: =D44*10^6/(C44) -> 71.58713226
G269: x

Sheet Nuclear
A1: Nuclear Plant
A2: Name | D2: Nuclear | F2: assuming no nuclear uprates, not including fuel cost escalation rate (minus inflation)
D3: (Advanced Light Water Reactor)
A4: Advanced Nuclear | E4: Source
A5: Energy Target (MWh/a) | D5: ='Oklahoma Wind + P&E'!E12 -> 2427524.55
A6: Capacity Factor (Utilization Rate) | D6: 0.9 | E6: EIA: http://www.eia.gov/forecasts/aeo/er/electricity_generation.cfm
A8: Size (MW) | D8: =+D5/(8766*D6) -> 307.6944444
A9: Capital cost ($mm/MW) | D9: =5429/1000 -> 5.429 | E9: http://www.eia.gov/forecasts/aeo/assumptions/pdf/electricity.pdf. Table 8.2.
A10: Regional Cost Adjustments | D10: 0.97 | E10: http://www.eia.gov/forecasts/capitalcost/pdf/updated_capcost.pdf Table 4
A11: Inflation Factor | D11: =(1+'Inputs and Summary'!$B$4)^(A39-'Inputs and Summary'!$B$14) -> 1.188685754
A12: Capital Cost ($mm) | D12: =+D8*D9*D10*D11 -> 1926.097593
A14: Fixed O&M ($/kW) | D14: =91.65*D11 -> 108.9430493 | E14: =+E9 -> http://www.eia.gov/forecasts/aeo/assumptions/pdf/electricity.pdf. Table 8.2.
A15: Variable O&M ($/MWh) | D15: =2.1*D11 -> 2.496240083 | E15: =+E9 -> http://www.eia.gov/forecasts/aeo/assumptions/pdf/electricity.pdf. Table 8.2.
A16: Heat rate (Btu/kWh) | D16: 10452 | E16: =E9 -> http://www.eia.gov/forecasts/aeo/assumptions/pdf/electricity.pdf. Table 8.2.
A17: Carbon Intensity (tons/mmBtu) | D17: 0 | E17: https://www.theice.com/publicdocs/ccx/CCX_GHG_Factors.pdf
A18: Average Fuel Cost (including waste management) (2012 $/MWh) | D18: 7.5 | E18: http://www.nei.org/Knowledge-Center/Nuclear-Statistics/Costs-Fuel,-Operation,-Waste-Disposal-Life-Cycle
E19: (Fuel costs are based off typical 1000 MW reactors that reload every 18-months)
A21: Property Tax | D21: below
A22: Tax depreciation | D22: 15-year MACRS
A24: Useful Life (Years) | D24: 40
A25: Nuclear PTC ($/MWh) | D25: 18 | E25: http://www.gpo.gov/fdsys/pkg/PLAW-109publ58/pdf/PLAW-109publ58.pdf. Sec. 45J
A26: PTC Annual Limit ($mm) | D26: =MIN(125*$D$8/1000,125*6) -> 38.46180556 | E26: 6000MW capacity to 125$mm bears to 1000MW
A27: PTC Base Year | D27: 2014
A28: Capacity Credit (%) | D28: =1-D30 -> 0.9761 | E28: Using (1 - EFOR)
A29: Equivalent Forced Outage Rate (PWR) | C29: MW | D29: EFOR | E29: GADS
C30: 0-800 | D30: 0.0239
A31: TOD Adjustment | D31: ='TOD Calc'!$B$22 -> 1.121552609 | E31: Assuming steady output throughout the day
A33: Assessment Percentage on Commercial Property in TN | D33: 0.4 | E33: https://www.comptroller.tn.gov/pa/paavt.asp
A34: Property Tax Rate | D34: 0.03196 | E34: https://www.comptroller.tn.gov/pa/LR.asp?W=13 | I34: (average of all counties)
A35: Residual Value (% of Capital Cost) | D35: 0.2
Y37: IRR | Z37: =IRR(Z39:Z91) -> 0.077875
A38: Year | B38: In-Service | C38: PTC Eligible | D38: Generation (MWh/a) | E38: Revenue ($mm) | F38: TOD-Adjusted Revenue ($mm) | G38: Capacity Credit (MW) | H38: Capacity Price ($k/MW-yr) | I38: Capacity Revenue ($mm) | J38: Reactor Grade Uranium Fuel Price ($/MWh) | K38: Fuel Expenses ($mm) | L38: Variable O&M | M38: Fixed O&M | N38: Total Asset Value ($mm) | O38: Property Tax | P38: Total Expenses | Q38: EBITDA | R38: Tax Depreciation (%) | S38: Tax Depreciation | T38: Taxable Income | U38: Tax Rate | V38: Cash Taxes | W38: Production Tax Credit Value ($/MWh) | X38: Production Tax Credits ($mm) | Y38: Capital Costs | Z38: After-tax Cash Flow
A39: 2018 | B39: 0 | E39: =+B39*$B$108/$D$31 -> 0 | F39: =+E39*$D$31 -> 0 | G39: =+B39*$D$8*$D$28 -> 0 | H39: ='Inputs and Summary'!$B$15*$D$11 -> 113.7084905 | I39: =+G39*H39/10^3 -> 0 | J39: =$D$18*$D$11/(1+'Inputs and Summary'!$B$4)*B39 -> 0 | K39: =-J39*D39/10^6 -> 0 | L39: 0 | M39: 0 | N39: =$D$12 -> 1926.097593 | O39: =-N39*$D$33*$D$34*B39 -> 0 | P39: =K39+L39+M39+O39 -> 0 | Q39: =+F39+I39+P39 -> 0 | S39: =-R39*$D$12 -> 0 | T39: =+Q39+S39 -> 0 | U39: =+'Inputs and Summary'!$B$5 -> 0.35 | V39: =-T39*U39 -> 0 | W39: =+ROUND($D$25*(1+'Inputs and Summary'!$B$4)^(A39-$D$27),0)*C39 -> 0 | X39: =MIN(+W39*D39/10^6,$D$26) -> 0 | Y39: =-D12 -> -1926.097593 | Z39: =+Q39+V39+Y39+X39 -> -1926.097593
A40: =+A39+1 -> 2019 | B40: 1 | C40: 1 | D40: =+D6*8766*D8 -> 2427524.55 | E40: 196.4358201 | F40: 220.3131065 | G40: 300.3405472 | H40: =+H39*(1+'Inputs and Summary'!$B$4) -> 116.5512028 | I40: =+G40*H40/10^3 -> 35.00505202 | J40: =$D$18*$D$11*B40 -> 8.915143153 | K40: =-J40*D40/10^6 -> -21.64172887 | L40: =-D40*$D$15/10^6*B40 -> -6.059684083 | M40: =-$D$14*$D$8/1000 -> -33.52117104 | N40: =$D$12*((1-$D$35)*(($D$24-(A40-$A$39))/$D$24)+$D$35)*B40 -> 1887.575642 | O40: -24.130767 | P40: =K40+L40+M40+O40 -> -85.35335099 | Q40: 169.9648075 | R40: 0.0125 | S40: -24.07621992 | T40: =+Q40+S40 -> 145.8885876 | U40: =+'Inputs and Summary'!$B$5 -> 0.35 | V40: =-T40*U40 -> -51.06100567 | W40: =+ROUND($D$25*(1+'Inputs and Summary'!$B$4)^(A40-$D$27),0)*C40 -> 20 | X40: =MIN(+W40*D40/10^6,$D$26) -> 38.46180556 | Z40: =+Q40+V40+Y40+X40 -> 157.3656074
A41: =+A40+1 -> 2020 | B41: =1*(SUM($B$33:B40)<$D$24) -> 1 | C41: 1 | D41: =+D40*B41 -> 2427524.55 | E41: 196.4358201 | F41: 220.3131065 | G41: 300.3405472 | H41: =+H40*(1+'Inputs and Summary'!$B$4) -> 119.4649828 | I41: =+G41*H41/10^3 -> 35.88017832 | J41: =+J40*(1+'Inputs and Summary'!$B$4)*B41 -> 9.138021731 | K41: =-J41*D41/10^6 -> -22.18277209 | L41: =+L40*(1+'Inputs and Summary'!$B$4)*B41 -> -6.211176186 | M41: =+M40*(1+'Inputs and Summary'!$B$4)*B41 -> -34.35920031 | N41: 1849.05369 | O41: -23.63830237 | P41: -86.39145096 | Q41: =+F41+I41+P41 -> 169.8018339 | R41: 0.09875 | S41: -190.2021374 | T41: =+Q41+S41 -> -20.40030347 | U41: =+'Inputs and Summary'!$B$5 -> 0.35 | V41: 7.140106214 | W41: =+ROUND($D$25*(1+'Inputs and Summary'!$B$4)^(A41-$D$27),0)*C41 -> 21 | X41: 38.46180556 | Z41: 215.4037457
A42: 2021 | B42: =1*(SUM($B$33:B41)<$D$24) -> 1 | C42: 1 | D42: 2427524.55 | E42: 196.4358201 | F42: 220.3131065 | G42: 300.3405472 | H42: =+H41*(1+'Inputs and Summary'!$B$4) -> 122.4516074 | I42: 36.77718278 | J42: =+J41*(1+'Inputs and Summary'!$B$4)*B42 -> 9.366472275 | K42: -22.73734139 | L42: =+L41*(1+'Inputs and Summary'!$B$4)*B42 -> -6.36645559 | M42: =+M41*(1+'Inputs and Summary'!$B$4)*B42 -> -35.21818032 | N42: 1810.531738 | O42: -23.14583774 | P42: -87.46781504 | Q42: 169.6224743 | R42: 0.088875 | S42: -171.1819236 | T42: =+Q42+S42 -> -1.559449359 | U42: =+'Inputs and Summary'!$B$5 -> 0.35 | V42: 0.5458072756 | W42: =+ROUND($D$25*(1+'Inputs and Summary'!$B$4)^(A42-$D$27),0)*C42 -> 21 | X42: 38.46180556 | Z42: 208.6300871
A43: 2022 | B43: =1*(SUM($B$33:B42)<$D$24) -> 1 | C43: 1 | D43: 2427524.55 | E43: 196.4358201 | F43: 220.3131065 | G43: 300.3405472 | H43: =+H42*(1+'Inputs and Summary'!$B$4) -> 125.5128976 | I43: 37.69661235 | J43: =+J42*(1+'Inputs and Summary'!$B$4)*B43 -> 9.600634081 | K43: -23.30577493 | L43: =+L42*(1+'Inputs and Summary'!$B$4)*B43 -> -6.52561698 | M43: =+M42*(1+'Inputs and Summary'!$B$4)*B43 -> -36.09863483 | N43: 1772.009786 | O43: -22.6533731 | P43: -88.58339984 | Q43: 169.426319 | R43: 0.0799875 | S43: -154.0637313 | T43: =+Q43+S43 -> 15.36258777 | U43: =+'Inputs and Summary'!$B$5 -> 0.35 | V43: -5.37690572 | W43: =+ROUND($D$25*(1+'Inputs and Summary'!$B$4)^(A43-$D$27),0)*C43 -> 22 | X43: 38.46180556 | Z43: 202.5112189
A44: 2023 | B44: =1*(SUM($B$33:B43)<$D$24) -> 1 | C44: 1 | D44: 2427524.55 | E44: 196.4358201 | F44: 220.3131065 | G44: 300.3405472 | H44: =+H43*(1+'Inputs and Summary'!$B$4) -> 128.65072 | I44: 38.63902766 | J44: =+J43*(1+'Inputs and Summary'!$B$4)*B44 -> 9.840649934 | K44: -23.8884193 | L44: =+L43*(1+'Inputs and Summary'!$B$4)*B44 -> -6.688757404 | M44: =+M43*(1+'Inputs and Summary'!$B$4)*B44 -> -37.0011007 | N44: 1733.487834 | O44: -22.16090847 | P44: -89.73918588 | Q44: 169.2129483 | R44: 0.07198875 | S44: -138.6573581 | T44: =+Q44+S44 -> 30.55559017 | U44: =+'Inputs and Summary'!$B$5 -> 0.35 | V44: -10.69445656 | W44: =+ROUND($D$25*(1+'Inputs and Summary'!$B$4)^(A44-$D$27),0)*C44 -> 22 | X44: 38.46180556 | Z44: 196.9802973
A45: 2024 | B45: =1*(SUM($B$33:B44)<$D$24) -> 1 | C45: 1 | D45: 2427524.55 | E45: 196.4358201 | F45: 220.3131065 | G45: 300.3405472 | H45: =+H44*(1+'Inputs and Summary'!$B$4) -> 131.866988 | I45: 39.60500335 | J45: =+J44*(1+'Inputs and Summary'!$B$4)*B45 -> 10.08666618 | K45: -24.48562978 | L45: =+L44*(1+'Inputs and Summary'!$B$4)*B45 -> -6.85597634 | M45: =+M44*(1+'Inputs and Summary'!$B$4)*B45 -> -37.92612822 | N45: 1694.965882 | O45: -21.66844384 | P45: -90.93617818 | Q45: 168.9819317 | R45: 0.064789875 | S45: -124.7916223 | T45: 44.19030937 | U45: =+'Inputs and Summary'!$B$5 -> 0.35 | V45: -15.46660828 | W45: =+ROUND($D$25*(1+'Inputs and Summary'!$B$4)^(A45-$D$27),0)*C45 -> 23 | X45: 38.46180556 | Z45: 191.977129
A46: 2025 | B46: =1*(SUM($B$33:B45)<$D$24) -> 1 | C46: 1 | D46: 2427524.55 | E46: 196.4358201 | F46: 220.3131065 | G46: 300.3405472 | H46: =+H45*(1+'Inputs and Summary'!$B$4) -> 135.1636627 | I46: 40.59512843 | J46: =+J45*(1+'Inputs and Summary'!$B$4)*B46 -> 10.33883284 | K46: -25.09777053 | L46: =+L45*(1+'Inputs and Summary'!$B$4)*B46 -> -7.027375748 | M46: =+M45*(1+'Inputs and Summary'!$B$4)*B46 -> -38.87428142 | N46: 1656.44393 | O46: -21.17597921 | P46: -92.17540691 | Q46: 168.732828 | R46: 0.059049 | S46: -113.7341368 | T46: 54.99869125 | U46: =+'Inputs and Summary'!$B$5 -> 0.35 | V46: -19.24954194 | W46: =+ROUND($D$25*(1+'Inputs and Summary'!$B$4)^(A46-$D$27),0)*C46 -> 24 | X46: 38.46180556 | Z46: 187.9450917
A47: 2026 | B47: =1*(SUM($B$33:B46)<$D$24) -> 1 | C47: 1 | D47: 2427524.55 | E47: 196.4358201 | F47: 220.3131065 | G47: 300.3405472 | H47: =+H46*(1+'Inputs and Summary'!$B$4) -> 138.5427543 | I47: 41.61000664 | J47: =+J46*(1+'Inputs and Summary'!$B$4)*B47 -> 10.59730366 | K47: -25.72521479 | L47: =+L46*(1+'Inputs and Summary'!$B$4)*B47 -> -7.203060142 | M47: =+M46*(1+'Inputs and Summary'!$B$4)*B47 -> -39.84613846 | N47: 1617.921978 | O47: -20.68351457 | P47: -93.45792797 | Q47: 168.4651852 | R47: 0.059049 | S47: -113.7341368 | T47: 54.7310484 | U47: =+'Inputs and Summary'!$B$5 -> 0.35 | V47: -19.15586694 | W47: =+ROUND($D$25*(1+'Inputs and Summary'!$B$4)^(A47-$D$27),0)*C47 -> 24 | X47: 38.46180556 | Z47: 187.7711238
